{"text_format":"1","workbook":"xlsx","n_sheets":12,"sheets":["INSTRUCTIONS","Updater","FOR COMPLETION","Lists","RISK ASSESSMENT","VALIDATION OF DATA ENTRY","FOR INFO Known Human RightRisks","FOR INFO Risk Metrics","2021 Review countries","2018-2019 Review countries","FOR INFO Low Risk Exemptions","US Dept List of Countries"],"not_rendered":{"charts":0,"images":0,"macros":1,"external_links":1,"defined_names":23,"comments":4,"pivot_tables":0},"unopened":[],"bounds":{"document_bytes":16777216,"sheet_cells":100000,"rows_first":2000,"rows_last":500,"rows_between":2000,"halvings":0,"cell_chars":16384,"cell_head_chars":4096},"cells_cut":0,"cells_raw":0,"read":"whole","date_system":"1900"}

{"sheet":"INSTRUCTIONS","index":0,"n_rows":78,"n_cols":2,"rows_kept":78,"cut":false,"hidden":false,"merged":[[62,1,62,18],[64,1,64,18],[57,1,57,18],[53,1,53,18],[66,1,66,18],[54,1,54,18],[60,1,60,18],[59,1,59,18],[58,1,58,18],[27,1,27,18],[25,1,25,18],[44,1,44,18],[45,1,45,18],[46,1,46,18],[41,1,41,18],[37,1,37,18],[38,1,38,18],[39,1,39,18],[31,1,31,18],[6,1,6,18],[7,1,7,18],[10,1,10,18],[12,1,12,18],[13,1,13,18],[8,1,8,18],[9,1,9,18],[11,1,11,18],[14,1,14,18],[56,1,56,18],[35,1,35,18],[51,1,51,18],[29,1,29,18],[33,1,33,18],[15,1,15,18],[55,1,55,18],[43,1,43,18],[52,1,52,18],[42,1,42,18],[23,1,23,18],[36,1,36,18],[40,1,40,18],[19,1,19,18],[21,1,21,18],[77,1,77,18],[47,1,47,18],[48,1,48,18],[49,1,49,18],[50,1,50,18],[71,1,71,18],[72,1,72,18],[73,1,73,18],[74,1,74,18],[69,1,69,18],[70,1,70,18],[63,1,63,18],[65,1,65,18],[67,1,67,18],[61,1,61,18],[68,1,68,18]]}
[]
[]
[]
[]
[]
[]
[null,"Introduction - FNET Supplier Risk Assessment V06 21st December 2021"]
[null,"Between May and October 2016, a group of 30 suppliers and five retailers developed a common supplier framework for assessing and addressing ethical trade risks. The FNET Risk Assessment was developed with input from these two groups to prevent duplication and encourage the adoption of standard approaches that met retailers’ needs whilst supporting supplier efforts to manage ethical trade in their supply chains.  \n\nBetween October and December 2018, FNET appointed Anthesis to conduct the update of the Country Risk Scores and Known HR Issues. Anthesis have developed a change to the methodology of calculating the composite country risk score index, based on weighting several labour and social rights indicators (with appropriate weightings fixed to each indicator), which meant that the 2018 Country Risk Scores were more normally distributed and not solely based on the highest indicator score available for a country. As a result of this change in methodology, Anthesis (with the support of Carnstone)  adjusted the risk rating thresholds to avoid unnecessary changes in ratings compared to 2017 tool. More information on the change of methodology is available on request. The same methodology has been used for the 2021 update of the tool. "]
[null,"How to Use the Risk Assessment tool: "]
[null,"The FNET Risk Assessment tool provides guidance for companies on the relative risks of products/ ingredients/ sub-components/ raw materials in their supply chain. It uses publicly available information on country risks and known-human rights risk in combination with risks associated with labour types and industries drawn from public sources and best practice. Combined, these risks produce a low, medium or high risk score which is intended to inform a company's ethical trade risk assessment. The tool encourages companies to enter commercial information against which to assess their ethical trade risks in order to be able to prioritise the resources they have for managing ethical trade. "]
[null,"How this tool fits into the FNET guidance for managing ethical trade in supply chains & how it fits with the UN Guiding Principles"]
[null,"The FNET Risk Assessment tool should be used once companies have established their commitment to ethical trade and determined their strategic goals for managing ethical trade in their supply chains. It is then recommended that companies follow the FNET guidance for managing ethical trade in supply chains which includes the following steps:"]
[null,"1) Assess – The FNET framework and risk assessment allows companies to identify high risk products/ ingredients/ sub-components/ raw materials"]
[null,"2) Prioritise – The risk score can be combined with a value of “importance”, for example spend, to determine the business’s priorities"]
[null,"3) Respond – Companies must determine how they are going to respond to the priorities they have identified through the risk assessment process. "]
[null,"4) Measure  - Measure and report on the progress you make"]
[]
[null,"Structure of this document"]
[null,"Tab \"FOR COMPLETION\""]
[null,"The For Completion sheet is to be used by companies to enter details of their products/ ingredients/ sub-components/ raw materials"]
[null,"Tab \"RISK ASSESSMENT\""]
[null,"The Risk Assessment sheet pulls through the information that companies enter on the For Completion tab and calculates the risk rating for each product/ ingredient/ sub-component/ raw material. Companies should NOT enter any information on this sheet except for in column R \"Prioritisation\" as this sheet uses macros to pull information from the For Completion sheet. "]
[null,"Tab \"FOR INFO Known Human RightRisks\""]
[null,"The Known Human Rights Risks sheet is for information only. It shows publicly available information about child labour (CL), forced labour (FL), human rights risks (HR) and member reports of risks (MR) at country and product level. The information from this tab is used in the Risk Assessment columns H and I. Companies should use this sheet to identify quickly high risk ingredient and country combinations"]
[null,"Tab \"FOR INFO Risk Metrics\""]
[null,"The For Info Risk Metrics Tab is for information only. It determines the scores allocated by the risk assessment and shows the scores for countries, direct vs agent supply, industry risks and labour types."]
[null,"Tab \"VALIDATION OF DATA ENTRY\""]
[null,"The Validation of Data Entry sheet is to be used by companies to validate country and ingredient information entered in the FOR COMPLETION sheet which are not recognised in the lookup against the Known Human Rights Risk tabs and the Risk Metrics tabs. "]
[null,"Tab \"2021 Review Countries\""]
[null,"This tab is for information only. It outlines the 2021 Anthesis process for determining country risks and countries where a review was required with the FNET Risk Assessment & Mitigation Workstream and where input was sought from the wider FNET membership. "]
[null,"Tab \"2018-2019 Review Countries\""]
[null,"This tab is for information only. It outlines the 2018-2019 Anthesis process for determining country risks and countries where a review was required with the FNET Risk Assessment & Mitigation Workstream and where input was sought from the wider FNET membership. "]
[null,"Tab \"FOR INFO Low Risk Exemptions\""]
[null,"This tab is for information only. It provides Low Risk country exemptions which can be used in Step 2 below"]
[]
[null,"Instructions: "]
[null,"Step 1: List all products/ ingredients/ sub-components/ raw materials purchased"]
[null,"Companies should start with a full list of all products/ ingredients/ sub-components/ raw materials purchased by the company OR use a sub-section of their products/ ingredients/ sub-components/ raw materials. Companies should gather data to the lowest level available, including, where feasible, the sub-components of raw materials and their sources. An example would be the spices and other ingredients which form the sub-components of curry powder."]
[null,"Step 2: Do you have more than 500 products/ ingredients/ sub-components/ raw materials?"]
[null,"It is recommended that companies with more than 500 products/ ingredients/ sub-components/ raw materials take out any known low risk exemptions, where possible, using the FOR INFO Low Risk Exemptions sheet. Companies can also filter out known high risk products/ ingredients/ sub-components/ raw materials using the FOR INFO Known Human RightRisks sheet if this reduces the data they need to enter into the FOR COMPLETION sheet. The aim is to reach a manageable number of products/ ingredients/ sub-components/ raw materials to risk assess.\n\nCompanies purchasing less than 500 products/ ingredients/ sub-components/ raw materials, move directly to Step 7."]
[null,"Step 3: Remove any products/ ingredients/ sub-components/ raw materials sourced from known low risk countries"]
[null,"Remove any products/ ingredients/ sub-components/ raw materials sourced from countries listed in the Low Risk Exemptions tab from the list you are risk assessing. Keep a record of what you have removed from your list"]
[null,"Step 4: Remove any high risk products/ ingredients/ sub-components/ raw materials from known high risk countries"]
[null,"1) Refer to the FOR INFO Known Human RightsRisks sheet"]
[null,"2) Identify any combinations of products/ ingredients/ sub-components/ raw materials and country combinations that you currently purchase which are shown as having known risks of child labour and/ or forced labour"]
[null,"3) Assign those products/ ingredients/ sub-components/ raw materials as ethical trade priorities subject to your prioritisation (assessment of commercial value and volume)"]
[null,"4) Use the Risk Assessment tool to assess the risk of all remaining products/ ingredients/ sub-components/ raw materials, unless steps 1-3 have produced a large list which it would only be possible to focus on in year one.  If, after completing Step 4, a company has a large number of known high risk products/ ingredients/ sub-components/ raw materials they should consider focussing resources on those products/ ingredients/ sub-components/ raw materials in the first year."]
[null,"Step 5: Produce list of products/ ingredients/ sub-components/ raw materials to run risk assessment on"]
[null,"Removing low risk products/ ingredients/ sub-components/ raw materials and known high risk products/ ingredients/ sub-components/ raw materials will leave you with a list of products/ ingredients/ sub-components/ raw materials for which the risk is unknown. The risk assessment tool should be run on these products/ ingredients/ sub-components/ raw materials."]
[null,"Step 6: Run risk assessment on remaining products/ ingredients/ sub-components/ raw materials"]
[null,"Use Steps 1-5 to produce a final list of products/ ingredients/ sub-components/ raw materials upon which to run the risk assessment:"]
[null,"a) Use the \"For Completion\" sheet to enter information about products/ ingredients/ sub-components/ raw materials based on information taken from technical specifications/ procurement data/ other data. Companies should enter details about as many levels of the supply chain for the product/ ingredient/ sub-component/ raw material as they have information about and include all levels of the supply chain where you know risks exist. For example, for seafood products or produce companies should enter information at farm or boat level. Data should only be entered into yellow cells"]
[null,"b) All the existing data is shown as an example therefore delete as necessary"]
[null,"c) Companies' products/ ingredients/ sub-components/ raw materials information should be entered into the Cells which are highlighted yellow on the \"For Completion\" sheet"]
[null,"d) Use the \"Add Rows\" button to add as many rows as needed to enter products/ ingredients/ sub-components/ raw materials NB: Adding upwards of 500 rows will take several seconds for the macro to function. It will also use significant memory if you are working from a laptop which may affect the performance of the spreadsheet. Do not add rows to the For Completion tab using any other method as functionality will be lost"]
[null,"e) Enter free text or choose from the drop down menus as appropriate to populate the yellow cells. The drop down menus are linked to the “FOR INFO Risk Metrics” sheet (for reference only)"]
[null,"f) The Ingredient/s entered (column E) and the Country/ Countries entered (column H) are used to identify 1) the country risk (See the \"FOR INFO Risk Metrics\" sheet for details of country risks and 2) whether the combination of country and ingredient is associated with severe human rights issues, forced labour and child labour in particular. See the \"FOR INFO Known Human RightRisks sheet for details of country and ingredients with known human rights risks)."]
[null,"g) Sub-components of ingredients should be mapped fully where resources allow i.e. each sub-component and the tiers of its supply chain should be mapped out in a separate row"]
[null,"h) If it is not possible to map each sub-component in a separate row, companies should enter product/ ingredients in Columns D and their ingredients/ sub-components in Column E. Each ingredient or sub-component should be separated by a comma. The countries that each ingredient or sub-component is sourced from should be entered in column H. Each country should be separated by a comma. The risk assessment for country and ingredient information will populate based on the highest risk sub-component. Companies should enter the highest risk Industry information and Labour Risk information where known for sub-components. If this information is unknown, companies should choose \"Unknown\" from the drop down menu. Unknown information always results in the highest risk score."]
[null,"i) Columns L-O allow companies to enter commercial information which will help them prioritise the ethical trade risks they identify. The green cells in Columns L and M are voluntary cells for information about your business. Columns N and O are drop down menus that companies should use to rank products/ ingredients/ raw materials/ sub-components 1 to 3 where 1 is low commercial value/ business risk and 3 is high commercial value/ business risk."]
[null,"j) When companies have finished entering all the information about their products/ ingredients/ sub-components/ raw materials, they should press the Validate button on the FOR COMPLETION sheet. This will take you to a sheet where you can: 1) identify any spelling mistakes and replace with corrections from the FOR INFO Known Human RightRisks sheet 2) replace any unknown ingredients or countries with valid options/ proxies from the FOR INFO Known Human RightRisks sheet. \nIngredients or countries which cannot be validated should be left blank. "]
[null,"k) The Validate process allows companies to select the most appropriate pre-defined country and/or ingredient to replace the unrecognised text, or to leave the cells blank for the entry to be ignored during the analysis. For example, a company could choose \"sugar\" to replace \"sugar cane\" or \"berries\" to replace \"strawberry\". For countries, companies may choose \"Cote d'Ivoire\" to replace \"Ivory Coast\" or \"Myanmar\" to replace \"Burma\". You can use proxy for an ingredient that there is no publicly available data - for example if your ingredient is Payapa (which there is no risk information about) you can choose Tropical and Subtropical fruit which will use instead all available information for products in that category from the country you are sourcing from. "]
[null,"l) If there is no information to Validate, a message will appear stating that \"All ingredients and countries have been validated OK\". You should then press the Analyse button on the \"For Completion\" sheet to update the Risk Assessment"]
[null,"m) If companies have validated information on the \"Validation\" sheet they should press the Analyse button on the \"Validation\" sheet which will update the \"Risk Assessment\" sheet with the relevant Risk Assessment of the information entered"]
[null,"n) Data changed on the \"For Completion\" sheet after the Analyse button has been pressed will lead the Risk Assessment sheet to go blank. You should press the Analyse button again to update the \"Risk Assessment\" sheet"]
[null,"o) The Risk Assessment produces a relative risk assessment of your products/ ingredients/ raw materials/ sub-components and shows them as low/ medium or high risk"]
[null,"p) Any unknown information, whether country cells left blank or \"Unknown' chosen from the drop down menu attract the highest risk score on the basis that ethical trade risk can't be assessed without this information"]
[null,"q) You should use the Risk Assessment and the ratings entered in Columns L-O to determine what your priorities should be for an appropriate period e.g. 12 months. It is recommended that you use the information to identify 3-5 priorities to work on over a 12 month period unless you have significant resource to allow you to tackle more"]
[null,"r) You should revisit the Risk Assessment and Priorities on a regular basis - recommended 6 monthly or 12 monthly depending on available resource"]
[null,"Step 7: Produce final list of high and medium risk ingredients/ raw materials"]
[null,"Produce a list of high and medium risk ingredients/ raw materials by adding the ingredients and raw materials identified in Step 4 to the list of raw materials and ingredients that you have run the risk assessment on"]
[null,"Step 8: Follow the remaining steps in the FNET Guidance document"]
[null,"Follow the remaining steps in the FNET Guidance document to define your priorities and determine how your company will respond to this priorities"]
[]
[null,"The information contained in this assessment is given by way of general guidance and does not constitute legal advice. Circumstances may differ and detailed legal advice should be obtained before acting upon it. The Food Network for Ethical Trade and HCL cannot accept responsibility for any errors or omissions or for any loss occasioned to any person or body acting or refraining from acting on the basis of any material contained in this publication. "]
[]
[]
[null,"Importing Data From Previous Version Of Risk Assessment\n\nTo import the data from the 'FOR COMPLETION' tab of the previous version, press the button [Import Data], and select the previous file when prompted. \nYOU WILL NEED TO VALIDATE AND ANALYSE THE DATA AGAIN WHEN YOU HAVE COMPLETED THIS STEP BY PRESSING THE VALIDATE AND THEN ANALYSE BUTTONS.\nIf you do not want to import the examples contained in the original risk assessment tool, delete the rows from your existing version, save this version as a different file name (ensure you have saved your original file) and import the updated version. \nPLEASE MAKE SURE YOU HAVE SAVED A COPY OF YOUR ORIGINAL RISK ASSESSMENT BEFORE YOU MAKE ANY CHANGES."]

{"sheet":"Updater","index":1,"n_rows":2,"n_cols":1,"rows_kept":2,"cut":false,"hidden":true,"merged":[]}
["Auto update applied:"]
["#_NOV17_#"]

{"sheet":"FOR COMPLETION","index":2,"n_rows":24,"n_cols":15,"rows_kept":24,"cut":false,"hidden":false,"merged":[[14,7,14,10],[14,11,14,14]]}
[]
[]
[]
[]
[]
[]
[]
[]
[null,null,"Data Entry Key"]
[null,null,"Cells where suppliers should enter data as free text or from drop down options"]
[null,null,"Voluntary data"]
[null,null,"Used for assessment of Risks"]
[]
[]
[null,null,null,null,null,null,null,"INHERENT RISKS",null,null,null,"PRIORITISATION"]
[null,"Supplier Name","Unique\nIdentifier","Product","Ingredient/s","Tier","Supply Chain Level","Source Country/ Final Processing Country","Buying Channel","Industry Risks","Labour Risks","Annual\nSpend","Volumes","Commercial value","Business\nRisk"]
[null,"X1234",123457,"Orange Syrup","Oranges",2,"Supplier","Italy","Direct Source","Accommodation","Migrant & Seasonal/ Temporary",123,456,3,3]
[null,null,null,null,"Oranges",3,"Agent","Brazil","Agent","Accommodation","Migrant & Seasonal/ Temporary",456,123,3,1]
[null,null,null,null,"Sugar syrup",3,"Agent","Belize","Agent","Unknown","Seasonal",456,123,3,1]
[null,null,null,null,"Sugar",3,"Agent","Malawi","Agent","Low Pay & Unskilled Labour","Seasonal",456,123,3,1]
[null,null,null,"Fish fingers","Fish",1,"Supplier","United Kingdom","Direct Source","Unskilled Labour","Seasonal",3456,12,3,3]
[null,null,null,null,"Breadcrumbs",1,"Agent","France","Agent","None","Permanent",3456,1234,1,1]
[null,null,null,null,"Garlic Paste",2,"Direct Supplier","China","Direct Source","None","Temporary",2345,1234,1,1]
[null,null,null,null,"Skimmed Milk Powder",1,"Agent","france","Agent","Unskilled Labour","Agency/ third party labour & Temporary"]

{"sheet":"Lists","index":3,"n_rows":53,"n_cols":7,"rows_kept":53,"cut":false,"hidden":true,"merged":[]}
["Risk Bins","Min","Max",null,null,null,"Ingredients List"]
["Low",0,237,null,null,null,"Bananas"]
["Medium",238,411,null,null,null,"Beef"]
["High",412,650,null,null,null,"Berries"]
[null,null,null,null,null,null,"Butter"]
[null,null,null,null,null,null,"Cheese"]
[null,null,null,null,null,null,"Chicken"]
[null,null,null,null,null,null,"Citrus"]
[null,null,null,null,null,null,"Cocoa"]
[null,null,null,null,null,null,"Coffee"]
[null,null,null,null,null,null,"Corn"]
[null,null,null,null,null,null,"Cotton"]
[null,null,null,null,null,null,"Dried Fruit"]
[null,null,null,null,null,null,"Eggs"]
[null,null,null,null,null,null,"Exotics"]
[null,null,null,null,null,null,"Garlic"]
[null,null,null,null,null,null,"Grapes"]
[null,null,null,null,null,null,"Herbs"]
[null,null,null,null,null,null,"Lamb"]
[null,null,null,null,null,null,"Melons"]
[null,null,null,null,null,null,"Milk"]
[null,null,null,null,null,null,"Nuts"]
[null,null,null,null,null,null,"Coconuts"]
[null,null,null,null,null,null,"Brazil"]
[null,null,null,null,null,null,"Cashew"]
[null,null,null,null,null,null,"Peanuts"]
[null,null,null,null,null,null,"Hazelnuts"]
[null,null,null,null,null,null,"Nuts (coconuts, brazil, cashew, peanuts, hazelnuts)"]
[null,null,null,null,null,null,"Oil"]
[null,null,null,null,null,null,"Oil (veg)"]
[null,null,null,null,null,null,"Oil (palm)"]
[null,null,null,null,null,null,"Palm"]
[null,null,null,null,null,null,"Onion"]
[null,null,null,null,null,null,"Pork"]
[null,null,null,null,null,null,"Pulses (legumes)"]
[null,null,null,null,null,null,"Rice"]
[null,null,null,null,null,null,"Salads (ambient)"]
[null,null,null,null,null,null,"Salt"]
[null,null,null,null,null,null,"Seafood"]
[null,null,null,null,null,null,"Sesame"]
[null,null,null,null,null,null,"Shrimp"]
[null,null,null,null,null,null,"Soy beans"]
[null,null,null,null,null,null,"Spices"]
[null,null,null,null,null,null,"Stone Fruit"]
[null,null,null,null,null,null,"Sugar"]
[null,null,null,null,null,null,"Sunflower"]
[null,null,null,null,null,null,"Tea"]
[null,null,null,null,null,null,"Top Fruit"]
[null,null,null,null,null,null,"Turkey"]
[null,null,null,null,null,null,"Wheat"]
[null,null,null,null,null,null,"Wine"]
[null,null,null,null,null,null,"Veg (root)"]
[null,null,null,null,null,null,"Veg (other)"]

{"sheet":"RISK ASSESSMENT","index":4,"n_rows":24,"n_cols":21,"rows_kept":24,"cut":false,"hidden":false,"merged":[[14,6,14,15],[14,16,14,20]]}
[null,null,null,null,null,null,"Y"]
[]
[]
[]
[]
[]
[]
[null,null,null,null,null,null,null,null,null,null,null,null,null,null,"Risk Scores"]
[null,"Results Key",null,null,null,null,null,null,null,null,null,null,null,null,"Low",20,120]
[null,"Entered Data",null,null,null,null,null,null,null,null,null,null,null,null,"Medium",120,220]
[null,"Voluntary Data",null,null,null,null,null,null,null,null,null,null,null,null,"High",220,320]
[null,"Assessment of Risks"]
[]
[null,null,null,null,39,null,40,41]
[null,null,null,null,null,null,"INHERENT RISKS",null,null,null,null,null,null,null,null,null,"PRIORITISATION"]
[null,"Supplier Name","Unique\nIdentifier","Product","Ingredient/s","Country","Country Risk Rating","Known severe\nhuman rights\nrisk","Known severe\nhuman rights\nrisk score","Buying Channel","Buying Channel\nRisk Score","Industry Risks","Industry Risk\nScore","Labour Risks","Labour Risks Score","Relative Risk Rating","Annual\nSpend","Volumes","Commercial value","Business\nRisk","Prioritisation"]
[null,"X1234",123457,"Orange Syrup","Oranges","Italy",28.79783677914196,"Yes",50,"Direct Source",10,"Accommodation",25,"Migrant & Seasonal/ Temporary",100,213.79783677914196,123,456,3,3]
[null,null,null,null,"Oranges","Brazil",51.00326028126743,"No",0,"Agent",25,"Accommodation",25,"Migrant & Seasonal/ Temporary",100,201.00326028126744,456,123,3,1]
[null,null,null,null,"Sugar syrup","Belize",25.55093591921224,"Yes",50,"Agent",25,"Unknown",50,"Seasonal",50,200.55093591921224,456,123,3,1]
[null,null,null,null,"Sugar","Malawi",51.736114101841373,"Yes",50,"Agent",25,"Low Pay & Unskilled Labour",30,"Seasonal",50,206.73611410184137,456,123,3,1]
[null,null,null,"Fish fingers","Fish","United Kingdom",27.169969262870897,"Yes",50,"Direct Source",10,"Unskilled Labour",20,"Seasonal",50,157.16996926287089,3456,12,3,3]
[null,null,null,null,"Breadcrumbs","France",23.267144610916969,"No",0,"Agent",25,"None",0,"Permanent",10,58.267144610916972,3456,1234,1,1]
[null,null,null,null,"Garlic Paste","China",65.346892516258791,"Yes",50,"Direct Source",10,"None",0,"Temporary",50,175.34689251625878,2345,1234,1,1]
[null,null,null,null,"Skimmed Milk Powder","france",23.267144610916969,"No",0,"Agent",25,"Unskilled Labour",20,"Agency/ third party labour & Temporary",100,168.26714461091697]

{"sheet":"VALIDATION OF DATA ENTRY","index":5,"n_rows":24,"n_cols":6,"rows_kept":24,"cut":false,"hidden":false,"merged":[[6,1,6,5]]}
[]
[]
[]
[]
[]
[]
[null,"Please select the most appropriate pre-defined country and/or ingredient to replace\nthe unrecognised text, or leave blank for the entry to be ignored during the analysis."]
[null,"Unrecognised Country","Replace with",null,"Unrecognised Ingredient","Replace with"]
[null,"UK","United Kingdom",null,"Oranges","Orange"]
[null,"Cote D'Ivoire",null,null,"Sugar syrup","Sugar"]
[null,null,null,null,"Breadcrumbs"]
[null,null,null,null,"Garlic Paste","Garlic"]
[null,null,null,null,"Skimmed Milk Powder","Milk"]
[null,null,null,null,"Eggns","Eggs"]
[null,null,null,null,"Oil","Vegetable Oils"]
[null,null,null,null,"Cocoa Butter"]
[null,null,null,null,"Soya beans","Beans and legumes"]
[null,null,null,null,"Eggs","Egg"]
[null,null,null,null,"Flur","Wheat"]
[null,null,null,null,"Flour","Wheat"]
[null,null,null,null,"Paprika","Spices"]
[null,null,null,null,"Chilli Powder","Chili pepper"]
[null,null,null,null,"Cayenne","Spices"]
[null,null,null,null,"Garlic Powder","Garlic"]

{"sheet":"FOR INFO Known Human RightRisks","index":6,"n_rows":222,"n_cols":166,"rows_kept":222,"cut":false,"hidden":false,"merged":[[214,2,214,26],[23,163,24,163],[23,164,24,164]]}
[]
[]
[]
[null,null,"New","New",null,null,null,"New",null,null,null,null,null,null,null,null,null,null,null,null,null,null,null,null,null,null,null,null,null,"Renamed",null,"Renamed",null,null,null,null,null,"Merged",null,null,"Renamed",null,null,null,null,null,null,null,null,null,null,null,null,null,null,null,null,"Renamed","Renamed","Renamed","New",null,null,null,"New",null,null,null,null,null,null,null,null,null,null,null,null,"New",null,null,null,"New",null,null,null,null,null,null,null,null,null,null,null,null,null,null,null,null,null,null,null,null,null,"New",null,null,null,null,null,null,null,null,null,null,null,null,"New",null,null,null,null,null,null,"New","Renamed",null,"Renamed",null,null,null,null,null,null,null,null,null,null,null,null,null,null,null,null,null,null,null,null,null,null,null,null,"Renamed","Renamed",null,null,null,"Renamed",null,"Renamed",null,"New"]
[]
[]
[]
[]
[]
[null,"Verite",null,null,null,null,null,null,"Unknown: Argentina, China, Madagascar, Netherlands, Poland, Spain, Thailand, Vietnam","Unknown: Angola, Brazil, China, Costa Rica, India, Indonesia, Guatemala, Tanzania\nNot listed: Colombia, Cote d'Ivoire, Dominican Republic, Honduras, Mexico, South Africa",null,"Unknown: Argentina, Australia, Bangladesh, Brazil, China, Canada, Egypt, India, Indonesia, Italy, Morocco, Netherlands, Pakistan, Paraguay, Poland, Russia, Spain, Thailand, Ukraine, United Kingdom, USA, Vietnam",null,null,null,null,null,null,null,null,null,null,"New 2018 Dept. of Labour",null,"Dept. of Labour: Vietnam only CL","Unknown: Angola, Australia, Belgium, Canada, China, France, Gabon, Germany, Honduras, India, Ireland, Japan, New Zealand, Nicaragua, Netherlands, Poland, USA\nUpdated: Chad, Mauritania, Nambia \nAdded: Costa Rica,Kenya, Malawi, Swaziland, Tanzania","Unknown: Belgium, China, Colombia, Indonesia, Mexico, Namibia, Netherlands, Nigeria, Paraguay, Poland, South Africa, Ukraine, Vietnam\nAdded: Chad",null,null,null,null,null,null,"Unknown: Angola, Colombia, Guinea, India, Israel, Indonesia, Mexico, Nigeria, Philippines  \n Turkey downgraded to CL\nNot listed: Italy, South Africa\nNot listed: USA, South Africa",null,"Unknown: Brazil, Dominican Republic, Ecuador, Indonesia, Mexico, Peru\nNot listed: Uganda, PNG",null,"Unknown: Brazil, Ethiopia, India, Indonesia, Peru\nGuatemala and Vietnam only CL.\nAdded: Mexico added FL; Togo changed to FL","Unknown: Argentina, Brazil, China, India, Indonesia, Lithuania, Mexico, Russia, Ukraine, USA","Unknown: Australia, Germany, Italy, Indonesia, Ivory Coast, USA\nCameroon only FL",null,null,null,null,"Dept. of Labour remove DRC FL, India FL, Liberia FL","Unknown: Canada, Mexico, Chile, Urugauy, Ecuador, Suriname, Spain, Angola, Norway, China, Mongolia, Malawi, Netherlands",null,null,null,null,null,"Unknown: China, France, Germany, Indonesia, Netherlands, Spain, Suriname, Vietnam, USA, ",null,null,null,null,null,null,null,"Dept. of Labour only CL",null,null,null,null,null,null,null,null,null,null,null,null,"Unknown: USA, Guatemala, Spain, Morocco, Egypt, Turkey, Iran, China, India, Kazakhstan",null,null,null,"Dept. of Labour only CL",null,null,null,null,null,null,"Unknown: Guatemala, Honduras, Colombia, Cote D'Ivoire, Ghana, Nigeria, Thailand, PNG; \nDowngraded: Ecuador",null,null,"Unknown: Mexico, Nigeria, India, China, Indonesia, Philippines, Nigeria; Downgrade to FL",null,null,null,null,null,null,"Unknown: China, Indonesia, Thailand",null,"Unknown: Canada, China, France, French Guyana, Germany, Indonesia, Japan, Malaysia, Nigeria, Philippines, US",null,"Unknown: Canada, China, France, French Guyana, Germany, Indonesia, Japan, Nigeria, Philippines, US",null,null,"Unknown: China, France, Germany, Indonesia, Netherlands, Spain, Suriname, Vietnam, USA, ",null,null,null,null,"Unknown: Egypt, Germany, Poland, Russia, Spain, Turkey, USA; \nUnlisted: remainder",null,"Unknown: Argentina, Bulgaria, China, Ethiopia, France, Hungary, Indonesia, Romania, Russia, Ukraine, USA; \nDowngraded; Guatemala, India (remove FL); \nUnlisted Malawi","Unlisted: Ethiopia","Unlisted: Russia and Ukraine; \nAdded: Myanmar","Dept. of Labour Kenya, Malawi , Tanzania only CL","Dept. of labour added China",null,null,"Dept. of Labour only FL; New Russia","Dept. of Labour added FL to Mexico",null,null,null,"Added United Kingdom for FL"]
[null,null,"Additive","Anti-caking agent","Apricots","Apples","Almond","Ascorbic Acid","Aubergine","Alcoholic Beverages","Avocado","Bamboo","Banana","Barley","Baked Goods","Beans and legumes","Beef","Beet Sugar","Non-Alcoholic Beverages","Blueberries","Berries","Black Pepper","Brassicas","Brazilnuts","Broccoli","Butter","Cabbages","Cane Sugar","Carrots","Cassava","Cashew Nuts","Cattle","Cereals","Charcoal","Cheese","Cherries","Chestnuts","Chicken/ Poultry","Chickpea","Chili pepper","Citrus","Clothing and Footwear","Cloves","Cocoa","Coconut","Coffee","Corn","Cotton","Cottonseed","Cranberry","Cumin","Cucumber","Diamonds","Dairy","Dried Fish","Dried Fruit","Easy Peelers","Egg","Farmed Fish (Tilipia; Carp; Catfish; etc)","Farmed Shellfish (Shrimp)","Fibre crops","Figs","Fish","Flowers","Food colour","Footwear","Fruit","Garlic","Garments","Goat","Granite","Grain","Grapes","Grapefruit","Green Beans","Hazelnuts","Herbs","Hexacyanoferrate","Kiwis","Lamb","Latex","Lavender ","Lentil","Lemon","Lettuce","Lime","Lobster","Macadamia nuts","Mandarins","Mango","Meat","Melon","Milk","Mushrooms","Mung beans","Nuts","Nile Perch","Okra","Oleaginous Fruits (Coconut, Olive)","Olives","Olive Oil (Virgin)","Onion","Orange","Packaging","Palm Oil","Passion fruit","Peanuts","Peppers","Personal Protective Equipment (PPE)","Plastic Recycling","Pineapple","Plantain","Plums","Potatoes","Poppy","Pork","Raisins","Raspberries","Rapeseed Oil","Recycling","Rice","Rubber","Rubber gloves","Safflower ","Salads (ambient)","Salt","Seafood (squid)","Seeds","Sesame","Shrimp","Soy bean","Spices","Spinach","Strawberries","Stones and Gems","Sugar","Sunflower","Sunflower oil","Sweet Potatoes","Tea","Textiles","Textiles (jute)","Tilapia","Timber","Tobacco","Tomatoes","Tomato Paste","Top Fruit","Tropical and Subtropical fruits","Turkey","Wheat","Wild Fish (Tuna; Cod; Haddock etc.)","Wild Shellfish (Crab; Shrimp)","Wine","Wood Products (Charcoal, Timber)","Vanilla","Vegetable Oil","Root Vegetables","Vegetables (Non Root)","Vegetables","Xantham Gum","Yellow Beans"]
[null,"Country",{"$f":"COUNTA(C13:C211)-COUNTIF(C13:C211,\"Unknown\")","v":1},1,1,{"$f":"COUNTA(F13:F211)-COUNTIF(F13:F211,\"Unknown\")","v":2},1,1,3,2,1,2,12,1,2,15,3,2,36,1,11,1,7,2,2,0,2,28,3,10,7,40,21,5,0,2,2,{"$f":"COUNTA(AL13:AL211)-COUNTIF(AL13:AL211,\"Unknown\")","v":7},1,4,12,20,2,14,9,26,18,26,1,3,1,2,7,1,1,1,0,0,3,8,26,1,61,8,1,7,42,2,14,4,9,{"$f":"COUNTA(BT13:BT211)-COUNTIF(BT13:BT211,\"Unknown\")","v":1},8,4,2,1,3,1,1,2,1,1,0,2,4,1,1,1,1,5,26,7,1,2,1,19,1,1,15,6,3,6,7,1,11,4,{"$f":"COUNTA(DC13:DC211)-COUNTIF(DC13:DC211,\"Unknown\")","v":6},2,2,1,7,1,1,7,2,5,1,1,4,2,22,9,1,1,4,9,4,4,3,6,5,13,2,7,39,32,2,2,{"$f":"COUNTA(EI13:EI211)-COUNTIF(EI13:EI211,\"Unknown\")","v":1},16,10,1,1,7,21,13,1,6,24,0,4,28,10,1,11,3,18,18,24,37,1,1]
[null,"Afghanistan","Unknown","Unknown","Unknown","Unknown","Unknown","Unknown","Unknown","Unknown","Unknown","Unknown","Unknown","Unknown","Unknown","CL","Unknown","Unknown","Unknown","Unknown","Unknown","Unknown","Unknown","Unknown","Unknown","Unknown","Unknown","Unknown","Unknown","Unknown","Unknown","Unknown","Unknown","Unknown","Unknown","Unknown","Unknown","Unknown","CL","Unknown","Unknown","Unknown","Unknown","Unknown","Unknown","Unknown","Unknown","Unknown","Unknown","Unknown","Unknown","Unknown","Unknown","Unknown","Unknown","Unknown","Unknown","Unknown","Unknown","Unknown","Unknown","Unknown","Unknown","CL","Unknown","Unknown","Unknown","Unknown","Unknown","Unknown","Unknown","Unknown","Unknown","Unknown","Unknown","Unknown","Unknown","Unknown","Unknown","Unknown","Unknown","Unknown","Unknown","Unknown","Unknown","Unknown","Unknown","Unknown","Unknown","Unknown","Unknown","Unknown","Unknown","Unknown","CL","Unknown","Unknown","Unknown","Unknown","Unknown","Unknown","Unknown","Unknown","Unknown","Unknown","Unknown","Unknown","Unknown","Unknown","Unknown","Unknown","Unknown","Unknown","Unknown","CL","Unknown","Unknown","Unknown","Unknown","Unknown","Unknown","Unknown","Unknown","Unknown","Unknown","CL","Unknown","Unknown","Unknown","Unknown","Unknown","CL","Unknown","Unknown","Unknown","Unknown","Unknown","Unknown","Unknown","Unknown","Unknown","Unknown","Unknown","Unknown","Unknown","Unknown","Unknown","Unknown","Unknown","Unknown","Unknown","Unknown","Unknown","Unknown","Unknown","Unknown","Unknown","Unknown","Unknown","Unknown","Unknown","Unknown"]
[null,"Albania","Unknown","Unknown","Unknown","Unknown","Unknown","Unknown","Unknown","Unknown","Unknown","Unknown","Unknown","Unknown","Unknown","Unknown","Unknown","Unknown","Unknown","Unknown","Unknown","Unknown","Unknown","Unknown","Unknown","Unknown","Unknown","Unknown","Unknown","Unknown","Unknown","Unknown","Unknown","Unknown","Unknown","Unknown","Unknown","Unknown","Unknown","Unknown","Unknown","Unknown","Unknown","Unknown","Unknown","Unknown","Unknown","Unknown","Unknown","Unknown","Unknown","Unknown","Unknown","Unknown","Unknown","Unknown","Unknown","Unknown","Unknown","Unknown","Unknown","Unknown","Unknown","Unknown","Unknown","Unknown","Unknown","Unknown","Unknown","Unknown","Unknown","Unknown","Unknown","Unknown","Unknown","Unknown","Unknown","Unknown","Unknown","Unknown","Unknown","Unknown","Unknown","Unknown","Unknown","Unknown","Unknown","Unknown","Unknown","Unknown","Unknown","Unknown","Unknown","Unknown","Unknown","Unknown","Unknown","Unknown","Unknown","Unknown","Unknown","Unknown","Unknown","Unknown","Unknown","Unknown","Unknown","Unknown","Unknown","Unknown","Unknown","Unknown","Unknown","Unknown","Unknown","Unknown","Unknown","Unknown","Unknown","Unknown","Unknown","Unknown","Unknown","Unknown","Unknown","Unknown","Unknown","Unknown","Unknown","Unknown","Unknown","Unknown","Unknown","Unknown","Unknown","Unknown","Unknown","Unknown","Unknown","Unknown","Unknown","Unknown","Unknown","Unknown","Unknown","Unknown","Unknown","Unknown","Unknown","Unknown","Unknown","Unknown","Unknown","Unknown","Unknown","Unknown","Unknown","Unknown","Unknown","Unknown","Unknown","Unknown",null,"CL*","Child Labour (US Department of Labour)"]
[null,"Algeria","Unknown","Unknown","Unknown","Unknown","Unknown","Unknown","Unknown","Unknown","Unknown","Unknown","Unknown","Unknown","Unknown","Unknown","Unknown","Unknown","Unknown","Unknown","Unknown","Unknown","Unknown","Unknown","Unknown","Unknown","Unknown","Unknown","Unknown","Unknown","Unknown","Unknown","Unknown","Unknown","Unknown","Unknown","Unknown","Unknown","Unknown","Unknown","Unknown","Unknown","Unknown","Unknown","Unknown","Unknown","Unknown","Unknown","Unknown","Unknown","Unknown","Unknown","Unknown","Unknown","Unknown","Unknown","Unknown","Unknown","Unknown","Unknown","Unknown","Unknown","Unknown","Unknown","Unknown","Unknown","Unknown","Unknown","Unknown","Unknown","Unknown","Unknown","Unknown","Unknown","Unknown","Unknown","Unknown","Unknown","Unknown","Unknown","Unknown","Unknown","Unknown","Unknown","Unknown","Unknown","Unknown","Unknown","Unknown","Unknown","Unknown","Unknown","Unknown","Unknown","Unknown","Unknown","Unknown","Unknown","CL","CL","Unknown","Unknown","Unknown","Unknown","Unknown","Unknown","Unknown","Unknown","Unknown","Unknown","Unknown","Unknown","Unknown","Unknown","Unknown","Unknown","Unknown","Unknown","Unknown","Unknown","Unknown","Unknown","Unknown","Unknown","Unknown","Unknown","Unknown","Unknown","Unknown","Unknown","Unknown","Unknown","Unknown","Unknown","Unknown","Unknown","Unknown","Unknown","Unknown","Unknown","Unknown","Unknown","Unknown","Unknown","Unknown","Unknown","Unknown","Unknown","Unknown","Unknown","Unknown","Unknown","Unknown","Unknown","Unknown","Unknown","Unknown","Unknown","Unknown","Unknown","Unknown","Unknown",null,"CL","Child Labour"]
[null,"Andorra","Unknown","Unknown","Unknown","Unknown","Unknown","Unknown","Unknown","Unknown","Unknown","Unknown","Unknown","Unknown","Unknown","Unknown","Unknown","Unknown","Unknown","Unknown","Unknown","Unknown","Unknown","Unknown","Unknown","Unknown","Unknown","Unknown","Unknown","Unknown","Unknown","Unknown","Unknown","Unknown","Unknown","Unknown","Unknown","Unknown","Unknown","Unknown","Unknown","Unknown","Unknown","Unknown","Unknown","Unknown","Unknown","Unknown","Unknown","Unknown","Unknown","Unknown","Unknown","Unknown","Unknown","Unknown","Unknown","Unknown","Unknown","Unknown","Unknown","Unknown","Unknown","Unknown","Unknown","Unknown","Unknown","Unknown","Unknown","Unknown","Unknown","Unknown","Unknown","Unknown","Unknown","Unknown","Unknown","Unknown","Unknown","Unknown","Unknown","Unknown","Unknown","Unknown","Unknown","Unknown","Unknown","Unknown","Unknown","Unknown","Unknown","Unknown","Unknown","Unknown","Unknown","Unknown","Unknown","Unknown","Unknown","Unknown","Unknown","Unknown","Unknown","Unknown","Unknown","Unknown","Unknown","Unknown","Unknown","Unknown","Unknown","Unknown","Unknown","Unknown","Unknown","Unknown","Unknown","Unknown","Unknown","Unknown","Unknown","Unknown","Unknown","Unknown","Unknown","Unknown","Unknown","Unknown","Unknown","Unknown","Unknown","Unknown","Unknown","Unknown","Unknown","Unknown","Unknown","Unknown","Unknown","Unknown","Unknown","Unknown","Unknown","Unknown","Unknown","Unknown","Unknown","Unknown","Unknown","Unknown","Unknown","Unknown","Unknown","Unknown","Unknown","Unknown","Unknown","Unknown","Unknown","Unknown","Unknown","Unknown",null,"FL","Forced Labour"]
[null,"Angola","Unknown","Unknown","Unknown","Unknown","Unknown","Unknown","Unknown","Unknown","Unknown","Unknown","Unknown","Unknown","Unknown","Unknown","Unknown","Unknown","Unknown","Unknown","Unknown","Unknown","Unknown","Unknown","Unknown","Unknown","Unknown","Unknown","Unknown","Unknown","Unknown","CL / FL","Unknown","Unknown","Unknown","Unknown","Unknown","Unknown","Unknown","Unknown","Unknown","Unknown","Unknown","Unknown","Unknown","Unknown","Unknown","Unknown","Unknown","Unknown","Unknown","Unknown","CL/FL","Unknown","Unknown","Unknown","Unknown","Unknown","Unknown","Unknown","Unknown","Unknown","Unknown","Unknown","Unknown","Unknown","CL","Unknown","Unknown","Unknown","Unknown","Unknown","Unknown","Unknown","Unknown","Unknown","Unknown","Unknown","Unknown","Unknown","Unknown","Unknown","Unknown","Unknown","Unknown","Unknown","Unknown","Unknown","Unknown","Unknown","Unknown","Unknown","Unknown","Unknown","Unknown","Unknown","Unknown","Unknown","Unknown","Unknown","Unknown","Unknown","Unknown","Unknown","Unknown","Unknown","Unknown","Unknown","Unknown","Unknown","Unknown","Unknown","Unknown","Unknown","Unknown","Unknown","Unknown","Unknown","Unknown","Unknown","CL","Unknown","Unknown","Unknown","Unknown","Unknown","Unknown","Unknown","Unknown","Unknown","Unknown","Unknown","Unknown","Unknown","CL/FL","Unknown","Unknown","Unknown","Unknown","Unknown","Unknown","Unknown","Unknown","Unknown","Unknown","CL","Unknown","Unknown","Unknown","Unknown","Unknown","FL","Unknown","Unknown","Unknown","Unknown","Unknown","Unknown","Unknown","CL","Unknown","Unknown",null,"FL/HR","Forced Labour & other Human Rights issues"]
[null,"Antigua and Barbuda","Unknown","Unknown","Unknown","Unknown","Unknown","Unknown","Unknown","Unknown","Unknown","Unknown","Unknown","Unknown","Unknown","Unknown","Unknown","Unknown","Unknown","Unknown","Unknown","Unknown","Unknown","Unknown","Unknown","Unknown","Unknown","Unknown","Unknown","Unknown","Unknown","Unknown","Unknown","Unknown","Unknown","Unknown","Unknown","Unknown","Unknown","Unknown","Unknown","Unknown","Unknown","Unknown","Unknown","Unknown","Unknown","Unknown","Unknown","Unknown","Unknown","Unknown","Unknown","Unknown","Unknown","Unknown","Unknown","Unknown","Unknown","Unknown","Unknown","Unknown","Unknown","Unknown","Unknown","Unknown","Unknown","Unknown","Unknown","Unknown","Unknown","Unknown","Unknown","Unknown","Unknown","Unknown","Unknown","Unknown","Unknown","Unknown","Unknown","Unknown","Unknown","Unknown","Unknown","Unknown","Unknown","Unknown","Unknown","Unknown","Unknown","Unknown","Unknown","Unknown","Unknown","Unknown","Unknown","Unknown","Unknown","Unknown","Unknown","Unknown","Unknown","Unknown","Unknown","Unknown","Unknown","Unknown","Unknown","Unknown","Unknown","Unknown","Unknown","Unknown","Unknown","Unknown","Unknown","Unknown","Unknown","Unknown","Unknown","Unknown","Unknown","Unknown","Unknown","Unknown","Unknown","Unknown","Unknown","Unknown","Unknown","Unknown","Unknown","Unknown","Unknown","Unknown","Unknown","Unknown","Unknown","Unknown","Unknown","Unknown","Unknown","Unknown","Unknown","Unknown","Unknown","Unknown","Unknown","Unknown","Unknown","Unknown","Unknown","Unknown","Unknown","Unknown","Unknown","Unknown","Unknown","Unknown","Unknown","Unknown",null,"CL/FL","Child Labour & Forced Labour"]
[null,"Argentina","Unknown","Unknown","Unknown","Unknown","Unknown","Unknown","Unknown","Unknown","Unknown","Unknown","Unknown","Unknown","Unknown","Unknown","Unknown","Unknown","Unknown","CL","CL","Unknown","Unknown","Unknown","Unknown","Unknown","Unknown","Unknown","CL","Unknown","Unknown","Unknown","Unknown","FL","Unknown","Unknown","Unknown","Unknown","Unknown","Unknown","Unknown","CL/FL","Unknown","Unknown","Unknown","Unknown","Unknown","CL","Unknown","Unknown","Unknown","Unknown","Unknown","Unknown","Unknown","Unknown","Unknown","Unknown","Unknown","Unknown","CL","Unknown","Unknown","Unknown","Unknown","Unknown","CL","CL","CL/FL","Unknown","Unknown","Unknown","CL","Unknown","Unknown","Unknown","Unknown","Unknown","Unknown","Unknown","Unknown","Unknown","Unknown","Unknown","Unknown","Unknown","Unknown","Unknown","Unknown","Unknown","Unknown","Unknown","Unknown","Unknown","Unknown","Unknown","Unknown","Unknown","CL","CL","Unknown","CL","Unknown","Unknown","Unknown","Unknown","Unknown","Unknown","Unknown","Unknown","Unknown","Unknown","Unknown","CL","Unknown","Unknown","Unknown","Unknown","Unknown","Unknown","Unknown","Unknown","Unknown","Unknown","Unknown","Unknown","Unknown","Unknown","Unknown","Unknown","Unknown","CL","Unknown","CL","Unknown","Unknown","Unknown","Unknown","Unknown","Unknown","Unknown","Unknown","Unknown","Unknown","CL","CL","Unknown","Unknown","CL","Unknown","Unknown","Unknown","Unknown","Unknown","FL","Unknown","Unknown","CL","CL","CL","Unknown","Unknown",null,"CL/FL/HR","Child Labour, Forced Labour & other Human Rights","Pulled through where High or Very High risks for Modern Slavery (FL), Child Labour (CL) and Human Rights (HR)"]
[null,"Armenia","Unknown","Unknown","Unknown","Unknown","Unknown","Unknown","Unknown","Unknown","Unknown","Unknown","Unknown","Unknown","Unknown","Unknown","Unknown","Unknown","Unknown","Unknown","Unknown","Unknown","Unknown","Unknown","Unknown","Unknown","Unknown","Unknown","Unknown","Unknown","Unknown","CL","Unknown","Unknown","Unknown","Unknown","Unknown","Unknown","Unknown","Unknown","Unknown","Unknown","Unknown","Unknown","Unknown","Unknown","Unknown","Unknown","Unknown","Unknown","Unknown","Unknown","Unknown","Unknown","Unknown","Unknown","Unknown","Unknown","Unknown","Unknown","Unknown","Unknown","Unknown","Unknown","Unknown","Unknown","Unknown","Unknown","Unknown","Unknown","Unknown","Unknown","Unknown","Unknown","Unknown","Unknown","Unknown","Unknown","Unknown","Unknown","Unknown","Unknown","Unknown","Unknown","Unknown","Unknown","Unknown","Unknown","Unknown","Unknown","Unknown","Unknown","Unknown","Unknown","Unknown","Unknown","Unknown","Unknown","Unknown","Unknown","Unknown","Unknown","Unknown","Unknown","Unknown","Unknown","Unknown","Unknown","Unknown","Unknown","Unknown","Unknown","Unknown","CL","Unknown","Unknown","Unknown","Unknown","Unknown","Unknown","Unknown","Unknown","Unknown","Unknown","Unknown","Unknown","Unknown","Unknown","Unknown","Unknown","Unknown","Unknown","Unknown","Unknown","Unknown","Unknown","Unknown","Unknown","Unknown","Unknown","Unknown","Unknown","Unknown","Unknown","Unknown","Unknown","Unknown","Unknown","Unknown","Unknown","Unknown","Unknown","Unknown","Unknown","Unknown","Unknown","Unknown","Unknown","CL","CL","Unknown","Unknown",null,"HR","WRAP tool data - Human Rights issues"]
[null,"Australia","Unknown","Unknown","Unknown","Unknown","Unknown","Unknown","Unknown","Unknown","Unknown","Unknown","Unknown","Unknown","Unknown","Unknown","Unknown","Unknown","Unknown","Unknown","Unknown","Unknown","Unknown","Unknown","Unknown","Unknown","Unknown","Unknown","Unknown","Unknown","Unknown","Unknown","Unknown","Unknown","Unknown","Unknown","Unknown","Unknown","Unknown","Unknown","Unknown","Unknown","Unknown","Unknown","Unknown","Unknown","Unknown","Unknown","Unknown","Unknown","Unknown","Unknown","Unknown","Unknown","Unknown","Unknown","Unknown","Unknown","Unknown","Unknown","Unknown","Unknown","Unknown","Unknown","Unknown","Unknown","Unknown","Unknown","Unknown","Unknown","Unknown","Unknown","Unknown","Unknown","Unknown","Unknown","Unknown","Unknown","Unknown","Unknown","Unknown","Unknown","Unknown","Unknown","Unknown","Unknown","Unknown","Unknown","Unknown","Unknown","Unknown","Unknown","Unknown","Unknown","Unknown","Unknown","Unknown","Unknown","Unknown","Unknown","Unknown","Unknown","Unknown","Unknown","Unknown","Unknown","Unknown","Unknown","Unknown","Unknown","Unknown","Unknown","Unknown","Unknown","Unknown","Unknown","Unknown","Unknown","Unknown","Unknown","Unknown","Unknown","Unknown","Unknown","Unknown","Unknown","Unknown","Unknown","Unknown","Unknown","Unknown","Unknown","Unknown","Unknown","Unknown","Unknown","Unknown","Unknown","Unknown","Unknown","Unknown","Unknown","Unknown","Unknown","Unknown","Unknown","Unknown","Unknown","Unknown","Unknown","Unknown","Unknown","Unknown","Unknown","Unknown","Unknown","Unknown","Unknown","Unknown","Unknown","Unknown","Unknown",null,"MR","Member reported issues"]
[null,"Austria","Unknown","Unknown","Unknown","Unknown","Unknown","Unknown","Unknown","Unknown","Unknown","Unknown","Unknown","Unknown","Unknown","Unknown","Unknown","Unknown","Unknown","Unknown","Unknown","Unknown","Unknown","Unknown","Unknown","Unknown","Unknown","Unknown","Unknown","Unknown","Unknown","Unknown","Unknown","Unknown","Unknown","Unknown","Unknown","Unknown","Unknown","Unknown","Unknown","Unknown","Unknown","Unknown","Unknown","Unknown","Unknown","Unknown","Unknown","Unknown","Unknown","Unknown","Unknown","Unknown","Unknown","Unknown","Unknown","Unknown","Unknown","Unknown","Unknown","Unknown","Unknown","Unknown","Unknown","Unknown","Unknown","Unknown","Unknown","Unknown","Unknown","Unknown","Unknown","Unknown","Unknown","Unknown","Unknown","Unknown","Unknown","Unknown","Unknown","Unknown","Unknown","Unknown","Unknown","Unknown","Unknown","Unknown","Unknown","Unknown","Unknown","Unknown","Unknown","Unknown","Unknown","Unknown","Unknown","Unknown","Unknown","Unknown","Unknown","Unknown","Unknown","Unknown","Unknown","Unknown","Unknown","Unknown","Unknown","Unknown","Unknown","Unknown","Unknown","Unknown","Unknown","Unknown","Unknown","Unknown","Unknown","Unknown","Unknown","Unknown","Unknown","Unknown","Unknown","Unknown","Unknown","Unknown","Unknown","Unknown","Unknown","Unknown","Unknown","Unknown","Unknown","Unknown","Unknown","Unknown","Unknown","Unknown","Unknown","Unknown","Unknown","Unknown","Unknown","Unknown","Unknown","Unknown","Unknown","Unknown","Unknown","Unknown","Unknown","Unknown","Unknown","Unknown","Unknown","Unknown","Unknown","Unknown","Unknown","Unknown",null,"Other","Other known labour rights issues"]
[null,"Azerbaijan","Unknown","Unknown","Unknown","Unknown","Unknown","Unknown","Unknown","Unknown","Unknown","Unknown","Unknown","Unknown","Unknown","Unknown","Unknown","Unknown","CL","Unknown","Unknown","Unknown","Unknown","Unknown","Unknown","Unknown","Unknown","Unknown","Unknown","Unknown","Unknown","Unknown","Unknown","Unknown","Unknown","Unknown","Unknown","Unknown","Unknown","Unknown","Unknown","Unknown","Unknown","Unknown","Unknown","Unknown","Unknown","CL","Unknown","Unknown","Unknown","Unknown","Unknown","Unknown","Unknown","Unknown","Unknown","Unknown","Unknown","Unknown","CL","Unknown","Unknown","Unknown","Unknown","Unknown","Unknown","Unknown","Unknown","Unknown","Unknown","Unknown","Unknown","Unknown","Unknown","Unknown","Unknown","Unknown","Unknown","Unknown","Unknown","Unknown","Unknown","Unknown","Unknown","Unknown","Unknown","Unknown","Unknown","Unknown","Unknown","Unknown","Unknown","Unknown","Unknown","Unknown","Unknown","Unknown","Unknown","Unknown","Unknown","Unknown","Unknown","Unknown","Unknown","Unknown","Unknown","Unknown","Unknown","Unknown","Unknown","Unknown","Unknown","Unknown","Unknown","Unknown","Unknown","Unknown","Unknown","Unknown","Unknown","Unknown","Unknown","Unknown","Unknown","Unknown","Unknown","Unknown","Unknown","Unknown","Unknown","Unknown","Unknown","Unknown","Unknown","Unknown","Unknown","Unknown","Unknown","CL","Unknown","Unknown","Unknown","Unknown","CL","Unknown","Unknown","Unknown","Unknown","Unknown","Unknown","Unknown","Unknown","Unknown","Unknown","Unknown","Unknown","Unknown","Unknown","Unknown","Unknown","Unknown",null,"Unknown","Risk unknown: Due diligence is advised"]
[null,"Bahamas","Unknown","Unknown","Unknown","Unknown","Unknown","Unknown","Unknown","Unknown","Unknown","Unknown","Unknown","Unknown","Unknown","Unknown","Unknown","Unknown","Unknown","Unknown","Unknown","Unknown","Unknown","Unknown","Unknown","Unknown","Unknown","Unknown","Unknown","Unknown","Unknown","Unknown","Unknown","Unknown","Unknown","Unknown","Unknown","Unknown","Unknown","Unknown","Unknown","Unknown","Unknown","Unknown","Unknown","Unknown","Unknown","Unknown","Unknown","Unknown","Unknown","Unknown","Unknown","Unknown","Unknown","Unknown","Unknown","Unknown","Unknown","Unknown","Unknown","Unknown","Unknown","Unknown","Unknown","Unknown","Unknown","Unknown","Unknown","Unknown","Unknown","Unknown","Unknown","Unknown","Unknown","Unknown","Unknown","Unknown","Unknown","Unknown","Unknown","Unknown","Unknown","Unknown","Unknown","Unknown","Unknown","Unknown","Unknown","Unknown","Unknown","Unknown","Unknown","Unknown","Unknown","Unknown","Unknown","Unknown","Unknown","Unknown","Unknown","Unknown","Unknown","Unknown","Unknown","Unknown","Unknown","Unknown","Unknown","Unknown","Unknown","Unknown","Unknown","Unknown","Unknown","Unknown","Unknown","Unknown","Unknown","Unknown","Unknown","Unknown","Unknown","Unknown","Unknown","Unknown","Unknown","Unknown","Unknown","Unknown","Unknown","Unknown","Unknown","Unknown","Unknown","Unknown","Unknown","Unknown","Unknown","Unknown","Unknown","Unknown","Unknown","Unknown","Unknown","Unknown","Unknown","Unknown","Unknown","Unknown","Unknown","Unknown","Unknown","Unknown","Unknown","Unknown","Unknown","Unknown","Unknown","Unknown","Unknown","Unknown",null,"Unknown","Producing country - risk unknown: Due diligence is advised (source Verite Responsible Sourcing Tool)"]
[null,"Bahrain","Unknown","Unknown","Unknown","Unknown","Unknown","Unknown","Unknown","Unknown","Unknown","Unknown","Unknown","Unknown","Unknown","Unknown","Unknown","Unknown","Unknown","Unknown","Unknown","Unknown","Unknown","Unknown","Unknown","Unknown","Unknown","Unknown","Unknown","Unknown","Unknown","Unknown","Unknown","Unknown","Unknown","Unknown","Unknown","Unknown","Unknown","Unknown","Unknown","Unknown","Unknown","Unknown","Unknown","Unknown","Unknown","Unknown","Unknown","Unknown","Unknown","Unknown","Unknown","Unknown","Unknown","Unknown","Unknown","Unknown","Unknown","Unknown","Unknown","Unknown","Unknown","Unknown","Unknown","Unknown","Unknown","Unknown","Unknown","Unknown","Unknown","Unknown","Unknown","Unknown","Unknown","Unknown","Unknown","Unknown","Unknown","Unknown","Unknown","Unknown","Unknown","Unknown","Unknown","Unknown","Unknown","Unknown","Unknown","Unknown","Unknown","Unknown","Unknown","Unknown","Unknown","Unknown","Unknown","Unknown","Unknown","Unknown","Unknown","Unknown","Unknown","Unknown","Unknown","Unknown","Unknown","Unknown","Unknown","Unknown","Unknown","Unknown","Unknown","Unknown","Unknown","Unknown","Unknown","Unknown","Unknown","Unknown","Unknown","Unknown","Unknown","Unknown","Unknown","Unknown","Unknown","Unknown","Unknown","Unknown","Unknown","Unknown","Unknown","Unknown","Unknown","Unknown","Unknown","Unknown","Unknown","Unknown","Unknown","Unknown","Unknown","Unknown","Unknown","Unknown","Unknown","Unknown","Unknown","Unknown","Unknown","Unknown","Unknown","Unknown","Unknown","Unknown","Unknown","Unknown","Unknown","Unknown","Unknown","Unknown"]
[null,"Bangladesh","Unknown","Unknown","Unknown","Unknown","Unknown","Unknown","Unknown","Unknown","Unknown","Unknown","Unknown","Unknown","Unknown","Unknown","Unknown","Unknown","CL/FL","Unknown","Unknown","Unknown","Unknown","Unknown","Unknown","Unknown","Unknown","Unknown","Unknown","Unknown","Unknown","CL","Unknown","Unknown","Unknown","Unknown","Unknown","CL","Unknown","Unknown","Unknown","CL","Unknown","Unknown","Unknown","Unknown","Unknown","Unknown","Unknown","Unknown","Unknown","Unknown","Unknown","Unknown","CL","Unknown","Unknown","Unknown","CL","CL","Unknown","Unknown","CL","Unknown","Unknown","CL","Unknown","Unknown","CL","Unknown","Unknown","Unknown","Unknown","Unknown","Unknown","Unknown","Unknown","Unknown","Unknown","Unknown","Unknown","Unknown","Unknown","Unknown","Unknown","Unknown","Unknown","Unknown","Unknown","Unknown","Unknown","Unknown","Unknown","Unknown","Unknown","Unknown","Unknown","Unknown","Unknown","Unknown","Unknown","Unknown","Unknown","Unknown","Unknown","Unknown","Unknown","Unknown","Unknown","Unknown","Unknown","Unknown","Unknown","Unknown","Unknown","Unknown","Unknown","Unknown","Unknown","Unknown","Unknown","Unknown","Unknown","Unknown","Unknown","CL","Unknown","Unknown","Unknown","CL/FL","Unknown","Unknown","Unknown","Unknown","Unknown","Unknown","Unknown","Unknown","Unknown","CL/FL","CL","CL","Unknown","Unknown","CL","Unknown","Unknown","Unknown","Unknown","Unknown","Unknown","Unknown","CL","Unknown","Unknown","Unknown","Unknown","Unknown","Unknown","Unknown","Unknown","Unknown"]
[null,"Barbados","Unknown","Unknown","Unknown","Unknown","Unknown","Unknown","Unknown","Unknown","Unknown","Unknown","Unknown","Unknown","Unknown","Unknown","Unknown","Unknown","Unknown","Unknown","Unknown","Unknown","Unknown","Unknown","Unknown","Unknown","Unknown","Unknown","Unknown","Unknown","Unknown","Unknown","Unknown","Unknown","Unknown","Unknown","Unknown","Unknown","Unknown","Unknown","Unknown","Unknown","Unknown","Unknown","Unknown","Unknown","Unknown","Unknown","Unknown","Unknown","Unknown","Unknown","Unknown","Unknown","Unknown","Unknown","Unknown","Unknown","Unknown","Unknown","Unknown","Unknown","Unknown","Unknown","Unknown","Unknown","Unknown","Unknown","Unknown","Unknown","Unknown","Unknown","Unknown","Unknown","Unknown","Unknown","Unknown","Unknown","Unknown","Unknown","Unknown","Unknown","Unknown","Unknown","Unknown","Unknown","Unknown","Unknown","Unknown","Unknown","Unknown","Unknown","Unknown","Unknown","Unknown","Unknown","Unknown","Unknown","Unknown","Unknown","Unknown","Unknown","Unknown","Unknown","Unknown","Unknown","Unknown","Unknown","Unknown","Unknown","Unknown","Unknown","Unknown","Unknown","Unknown","Unknown","Unknown","Unknown","Unknown","Unknown","Unknown","Unknown","Unknown","Unknown","Unknown","Unknown","Unknown","Unknown","Unknown","Unknown","Unknown","Unknown","Unknown","Unknown","Unknown","Unknown","Unknown","Unknown","Unknown","Unknown","Unknown","Unknown","Unknown","Unknown","Unknown","Unknown","Unknown","Unknown","Unknown","Unknown","Unknown","Unknown","Unknown","Unknown","Unknown","Unknown","Unknown","Unknown","Unknown","Unknown","Unknown","Unknown"]
[null,"Belarus","Unknown","Unknown","Unknown","Unknown","Unknown","Unknown","Unknown","Unknown","Unknown","Unknown","Unknown","Unknown","Unknown","Unknown","Unknown","Unknown","Unknown","Unknown","HR","Unknown","Unknown","Unknown","Unknown","Unknown","Unknown","Unknown","Unknown","Unknown","Unknown","Unknown","Unknown","Unknown","Unknown","Unknown","Unknown","Unknown","Unknown","Unknown","Unknown","Unknown","Unknown","Unknown","Unknown","Unknown","Unknown","Unknown","Unknown","HR","Unknown","Unknown","Unknown","Unknown","Unknown","Unknown","Unknown","Unknown","Unknown","Unknown","Unknown","Unknown","Unknown","Unknown","Unknown","Unknown","HR","Unknown","Unknown","Unknown","Unknown","Unknown","Unknown","Unknown","Unknown","Unknown","Unknown","Unknown","Unknown","Unknown","Unknown","Unknown","Unknown","Unknown","Unknown","Unknown","Unknown","Unknown","Unknown","Unknown","Unknown","Unknown","Unknown","Unknown","Unknown","Unknown","Unknown","Unknown","Unknown","Unknown","Unknown","Unknown","Unknown","Unknown","Unknown","Unknown","Unknown","Unknown","Unknown","Unknown","Unknown","Unknown","Unknown","Unknown","Unknown","Unknown","Unknown","Unknown","Unknown","Unknown","Unknown","Unknown","Unknown","Unknown","Unknown","Unknown","Unknown","Unknown","Unknown","Unknown","Unknown","Unknown","Unknown","Unknown","Unknown","Unknown","Unknown","Unknown","Unknown","Unknown","Unknown","Unknown","Unknown","Unknown","Unknown","Unknown","Unknown","Unknown","Unknown","Unknown","Unknown","Unknown","Unknown","Unknown","Unknown","Unknown","Unknown","Unknown","Unknown","Unknown","Unknown","Unknown"]
[null,"Belgium","Unknown","Unknown","Unknown","Unknown","Unknown","Unknown","Unknown","Unknown","Unknown","Unknown","Unknown","Unknown","Unknown","Unknown","Unknown","Unknown","Unknown","Unknown","Unknown","Unknown","Unknown","Unknown","Unknown","Unknown","Unknown","Unknown","Unknown","Unknown","Unknown","Unknown","Unknown","Unknown","Unknown","Unknown","Unknown","Unknown","Unknown","Unknown","Unknown","Unknown","Unknown","Unknown","Unknown","Unknown","Unknown","Unknown","Unknown","Unknown","Unknown","Unknown","Unknown","Unknown","Unknown","Unknown","Unknown","Unknown","Unknown","Unknown","Unknown","Unknown","Unknown","Unknown","Unknown","Unknown","Unknown","Unknown","Unknown","Unknown","Unknown","Unknown","Unknown","Unknown","Unknown","Unknown","Unknown","Unknown","Unknown","Unknown","Unknown","Unknown","Unknown","Unknown","Unknown","Unknown","Unknown","Unknown","Unknown","Unknown","Unknown","Unknown","Unknown","Unknown","Unknown","Unknown","Unknown","Unknown","Unknown","Unknown","Unknown","Unknown","Unknown","Unknown","Unknown","Unknown","Unknown","Unknown","Unknown","Unknown","Unknown","Unknown","Unknown","Unknown","Unknown","Unknown","Unknown","Unknown","Unknown","Unknown","Unknown","Unknown","Unknown","Unknown","Unknown","Unknown","Unknown","Unknown","Unknown","Unknown","Unknown","Unknown","Unknown","Unknown","Unknown","Unknown","Unknown","Unknown","Unknown","Unknown","Unknown","Unknown","Unknown","Unknown","Unknown","Unknown","Unknown","Unknown","Unknown","Unknown","Unknown","Unknown","Unknown","Unknown","Unknown","Unknown","Unknown","Unknown","Unknown","Unknown","Unknown","Unknown"]
[null,"Belize","Unknown","Unknown","Unknown","Unknown","Unknown","Unknown","Unknown","Unknown","Unknown","Unknown","CL","Unknown","Unknown","CL","Unknown","Unknown","Unknown","Unknown","Unknown","Unknown","Unknown","Unknown","Unknown","Unknown","Unknown","CL","Unknown","Unknown","Unknown","CL","CL","Unknown","Unknown","Unknown","Unknown","CL","Unknown","Unknown","CL","Unknown","Unknown","Unknown","Unknown","Unknown","CL","Unknown","Unknown","Unknown","Unknown","Unknown","Unknown","Unknown","Unknown","Unknown","Unknown","Unknown","Unknown","Unknown","Unknown","Unknown","Unknown","Unknown","Unknown","Unknown","CL","Unknown","Unknown","Unknown","Unknown","Unknown","Unknown","Unknown","Unknown","Unknown","Unknown","Unknown","Unknown","Unknown","Unknown","Unknown","Unknown","Unknown","Unknown","Unknown","Unknown","Unknown","Unknown","Unknown","Unknown","Unknown","Unknown","Unknown","Unknown","Unknown","Unknown","Unknown","Unknown","Unknown","Unknown","Unknown","CL","Unknown","Unknown","Unknown","Unknown","Unknown","Unknown","Unknown","Unknown","Unknown","Unknown","Unknown","Unknown","Unknown","Unknown","Unknown","Unknown","Unknown","CL","Unknown","Unknown","Unknown","Unknown","Unknown","Unknown","Unknown","Unknown","Unknown","Unknown","Unknown","Unknown","Unknown","Unknown","CL","Unknown","Unknown","Unknown","Unknown","Unknown","Unknown","Unknown","Unknown","Unknown","Unknown","Unknown","Unknown","CL","Unknown","Unknown","Unknown","Unknown","Unknown","Unknown","Unknown","Unknown","CL","CL","CL","Unknown","Unknown"]
[null,"Benin","Unknown","Unknown","Unknown","Unknown","Unknown","Unknown","Unknown","Unknown","Unknown","Unknown","Unknown","Unknown","Unknown","Unknown","Unknown","Unknown","Unknown","Unknown","Unknown","Unknown","Unknown","Unknown","Unknown","Unknown","Unknown","Unknown","Unknown","Unknown","Unknown","CL","Unknown","Unknown","Unknown","Unknown","Unknown","Unknown","Unknown","Unknown","Unknown","Unknown","Unknown","Unknown","Unknown","Unknown","Unknown","CL/FL","Unknown","Unknown","Unknown","Unknown","Unknown","Unknown","Unknown","Unknown","Unknown","Unknown","Unknown","Unknown","CL/FL","Unknown","Unknown","Unknown","Unknown","Unknown","Unknown","Unknown","Unknown","Unknown","CL","Unknown","Unknown","Unknown","Unknown","Unknown","Unknown","Unknown","Unknown","Unknown","Unknown","Unknown","Unknown","Unknown","Unknown","Unknown","Unknown","Unknown","Unknown","Unknown","Unknown","Unknown","Unknown","Unknown","Unknown","Unknown","Unknown","Unknown","Unknown","Unknown","Unknown","Unknown","Unknown","Unknown","FL","Unknown","Unknown","Unknown","Unknown","Unknown","Unknown","Unknown","Unknown","Unknown","Unknown","Unknown","Unknown","Unknown","Unknown","Unknown","Unknown","Unknown","Unknown","Unknown","Unknown","Unknown","Unknown","Unknown","Unknown","Unknown","Unknown","Unknown","Unknown","Unknown","CL","Unknown","Unknown","Unknown","Unknown","Unknown","Unknown","Unknown","Unknown","Unknown","Unknown","Unknown","Unknown","Unknown","Unknown","Unknown","Unknown","Unknown","Unknown","Unknown","Unknown","Unknown","FL","Unknown","Unknown","Unknown","Unknown","Unknown"]
[null,"Bhutan","Unknown","Unknown","Unknown","Unknown","Unknown","Unknown","Unknown","Unknown","Unknown","Unknown","Unknown","Unknown","Unknown","Unknown","Unknown","Unknown","Unknown","Unknown","Unknown","Unknown","Unknown","Unknown","Unknown","Unknown","Unknown","Unknown","Unknown","Unknown","Unknown","Unknown","Unknown","Unknown","Unknown","Unknown","Unknown","Unknown","Unknown","Unknown","Unknown","Unknown","Unknown","Unknown","Unknown","Unknown","Unknown","Unknown","Unknown","Unknown","Unknown","Unknown","Unknown","Unknown","Unknown","Unknown","Unknown","Unknown","Unknown","Unknown","Unknown","Unknown","Unknown","Unknown","Unknown","Unknown","Unknown","Unknown","Unknown","Unknown","Unknown","Unknown","Unknown","Unknown","Unknown","Unknown","Unknown","Unknown","Unknown","Unknown","Unknown","Unknown","Unknown","Unknown","Unknown","Unknown","Unknown","Unknown","Unknown","Unknown","Unknown","Unknown","Unknown","Unknown","Unknown","Unknown","Unknown","Unknown","Unknown","Unknown","Unknown","Unknown","Unknown","Unknown","Unknown","Unknown","Unknown","Unknown","Unknown","Unknown","Unknown","Unknown","Unknown","Unknown","Unknown","Unknown","Unknown","Unknown","Unknown","Unknown","Unknown","Unknown","Unknown","Unknown","Unknown","Unknown","Unknown","Unknown","Unknown","Unknown","Unknown","Unknown","Unknown","Unknown","Unknown","Unknown","Unknown","Unknown","Unknown","Unknown","Unknown","Unknown","Unknown","Unknown","Unknown","Unknown","Unknown","Unknown","Unknown","Unknown","Unknown","Unknown","Unknown","Unknown","Unknown","Unknown","Unknown","Unknown","Unknown","Unknown","Unknown","Unknown"]
[null,"Bolivia (Plurinational State of)","Unknown","Unknown","Unknown","Unknown","Unknown","Unknown","Unknown","Unknown","Unknown","Unknown","Unknown","Unknown","Unknown","CL/FL/HR","Unknown","Unknown","Unknown","Unknown","Unknown","Unknown","HR","CL/FL","Unknown","Unknown","Unknown","CL/FL","Unknown","Unknown","Unknown","FL","CL/FL","Unknown","Unknown","Unknown","CL/FL","Unknown","Unknown","Unknown","Unknown","Unknown","Unknown","Unknown","Unknown","Unknown","CL/FL","Unknown","Unknown","Unknown","Unknown","Unknown","Unknown","Unknown","Unknown","Unknown","Unknown","Unknown","Unknown","Unknown","Unknown","Unknown","Unknown","Unknown","Unknown","Unknown","Unknown","Unknown","Unknown","Unknown","Unknown","Unknown","Unknown","Unknown","Unknown","Unknown","Unknown","Unknown","Unknown","Unknown","Unknown","Unknown","Unknown","Unknown","Unknown","Unknown","Unknown","Unknown","Unknown","Unknown","FL","Unknown","Unknown","Unknown","Unknown","CL/FL","Unknown","Unknown","Unknown","Unknown","Unknown","Unknown","Unknown","Unknown","Unknown","Unknown","FL","Unknown","Unknown","Unknown","Unknown","Unknown","Unknown","Unknown","Unknown","Unknown","Unknown","Unknown","HR","Unknown","Unknown","Unknown","Unknown","Unknown","Unknown","Unknown","Unknown","Unknown","Unknown","Unknown","HR","Unknown","Unknown","Unknown","CL","CL/FL","Unknown","Unknown","Unknown","Unknown","Unknown","Unknown","Unknown","Unknown","Unknown","Unknown","Unknown","Unknown","Unknown","Unknown","Unknown","Unknown","Unknown","Unknown","Unknown","Unknown","HR","Unknown","Unknown","Unknown","Unknown","Unknown"]
[null,"Bosnia and Herzegovina","Unknown","Unknown","Unknown","Unknown","Unknown","Unknown","Unknown","Unknown","Unknown","Unknown","Unknown","Unknown","Unknown","Unknown","Unknown","Unknown","Unknown","Unknown","Unknown","Unknown","Unknown","Unknown","Unknown","Unknown","Unknown","Unknown","Unknown","Unknown","Unknown","Unknown","Unknown","Unknown","Unknown","Unknown","Unknown","Unknown","Unknown","Unknown","Unknown","Unknown","Unknown","Unknown","Unknown","Unknown","Unknown","Unknown","Unknown","Unknown","Unknown","Unknown","Unknown","Unknown","Unknown","Unknown","Unknown","Unknown","Unknown","Unknown","Unknown","Unknown","Unknown","Unknown","Unknown","Unknown","Unknown","Unknown","Unknown","Unknown","Unknown","Unknown","Unknown","Unknown","Unknown","Unknown","Unknown","Unknown","Unknown","Unknown","Unknown","Unknown","Unknown","Unknown","Unknown","Unknown","Unknown","Unknown","Unknown","Unknown","Unknown","Unknown","Unknown","Unknown","Unknown","Unknown","Unknown","Unknown","Unknown","Unknown","Unknown","Unknown","Unknown","Unknown","Unknown","Unknown","Unknown","Unknown","Unknown","Unknown","Unknown","Unknown","Unknown","Unknown","Unknown","Unknown","Unknown","Unknown","Unknown","Unknown","Unknown","Unknown","Unknown","Unknown","Unknown","Unknown","Unknown","Unknown","Unknown","Unknown","Unknown","Unknown","Unknown","Unknown","Unknown","Unknown","Unknown","Unknown","Unknown","Unknown","Unknown","Unknown","Unknown","Unknown","Unknown","Unknown","Unknown","Unknown","Unknown","Unknown","Unknown","Unknown","Unknown","Unknown","Unknown","Unknown","Unknown","Unknown","Unknown","Unknown","Unknown","Unknown"]
[null,"Botswana","Unknown","Unknown","Unknown","Unknown","Unknown","Unknown","Unknown","Unknown","Unknown","Unknown","Unknown","Unknown","Unknown","CL","Unknown","Unknown","Unknown","Unknown","Unknown","Unknown","Unknown","Unknown","Unknown","Unknown","Unknown","Unknown","Unknown","Unknown","Unknown","CL/FL","Unknown","Unknown","Unknown","Unknown","Unknown","Unknown","Unknown","Unknown","Unknown","Unknown","Unknown","Unknown","Unknown","Unknown","Unknown","Unknown","Unknown","Unknown","Unknown","Unknown","Unknown","Unknown","Unknown","Unknown","Unknown","Unknown","Unknown","Unknown","Unknown","Unknown","Unknown","Unknown","Unknown","Unknown","Unknown","Unknown","Unknown","Unknown","Unknown","Unknown","Unknown","Unknown","Unknown","Unknown","Unknown","Unknown","Unknown","Unknown","Unknown","Unknown","Unknown","Unknown","Unknown","Unknown","Unknown","Unknown","Unknown","Unknown","Unknown","Unknown","Unknown","Unknown","Unknown","Unknown","Unknown","Unknown","Unknown","Unknown","Unknown","Unknown","Unknown","Unknown","Unknown","Unknown","Unknown","Unknown","Unknown","Unknown","Unknown","Unknown","Unknown","Unknown","Unknown","Unknown","Unknown","Unknown","Unknown","Unknown","Unknown","Unknown","Unknown","Unknown","Unknown","Unknown","Unknown","Unknown","Unknown","Unknown","Unknown","Unknown","Unknown","Unknown","Unknown","Unknown","Unknown","Unknown","Unknown","Unknown","Unknown","Unknown","Unknown","Unknown","Unknown","Unknown","Unknown","Unknown","Unknown","Unknown","Unknown","Unknown","Unknown","Unknown","Unknown","Unknown","Unknown","Unknown","Unknown","Unknown","Unknown","Unknown"]
[null,"Brazil","Unknown","Unknown","Unknown","Unknown","Unknown","Unknown","Unknown","Unknown","Unknown","Unknown","CL","Unknown","Unknown","Unknown","CL","Unknown","CL/FL","Unknown","Unknown","Unknown","Unknown","Unknown","Unknown","Unknown","Unknown","CL/FL","Unknown","CL","CL","CL/FL","CL","CL/FL","Unknown","Unknown","Unknown","FL/CL","Unknown","Unknown","Unknown","CL/FL","Unknown","CL","Unknown","CL/FL","CL","CL","Unknown","Unknown","Unknown","Unknown","Unknown","Unknown","Unknown","Unknown","Unknown","Unknown","Unknown","Unknown","CL","Unknown","CL","Unknown","Unknown","CL","CL","Unknown","FL","Unknown","Unknown","Unknown","HR","Unknown","Unknown","Unknown","Unknown","Unknown","Unknown","CL","Unknown","Unknown","Unknown","Unknown","Unknown","Unknown","Unknown","Unknown","Unknown","HR","CL/FL","HR","Unknown","Unknown","Unknown","CL","Unknown","Unknown","Unknown","Unknown","Unknown","Unknown","Unknown","Unknown","Unknown","Unknown","Unknown","Unknown","Unknown","Unknown","CL","Unknown","Unknown","Unknown","Unknown","CL","Unknown","Unknown","Unknown","Unknown","CL","Unknown","Unknown","Unknown","Unknown","CL/FL","Unknown","Unknown","Unknown","Unknown","Unknown","Unknown","Unknown","Unknown","Unknown","CL/FL","Unknown","Unknown","Unknown","Unknown","Unknown","Unknown","Unknown","FL","CL","Unknown","Unknown","Unknown","CL","Unknown","Unknown","CL","Unknown","Unknown","FL","Unknown","Unknown","CL","Unknown","CL","Unknown","Unknown"]
[null,"Brunei Darussalam","Unknown","Unknown","Unknown","Unknown","Unknown","Unknown","Unknown","Unknown","Unknown","Unknown","Unknown","Unknown","Unknown","Unknown","Unknown","Unknown","Unknown","Unknown","Unknown","Unknown","Unknown","Unknown","Unknown","Unknown","Unknown","Unknown","Unknown","Unknown","Unknown","Unknown","Unknown","Unknown","Unknown","Unknown","Unknown","Unknown","Unknown","Unknown","Unknown","Unknown","Unknown","Unknown","Unknown","Unknown","Unknown","Unknown","Unknown","Unknown","Unknown","Unknown","Unknown","Unknown","Unknown","Unknown","Unknown","Unknown","Unknown","Unknown","Unknown","Unknown","Unknown","Unknown","Unknown","Unknown","Unknown","Unknown","Unknown","Unknown","Unknown","Unknown","Unknown","Unknown","Unknown","Unknown","Unknown","Unknown","Unknown","Unknown","Unknown","Unknown","Unknown","Unknown","Unknown","Unknown","Unknown","Unknown","Unknown","Unknown","Unknown","Unknown","Unknown","Unknown","Unknown","Unknown","Unknown","Unknown","Unknown","Unknown","Unknown","Unknown","Unknown","Unknown","Unknown","Unknown","Unknown","Unknown","Unknown","Unknown","Unknown","Unknown","Unknown","Unknown","Unknown","Unknown","Unknown","Unknown","Unknown","Unknown","Unknown","Unknown","Unknown","Unknown","Unknown","Unknown","Unknown","Unknown","Unknown","Unknown","Unknown","Unknown","Unknown","Unknown","Unknown","Unknown","Unknown","Unknown","Unknown","Unknown","Unknown","Unknown","Unknown","Unknown","Unknown","Unknown","Unknown","Unknown","Unknown","Unknown","Unknown","Unknown","Unknown","Unknown","Unknown","Unknown","Unknown","Unknown","Unknown","Unknown","Unknown","Unknown"]
[null,"Bulgaria","Unknown","Unknown","Unknown","Unknown","Unknown","Unknown","Unknown","Unknown","Unknown","Unknown","Unknown","Unknown","Unknown","Unknown","Unknown","Unknown","Unknown","Unknown","Unknown","Unknown","Unknown","Unknown","Unknown","Unknown","Unknown","Unknown","Unknown","Unknown","Unknown","Unknown","Unknown","Unknown","Unknown","Unknown","Unknown","Unknown","Unknown","Unknown","Unknown","Unknown","Unknown","Unknown","Unknown","Unknown","Unknown","Unknown","Unknown","Unknown","Unknown","Unknown","Unknown","Unknown","Unknown","Unknown","Unknown","Unknown","Unknown","Unknown","Unknown","Unknown","Unknown","Unknown","Unknown","Unknown","Unknown","Unknown","Unknown","Unknown","Unknown","Unknown","Unknown","Unknown","Unknown","Unknown","Unknown","Unknown","Unknown","Unknown","Unknown","Unknown","Unknown","Unknown","Unknown","Unknown","Unknown","Unknown","Unknown","Unknown","Unknown","Unknown","Unknown","Unknown","Unknown","Unknown","Unknown","Unknown","Unknown","Unknown","Unknown","Unknown","Unknown","Unknown","Unknown","Unknown","Unknown","Unknown","Unknown","Unknown","Unknown","Unknown","Unknown","Unknown","Unknown","Unknown","Unknown","Unknown","Unknown","Unknown","Unknown","Unknown","Unknown","Unknown","Unknown","Unknown","Unknown","Unknown","Unknown","Unknown","Unknown","Unknown","Unknown","Unknown","Unknown","Unknown","Unknown","Unknown","Unknown","Unknown","Unknown","Unknown","Unknown","Unknown","Unknown","Unknown","Unknown","Unknown","Unknown","Unknown","Unknown","Unknown","Unknown","Unknown","Unknown","Unknown","Unknown","Unknown","Unknown","Unknown","Unknown","Unknown"]
[null,"Burkina Faso","Unknown","Unknown","Unknown","Unknown","Unknown","Unknown","Unknown","Unknown","Unknown","Unknown","Unknown","Unknown","Unknown","Unknown","Unknown","Unknown","Unknown","Unknown","Unknown","Unknown","Unknown","Unknown","Unknown","Unknown","Unknown","Unknown","Unknown","Unknown","Unknown","Unknown","CL/FL","Unknown","Unknown","Unknown","Unknown","Unknown","Unknown","Unknown","Unknown","Unknown","Unknown","Unknown","Unknown","Unknown","CL/FL","CL/FL","Unknown","Unknown","Unknown","Unknown","Unknown","Unknown","Unknown","Unknown","Unknown","Unknown","Unknown","Unknown","CL/FL","Unknown","Unknown","Unknown","Unknown","Unknown","Unknown","Unknown","Unknown","Unknown","CL","Unknown","Unknown","Unknown","Unknown","Unknown","Unknown","Unknown","Unknown","Unknown","Unknown","Unknown","Unknown","Unknown","Unknown","Unknown","Unknown","Unknown","Unknown","Unknown","Unknown","Unknown","Unknown","Unknown","Unknown","Unknown","Unknown","Unknown","Unknown","Unknown","Unknown","Unknown","Unknown","Unknown","Unknown","Unknown","Unknown","Unknown","Unknown","Unknown","Unknown","Unknown","Unknown","Unknown","Unknown","Unknown","Unknown","Unknown","Unknown","Unknown","Unknown","Unknown","Unknown","Unknown","Unknown","Unknown","Unknown","Unknown","Unknown","Unknown","Unknown","Unknown","Unknown","Unknown","CL/FL","Unknown","Unknown","Unknown","Unknown","Unknown","Unknown","Unknown","Unknown","Unknown","Unknown","Unknown","Unknown","Unknown","Unknown","Unknown","Unknown","Unknown","Unknown","Unknown","Unknown","Unknown","Unknown","Unknown","Unknown","Unknown","Unknown","Unknown"]
[null,"Burundi","Unknown","Unknown","Unknown","Unknown","Unknown","Unknown","Unknown","Unknown","Unknown","Unknown","Unknown","Unknown","Unknown","Unknown","Unknown","Unknown","CL","Unknown","Unknown","Unknown","Unknown","Unknown","Unknown","Unknown","Unknown","CL","Unknown","Unknown","Unknown","CL","Unknown","Unknown","Unknown","Unknown","Unknown","Unknown","Unknown","Unknown","Unknown","Unknown","Unknown","Unknown","Unknown","CL","Unknown","CL","Unknown","Unknown","Unknown","Unknown","Unknown","Unknown","Unknown","Unknown","Unknown","Unknown","Unknown","Unknown","CL","Unknown","CL/FL","Unknown","Unknown","Unknown","Unknown","Unknown","Unknown","Unknown","Unknown","Unknown","Unknown","Unknown","Unknown","Unknown","Unknown","Unknown","Unknown","Unknown","Unknown","Unknown","Unknown","Unknown","Unknown","Unknown","Unknown","Unknown","Unknown","Unknown","Unknown","Unknown","Unknown","Unknown","Unknown","Unknown","Unknown","Unknown","Unknown","Unknown","Unknown","Unknown","Unknown","Unknown","CL","Unknown","Unknown","Unknown","Unknown","Unknown","Unknown","Unknown","Unknown","CL","Unknown","Unknown","Unknown","Unknown","Unknown","Unknown","CL","Unknown","Unknown","Unknown","Unknown","Unknown","Unknown","Unknown","Unknown","Unknown","Unknown","Unknown","Unknown","Unknown","Unknown","CL","Unknown","Unknown","Unknown","CL","Unknown","Unknown","Unknown","Unknown","Unknown","Unknown","Unknown","Unknown","Unknown","Unknown","Unknown","CL/FL","CL/FL","Unknown","Unknown","Unknown","CL","CL","CL","CL","Unknown","Unknown"]
[null,"Cabo Verde","Unknown","Unknown","Unknown","Unknown","Unknown","Unknown","Unknown","Unknown","Unknown","Unknown","Unknown","Unknown","Unknown","Unknown","Unknown","Unknown","Unknown","Unknown","Unknown","Unknown","Unknown","Unknown","Unknown","Unknown","Unknown","Unknown","Unknown","Unknown","Unknown","Unknown","Unknown","Unknown","Unknown","Unknown","Unknown","Unknown","Unknown","Unknown","Unknown","Unknown","Unknown","Unknown","Unknown","Unknown","Unknown","Unknown","Unknown","Unknown","Unknown","Unknown","Unknown","Unknown","Unknown","Unknown","Unknown","Unknown","Unknown","Unknown","Unknown","Unknown","Unknown","Unknown","Unknown","Unknown","Unknown","Unknown","Unknown","Unknown","Unknown","Unknown","Unknown","Unknown","Unknown","Unknown","Unknown","Unknown","Unknown","Unknown","Unknown","Unknown","Unknown","Unknown","Unknown","Unknown","Unknown","Unknown","Unknown","Unknown","Unknown","Unknown","Unknown","Unknown","Unknown","Unknown","Unknown","Unknown","Unknown","Unknown","Unknown","Unknown","Unknown","Unknown","Unknown","Unknown","Unknown","Unknown","Unknown","Unknown","Unknown","Unknown","Unknown","Unknown","Unknown","Unknown","Unknown","Unknown","Unknown","Unknown","Unknown","Unknown","Unknown","Unknown","Unknown","Unknown","Unknown","Unknown","Unknown","Unknown","Unknown","Unknown","Unknown","Unknown","Unknown","Unknown","Unknown","Unknown","Unknown","Unknown","Unknown","Unknown","Unknown","Unknown","Unknown","Unknown","Unknown","Unknown","Unknown","Unknown","Unknown","Unknown","Unknown","Unknown","Unknown","Unknown","Unknown","Unknown","Unknown","Unknown","Unknown","Unknown"]
[null,"Cambodia","Unknown","Unknown","Unknown","Unknown","Unknown","Unknown","Unknown","CL","Unknown","Unknown","Unknown","Unknown","Unknown","Unknown","Unknown","Unknown","Unknown","Unknown","Unknown","Unknown","Unknown","Unknown","Unknown","Unknown","Unknown","CL","Unknown","CL","Unknown","CL","Unknown","Unknown","Unknown","Unknown","Unknown","Unknown","Unknown","Unknown","Unknown","CL","Unknown","Unknown","Unknown","Unknown","Unknown","Unknown","Unknown","Unknown","Unknown","Unknown","Unknown","Unknown","Unknown","Unknown","Unknown","Unknown","Unknown","CL","Unknown","Unknown","CL","Unknown","Unknown","Unknown","Unknown","Unknown","Unknown","Unknown","Unknown","Unknown","Unknown","Unknown","Unknown","Unknown","Unknown","Unknown","Unknown","Unknown","Unknown","Unknown","Unknown","Unknown","Unknown","Unknown","Unknown","Unknown","Unknown","Unknown","CL","Unknown","Unknown","Unknown","Unknown","Unknown","Unknown","Unknown","Unknown","Unknown","Unknown","Unknown","Unknown","Unknown","Unknown","Unknown","Unknown","Unknown","Unknown","Unknown","Unknown","Unknown","Unknown","Unknown","Unknown","Unknown","Unknown","Unknown","Unknown","Unknown","Unknown","CL","Unknown","Unknown","Unknown","CL","Unknown","Unknown","Unknown","CL","Unknown","Unknown","Unknown","Unknown","Unknown","CL","Unknown","Unknown","Unknown","Unknown","CL","Unknown","Unknown","CL","CL","Unknown","Unknown","Unknown","Unknown","Unknown","Unknown","CL","CL","Unknown","CL","Unknown","Unknown","CL","Unknown","CL","Unknown","Unknown"]
[null,"Cameroon","Unknown","Unknown","Unknown","Unknown","Unknown","Unknown","Unknown","Unknown","Unknown","Unknown","CL","Unknown","Unknown","Unknown","Unknown","Unknown","CL/FL","Unknown","Unknown","Unknown","Unknown","Unknown","Unknown","Unknown","Unknown","Unknown","Unknown","Unknown","Unknown","Unknown","Unknown","Unknown","Unknown","Unknown","Unknown","Unknown","Unknown","Unknown","Unknown","Unknown","Unknown","CL","Unknown","Unknown","Unknown","CL/FL","Unknown","Unknown","Unknown","Unknown","Unknown","Unknown","Unknown","Unknown","Unknown","Unknown","Unknown","Unknown","CL/FL","Unknown","Unknown","Unknown","Unknown","Unknown","CL","Unknown","Unknown","Unknown","Unknown","Unknown","Unknown","Unknown","Unknown","Unknown","Unknown","Unknown","Unknown","Unknown","Unknown","Unknown","Unknown","Unknown","Unknown","Unknown","Unknown","Unknown","Unknown","Unknown","Unknown","Unknown","Unknown","Unknown","Unknown","Unknown","Unknown","Unknown","Unknown","Unknown","Unknown","CL","Unknown","Unknown","Unknown","Unknown","Unknown","Unknown","Unknown","Unknown","Unknown","Unknown","Unknown","Unknown","Unknown","Unknown","Unknown","Unknown","Unknown","Unknown","Unknown","Unknown","Unknown","Unknown","Unknown","Unknown","Unknown","Unknown","Unknown","Unknown","Unknown","Unknown","Unknown","Unknown","Unknown","Unknown","Unknown","Unknown","Unknown","CL/FL","Unknown","Unknown","Unknown","Unknown","Unknown","Unknown","Unknown","Unknown","CL","Unknown","Unknown","FL","Unknown","Unknown","Unknown","Unknown","Unknown","Unknown","CL","CL","Unknown","Unknown"]
[null,"Canada","Unknown","Unknown","Unknown","Unknown","Unknown","Unknown","Unknown","Unknown","Unknown","Unknown","Unknown","Unknown","Unknown","Unknown","Unknown","Unknown","Unknown","Unknown","Unknown","Unknown","Unknown","Unknown","Unknown","Unknown","Unknown","Unknown","Unknown","Unknown","Unknown","Unknown","Unknown","Unknown","Unknown","Unknown","Unknown","Unknown","Unknown","Unknown","Unknown","Unknown","Unknown","Unknown","Unknown","Unknown","Unknown","Unknown","Unknown","Unknown","Unknown","Unknown","Unknown","Unknown","Unknown","Unknown","Unknown","Unknown","Unknown","Unknown","Unknown","Unknown","Unknown","Unknown","Unknown","Unknown","Unknown","Unknown","Unknown","Unknown","Unknown","Unknown","Unknown","Unknown","Unknown","Unknown","Unknown","Unknown","Unknown","Unknown","Unknown","Unknown","Unknown","Unknown","Unknown","Unknown","Unknown","Unknown","Unknown","Unknown","Unknown","Unknown","Unknown","Unknown","Unknown","Unknown","Unknown","Unknown","Unknown","Unknown","Unknown","Unknown","Unknown","Unknown","Unknown","Unknown","Unknown","Unknown","Unknown","Unknown","Unknown","Unknown","Unknown","Unknown","Unknown","Unknown","Unknown","Unknown","Unknown","Unknown","Unknown","Unknown","Unknown","Unknown","Unknown","Unknown","Unknown","Unknown","Unknown","Unknown","Unknown","Unknown","Unknown","Unknown","Unknown","Unknown","Unknown","Unknown","Unknown","Unknown","Unknown","Unknown","Unknown","Unknown","Unknown","Unknown","Unknown","Unknown","Unknown","Unknown","Unknown","Unknown","Unknown","Unknown","Unknown","Unknown","Unknown","Unknown","Unknown","Unknown","Unknown","Unknown"]
[null,"Central African Republic","Unknown","Unknown","Unknown","Unknown","Unknown","Unknown","Unknown","Unknown","Unknown","Unknown","Unknown","Unknown","Unknown","Unknown","Unknown","Unknown","Unknown","Unknown","Unknown","Unknown","Unknown","Unknown","Unknown","Unknown","Unknown","Unknown","Unknown","CL","Unknown","Unknown","Unknown","Unknown","Unknown","Unknown","Unknown","Unknown","Unknown","Unknown","Unknown","Unknown","Unknown","Unknown","Unknown","Unknown","Unknown","Unknown","Unknown","Unknown","Unknown","Unknown","CL","Unknown","Unknown","Unknown","Unknown","Unknown","Unknown","Unknown","Unknown","Unknown","CL/FL","Unknown","Unknown","Unknown","Unknown","Unknown","Unknown","Unknown","Unknown","Unknown","Unknown","Unknown","Unknown","Unknown","Unknown","Unknown","Unknown","Unknown","Unknown","Unknown","Unknown","Unknown","Unknown","Unknown","Unknown","Unknown","Unknown","Unknown","Unknown","Unknown","Unknown","Unknown","Unknown","CL","Unknown","Unknown","Unknown","Unknown","Unknown","Unknown","Unknown","Unknown","Unknown","Unknown","CL","Unknown","Unknown","Unknown","Unknown","Unknown","Unknown","Unknown","Unknown","Unknown","Unknown","Unknown","Unknown","Unknown","Unknown","Unknown","Unknown","Unknown","Unknown","Unknown","Unknown","Unknown","Unknown","Unknown","Unknown","Unknown","Unknown","Unknown","CL","Unknown","Unknown","Unknown","Unknown","Unknown","Unknown","Unknown","Unknown","Unknown","Unknown","Unknown","Unknown","Unknown","Unknown","Unknown","Unknown","Unknown","Unknown","Unknown","Unknown","Unknown","Unknown","CL","Unknown","CL","Unknown","Unknown"]
[null,"Chad","Unknown","Unknown","Unknown","Unknown","Unknown","Unknown","Unknown","Unknown","Unknown","Unknown","Unknown","Unknown","Unknown","Unknown","Unknown","Unknown","Unknown","Unknown","Unknown","Unknown","Unknown","Unknown","Unknown","Unknown","Unknown","Unknown","Unknown","Unknown","Unknown","CL","CL","CL","Unknown","Unknown","Unknown","Unknown","Unknown","Unknown","Unknown","Unknown","Unknown","Unknown","Unknown","Unknown","CL","Unknown","Unknown","Unknown","Unknown","Unknown","Unknown","Unknown","Unknown","Unknown","Unknown","Unknown","Unknown","Unknown","Unknown","Unknown","CL","Unknown","Unknown","Unknown","Unknown","Unknown","Unknown","Unknown","Unknown","Unknown","Unknown","Unknown","Unknown","Unknown","Unknown","Unknown","Unknown","Unknown","Unknown","Unknown","Unknown","Unknown","Unknown","Unknown","Unknown","Unknown","Unknown","Unknown","CL","Unknown","Unknown","Unknown","Unknown","Unknown","Unknown","Unknown","Unknown","Unknown","Unknown","Unknown","Unknown","Unknown","Unknown","Unknown","Unknown","Unknown","Unknown","Unknown","Unknown","Unknown","Unknown","Unknown","Unknown","Unknown","Unknown","Unknown","Unknown","Unknown","CL","Unknown","Unknown","Unknown","Unknown","Unknown","Unknown","Unknown","Unknown","Unknown","Unknown","Unknown","Unknown","Unknown","Unknown","Unknown","Unknown","Unknown","Unknown","Unknown","Unknown","Unknown","Unknown","Unknown","Unknown","Unknown","Unknown","Unknown","Unknown","Unknown","Unknown","Unknown","Unknown","Unknown","CL","Unknown","Unknown","Unknown","Unknown","Unknown","Unknown","Unknown"]
[null,"Chile","Unknown","Unknown","Unknown","Unknown","Unknown","Unknown","Unknown","Unknown","Unknown","Unknown","Unknown","Unknown","Unknown","Unknown","Unknown","Unknown","Unknown","Unknown","Unknown","Unknown","Unknown","Unknown","Unknown","Unknown","Unknown","Unknown","Unknown","Unknown","Unknown","FL","Unknown","Unknown","Unknown","Unknown","Unknown","Unknown","Unknown","Unknown","Unknown","CL","Unknown","Unknown","Unknown","Unknown","Unknown","Unknown","Unknown","Unknown","Unknown","Unknown","Unknown","Unknown","Unknown","Unknown","Unknown","Unknown","Unknown","Unknown","Unknown","Unknown","Unknown","Unknown","Unknown","Unknown","Unknown","Unknown","CL","Unknown","Unknown","Unknown","Unknown","Unknown","Unknown","Unknown","Unknown","Unknown","Unknown","Unknown","Unknown","Unknown","Unknown","Unknown","Unknown","Unknown","Unknown","Unknown","Unknown","Unknown","Unknown","Unknown","Unknown","Unknown","Unknown","Unknown","Unknown","Unknown","Unknown","Unknown","Unknown","Unknown","Unknown","Unknown","Unknown","Unknown","Unknown","Unknown","Unknown","Unknown","Unknown","Unknown","Unknown","Unknown","Unknown","Unknown","Unknown","Unknown","Unknown","Unknown","Unknown","Unknown","Unknown","Unknown","Unknown","Unknown","Unknown","Unknown","Unknown","Unknown","Unknown","Unknown","Unknown","Unknown","Unknown","Unknown","Unknown","Unknown","Unknown","Unknown","Unknown","Unknown","Unknown","Unknown","Unknown","Unknown","Unknown","Unknown","Unknown","Unknown","Unknown","FL","Unknown","Unknown","Unknown","Unknown","Unknown","Unknown","Unknown","Unknown","Unknown","Unknown"]
[null,"China","MR","MR","Unknown","HR","Unknown","MR","Unknown","Unknown","Unknown","Unknown","Unknown","Unknown","Unknown","HR","Unknown","HR","HR","Unknown","Unknown","Unknown","Unknown","Unknown","Unknown","Unknown","Unknown","Unknown","Unknown","Unknown","Unknown","Unknown","HR","Unknown","Unknown","Unknown","Unknown","HR","Unknown","MR","HR","CL/FL","Unknown","Unknown","Unknown","Unknown","HR","CL/FL","Unknown","Unknown","Unknown","Unknown","Unknown","Unknown","Unknown","MR","Unknown","Unknown","Unknown","Unknown","CL/FL","Unknown","Unknown","FL","MR","FL","HR","FL","FL","Unknown","Unknown","Unknown","HR","HR","Unknown","Unknown","MR","MR","Unknown","Unknown","Unknown","MR","Unknown","Unknown","HR","Unknown","Unknown","Unknown","Unknown","HR","HR","Unknown","Unknown","HR","Unknown","MR","Unknown","Unknown","Unknown","Unknown","HR","HR","HR","MR","Unknown","Unknown","Unknown","Unknown","FL","Unknown","Unknown","Unknown","Unknown","HR","Unknown","Unknown","MR","Unknown","HR","Unknown","HR","Unknown","Unknown","MR","HR","Unknown","Unknown","Unknown","Unknown","Unknown","HR","FL","HR","Unknown","Unknown","HR","Unknown","Unknown","Unknown","HR","CL","Unknown","Unknown","Unknown","Unknown","FL","FL","HR","HR","Unknown","Unknown","Unknown","Unknown","Unknown","Unknown","Unknown","HR","HR","HR","HR","MR","Unknown"]
[null,"Colombia","Unknown","Unknown","Unknown","Unknown","Unknown","Unknown","Unknown","Unknown","Unknown","Unknown","HR","Unknown","Unknown","Unknown","Unknown","Unknown","CL/HR","Unknown","Unknown","Unknown","Unknown","Unknown","Unknown","Unknown","Unknown","CL","Unknown","Unknown","Unknown","CL","Unknown","Unknown","Unknown","Unknown","Unknown","Unknown","Unknown","Unknown","Unknown","Unknown","Unknown","CL/FL","Unknown","CL/HR","Unknown","Unknown","Unknown","Unknown","Unknown","Unknown","Unknown","Unknown","Unknown","Unknown","Unknown","Unknown","Unknown","Unknown","Unknown","Unknown","Unknown","Unknown","Unknown","Unknown","HR","Unknown","Unknown","Unknown","Unknown","Unknown","CL","Unknown","Unknown","Unknown","Unknown","Unknown","Unknown","Unknown","Unknown","Unknown","Unknown","Unknown","Unknown","Unknown","Unknown","Unknown","Unknown","Unknown","Unknown","Unknown","Unknown","Unknown","Unknown","Unknown","Unknown","Unknown","Unknown","Unknown","Unknown","Unknown","Unknown","Unknown","Unknown","HR","Unknown","Unknown","Unknown","Unknown","Unknown","Unknown","Unknown","Unknown","Unknown","Unknown","Unknown","Unknown","Unknown","Unknown","Unknown","Unknown","Unknown","Unknown","Unknown","Unknown","Unknown","Unknown","Unknown","Unknown","Unknown","Unknown","Unknown","Unknown","CL","CL","Unknown","Unknown","Unknown","Unknown","Unknown","Unknown","Unknown","Unknown","Unknown","Unknown","Unknown","Unknown","HR","Unknown","Unknown","Unknown","Unknown","Unknown","Unknown","Unknown","Unknown","Unknown","Unknown","Unknown","Unknown","Unknown"]
[null,"Comoros","Unknown","Unknown","Unknown","Unknown","Unknown","Unknown","Unknown","Unknown","Unknown","Unknown","Unknown","Unknown","Unknown","CL","Unknown","Unknown","Unknown","Unknown","Unknown","Unknown","Unknown","Unknown","Unknown","Unknown","Unknown","Unknown","Unknown","CL","Unknown","Unknown","Unknown","Unknown","Unknown","Unknown","Unknown","Unknown","Unknown","Unknown","Unknown","Unknown","CL","Unknown","Unknown","Unknown","Unknown","Unknown","Unknown","Unknown","Unknown","Unknown","Unknown","Unknown","Unknown","Unknown","Unknown","Unknown","Unknown","Unknown","Unknown","Unknown","Unknown","Unknown","Unknown","Unknown","Unknown","Unknown","Unknown","Unknown","Unknown","Unknown","Unknown","Unknown","Unknown","Unknown","Unknown","Unknown","Unknown","Unknown","Unknown","Unknown","Unknown","Unknown","Unknown","Unknown","Unknown","Unknown","Unknown","Unknown","Unknown","Unknown","Unknown","Unknown","Unknown","Unknown","Unknown","Unknown","Unknown","Unknown","Unknown","Unknown","Unknown","Unknown","Unknown","Unknown","Unknown","Unknown","Unknown","Unknown","Unknown","Unknown","Unknown","Unknown","Unknown","Unknown","Unknown","Unknown","Unknown","Unknown","Unknown","Unknown","Unknown","Unknown","Unknown","Unknown","CL/FL","Unknown","Unknown","Unknown","Unknown","CL","Unknown","Unknown","Unknown","Unknown","Unknown","Unknown","Unknown","Unknown","Unknown","Unknown","Unknown","Unknown","Unknown","Unknown","Unknown","Unknown","Unknown","Unknown","Unknown","FL","Unknown","Unknown","Unknown","CL","Unknown","CL","Unknown","CL","Unknown","Unknown"]
[null,"Congo Republic","Unknown","Unknown","Unknown","Unknown","Unknown","Unknown","Unknown","Unknown","Unknown","Unknown","Unknown","Unknown","Unknown","Unknown","Unknown","Unknown","CL/FL","Unknown","Unknown","Unknown","Unknown","Unknown","Unknown","Unknown","Unknown","Unknown","Unknown","CL/FL","Unknown","Unknown","Unknown","Unknown","Unknown","Unknown","Unknown","Unknown","Unknown","Unknown","Unknown","Unknown","Unknown","CL/FL","Unknown","Unknown","Unknown","Unknown","Unknown","Unknown","Unknown","Unknown","Unknown","Unknown","Unknown","Unknown","Unknown","Unknown","Unknown","Unknown","Unknown","Unknown","FL","Unknown","Unknown","Unknown","Unknown","Unknown","Unknown","Unknown","Unknown","Unknown","Unknown","Unknown","Unknown","Unknown","Unknown","Unknown","Unknown","Unknown","Unknown","Unknown","Unknown","Unknown","Unknown","Unknown","Unknown","Unknown","Unknown","Unknown","Unknown","Unknown","Unknown","Unknown","Unknown","Unknown","Unknown","Unknown","Unknown","Unknown","Unknown","Unknown","Unknown","Unknown","Unknown","Unknown","Unknown","Unknown","Unknown","Unknown","Unknown","Unknown","Unknown","Unknown","Unknown","Unknown","Unknown","Unknown","Unknown","Unknown","Unknown","Unknown","Unknown","Unknown","Unknown","Unknown","Unknown","Unknown","Unknown","Unknown","Unknown","Unknown","Unknown","Unknown","Unknown","CL/FL","Unknown","Unknown","Unknown","Unknown","Unknown","Unknown","Unknown","Unknown","Unknown","Unknown","Unknown","Unknown","Unknown","Unknown","Unknown","Unknown","Unknown","Unknown","Unknown","Unknown","Unknown","CL/FL","Unknown","CL/FL","Unknown","Unknown"]
[null,"Congo Democratic Republic of the","Unknown","Unknown","Unknown","Unknown","Unknown","Unknown","Unknown","Unknown","Unknown","Unknown","Unknown","Unknown","Unknown","CL","Unknown","Unknown","Unknown","Unknown","Unknown","Unknown","Unknown","Unknown","Unknown","Unknown","Unknown","Unknown","Unknown","CL","Unknown","Unknown","CL","Unknown","Unknown","Unknown","Unknown","Unknown","Unknown","Unknown","Unknown","Unknown","Unknown","Unknown","Unknown","Unknown","CL","Unknown","Unknown","Unknown","Unknown","Unknown","CL/FL","Unknown","Unknown","Unknown","Unknown","Unknown","Unknown","Unknown","Unknown","Unknown","Unknown","Unknown","Unknown","Unknown","Unknown","Unknown","Unknown","Unknown","Unknown","Unknown","Unknown","Unknown","Unknown","Unknown","Unknown","Unknown","Unknown","Unknown","Unknown","Unknown","Unknown","Unknown","Unknown","Unknown","Unknown","Unknown","Unknown","Unknown","Unknown","Unknown","Unknown","Unknown","Unknown","Unknown","Unknown","Unknown","Unknown","Unknown","Unknown","Unknown","Unknown","Unknown","Unknown","Unknown","Unknown","Unknown","Unknown","Unknown","Unknown","Unknown","Unknown","Unknown","Unknown","Unknown","Unknown","Unknown","Unknown","Unknown","CL","Unknown","Unknown","Unknown","Unknown","Unknown","Unknown","Unknown","Unknown","Unknown","Unknown","Unknown","Unknown","Unknown","CL/FL","Unknown","Unknown","Unknown","Unknown","Unknown","Unknown","Unknown","Unknown","Unknown","Unknown","Unknown","Unknown","Unknown","Unknown","Unknown","Unknown","FL","Unknown","Unknown","Unknown","Unknown","Unknown","CL","Unknown","CL","Unknown","Unknown"]
[null,"Costa Rica","Unknown","Unknown","Unknown","Unknown","Unknown","Unknown","Unknown","Unknown","Unknown","Unknown","CL","Unknown","Unknown","Unknown","Unknown","Unknown","CL","Unknown","Unknown","Unknown","Unknown","Unknown","Unknown","Unknown","Unknown","Unknown","Unknown","Unknown","Unknown","CL","Unknown","Unknown","Unknown","Unknown","Unknown","Unknown","Unknown","Unknown","Unknown","Unknown","Unknown","Unknown","Unknown","CL","Unknown","Unknown","Unknown","Unknown","Unknown","Unknown","Unknown","Unknown","Unknown","Unknown","Unknown","Unknown","Unknown","Unknown","Unknown","Unknown","FL","Unknown","Unknown","Unknown","CL/FL","Unknown","Unknown","Unknown","Unknown","Unknown","Unknown","Unknown","Unknown","Unknown","Unknown","Unknown","Unknown","Unknown","Unknown","Unknown","Unknown","Unknown","Unknown","Unknown","Unknown","Unknown","Unknown","Unknown","CL","Unknown","Unknown","Unknown","Unknown","Unknown","Unknown","Unknown","Unknown","Unknown","Unknown","Unknown","Unknown","Unknown","Unknown","Unknown","Unknown","Unknown","Unknown","Unknown","FL","Unknown","Unknown","Unknown","Unknown","Unknown","Unknown","Unknown","Unknown","Unknown","Unknown","Unknown","Unknown","Unknown","Unknown","Unknown","Unknown","Unknown","Unknown","Unknown","Unknown","Unknown","Unknown","Unknown","Unknown","Unknown","Unknown","Unknown","Unknown","Unknown","Unknown","Unknown","Unknown","Unknown","Unknown","Unknown","Unknown","Unknown","CL/FL","Unknown","Unknown","Unknown","Unknown","Unknown","Unknown","Unknown","Unknown","Unknown","Unknown","CL","Unknown","Unknown"]
[null,"Côte d’Ivoire","Unknown","Unknown","Unknown","Unknown","Unknown","Unknown","Unknown","Unknown","Unknown","Unknown","CL/HR","Unknown","Unknown","Unknown","Unknown","Unknown","CL/FL","Unknown","Unknown","Unknown","Unknown","Unknown","Unknown","Unknown","Unknown","Unknown","Unknown","Unknown","CL","Unknown","Unknown","Unknown","Unknown","Unknown","Unknown","Unknown","Unknown","Unknown","Unknown","Unknown","Unknown","CL/FL","Unknown","CL/FL","Unknown","CL","Unknown","Unknown","Unknown","Unknown","Unknown","Unknown","Unknown","Unknown","Unknown","Unknown","Unknown","Unknown","FL","Unknown","Unknown","Unknown","Unknown","Unknown","CL/FL","Unknown","Unknown","Unknown","Unknown","Unknown","Unknown","Unknown","Unknown","Unknown","Unknown","Unknown","Unknown","Unknown","Unknown","Unknown","Unknown","Unknown","Unknown","Unknown","Unknown","Unknown","Unknown","Unknown","Unknown","Unknown","Unknown","Unknown","Unknown","FL","Unknown","Unknown","Unknown","Unknown","Unknown","Unknown","Unknown","Unknown","Unknown","Unknown","Unknown","Unknown","Unknown","Unknown","CL/FL","Unknown","Unknown","Unknown","Unknown","Unknown","Unknown","Unknown","Unknown","Unknown","Unknown","FL","Unknown","Unknown","Unknown","Unknown","Unknown","Unknown","Unknown","Unknown","Unknown","Unknown","Unknown","Unknown","Unknown","Unknown","Unknown","Unknown","Unknown","Unknown","Unknown","Unknown","Unknown","Unknown","Unknown","Unknown","Unknown","Unknown","CL/FL","Unknown","Unknown","Unknown","Unknown","Unknown","Unknown","Unknown","Unknown","Unknown","Unknown","Unknown","Unknown","Unknown"]
[null,"Croatia","Unknown","Unknown","Unknown","Unknown","Unknown","Unknown","Unknown","Unknown","Unknown","Unknown","Unknown","Unknown","Unknown","Unknown","Unknown","Unknown","Unknown","Unknown","Unknown","Unknown","Unknown","Unknown","Unknown","Unknown","Unknown","Unknown","Unknown","Unknown","Unknown","Unknown","Unknown","Unknown","Unknown","Unknown","Unknown","Unknown","Unknown","Unknown","Unknown","Unknown","Unknown","Unknown","Unknown","Unknown","Unknown","Unknown","Unknown","Unknown","Unknown","Unknown","Unknown","Unknown","Unknown","Unknown","Unknown","Unknown","Unknown","Unknown","Unknown","Unknown","Unknown","Unknown","Unknown","Unknown","Unknown","Unknown","Unknown","Unknown","Unknown","Unknown","Unknown","Unknown","Unknown","Unknown","Unknown","Unknown","Unknown","Unknown","Unknown","Unknown","Unknown","Unknown","Unknown","Unknown","Unknown","Unknown","Unknown","Unknown","Unknown","Unknown","Unknown","Unknown","Unknown","Unknown","Unknown","Unknown","Unknown","Unknown","Unknown","Unknown","Unknown","Unknown","Unknown","Unknown","Unknown","Unknown","Unknown","Unknown","Unknown","Unknown","Unknown","Unknown","Unknown","Unknown","Unknown","Unknown","Unknown","Unknown","Unknown","Unknown","Unknown","Unknown","Unknown","Unknown","Unknown","Unknown","Unknown","Unknown","Unknown","Unknown","Unknown","Unknown","Unknown","Unknown","Unknown","Unknown","Unknown","Unknown","Unknown","Unknown","Unknown","Unknown","Unknown","Unknown","Unknown","Unknown","Unknown","Unknown","Unknown","Unknown","Unknown","Unknown","Unknown","Unknown","Unknown","Unknown","Unknown","Unknown","Unknown","Unknown"]
[null,"Cuba","Unknown","Unknown","Unknown","Unknown","Unknown","Unknown","Unknown","Unknown","Unknown","Unknown","Unknown","Unknown","Unknown","Unknown","Unknown","Unknown","Unknown","Unknown","Unknown","Unknown","Unknown","Unknown","Unknown","Unknown","Unknown","HR","Unknown","Unknown","Unknown","Unknown","Unknown","Unknown","Unknown","Unknown","Unknown","Unknown","Unknown","Unknown","Unknown","Unknown","Unknown","Unknown","Unknown","Unknown","Unknown","Unknown","Unknown","Unknown","Unknown","Unknown","Unknown","Unknown","Unknown","Unknown","Unknown","Unknown","Unknown","Unknown","Unknown","Unknown","Unknown","Unknown","Unknown","Unknown","Unknown","Unknown","Unknown","Unknown","Unknown","Unknown","Unknown","Unknown","Unknown","Unknown","Unknown","Unknown","Unknown","Unknown","Unknown","Unknown","Unknown","Unknown","Unknown","Unknown","Unknown","Unknown","Unknown","Unknown","Unknown","Unknown","Unknown","Unknown","Unknown","Unknown","Unknown","Unknown","Unknown","Unknown","Unknown","Unknown","Unknown","Unknown","Unknown","Unknown","Unknown","Unknown","Unknown","Unknown","Unknown","Unknown","Unknown","Unknown","Unknown","Unknown","Unknown","Unknown","Unknown","Unknown","Unknown","Unknown","Unknown","Unknown","Unknown","Unknown","Unknown","Unknown","Unknown","Unknown","Unknown","Unknown","Unknown","Unknown","Unknown","HR","Unknown","Unknown","Unknown","Unknown","Unknown","Unknown","Unknown","Unknown","Unknown","Unknown","Unknown","Unknown","Unknown","Unknown","Unknown","Unknown","Unknown","Unknown","Unknown","Unknown","Unknown","Unknown","Unknown","Unknown","Unknown","Unknown"]
[null,"Cyprus","Unknown","Unknown","Unknown","Unknown","Unknown","Unknown","Unknown","Unknown","Unknown","Unknown","Unknown","Unknown","Unknown","Unknown","Unknown","Unknown","Unknown","Unknown","Unknown","Unknown","Unknown","Unknown","Unknown","Unknown","Unknown","Unknown","Unknown","Unknown","Unknown","Unknown","Unknown","Unknown","Unknown","Unknown","Unknown","Unknown","Unknown","Unknown","Unknown","Unknown","Unknown","Unknown","Unknown","Unknown","Unknown","Unknown","Unknown","Unknown","Unknown","Unknown","Unknown","Unknown","Unknown","Unknown","Unknown","Unknown","Unknown","Unknown","Unknown","Unknown","Unknown","Unknown","Unknown","Unknown","Unknown","Unknown","Unknown","Unknown","Unknown","Unknown","Unknown","Unknown","Unknown","Unknown","Unknown","Unknown","Unknown","Unknown","Unknown","Unknown","Unknown","Unknown","Unknown","Unknown","Unknown","Unknown","Unknown","Unknown","Unknown","Unknown","Unknown","Unknown","Unknown","Unknown","Unknown","Unknown","Unknown","Unknown","Unknown","Unknown","Unknown","Unknown","Unknown","Unknown","Unknown","Unknown","Unknown","Unknown","Unknown","Unknown","Unknown","Unknown","Unknown","Unknown","Unknown","Unknown","Unknown","Unknown","Unknown","Unknown","Unknown","Unknown","Unknown","Unknown","Unknown","Unknown","Unknown","Unknown","Unknown","Unknown","Unknown","Unknown","Unknown","Unknown","Unknown","Unknown","Unknown","Unknown","Unknown","Unknown","Unknown","Unknown","Unknown","Unknown","Unknown","Unknown","Unknown","Unknown","Unknown","Unknown","Unknown","Unknown","Unknown","Unknown","Unknown","Unknown","Unknown","Unknown","Unknown","Unknown"]
[null,"Czechia","Unknown","Unknown","Unknown","Unknown","Unknown","Unknown","Unknown","Unknown","Unknown","Unknown","Unknown","Unknown","Unknown","Unknown","Unknown","Unknown","Unknown","Unknown","Unknown","Unknown","Unknown","Unknown","Unknown","Unknown","Unknown","Unknown","Unknown","Unknown","Unknown","Unknown","Unknown","Unknown","Unknown","Unknown","Unknown","Unknown","Unknown","Unknown","Unknown","Unknown","Unknown","Unknown","Unknown","Unknown","Unknown","Unknown","Unknown","Unknown","Unknown","Unknown","Unknown","Unknown","Unknown","Unknown","Unknown","Unknown","Unknown","Unknown","Unknown","Unknown","Unknown","Unknown","Unknown","Unknown","Unknown","Unknown","Unknown","Unknown","Unknown","Unknown","Unknown","Unknown","Unknown","Unknown","Unknown","Unknown","Unknown","Unknown","Unknown","Unknown","Unknown","Unknown","Unknown","Unknown","Unknown","Unknown","Unknown","Unknown","Unknown","Unknown","Unknown","Unknown","Unknown","Unknown","Unknown","Unknown","Unknown","Unknown","Unknown","Unknown","Unknown","Unknown","Unknown","Unknown","Unknown","Unknown","Unknown","Unknown","Unknown","Unknown","Unknown","Unknown","Unknown","Unknown","Unknown","Unknown","Unknown","Unknown","Unknown","Unknown","Unknown","Unknown","Unknown","Unknown","Unknown","Unknown","Unknown","Unknown","Unknown","Unknown","Unknown","Unknown","Unknown","Unknown","Unknown","Unknown","Unknown","Unknown","Unknown","Unknown","Unknown","Unknown","Unknown","Unknown","Unknown","Unknown","Unknown","Unknown","Unknown","Unknown","Unknown","Unknown","Unknown","Unknown","Unknown","Unknown","Unknown","Unknown","Unknown","Unknown"]
[null,"Denmark","Unknown","Unknown","Unknown","Unknown","Unknown","Unknown","Unknown","Unknown","Unknown","Unknown","Unknown","Unknown","Unknown","Unknown","Unknown","Unknown","Unknown","Unknown","Unknown","Unknown","Unknown","Unknown","Unknown","Unknown","Unknown","Unknown","Unknown","Unknown","Unknown","Unknown","Unknown","Unknown","Unknown","Unknown","Unknown","Unknown","Unknown","Unknown","Unknown","Unknown","Unknown","Unknown","Unknown","Unknown","Unknown","Unknown","Unknown","Unknown","Unknown","Unknown","Unknown","Unknown","Unknown","Unknown","Unknown","Unknown","Unknown","Unknown","Unknown","Unknown","Unknown","Unknown","Unknown","Unknown","Unknown","Unknown","Unknown","Unknown","Unknown","Unknown","Unknown","Unknown","Unknown","Unknown","Unknown","Unknown","Unknown","Unknown","Unknown","Unknown","Unknown","Unknown","Unknown","Unknown","Unknown","Unknown","Unknown","Unknown","Unknown","Unknown","Unknown","Unknown","Unknown","Unknown","Unknown","Unknown","Unknown","Unknown","Unknown","Unknown","Unknown","Unknown","Unknown","Unknown","Unknown","Unknown","Unknown","Unknown","Unknown","Unknown","Unknown","Unknown","Unknown","Unknown","Unknown","Unknown","Unknown","Unknown","Unknown","Unknown","Unknown","Unknown","Unknown","Unknown","Unknown","Unknown","Unknown","Unknown","Unknown","Unknown","Unknown","Unknown","Unknown","Unknown","Unknown","Unknown","Unknown","Unknown","Unknown","Unknown","Unknown","Unknown","Unknown","Unknown","Unknown","Unknown","Unknown","Unknown","Unknown","Unknown","Unknown","Unknown","Unknown","Unknown","Unknown","Unknown","Unknown","Unknown","Unknown","Unknown"]
[null,"Djibouti","Unknown","Unknown","Unknown","Unknown","Unknown","Unknown","Unknown","Unknown","Unknown","Unknown","Unknown","Unknown","Unknown","Unknown","Unknown","Unknown","Unknown","Unknown","Unknown","Unknown","Unknown","Unknown","Unknown","Unknown","Unknown","Unknown","Unknown","Unknown","Unknown","Unknown","Unknown","Unknown","Unknown","Unknown","Unknown","Unknown","Unknown","Unknown","Unknown","Unknown","Unknown","Unknown","Unknown","Unknown","Unknown","Unknown","Unknown","Unknown","Unknown","Unknown","Unknown","Unknown","Unknown","Unknown","Unknown","Unknown","Unknown","Unknown","Unknown","Unknown","Unknown","Unknown","Unknown","Unknown","Unknown","Unknown","Unknown","CL","Unknown","Unknown","Unknown","Unknown","Unknown","Unknown","Unknown","Unknown","Unknown","Unknown","Unknown","Unknown","Unknown","Unknown","Unknown","Unknown","Unknown","Unknown","Unknown","Unknown","CL","Unknown","Unknown","Unknown","Unknown","Unknown","Unknown","Unknown","Unknown","Unknown","Unknown","Unknown","Unknown","Unknown","Unknown","Unknown","Unknown","Unknown","Unknown","Unknown","Unknown","Unknown","Unknown","Unknown","Unknown","Unknown","Unknown","Unknown","Unknown","Unknown","Unknown","Unknown","Unknown","Unknown","Unknown","Unknown","Unknown","Unknown","Unknown","Unknown","Unknown","Unknown","Unknown","Unknown","Unknown","Unknown","Unknown","Unknown","Unknown","Unknown","Unknown","Unknown","Unknown","Unknown","Unknown","Unknown","Unknown","Unknown","Unknown","Unknown","Unknown","Unknown","Unknown","Unknown","Unknown","Unknown","Unknown","Unknown","Unknown","Unknown","Unknown","Unknown"]
[null,"Dominica","Unknown","Unknown","Unknown","Unknown","Unknown","Unknown","Unknown","Unknown","Unknown","Unknown","Unknown","Unknown","Unknown","Unknown","Unknown","Unknown","Unknown","Unknown","Unknown","Unknown","Unknown","Unknown","Unknown","Unknown","Unknown","Unknown","Unknown","Unknown","Unknown","Unknown","Unknown","Unknown","Unknown","Unknown","Unknown","Unknown","Unknown","Unknown","Unknown","Unknown","Unknown","Unknown","Unknown","Unknown","Unknown","Unknown","Unknown","Unknown","Unknown","Unknown","Unknown","Unknown","Unknown","Unknown","Unknown","Unknown","Unknown","Unknown","Unknown","Unknown","Unknown","Unknown","Unknown","Unknown","Unknown","Unknown","Unknown","Unknown","Unknown","Unknown","Unknown","Unknown","Unknown","Unknown","Unknown","Unknown","Unknown","Unknown","Unknown","Unknown","Unknown","Unknown","Unknown","Unknown","Unknown","Unknown","Unknown","Unknown","Unknown","Unknown","Unknown","Unknown","Unknown","Unknown","Unknown","Unknown","Unknown","Unknown","Unknown","Unknown","Unknown","Unknown","Unknown","Unknown","Unknown","Unknown","Unknown","Unknown","Unknown","Unknown","Unknown","Unknown","Unknown","Unknown","Unknown","Unknown","Unknown","Unknown","Unknown","Unknown","Unknown","Unknown","Unknown","Unknown","Unknown","Unknown","Unknown","Unknown","Unknown","Unknown","Unknown","Unknown","Unknown","Unknown","Unknown","Unknown","Unknown","Unknown","Unknown","Unknown","Unknown","Unknown","Unknown","Unknown","Unknown","Unknown","Unknown","Unknown","Unknown","Unknown","Unknown","Unknown","Unknown","Unknown","Unknown","Unknown","Unknown","Unknown","Unknown","Unknown"]
[null,"Dominican Republic","Unknown","Unknown","Unknown","Unknown","Unknown","Unknown","Unknown","Unknown","Unknown","Unknown","Unknown","Unknown","CL","Unknown","Unknown","Unknown","CL","Unknown","Unknown","Unknown","Unknown","Unknown","Unknown","Unknown","Unknown","CL/FL","Unknown","Unknown","Unknown","Unknown","Unknown","Unknown","Unknown","Unknown","Unknown","Unknown","Unknown","Unknown","Unknown","Unknown","Unknown","Unknown","Unknown","CL","Unknown","Unknown","Unknown","Unknown","Unknown","Unknown","Unknown","Unknown","Unknown","Unknown","Unknown","Unknown","Unknown","Unknown","Unknown","Unknown","Unknown","Unknown","Unknown","Unknown","CL","Unknown","Unknown","Unknown","Unknown","Unknown","Unknown","Unknown","Unknown","Unknown","Unknown","Unknown","Unknown","Unknown","Unknown","Unknown","Unknown","Unknown","Unknown","Unknown","Unknown","Unknown","Unknown","Unknown","Unknown","Unknown","Unknown","Unknown","Unknown","Unknown","Unknown","Unknown","Unknown","Unknown","Unknown","Unknown","Unknown","Unknown","Unknown","Unknown","Unknown","Unknown","Unknown","Unknown","Unknown","Unknown","Unknown","Unknown","Unknown","Unknown","Unknown","Unknown","Unknown","Unknown","CL","Unknown","Unknown","Unknown","Unknown","Unknown","Unknown","Unknown","Unknown","Unknown","Unknown","Unknown","Unknown","Unknown","Unknown","CL/FL","Unknown","Unknown","Unknown","Unknown","Unknown","Unknown","Unknown","Unknown","Unknown","CL","Unknown","Unknown","Unknown","Unknown","Unknown","Unknown","Unknown","Unknown","Unknown","Unknown","Unknown","Unknown","CL","Unknown","Unknown","Unknown"]
[null,"Ecuador","Unknown","Unknown","Unknown","Unknown","Unknown","Unknown","Unknown","Unknown","Unknown","Unknown","CL","Unknown","Unknown","Unknown","Unknown","Unknown","Unknown","Unknown","Unknown","Unknown","Unknown","Unknown","Unknown","Unknown","Unknown","Unknown","Unknown","Unknown","Unknown","Unknown","Unknown","Unknown","Unknown","Unknown","Unknown","Unknown","Unknown","Unknown","Unknown","Unknown","Unknown","Unknown","Unknown","Unknown","Unknown","Unknown","Unknown","Unknown","Unknown","Unknown","Unknown","Unknown","Unknown","Unknown","Unknown","Unknown","Unknown","Unknown","Unknown","Unknown","CL","CL","Unknown","Unknown","CL","Unknown","Unknown","Unknown","Unknown","Unknown","Unknown","Unknown","Unknown","Unknown","Unknown","Unknown","Unknown","Unknown","Unknown","Unknown","Unknown","Unknown","Unknown","Unknown","Unknown","Unknown","Unknown","Unknown","Unknown","Unknown","Unknown","Unknown","Unknown","Unknown","Unknown","Unknown","Unknown","Unknown","Unknown","Unknown","Unknown","Unknown","CL/FL","Unknown","Unknown","Unknown","Unknown","Unknown","Unknown","Unknown","Unknown","Unknown","Unknown","Unknown","Unknown","Unknown","Unknown","Unknown","Unknown","Unknown","Unknown","Unknown","Unknown","Unknown","Unknown","Unknown","Unknown","Unknown","Unknown","Unknown","Unknown","Unknown","CL","Unknown","Unknown","Unknown","Unknown","Unknown","Unknown","Unknown","Unknown","Unknown","Unknown","Unknown","Unknown","Unknown","CL","Unknown","Unknown","Unknown","Unknown","Unknown","Unknown","Unknown","FL","Unknown","Unknown","Unknown","Unknown","Unknown"]
[null,"Egypt","Unknown","Unknown","Unknown","Unknown","Unknown","Unknown","Unknown","Unknown","Unknown","Unknown","Unknown","Unknown","Unknown","Unknown","Unknown","Unknown","Unknown","Unknown","HR","Unknown","Unknown","Unknown","Unknown","Unknown","Unknown","Unknown","Unknown","Unknown","Unknown","Unknown","Unknown","Unknown","Unknown","Unknown","Unknown","Unknown","Unknown","Unknown","HR","Unknown","Unknown","Unknown","Unknown","Unknown","Unknown","CL","Unknown","Unknown","Unknown","Unknown","Unknown","Unknown","Unknown","Unknown","Unknown","Unknown","Unknown","Unknown","CL","Unknown","Unknown","Unknown","Unknown","Unknown","HR","Unknown","Unknown","Unknown","CL","Unknown","Unknown","Unknown","Unknown","Unknown","Unknown","Unknown","Unknown","Unknown","Unknown","Unknown","Unknown","Unknown","Unknown","Unknown","Unknown","Unknown","Unknown","Unknown","Unknown","Unknown","Unknown","Unknown","Unknown","Unknown","Unknown","Unknown","Unknown","Unknown","Unknown","HR","HR","Unknown","Unknown","Unknown","Unknown","Unknown","Unknown","Unknown","Unknown","Unknown","Unknown","HR","Unknown","Unknown","Unknown","Unknown","Unknown","Unknown","Unknown","Unknown","Unknown","Unknown","Unknown","Unknown","Unknown","Unknown","Unknown","Unknown","Unknown","Unknown","Unknown","HR","CL","Unknown","Unknown","Unknown","Unknown","Unknown","Unknown","Unknown","Unknown","Unknown","Unknown","Unknown","Unknown","Unknown","Unknown","Unknown","Unknown","Unknown","Unknown","Unknown","Unknown","Unknown","Unknown","HR","Unknown","Unknown","Unknown","Unknown"]
[null,"El Salvador","Unknown","Unknown","Unknown","Unknown","Unknown","Unknown","Unknown","Unknown","Unknown","Unknown","Unknown","Unknown","CL","Unknown","Unknown","Unknown","CL","Unknown","Unknown","Unknown","Unknown","Unknown","Unknown","Unknown","Unknown","CL","Unknown","Unknown","Unknown","CL","CL","Unknown","Unknown","Unknown","Unknown","Unknown","Unknown","Unknown","Unknown","Unknown","Unknown","Unknown","Unknown","CL","Unknown","Unknown","Unknown","Unknown","Unknown","Unknown","Unknown","Unknown","Unknown","Unknown","Unknown","Unknown","Unknown","CL","Unknown","Unknown","CL","Unknown","Unknown","Unknown","Unknown","Unknown","Unknown","Unknown","Unknown","Unknown","Unknown","Unknown","Unknown","Unknown","Unknown","Unknown","Unknown","Unknown","Unknown","Unknown","Unknown","Unknown","Unknown","Unknown","Unknown","Unknown","Unknown","Unknown","CL","Unknown","Unknown","Unknown","Unknown","Unknown","Unknown","Unknown","Unknown","Unknown","Unknown","Unknown","Unknown","Unknown","Unknown","Unknown","Unknown","Unknown","Unknown","Unknown","Unknown","Unknown","Unknown","Unknown","Unknown","Unknown","Unknown","Unknown","Unknown","Unknown","Unknown","Unknown","Unknown","Unknown","Unknown","Unknown","Unknown","Unknown","Unknown","Unknown","Unknown","Unknown","Unknown","Unknown","Unknown","CL","Unknown","Unknown","Unknown","Unknown","Unknown","Unknown","Unknown","Unknown","Unknown","Unknown","Unknown","Unknown","Unknown","Unknown","Unknown","Unknown","CL","Unknown","Unknown","Unknown","Unknown","Unknown","Unknown","Unknown","Unknown","Unknown"]
[null,"Equatorial Guinea","Unknown","Unknown","Unknown","Unknown","Unknown","Unknown","Unknown","Unknown","Unknown","Unknown","Unknown","Unknown","Unknown","Unknown","Unknown","Unknown","Unknown","Unknown","Unknown","Unknown","Unknown","Unknown","Unknown","Unknown","Unknown","Unknown","Unknown","Unknown","Unknown","Unknown","Unknown","Unknown","Unknown","Unknown","Unknown","Unknown","Unknown","Unknown","Unknown","Unknown","Unknown","Unknown","Unknown","Unknown","Unknown","Unknown","Unknown","Unknown","Unknown","Unknown","Unknown","Unknown","Unknown","Unknown","Unknown","Unknown","Unknown","Unknown","Unknown","Unknown","Unknown","Unknown","Unknown","Unknown","Unknown","Unknown","Unknown","Unknown","Unknown","Unknown","Unknown","Unknown","Unknown","Unknown","Unknown","Unknown","Unknown","Unknown","Unknown","Unknown","Unknown","Unknown","Unknown","Unknown","Unknown","Unknown","Unknown","Unknown","Unknown","Unknown","Unknown","Unknown","Unknown","Unknown","Unknown","Unknown","Unknown","Unknown","Unknown","Unknown","Unknown","Unknown","Unknown","Unknown","Unknown","Unknown","Unknown","Unknown","Unknown","Unknown","Unknown","Unknown","Unknown","Unknown","Unknown","Unknown","Unknown","Unknown","Unknown","Unknown","Unknown","Unknown","Unknown","Unknown","Unknown","Unknown","Unknown","Unknown","Unknown","Unknown","Unknown","Unknown","Unknown","Unknown","Unknown","Unknown","Unknown","Unknown","Unknown","Unknown","Unknown","Unknown","Unknown","Unknown","Unknown","Unknown","Unknown","Unknown","Unknown","Unknown","Unknown","Unknown","Unknown","Unknown","Unknown","Unknown","Unknown","Unknown","Unknown","Unknown"]
[null,"Eritrea","Unknown","Unknown","Unknown","Unknown","Unknown","Unknown","Unknown","Unknown","Unknown","Unknown","Unknown","Unknown","Unknown","Unknown","Unknown","Unknown","Unknown","Unknown","Unknown","Unknown","Unknown","Unknown","Unknown","Unknown","Unknown","Unknown","Unknown","Unknown","Unknown","Unknown","Unknown","Unknown","Unknown","Unknown","Unknown","Unknown","Unknown","Unknown","Unknown","Unknown","Unknown","Unknown","Unknown","Unknown","Unknown","Unknown","Unknown","Unknown","Unknown","Unknown","Unknown","Unknown","Unknown","Unknown","Unknown","Unknown","Unknown","Unknown","Unknown","Unknown","Unknown","Unknown","Unknown","Unknown","Unknown","Unknown","Unknown","Unknown","Unknown","Unknown","Unknown","Unknown","Unknown","Unknown","Unknown","Unknown","Unknown","Unknown","Unknown","Unknown","Unknown","Unknown","Unknown","Unknown","Unknown","Unknown","Unknown","Unknown","Unknown","Unknown","Unknown","Unknown","Unknown","Unknown","Unknown","Unknown","Unknown","Unknown","Unknown","Unknown","Unknown","Unknown","Unknown","Unknown","Unknown","Unknown","Unknown","Unknown","Unknown","Unknown","Unknown","Unknown","Unknown","Unknown","Unknown","Unknown","Unknown","Unknown","Unknown","Unknown","Unknown","Unknown","Unknown","Unknown","Unknown","Unknown","Unknown","Unknown","Unknown","Unknown","Unknown","Unknown","Unknown","Unknown","Unknown","Unknown","Unknown","Unknown","Unknown","Unknown","Unknown","Unknown","Unknown","Unknown","Unknown","Unknown","Unknown","Unknown","Unknown","Unknown","Unknown","Unknown","Unknown","Unknown","Unknown","Unknown","Unknown","Unknown","Unknown","Unknown"]
[null,"Estonia","Unknown","Unknown","Unknown","Unknown","Unknown","Unknown","Unknown","Unknown","Unknown","Unknown","Unknown","Unknown","Unknown","Unknown","Unknown","Unknown","Unknown","Unknown","Unknown","Unknown","Unknown","Unknown","Unknown","Unknown","Unknown","Unknown","Unknown","Unknown","Unknown","Unknown","Unknown","Unknown","Unknown","Unknown","Unknown","Unknown","Unknown","Unknown","Unknown","Unknown","Unknown","Unknown","Unknown","Unknown","Unknown","Unknown","Unknown","Unknown","Unknown","Unknown","Unknown","Unknown","Unknown","Unknown","Unknown","Unknown","Unknown","Unknown","Unknown","Unknown","Unknown","Unknown","Unknown","Unknown","Unknown","Unknown","Unknown","Unknown","Unknown","Unknown","Unknown","Unknown","Unknown","Unknown","Unknown","Unknown","Unknown","Unknown","Unknown","Unknown","Unknown","Unknown","Unknown","Unknown","Unknown","Unknown","Unknown","Unknown","Unknown","Unknown","Unknown","Unknown","Unknown","Unknown","Unknown","Unknown","Unknown","Unknown","Unknown","Unknown","Unknown","Unknown","Unknown","Unknown","Unknown","Unknown","Unknown","Unknown","Unknown","Unknown","Unknown","Unknown","Unknown","Unknown","Unknown","Unknown","Unknown","Unknown","Unknown","Unknown","Unknown","Unknown","Unknown","Unknown","Unknown","Unknown","Unknown","Unknown","Unknown","Unknown","Unknown","Unknown","Unknown","Unknown","Unknown","Unknown","Unknown","Unknown","Unknown","Unknown","Unknown","Unknown","Unknown","Unknown","Unknown","Unknown","Unknown","Unknown","Unknown","Unknown","Unknown","Unknown","Unknown","Unknown","Unknown","Unknown","Unknown","Unknown","Unknown","Unknown"]
[null,"Eswatini","Unknown","Unknown","Unknown","Unknown","Unknown","Unknown","Unknown","Unknown","Unknown","Unknown","Unknown","Unknown","Unknown","Unknown","Unknown","Unknown","Unknown","Unknown","Unknown","Unknown","Unknown","Unknown","Unknown","Unknown","Unknown","Unknown","Unknown","Unknown","Unknown","CL","Unknown","Unknown","Unknown","Unknown","Unknown","Unknown","Unknown","Unknown","Unknown","Unknown","Unknown","Unknown","Unknown","Unknown","Unknown","Unknown","Unknown","Unknown","Unknown","Unknown","Unknown","Unknown","Unknown","Unknown","Unknown","Unknown","Unknown","Unknown","Unknown","Unknown","Unknown","Unknown","Unknown","Unknown","Unknown","Unknown","Unknown","Unknown","Unknown","Unknown","Unknown","Unknown","Unknown","Unknown","Unknown","Unknown","Unknown","Unknown","Unknown","Unknown","Unknown","Unknown","Unknown","Unknown","Unknown","Unknown","Unknown","Unknown","CL","Unknown","Unknown","Unknown","Unknown","Unknown","Unknown","Unknown","Unknown","Unknown","Unknown","Unknown","Unknown","Unknown","Unknown","Unknown","Unknown","Unknown","Unknown","Unknown","Unknown","Unknown","Unknown","Unknown","Unknown","Unknown","Unknown","Unknown","Unknown","Unknown","Unknown","Unknown","Unknown","Unknown","Unknown","Unknown","Unknown","Unknown","Unknown","Unknown","Unknown","Unknown","Unknown","Unknown","Unknown","Unknown","Unknown","Unknown","Unknown","Unknown","Unknown","Unknown","Unknown","Unknown","Unknown","Unknown","Unknown","Unknown","Unknown","Unknown","Unknown","Unknown","Unknown","Unknown","Unknown","Unknown","Unknown","Unknown","Unknown","Unknown","Unknown","Unknown"]
[null,"Ethiopia","Unknown","Unknown","Unknown","CL","Unknown","Unknown","Unknown","Unknown","Unknown","Unknown","CL","Unknown","Unknown","Unknown","Unknown","Unknown","CL","Unknown","Unknown","Unknown","Unknown","Unknown","Unknown","Unknown","Unknown","Unknown","Unknown","Unknown","Unknown","CL","Unknown","Unknown","Unknown","Unknown","Unknown","Unknown","Unknown","Unknown","Unknown","CL/FL","Unknown","Unknown","Unknown","CL","Unknown","CL","Unknown","Unknown","Unknown","Unknown","Unknown","Unknown","Unknown","Unknown","Unknown","Unknown","Unknown","Unknown","CL","Unknown","Unknown","Unknown","Unknown","Unknown","CL","Unknown","Unknown","Unknown","Unknown","Unknown","Unknown","Unknown","Unknown","Unknown","Unknown","Unknown","Unknown","Unknown","Unknown","Unknown","Unknown","Unknown","Unknown","Unknown","Unknown","Unknown","Unknown","Unknown","CL","Unknown","Unknown","Unknown","Unknown","Unknown","Unknown","Unknown","Unknown","Unknown","Unknown","Unknown","Unknown","Unknown","Unknown","Unknown","Unknown","Unknown","Unknown","Unknown","Unknown","Unknown","Unknown","Unknown","Unknown","Unknown","Unknown","Unknown","Unknown","Unknown","Unknown","Unknown","Unknown","Unknown","Unknown","Unknown","Unknown","FL","Unknown","Unknown","Unknown","Unknown","Unknown","Unknown","CL","Unknown","FL","Unknown","Unknown","Unknown","CL/FL","Unknown","Unknown","Unknown","Unknown","Unknown","Unknown","CL","CL","Unknown","Unknown","Unknown","Unknown","Unknown","Unknown","Unknown","Unknown","Unknown","Unknown","Unknown","Unknown","Unknown"]
[null,"Fiji","Unknown","Unknown","Unknown","Unknown","Unknown","Unknown","Unknown","Unknown","Unknown","Unknown","Unknown","Unknown","Unknown","Unknown","Unknown","Unknown","Unknown","Unknown","Unknown","Unknown","Unknown","Unknown","Unknown","Unknown","Unknown","CL","Unknown","Unknown","Unknown","CL","Unknown","Unknown","Unknown","Unknown","Unknown","Unknown","Unknown","Unknown","Unknown","Unknown","Unknown","Unknown","CL","Unknown","Unknown","Unknown","Unknown","Unknown","Unknown","Unknown","Unknown","Unknown","Unknown","Unknown","Unknown","Unknown","Unknown","Unknown","Unknown","Unknown","Unknown","Unknown","Unknown","Unknown","Unknown","Unknown","Unknown","CL","Unknown","Unknown","Unknown","Unknown","Unknown","Unknown","Unknown","Unknown","Unknown","Unknown","Unknown","Unknown","Unknown","Unknown","Unknown","Unknown","Unknown","Unknown","Unknown","Unknown","CL","Unknown","Unknown","Unknown","Unknown","Unknown","Unknown","Unknown","CL","Unknown","Unknown","Unknown","Unknown","Unknown","Unknown","Unknown","Unknown","Unknown","Unknown","Unknown","Unknown","Unknown","Unknown","Unknown","Unknown","CL","Unknown","Unknown","Unknown","Unknown","CL","Unknown","Unknown","Unknown","Unknown","Unknown","Unknown","Unknown","Unknown","Unknown","Unknown","Unknown","Unknown","Unknown","Unknown","CL","Unknown","Unknown","Unknown","Unknown","Unknown","Unknown","Unknown","Unknown","Unknown","Unknown","Unknown","Unknown","Unknown","Unknown","Unknown","CL","Unknown","Unknown","Unknown","Unknown","Unknown","Unknown","Unknown","Unknown","Unknown","Unknown"]
[null,"Finland","Unknown","Unknown","Unknown","Unknown","Unknown","Unknown","Unknown","Unknown","Unknown","Unknown","Unknown","Unknown","Unknown","Unknown","Unknown","Unknown","Unknown","Unknown","Unknown","Unknown","Unknown","Unknown","Unknown","Unknown","Unknown","Unknown","Unknown","Unknown","Unknown","Unknown","Unknown","Unknown","Unknown","Unknown","Unknown","Unknown","Unknown","Unknown","Unknown","Unknown","Unknown","Unknown","Unknown","Unknown","Unknown","Unknown","Unknown","Unknown","Unknown","Unknown","Unknown","Unknown","Unknown","Unknown","Unknown","Unknown","Unknown","Unknown","Unknown","Unknown","Unknown","Unknown","Unknown","Unknown","Unknown","Unknown","Unknown","Unknown","Unknown","Unknown","Unknown","Unknown","Unknown","Unknown","Unknown","Unknown","Unknown","Unknown","Unknown","Unknown","Unknown","Unknown","Unknown","Unknown","Unknown","Unknown","Unknown","Unknown","Unknown","Unknown","Unknown","Unknown","Unknown","Unknown","Unknown","Unknown","Unknown","Unknown","Unknown","Unknown","Unknown","Unknown","Unknown","Unknown","Unknown","Unknown","Unknown","Unknown","Unknown","Unknown","Unknown","Unknown","Unknown","Unknown","Unknown","Unknown","Unknown","Unknown","Unknown","Unknown","Unknown","Unknown","Unknown","Unknown","Unknown","Unknown","Unknown","Unknown","Unknown","Unknown","Unknown","Unknown","Unknown","Unknown","Unknown","Unknown","Unknown","Unknown","Unknown","Unknown","Unknown","Unknown","Unknown","Unknown","Unknown","Unknown","Unknown","Unknown","Unknown","Unknown","Unknown","Unknown","Unknown","Unknown","Unknown","Unknown","Unknown","Unknown","Unknown","Unknown"]
[null,"France","Unknown","Unknown","Unknown","Unknown","Unknown","Unknown","Unknown","HR","Unknown","Unknown","Unknown","Unknown","Unknown","Unknown","Unknown","Unknown","Unknown","Unknown","Unknown","Unknown","Unknown","Unknown","Unknown","Unknown","Unknown","Unknown","Unknown","Unknown","Unknown","Unknown","Unknown","Unknown","Unknown","Unknown","Unknown","Unknown","Unknown","Unknown","Unknown","Unknown","Unknown","Unknown","Unknown","Unknown","Unknown","Unknown","Unknown","Unknown","Unknown","Unknown","Unknown","Unknown","Unknown","Unknown","Unknown","Unknown","Unknown","Unknown","Unknown","Unknown","Unknown","Unknown","Unknown","Unknown","Unknown","Unknown","Unknown","Unknown","Unknown","Unknown","Unknown","Unknown","Unknown","Unknown","Unknown","Unknown","Unknown","Unknown","Unknown","Unknown","Unknown","Unknown","Unknown","Unknown","Unknown","Unknown","Unknown","Unknown","Unknown","Unknown","Unknown","Unknown","Unknown","Unknown","Unknown","Unknown","Unknown","Unknown","Unknown","Unknown","Unknown","Unknown","Unknown","Unknown","Unknown","Unknown","Unknown","Unknown","Unknown","Unknown","Unknown","Unknown","Unknown","Unknown","Unknown","Unknown","Unknown","Unknown","Unknown","Unknown","Unknown","Unknown","Unknown","Unknown","Unknown","Unknown","Unknown","Unknown","Unknown","Unknown","Unknown","Unknown","Unknown","Unknown","Unknown","Unknown","Unknown","Unknown","Unknown","Unknown","Unknown","Unknown","Unknown","Unknown","Unknown","Unknown","Unknown","Unknown","Unknown","Unknown","Unknown","HR","Unknown","Unknown","Unknown","Unknown","Unknown","Unknown","Unknown","Unknown"]
[null,"Gabon","Unknown","Unknown","Unknown","Unknown","Unknown","Unknown","Unknown","Unknown","Unknown","Unknown","Unknown","Unknown","Unknown","Unknown","Unknown","Unknown","Unknown","Unknown","Unknown","Unknown","Unknown","Unknown","Unknown","Unknown","Unknown","Unknown","Unknown","Unknown","Unknown","Unknown","Unknown","Unknown","Unknown","Unknown","Unknown","Unknown","Unknown","Unknown","Unknown","Unknown","Unknown","Unknown","Unknown","Unknown","Unknown","Unknown","Unknown","Unknown","Unknown","Unknown","Unknown","Unknown","Unknown","Unknown","Unknown","Unknown","Unknown","Unknown","Unknown","Unknown","FL","Unknown","Unknown","Unknown","Unknown","Unknown","Unknown","Unknown","Unknown","Unknown","Unknown","Unknown","Unknown","Unknown","Unknown","Unknown","Unknown","Unknown","Unknown","Unknown","Unknown","Unknown","Unknown","Unknown","Unknown","Unknown","Unknown","Unknown","Unknown","Unknown","Unknown","Unknown","Unknown","Unknown","Unknown","Unknown","Unknown","Unknown","Unknown","Unknown","Unknown","Unknown","Unknown","Unknown","Unknown","Unknown","Unknown","Unknown","Unknown","Unknown","Unknown","Unknown","Unknown","Unknown","Unknown","Unknown","Unknown","Unknown","Unknown","Unknown","Unknown","Unknown","Unknown","Unknown","Unknown","Unknown","Unknown","Unknown","Unknown","Unknown","Unknown","Unknown","Unknown","Unknown","Unknown","Unknown","Unknown","Unknown","Unknown","Unknown","Unknown","Unknown","Unknown","Unknown","Unknown","Unknown","Unknown","Unknown","Unknown","Unknown","Unknown","Unknown","Unknown","Unknown","Unknown","Unknown","Unknown","Unknown","Unknown","Unknown"]
[null,"Gambia","Unknown","Unknown","Unknown","Unknown","Unknown","Unknown","Unknown","Unknown","Unknown","Unknown","Unknown","Unknown","Unknown","Unknown","Unknown","Unknown","Unknown","Unknown","Unknown","Unknown","Unknown","Unknown","Unknown","Unknown","Unknown","Unknown","Unknown","Unknown","Unknown","Unknown","Unknown","Unknown","Unknown","Unknown","Unknown","Unknown","Unknown","Unknown","Unknown","Unknown","Unknown","Unknown","Unknown","Unknown","Unknown","Unknown","Unknown","Unknown","Unknown","Unknown","Unknown","Unknown","Unknown","Unknown","Unknown","Unknown","Unknown","Unknown","Unknown","Unknown","Unknown","Unknown","Unknown","Unknown","Unknown","Unknown","Unknown","Unknown","Unknown","Unknown","Unknown","Unknown","Unknown","Unknown","Unknown","Unknown","Unknown","Unknown","Unknown","Unknown","Unknown","Unknown","Unknown","Unknown","Unknown","Unknown","Unknown","Unknown","Unknown","Unknown","Unknown","Unknown","Unknown","Unknown","Unknown","Unknown","Unknown","Unknown","Unknown","Unknown","Unknown","Unknown","Unknown","Unknown","Unknown","Unknown","Unknown","Unknown","Unknown","Unknown","Unknown","Unknown","Unknown","Unknown","Unknown","Unknown","Unknown","Unknown","Unknown","Unknown","Unknown","Unknown","Unknown","Unknown","Unknown","Unknown","Unknown","Unknown","Unknown","Unknown","Unknown","Unknown","Unknown","Unknown","Unknown","Unknown","Unknown","Unknown","Unknown","Unknown","Unknown","Unknown","Unknown","Unknown","Unknown","Unknown","Unknown","Unknown","Unknown","Unknown","Unknown","Unknown","Unknown","Unknown","Unknown","Unknown","Unknown","Unknown","Unknown","Unknown"]
[null,"Georgia","Unknown","Unknown","Unknown","Unknown","Unknown","Unknown","Unknown","Unknown","Unknown","Unknown","Unknown","Unknown","Unknown","Unknown","Unknown","Unknown","Unknown","Unknown","Unknown","Unknown","Unknown","Unknown","Unknown","Unknown","Unknown","Unknown","Unknown","Unknown","Unknown","Unknown","Unknown","Unknown","Unknown","Unknown","Unknown","Unknown","Unknown","Unknown","Unknown","Unknown","Unknown","Unknown","Unknown","Unknown","Unknown","Unknown","Unknown","Unknown","Unknown","Unknown","Unknown","Unknown","Unknown","Unknown","Unknown","Unknown","Unknown","Unknown","Unknown","Unknown","Unknown","Unknown","Unknown","Unknown","Unknown","Unknown","Unknown","Unknown","Unknown","Unknown","Unknown","Unknown","Unknown","Unknown","Unknown","Unknown","Unknown","Unknown","Unknown","Unknown","Unknown","Unknown","Unknown","Unknown","Unknown","Unknown","Unknown","Unknown","Unknown","Unknown","Unknown","Unknown","Unknown","Unknown","Unknown","Unknown","Unknown","Unknown","Unknown","Unknown","Unknown","Unknown","Unknown","Unknown","Unknown","Unknown","Unknown","Unknown","Unknown","Unknown","Unknown","Unknown","Unknown","Unknown","Unknown","Unknown","Unknown","Unknown","Unknown","Unknown","Unknown","Unknown","Unknown","Unknown","Unknown","Unknown","Unknown","Unknown","Unknown","Unknown","Unknown","Unknown","Unknown","Unknown","Unknown","Unknown","Unknown","Unknown","Unknown","Unknown","Unknown","Unknown","Unknown","Unknown","Unknown","Unknown","Unknown","Unknown","Unknown","Unknown","Unknown","Unknown","Unknown","Unknown","Unknown","Unknown","Unknown","Unknown","Unknown","Unknown"]
[null,"Germany","Unknown","Unknown","Unknown","Unknown","Unknown","Unknown","Unknown","Unknown","Unknown","Unknown","Unknown","Unknown","Unknown","Unknown","Unknown","Unknown","Unknown","Unknown","Unknown","Unknown","Unknown","Unknown","Unknown","Unknown","Unknown","Unknown","Unknown","Unknown","Unknown","Unknown","Unknown","Unknown","Unknown","Unknown","Unknown","Unknown","Unknown","Unknown","Unknown","Unknown","Unknown","Unknown","Unknown","Unknown","Unknown","Unknown","Unknown","Unknown","Unknown","Unknown","Unknown","Unknown","Unknown","Unknown","Unknown","Unknown","Unknown","Unknown","Unknown","Unknown","Unknown","Unknown","Unknown","Unknown","Unknown","Unknown","Unknown","Unknown","Unknown","Unknown","Unknown","Unknown","Unknown","Unknown","Unknown","Unknown","Unknown","Unknown","Unknown","Unknown","Unknown","Unknown","Unknown","Unknown","Unknown","Unknown","Unknown","Unknown","Unknown","Unknown","Unknown","Unknown","Unknown","Unknown","Unknown","Unknown","Unknown","Unknown","Unknown","Unknown","Unknown","Unknown","Unknown","Unknown","Unknown","Unknown","Unknown","Unknown","Unknown","Unknown","Unknown","Unknown","Unknown","Unknown","Unknown","Unknown","Unknown","Unknown","Unknown","Unknown","Unknown","Unknown","Unknown","Unknown","Unknown","Unknown","Unknown","Unknown","Unknown","Unknown","Unknown","Unknown","Unknown","Unknown","Unknown","Unknown","Unknown","Unknown","Unknown","Unknown","Unknown","Unknown","Unknown","Unknown","Unknown","Unknown","Unknown","Unknown","Unknown","Unknown","Unknown","Unknown","Unknown","Unknown","Unknown","Unknown","Unknown","Unknown","Unknown","Unknown"]
[null,"Ghana","Unknown","Unknown","Unknown","Unknown","Unknown","Unknown","Unknown","Unknown","Unknown","Unknown","Unknown","Unknown","Unknown","Unknown","Unknown","Unknown","CL","Unknown","Unknown","Unknown","Unknown","Unknown","Unknown","Unknown","Unknown","Unknown","Unknown","Unknown","Unknown","CL","Unknown","Unknown","Unknown","Unknown","Unknown","Unknown","Unknown","Unknown","Unknown","Unknown","Unknown","CL","Unknown","Unknown","Unknown","CL","Unknown","Unknown","Unknown","Unknown","Unknown","Unknown","Unknown","Unknown","Unknown","Unknown","CL/FL","Unknown","CL","Unknown","CL/FL","Unknown","Unknown","Unknown","Unknown","Unknown","Unknown","Unknown","Unknown","Unknown","Unknown","Unknown","Unknown","Unknown","Unknown","Unknown","Unknown","Unknown","Unknown","Unknown","Unknown","Unknown","Unknown","Unknown","Unknown","Unknown","Unknown","Unknown","CL","Unknown","Unknown","Unknown","Unknown","Unknown","Unknown","Unknown","Unknown","Unknown","Unknown","Unknown","Unknown","Unknown","CL","Unknown","Unknown","Unknown","Unknown","Unknown","Unknown","Unknown","Unknown","Unknown","Unknown","Unknown","Unknown","Unknown","Unknown","Unknown","Unknown","Unknown","Unknown","Unknown","Unknown","Unknown","Unknown","Unknown","Unknown","Unknown","Unknown","Unknown","Unknown","Unknown","CL","Unknown","Unknown","Unknown","Unknown","Unknown","Unknown","Unknown","CL/FL","Unknown","Unknown","Unknown","Unknown","Unknown","Unknown","Unknown","Unknown","CL/FL","Unknown","Unknown","Unknown","Unknown","CL","Unknown","Unknown","Unknown","Unknown","Unknown"]
[null,"Greece","Unknown","Unknown","Unknown","Unknown","Unknown","Unknown","Unknown","Unknown","Unknown","Unknown","Unknown","Unknown","Unknown","Unknown","Unknown","Unknown","Unknown","Unknown","Unknown","Unknown","Unknown","Unknown","Unknown","Unknown","Unknown","Unknown","Unknown","Unknown","Unknown","Unknown","Unknown","Unknown","Unknown","Unknown","Unknown","Unknown","Unknown","Unknown","Unknown","Unknown","Unknown","Unknown","Unknown","Unknown","Unknown","Unknown","Unknown","Unknown","Unknown","Unknown","Unknown","Unknown","Unknown","Unknown","Unknown","Unknown","Unknown","Unknown","Unknown","Unknown","Unknown","Unknown","Unknown","Unknown","Unknown","Unknown","Unknown","Unknown","Unknown","Unknown","Unknown","Unknown","Unknown","Unknown","Unknown","Unknown","Unknown","Unknown","Unknown","Unknown","Unknown","Unknown","Unknown","Unknown","Unknown","Unknown","Unknown","Unknown","Unknown","Unknown","Unknown","Unknown","Unknown","Unknown","Unknown","Unknown","Unknown","Unknown","Unknown","Unknown","Unknown","Unknown","Unknown","Unknown","Unknown","Unknown","Unknown","Unknown","Unknown","Unknown","Unknown","Unknown","Unknown","Unknown","Unknown","Unknown","Unknown","Unknown","Unknown","Unknown","Unknown","Unknown","Unknown","Unknown","Unknown","Unknown","Unknown","Unknown","Unknown","Unknown","Unknown","Unknown","Unknown","Unknown","Unknown","Unknown","Unknown","Unknown","Unknown","Unknown","Unknown","Unknown","Unknown","Unknown","Unknown","Unknown","Unknown","Unknown","Unknown","Unknown","Unknown","Unknown","Unknown","Unknown","Unknown","Unknown","Unknown","Unknown","Unknown","Unknown"]
[null,"Greenland","Unknown","Unknown","Unknown","Unknown","Unknown","Unknown","Unknown","Unknown","Unknown","Unknown","Unknown","Unknown","Unknown","Unknown","Unknown","Unknown","Unknown","Unknown","Unknown","Unknown","Unknown","Unknown","Unknown","Unknown","Unknown","Unknown","Unknown","Unknown","Unknown","Unknown","Unknown","Unknown","Unknown","Unknown","Unknown","Unknown","Unknown","Unknown","Unknown","Unknown","Unknown","Unknown","Unknown","Unknown","Unknown","Unknown","Unknown","Unknown","Unknown","Unknown","Unknown","Unknown","Unknown","Unknown","Unknown","Unknown","Unknown","Unknown","Unknown","Unknown","Unknown","Unknown","Unknown","Unknown","Unknown","Unknown","Unknown","Unknown","Unknown","Unknown","Unknown","Unknown","Unknown","Unknown","Unknown","Unknown","Unknown","Unknown","Unknown","Unknown","Unknown","Unknown","Unknown","Unknown","Unknown","Unknown","Unknown","Unknown","Unknown","Unknown","Unknown","Unknown","Unknown","Unknown","Unknown","Unknown","Unknown","Unknown","Unknown","Unknown","Unknown","Unknown","Unknown","Unknown","Unknown","Unknown","Unknown","Unknown","Unknown","Unknown","Unknown","Unknown","Unknown","Unknown","Unknown","Unknown","Unknown","Unknown","Unknown","Unknown","Unknown","Unknown","Unknown","Unknown","Unknown","Unknown","Unknown","Unknown","Unknown","Unknown","Unknown","Unknown","Unknown","Unknown","Unknown","Unknown","Unknown","Unknown","Unknown","Unknown","Unknown","Unknown","Unknown","Unknown","Unknown","Unknown","Unknown","Unknown","Unknown","Unknown","Unknown","Unknown","Unknown","Unknown","Unknown","Unknown","Unknown","Unknown","Unknown","Unknown"]
[null,"Grenada","Unknown","Unknown","Unknown","Unknown","Unknown","Unknown","Unknown","Unknown","Unknown","Unknown","Unknown","Unknown","Unknown","Unknown","Unknown","Unknown","Unknown","Unknown","Unknown","Unknown","Unknown","Unknown","Unknown","Unknown","Unknown","Unknown","Unknown","Unknown","Unknown","Unknown","Unknown","Unknown","Unknown","Unknown","Unknown","Unknown","Unknown","Unknown","Unknown","Unknown","Unknown","Unknown","Unknown","Unknown","Unknown","Unknown","Unknown","Unknown","Unknown","Unknown","Unknown","Unknown","Unknown","Unknown","Unknown","Unknown","Unknown","Unknown","Unknown","Unknown","Unknown","Unknown","Unknown","Unknown","Unknown","Unknown","Unknown","Unknown","Unknown","Unknown","Unknown","Unknown","Unknown","Unknown","Unknown","Unknown","Unknown","Unknown","Unknown","Unknown","Unknown","Unknown","Unknown","Unknown","Unknown","Unknown","Unknown","Unknown","Unknown","Unknown","Unknown","Unknown","Unknown","Unknown","Unknown","Unknown","Unknown","Unknown","Unknown","Unknown","Unknown","Unknown","Unknown","Unknown","Unknown","Unknown","Unknown","Unknown","Unknown","Unknown","Unknown","Unknown","Unknown","Unknown","Unknown","Unknown","Unknown","Unknown","Unknown","Unknown","Unknown","Unknown","Unknown","Unknown","Unknown","Unknown","Unknown","Unknown","Unknown","Unknown","Unknown","Unknown","Unknown","Unknown","Unknown","Unknown","Unknown","Unknown","Unknown","Unknown","Unknown","Unknown","Unknown","Unknown","Unknown","Unknown","Unknown","Unknown","Unknown","Unknown","Unknown","Unknown","Unknown","Unknown","Unknown","Unknown","Unknown","Unknown","Unknown","Unknown"]
[null,"Guatemala","Unknown","Unknown","Unknown","Unknown","Unknown","Unknown","Unknown","Unknown","Unknown","Unknown","CL","Unknown","Unknown","Unknown","Unknown","Unknown","CL/HR","Unknown","Unknown","Unknown","CL","Unknown","CL","Unknown","Unknown","CL","Unknown","Unknown","Unknown","Unknown","CL","Unknown","Unknown","Unknown","Unknown","Unknown","Unknown","Unknown","Unknown","Unknown","Unknown","Unknown","Unknown","CL/HR","CL","Unknown","Unknown","Unknown","Unknown","Unknown","Unknown","Unknown","Unknown","Unknown","Unknown","Unknown","Unknown","Unknown","Unknown","Unknown","Unknown","CL","Unknown","Unknown","CL","Unknown","Unknown","Unknown","CL","Unknown","Unknown","Unknown","Unknown","Unknown","Unknown","Unknown","Unknown","Unknown","Unknown","Unknown","Unknown","Unknown","Unknown","Unknown","Unknown","CL","Unknown","Unknown","Unknown","Unknown","Unknown","Unknown","Unknown","CL","Unknown","Unknown","Unknown","Unknown","Unknown","Unknown","Unknown","Unknown","CL/FL","Unknown","Unknown","Unknown","Unknown","Unknown","Unknown","CL","Unknown","Unknown","Unknown","Unknown","Unknown","Unknown","Unknown","Unknown","Unknown","Unknown","Unknown","Unknown","Unknown","Unknown","Unknown","Unknown","Unknown","Unknown","Unknown","Unknown","Unknown","Unknown","CL","CL","Unknown","Unknown","Unknown","Unknown","Unknown","Unknown","Unknown","Unknown","Unknown","Unknown","Unknown","Unknown","CL","Unknown","Unknown","Unknown","Unknown","Unknown","Unknown","Unknown","CL/FL","Unknown","CL","CL","Unknown","Unknown"]
[null,"Guinea","Unknown","Unknown","Unknown","Unknown","Unknown","Unknown","Unknown","Unknown","Unknown","Unknown","Unknown","Unknown","Unknown","Unknown","Unknown","Unknown","CL","Unknown","Unknown","Unknown","Unknown","Unknown","Unknown","Unknown","Unknown","Unknown","Unknown","Unknown","CL","Unknown","CL/FL","Unknown","Unknown","Unknown","Unknown","Unknown","Unknown","Unknown","Unknown","Unknown","Unknown","CL","Unknown","CL","CL/FL","Unknown","Unknown","Unknown","Unknown","Unknown","CL","Unknown","Unknown","Unknown","Unknown","Unknown","Unknown","Unknown","Unknown","Unknown","Unknown","Unknown","Unknown","Unknown","Unknown","Unknown","Unknown","Unknown","Unknown","Unknown","Unknown","Unknown","Unknown","Unknown","Unknown","Unknown","Unknown","Unknown","Unknown","Unknown","Unknown","Unknown","Unknown","Unknown","Unknown","Unknown","Unknown","Unknown","Unknown","Unknown","Unknown","Unknown","Unknown","CL","Unknown","Unknown","Unknown","Unknown","Unknown","Unknown","Unknown","Unknown","Unknown","Unknown","Unknown","Unknown","Unknown","Unknown","Unknown","Unknown","Unknown","Unknown","Unknown","Unknown","Unknown","Unknown","Unknown","Unknown","Unknown","Unknown","Unknown","Unknown","Unknown","Unknown","Unknown","Unknown","Unknown","Unknown","Unknown","Unknown","Unknown","Unknown","CL","Unknown","Unknown","Unknown","Unknown","Unknown","Unknown","Unknown","Unknown","Unknown","Unknown","Unknown","Unknown","Unknown","Unknown","Unknown","Unknown","Unknown","Unknown","Unknown","Unknown","Unknown","Unknown","Unknown","Unknown","Unknown","Unknown","Unknown"]
[null,"Guinea-Bissau","Unknown","Unknown","Unknown","Unknown","Unknown","Unknown","Unknown","Unknown","Unknown","Unknown","Unknown","Unknown","Unknown","Unknown","Unknown","Unknown","Unknown","Unknown","Unknown","Unknown","Unknown","Unknown","Unknown","Unknown","Unknown","Unknown","Unknown","Unknown","CL","Unknown","Unknown","Unknown","Unknown","Unknown","Unknown","Unknown","Unknown","Unknown","Unknown","Unknown","Unknown","Unknown","Unknown","Unknown","Unknown","Unknown","Unknown","Unknown","Unknown","Unknown","Unknown","Unknown","Unknown","Unknown","Unknown","Unknown","Unknown","Unknown","Unknown","Unknown","Unknown","Unknown","Unknown","Unknown","Unknown","Unknown","Unknown","Unknown","Unknown","Unknown","Unknown","Unknown","Unknown","Unknown","Unknown","Unknown","Unknown","Unknown","Unknown","Unknown","Unknown","Unknown","Unknown","Unknown","Unknown","Unknown","Unknown","Unknown","Unknown","Unknown","Unknown","Unknown","Unknown","CL","Unknown","Unknown","Unknown","Unknown","Unknown","Unknown","Unknown","Unknown","Unknown","Unknown","Unknown","Unknown","Unknown","Unknown","Unknown","Unknown","Unknown","Unknown","Unknown","Unknown","Unknown","Unknown","Unknown","Unknown","Unknown","Unknown","Unknown","Unknown","Unknown","Unknown","Unknown","Unknown","Unknown","Unknown","Unknown","Unknown","Unknown","Unknown","Unknown","Unknown","Unknown","Unknown","Unknown","Unknown","Unknown","Unknown","Unknown","Unknown","Unknown","Unknown","Unknown","Unknown","Unknown","Unknown","Unknown","Unknown","Unknown","Unknown","Unknown","Unknown","Unknown","Unknown","Unknown","Unknown","Unknown","Unknown"]
[null,"Guyana","Unknown","Unknown","Unknown","Unknown","Unknown","Unknown","Unknown","Unknown","Unknown","Unknown","Unknown","Unknown","Unknown","Unknown","Unknown","Unknown","Unknown","Unknown","Unknown","Unknown","CL","Unknown","Unknown","Unknown","CL","CL","Unknown","Unknown","Unknown","Unknown","Unknown","CL","Unknown","CL","Unknown","CL","Unknown","Unknown","CL","Unknown","Unknown","Unknown","Unknown","Unknown","Unknown","Unknown","Unknown","Unknown","Unknown","Unknown","Unknown","Unknown","Unknown","Unknown","Unknown","Unknown","Unknown","Unknown","Unknown","Unknown","Unknown","Unknown","Unknown","Unknown","CL","Unknown","Unknown","Unknown","Unknown","Unknown","Unknown","Unknown","Unknown","Unknown","Unknown","Unknown","Unknown","Unknown","Unknown","Unknown","Unknown","Unknown","Unknown","CL","Unknown","Unknown","Unknown","Unknown","Unknown","Unknown","Unknown","Unknown","Unknown","Unknown","Unknown","Unknown","Unknown","Unknown","Unknown","Unknown","Unknown","Unknown","Unknown","Unknown","Unknown","Unknown","Unknown","Unknown","Unknown","Unknown","Unknown","Unknown","Unknown","Unknown","Unknown","Unknown","Unknown","Unknown","CL","Unknown","Unknown","Unknown","Unknown","Unknown","Unknown","Unknown","Unknown","Unknown","Unknown","Unknown","Unknown","Unknown","Unknown","CL","Unknown","Unknown","Unknown","Unknown","Unknown","Unknown","Unknown","CL","Unknown","Unknown","Unknown","CL","Unknown","Unknown","Unknown","Unknown","Unknown","Unknown","CL","Unknown","Unknown","Unknown","CL","CL","Unknown","Unknown"]
[null,"Haiti","Unknown","Unknown","Unknown","Unknown","Unknown","Unknown","Unknown","Unknown","Unknown","Unknown","Unknown","Unknown","Unknown","Unknown","Unknown","Unknown","Unknown","Unknown","Unknown","Unknown","Unknown","Unknown","Unknown","Unknown","Unknown","CL","Unknown","Unknown","Unknown","Unknown","Unknown","Unknown","Unknown","Unknown","Unknown","Unknown","Unknown","Unknown","Unknown","Unknown","Unknown","Unknown","Unknown","Unknown","Unknown","Unknown","Unknown","Unknown","Unknown","Unknown","Unknown","Unknown","Unknown","Unknown","Unknown","Unknown","Unknown","Unknown","Unknown","Unknown","Unknown","Unknown","Unknown","Unknown","Unknown","Unknown","Unknown","Unknown","Unknown","Unknown","Unknown","Unknown","Unknown","Unknown","Unknown","Unknown","Unknown","Unknown","Unknown","Unknown","Unknown","Unknown","Unknown","Unknown","Unknown","Unknown","Unknown","Unknown","Unknown","Unknown","Unknown","Unknown","Unknown","Unknown","Unknown","Unknown","Unknown","Unknown","Unknown","Unknown","Unknown","Unknown","Unknown","Unknown","Unknown","Unknown","Unknown","Unknown","Unknown","Unknown","Unknown","Unknown","Unknown","Unknown","Unknown","Unknown","Unknown","Unknown","Unknown","Unknown","Unknown","Unknown","Unknown","Unknown","Unknown","Unknown","Unknown","Unknown","Unknown","Unknown","Unknown","Unknown","Unknown","CL","Unknown","Unknown","Unknown","Unknown","Unknown","Unknown","Unknown","Unknown","Unknown","Unknown","Unknown","Unknown","Unknown","Unknown","Unknown","Unknown","Unknown","Unknown","Unknown","Unknown","Unknown","Unknown","Unknown","Unknown","Unknown","Unknown"]
[null,"Honduras","Unknown","Unknown","Unknown","Unknown","Unknown","Unknown","Unknown","Unknown","Unknown","Unknown","HR","Unknown","Unknown","Unknown","Unknown","Unknown","CL","Unknown","Unknown","Unknown","Unknown","Unknown","Unknown","Unknown","Unknown","CL","Unknown","Unknown","Unknown","Unknown","Unknown","Unknown","Unknown","Unknown","Unknown","Unknown","Unknown","Unknown","Unknown","Unknown","Unknown","Unknown","Unknown","CL","Unknown","Unknown","Unknown","Unknown","Unknown","Unknown","Unknown","Unknown","Unknown","Unknown","Unknown","Unknown","Unknown","CL","Unknown","Unknown","CL","Unknown","Unknown","Unknown","CL","Unknown","Unknown","Unknown","Unknown","Unknown","Unknown","Unknown","Unknown","Unknown","Unknown","Unknown","Unknown","Unknown","Unknown","Unknown","Unknown","Unknown","Unknown","Unknown","CL","Unknown","Unknown","Unknown","Unknown","CL","Unknown","Unknown","Unknown","Unknown","Unknown","CL","Unknown","Unknown","Unknown","Unknown","Unknown","Unknown","Unknown","Unknown","Unknown","Unknown","Unknown","Unknown","HR","Unknown","Unknown","Unknown","Unknown","Unknown","Unknown","Unknown","Unknown","Unknown","Unknown","Unknown","Unknown","Unknown","Unknown","Unknown","Unknown","Unknown","Unknown","CL","Unknown","Unknown","Unknown","Unknown","Unknown","CL","Unknown","Unknown","Unknown","Unknown","Unknown","Unknown","Unknown","Unknown","Unknown","Unknown","Unknown","Unknown","HR","Unknown","Unknown","Unknown","CL","Unknown","Unknown","Unknown","Unknown","Unknown","CL","CL","Unknown","Unknown"]
[null,"Hong Kong","Unknown","Unknown","Unknown","Unknown","Unknown","Unknown","Unknown","Unknown","Unknown","Unknown","Unknown","Unknown","Unknown","Unknown","Unknown","Unknown","Unknown","Unknown","Unknown","Unknown","Unknown","Unknown","Unknown","Unknown","Unknown","Unknown","Unknown","Unknown","Unknown","Unknown","Unknown","Unknown","Unknown","Unknown","Unknown","Unknown","Unknown","Unknown","Unknown","Unknown","Unknown","Unknown","Unknown","Unknown","Unknown","Unknown","Unknown","Unknown","Unknown","Unknown","Unknown","Unknown","Unknown","Unknown","Unknown","Unknown","Unknown","Unknown","Unknown","Unknown","Unknown","Unknown","Unknown","Unknown","Unknown","Unknown","Unknown","Unknown","Unknown","Unknown","Unknown","Unknown","Unknown","Unknown","Unknown","Unknown","Unknown","Unknown","Unknown","Unknown","Unknown","Unknown","Unknown","Unknown","Unknown","Unknown","Unknown","Unknown","Unknown","Unknown","Unknown","Unknown","Unknown","Unknown","Unknown","Unknown","Unknown","Unknown","Unknown","Unknown","Unknown","Unknown","Unknown","Unknown","Unknown","Unknown","Unknown","Unknown","Unknown","Unknown","Unknown","Unknown","Unknown","Unknown","Unknown","Unknown","Unknown","Unknown","Unknown","Unknown","Unknown","Unknown","Unknown","Unknown","Unknown","Unknown","Unknown","Unknown","Unknown","Unknown","Unknown","Unknown","Unknown","Unknown","Unknown","Unknown","Unknown","Unknown","Unknown","Unknown","Unknown","Unknown","Unknown","Unknown","Unknown","Unknown","Unknown","Unknown","Unknown","Unknown","Unknown","Unknown","Unknown","Unknown","Unknown","Unknown","Unknown","Unknown","Unknown","Unknown"]
[null,"Hungary","Unknown","Unknown","Unknown","Unknown","Unknown","Unknown","Unknown","Unknown","Unknown","Unknown","Unknown","Unknown","Unknown","Unknown","Unknown","Unknown","Unknown","Unknown","Unknown","Unknown","Unknown","Unknown","Unknown","Unknown","Unknown","Unknown","Unknown","Unknown","Unknown","Unknown","Unknown","Unknown","Unknown","Unknown","Unknown","Unknown","Unknown","Unknown","Unknown","Unknown","Unknown","Unknown","Unknown","Unknown","Unknown","Unknown","Unknown","Unknown","Unknown","Unknown","Unknown","Unknown","Unknown","Unknown","Unknown","Unknown","Unknown","Unknown","Unknown","Unknown","Unknown","Unknown","Unknown","Unknown","Unknown","Unknown","Unknown","Unknown","Unknown","Unknown","Unknown","Unknown","Unknown","Unknown","Unknown","Unknown","Unknown","Unknown","Unknown","Unknown","Unknown","Unknown","Unknown","Unknown","Unknown","Unknown","Unknown","Unknown","Unknown","Unknown","Unknown","Unknown","Unknown","Unknown","Unknown","Unknown","Unknown","Unknown","Unknown","Unknown","Unknown","Unknown","Unknown","Unknown","Unknown","Unknown","Unknown","Unknown","Unknown","Unknown","Unknown","Unknown","Unknown","Unknown","Unknown","Unknown","Unknown","Unknown","Unknown","Unknown","Unknown","Unknown","Unknown","Unknown","Unknown","Unknown","Unknown","Unknown","Unknown","Unknown","Unknown","Unknown","Unknown","Unknown","Unknown","Unknown","Unknown","Unknown","Unknown","Unknown","Unknown","Unknown","Unknown","Unknown","Unknown","Unknown","Unknown","Unknown","Unknown","Unknown","Unknown","Unknown","Unknown","Unknown","Unknown","Unknown","Unknown","Unknown","Unknown","Unknown"]
[null,"Iceland","Unknown","Unknown","Unknown","Unknown","Unknown","Unknown","Unknown","Unknown","Unknown","Unknown","Unknown","Unknown","Unknown","Unknown","Unknown","Unknown","Unknown","Unknown","Unknown","Unknown","Unknown","Unknown","Unknown","Unknown","Unknown","Unknown","Unknown","Unknown","Unknown","Unknown","Unknown","Unknown","Unknown","Unknown","Unknown","Unknown","Unknown","Unknown","Unknown","Unknown","Unknown","Unknown","Unknown","Unknown","Unknown","Unknown","Unknown","Unknown","Unknown","Unknown","Unknown","Unknown","Unknown","Unknown","Unknown","Unknown","Unknown","Unknown","Unknown","Unknown","Unknown","Unknown","Unknown","Unknown","Unknown","Unknown","Unknown","Unknown","Unknown","Unknown","Unknown","Unknown","Unknown","Unknown","Unknown","Unknown","Unknown","Unknown","Unknown","Unknown","Unknown","Unknown","Unknown","Unknown","Unknown","Unknown","Unknown","Unknown","Unknown","Unknown","Unknown","Unknown","Unknown","Unknown","Unknown","Unknown","Unknown","Unknown","Unknown","Unknown","Unknown","Unknown","Unknown","Unknown","Unknown","Unknown","Unknown","Unknown","Unknown","Unknown","Unknown","Unknown","Unknown","Unknown","Unknown","Unknown","Unknown","Unknown","Unknown","Unknown","Unknown","Unknown","Unknown","Unknown","Unknown","Unknown","Unknown","Unknown","Unknown","Unknown","Unknown","Unknown","Unknown","Unknown","Unknown","Unknown","Unknown","Unknown","Unknown","Unknown","Unknown","Unknown","Unknown","Unknown","Unknown","Unknown","Unknown","Unknown","Unknown","Unknown","Unknown","Unknown","Unknown","Unknown","Unknown","Unknown","Unknown","Unknown","Unknown","Unknown"]
[null,"India","Unknown","Unknown","Unknown","Unknown","Unknown","Unknown","Unknown","Unknown","Unknown","Unknown","Unknown","Unknown","Unknown","Unknown","Unknown","Unknown","Unknown","Unknown","Unknown","Unknown","Unknown","Unknown","Unknown","Unknown","Unknown","CL","Unknown","Unknown","CL","Unknown","Unknown","Unknown","Unknown","Unknown","Unknown","Unknown","Unknown","Unknown","Unknown","CL/FL","Unknown","Unknown","Unknown","Unknown","Unknown","CL","CL/FL","Unknown","Unknown","Unknown","CL","Unknown","Unknown","Unknown","Unknown","Unknown","Unknown","Unknown","CL/FL","Unknown","FL","FL","Unknown","CL","Unknown","Unknown","CL/FL","Unknown","Unknown","Unknown","Unknown","Unknown","Unknown","Unknown","Unknown","Unknown","Unknown","Unknown","Unknown","Unknown","Unknown","Unknown","Unknown","Unknown","Unknown","Unknown","Unknown","Unknown","Unknown","Unknown","Unknown","Unknown","Unknown","CL","Unknown","Unknown","Unknown","Unknown","Unknown","Unknown","Unknown","Unknown","Unknown","Unknown","Unknown","Unknown","Unknown","Unknown","Unknown","Unknown","Unknown","Unknown","Unknown","Unknown","Unknown","Unknown","Unknown","Unknown","CL/FL","Unknown","Unknown","Unknown","Unknown","CL","CL","Unknown","Unknown","Unknown","Unknown","Unknown","Unknown","Unknown","CL","CL","Unknown","Unknown","Unknown","CL/FL","CL/FL","Unknown","Unknown","Unknown","CL","Unknown","Unknown","Unknown","Unknown","Unknown","Unknown","Unknown","Unknown","Unknown","Unknown","Unknown","Unknown","Unknown","Unknown","Unknown","Unknown","Unknown"]
[null,"Indonesia","Unknown","Unknown","Unknown","Unknown","Unknown","Unknown","Unknown","Unknown","Unknown","Unknown","Unknown","Unknown","Unknown","Unknown","Unknown","Unknown","HR","Unknown","Unknown","Unknown","Unknown","Unknown","Unknown","Unknown","Unknown","Unknown","Unknown","Unknown","Unknown","Unknown","Unknown","Unknown","Unknown","Unknown","Unknown","Unknown","Unknown","Unknown","Unknown","CL","Unknown","Unknown","Unknown","HR","Unknown","Unknown","Unknown","Unknown","Unknown","Unknown","Unknown","Unknown","Unknown","Unknown","Unknown","Unknown","Unknown","Unknown","Unknown","Unknown","CL/FL","Unknown","Unknown","CL","Unknown","Unknown","Unknown","Unknown","Unknown","Unknown","Unknown","Unknown","Unknown","Unknown","Unknown","Unknown","Unknown","Unknown","Unknown","Unknown","Unknown","Unknown","Unknown","Unknown","Unknown","Unknown","Unknown","Unknown","Unknown","Unknown","Unknown","Unknown","Unknown","Unknown","Unknown","Unknown","Unknown","Unknown","Unknown","Unknown","Unknown","Unknown","CL/FL","Unknown","Unknown","Unknown","Unknown","Unknown","Unknown","Unknown","Unknown","Unknown","Unknown","Unknown","Unknown","Unknown","Unknown","Unknown","Unknown","CL","Unknown","Unknown","Unknown","Unknown","CL/FL","Unknown","Unknown","Unknown","Unknown","Unknown","Unknown","Unknown","CL","Unknown","Unknown","Unknown","Unknown","Unknown","Unknown","Unknown","Unknown","Unknown","CL","Unknown","Unknown","Unknown","Unknown","Unknown","Unknown","CL/FL","Unknown","Unknown","Unknown","Unknown","CL/FL","Unknown","Unknown","Unknown","Unknown","Unknown"]
[null,"Iran (Islamic Republic of)","Unknown","Unknown","Unknown","Unknown","Unknown","Unknown","Unknown","Unknown","Unknown","Unknown","Unknown","Unknown","Unknown","Unknown","Unknown","Unknown","Unknown","Unknown","Unknown","Unknown","HR","Unknown","Unknown","Unknown","Unknown","Unknown","Unknown","Unknown","Unknown","Unknown","Unknown","Unknown","Unknown","Unknown","Unknown","Unknown","Unknown","Unknown","Unknown","Unknown","Unknown","Unknown","Unknown","Unknown","Unknown","Unknown","Unknown","Unknown","Unknown","Unknown","Unknown","Unknown","Unknown","Unknown","Unknown","Unknown","Unknown","Unknown","Unknown","Unknown","Unknown","Unknown","Unknown","Unknown","Unknown","Unknown","Unknown","Unknown","Unknown","Unknown","Unknown","Unknown","Unknown","Unknown","Unknown","Unknown","Unknown","Unknown","Unknown","Unknown","Unknown","Unknown","Unknown","Unknown","Unknown","Unknown","Unknown","Unknown","Unknown","Unknown","Unknown","Unknown","Unknown","Unknown","Unknown","Unknown","Unknown","Unknown","Unknown","Unknown","Unknown","Unknown","Unknown","Unknown","Unknown","Unknown","Unknown","Unknown","Unknown","Unknown","Unknown","Unknown","Unknown","Unknown","Unknown","Unknown","Unknown","Unknown","Unknown","Unknown","Unknown","Unknown","Unknown","Unknown","Unknown","Unknown","Unknown","Unknown","Unknown","Unknown","Unknown","Unknown","Unknown","Unknown","Unknown","Unknown","Unknown","Unknown","Unknown","Unknown","Unknown","Unknown","Unknown","Unknown","Unknown","Unknown","Unknown","Unknown","Unknown","Unknown","Unknown","Unknown","Unknown","Unknown","Unknown","Unknown","HR","HR","Unknown","Unknown"]
[null,"Iraq","Unknown","Unknown","Unknown","Unknown","Unknown","Unknown","Unknown","Unknown","Unknown","Unknown","Unknown","Unknown","Unknown","Unknown","Unknown","Unknown","Unknown","Unknown","Unknown","Unknown","Unknown","Unknown","Unknown","Unknown","Unknown","Unknown","Unknown","Unknown","Unknown","CL","Unknown","Unknown","Unknown","Unknown","Unknown","Unknown","Unknown","Unknown","Unknown","CL","Unknown","Unknown","Unknown","Unknown","Unknown","Unknown","Unknown","Unknown","Unknown","Unknown","Unknown","Unknown","Unknown","Unknown","Unknown","Unknown","Unknown","Unknown","Unknown","Unknown","Unknown","Unknown","Unknown","Unknown","Unknown","Unknown","CL","Unknown","Unknown","Unknown","Unknown","Unknown","Unknown","Unknown","Unknown","Unknown","Unknown","Unknown","Unknown","Unknown","Unknown","Unknown","Unknown","Unknown","Unknown","Unknown","Unknown","Unknown","Unknown","Unknown","Unknown","Unknown","Unknown","Unknown","Unknown","Unknown","Unknown","Unknown","Unknown","Unknown","Unknown","Unknown","Unknown","Unknown","Unknown","Unknown","Unknown","CL","Unknown","Unknown","Unknown","Unknown","Unknown","Unknown","Unknown","Unknown","Unknown","CL","Unknown","Unknown","Unknown","Unknown","Unknown","Unknown","Unknown","Unknown","Unknown","Unknown","Unknown","Unknown","Unknown","Unknown","Unknown","Unknown","Unknown","Unknown","Unknown","Unknown","CL","Unknown","Unknown","Unknown","Unknown","Unknown","Unknown","Unknown","Unknown","Unknown","Unknown","Unknown","Unknown","Unknown","Unknown","Unknown","Unknown","Unknown","Unknown","Unknown","Unknown","Unknown"]
[null,"Ireland","Unknown","Unknown","Unknown","Unknown","Unknown","Unknown","Unknown","Unknown","Unknown","Unknown","Unknown","Unknown","Unknown","Unknown","Unknown","Unknown","Unknown","Unknown","Unknown","Unknown","Unknown","Unknown","Unknown","Unknown","Unknown","Unknown","Unknown","Unknown","Unknown","Unknown","Unknown","Unknown","Unknown","Unknown","Unknown","Unknown","Unknown","Unknown","Unknown","Unknown","Unknown","Unknown","Unknown","Unknown","Unknown","Unknown","Unknown","Unknown","Unknown","Unknown","Unknown","Unknown","Unknown","Unknown","Unknown","Unknown","Unknown","Unknown","Unknown","Unknown","Unknown","Unknown","Unknown","Unknown","Unknown","Unknown","Unknown","Unknown","Unknown","Unknown","Unknown","Unknown","Unknown","Unknown","Unknown","Unknown","Unknown","Unknown","Unknown","Unknown","Unknown","Unknown","Unknown","Unknown","Unknown","Unknown","Unknown","Unknown","Unknown","Unknown","Unknown","Unknown","Unknown","Unknown","Unknown","Unknown","Unknown","Unknown","Unknown","Unknown","Unknown","Unknown","Unknown","Unknown","Unknown","Unknown","Unknown","Unknown","Unknown","Unknown","Unknown","Unknown","Unknown","Unknown","Unknown","Unknown","Unknown","Unknown","Unknown","Unknown","Unknown","Unknown","Unknown","Unknown","Unknown","Unknown","Unknown","Unknown","Unknown","Unknown","Unknown","Unknown","Unknown","Unknown","Unknown","Unknown","Unknown","Unknown","Unknown","Unknown","Unknown","Unknown","Unknown","Unknown","Unknown","Unknown","Unknown","Unknown","Unknown","FL","Unknown","Unknown","Unknown","Unknown","Unknown","Unknown","Unknown","Unknown","Unknown","Unknown"]
[null,"Israel","Unknown","Unknown","Unknown","Unknown","Unknown","Unknown","Unknown","Unknown","Unknown","Unknown","Unknown","Unknown","Unknown","Unknown","Unknown","Unknown","Unknown","Unknown","Unknown","Unknown","Unknown","Unknown","Unknown","Unknown","Unknown","Unknown","HR","Unknown","Unknown","Unknown","Unknown","Unknown","Unknown","Unknown","Unknown","Unknown","Unknown","Unknown","HR","Unknown","Unknown","Unknown","Unknown","Unknown","Unknown","Unknown","Unknown","Unknown","Unknown","Unknown","Unknown","Unknown","Unknown","Unknown","Unknown","Unknown","Unknown","Unknown","Unknown","Unknown","Unknown","Unknown","Unknown","Unknown","HR","Unknown","Unknown","Unknown","Unknown","Unknown","Unknown","HR","Unknown","Unknown","Unknown","Unknown","Unknown","Unknown","Unknown","Unknown","Unknown","Unknown","Unknown","Unknown","Unknown","Unknown","Unknown","Unknown","Unknown","Unknown","Unknown","Unknown","Unknown","Unknown","Unknown","Unknown","Unknown","Unknown","Unknown","Unknown","Unknown","Unknown","Unknown","Unknown","Unknown","Unknown","Unknown","Unknown","Unknown","Unknown","Unknown","Unknown","Unknown","Unknown","Unknown","Unknown","Unknown","Unknown","Unknown","Unknown","Unknown","Unknown","Unknown","Unknown","Unknown","Unknown","Unknown","Unknown","Unknown","Unknown","Unknown","Unknown","Unknown","Unknown","Unknown","Unknown","Unknown","Unknown","Unknown","Unknown","Unknown","Unknown","Unknown","Unknown","Unknown","Unknown","Unknown","Unknown","Unknown","Unknown","Unknown","Unknown","Unknown","Unknown","Unknown","HR","Unknown","HR","Unknown","Unknown"]
[null,"Italy","Unknown","Unknown","Unknown","Unknown","Unknown","Unknown","Unknown","Unknown","Unknown","Unknown","Unknown","Unknown","Unknown","Unknown","Unknown","Unknown","Unknown","Unknown","Unknown","Unknown","Unknown","Unknown","Unknown","Unknown","Unknown","Unknown","Unknown","Unknown","Unknown","Unknown","Unknown","Unknown","Unknown","Unknown","Unknown","Unknown","Unknown","Unknown","HR","FL","Unknown","Unknown","Unknown","Unknown","Unknown","Unknown","Unknown","Unknown","Unknown","Unknown","Unknown","Unknown","Unknown","Unknown","Unknown","Unknown","Unknown","Unknown","Unknown","Unknown","Unknown","Unknown","Unknown","Unknown","FL","Unknown","Unknown","Unknown","Unknown","Unknown","Unknown","Unknown","Unknown","Unknown","Unknown","Unknown","HR","Unknown","Unknown","Unknown","Unknown","HR","Unknown","Unknown","Unknown","Unknown","HR","Unknown","Unknown","Unknown","Unknown","Unknown","Unknown","Unknown","Unknown","Unknown","Unknown","Unknown","Unknown","Unknown","HR","Unknown","Unknown","Unknown","Unknown","Unknown","Unknown","Unknown","Unknown","Unknown","Unknown","Unknown","Unknown","Unknown","Unknown","Unknown","Unknown","Unknown","Unknown","Unknown","Unknown","Unknown","Unknown","Unknown","Unknown","Unknown","Unknown","Unknown","Unknown","Unknown","Unknown","Unknown","Unknown","Unknown","Unknown","Unknown","Unknown","Unknown","Unknown","Unknown","Unknown","Unknown","Unknown","FL","Unknown","Unknown","Unknown","Unknown","Unknown","Unknown","Unknown","Unknown","Unknown","Unknown","Unknown","Unknown","FL","FL","Unknown","Unknown"]
[null,"Jamaica","Unknown","Unknown","Unknown","Unknown","Unknown","Unknown","Unknown","Unknown","Unknown","Unknown","Unknown","Unknown","Unknown","Unknown","Unknown","Unknown","Unknown","Unknown","Unknown","Unknown","Unknown","Unknown","Unknown","Unknown","Unknown","Unknown","Unknown","Unknown","Unknown","Unknown","Unknown","Unknown","Unknown","Unknown","Unknown","Unknown","Unknown","Unknown","Unknown","Unknown","Unknown","Unknown","Unknown","Unknown","Unknown","Unknown","Unknown","Unknown","Unknown","Unknown","Unknown","Unknown","Unknown","Unknown","Unknown","Unknown","Unknown","Unknown","Unknown","Unknown","FL","Unknown","Unknown","Unknown","Unknown","Unknown","Unknown","Unknown","Unknown","Unknown","Unknown","Unknown","Unknown","Unknown","Unknown","Unknown","Unknown","Unknown","Unknown","Unknown","Unknown","Unknown","Unknown","Unknown","Unknown","Unknown","Unknown","Unknown","Unknown","Unknown","Unknown","Unknown","Unknown","Unknown","Unknown","Unknown","Unknown","Unknown","Unknown","Unknown","Unknown","Unknown","Unknown","Unknown","Unknown","Unknown","Unknown","Unknown","Unknown","Unknown","Unknown","Unknown","Unknown","Unknown","Unknown","Unknown","Unknown","Unknown","Unknown","Unknown","Unknown","Unknown","Unknown","Unknown","Unknown","Unknown","Unknown","Unknown","Unknown","Unknown","Unknown","Unknown","Unknown","Unknown","Unknown","Unknown","Unknown","Unknown","Unknown","Unknown","Unknown","Unknown","Unknown","Unknown","Unknown","Unknown","Unknown","Unknown","Unknown","CL/FL","Unknown","Unknown","Unknown","Unknown","Unknown","Unknown","Unknown","Unknown","Unknown","Unknown"]
[null,"Japan","Unknown","Unknown","Unknown","Unknown","Unknown","Unknown","Unknown","Unknown","Unknown","Unknown","Unknown","Unknown","Unknown","Unknown","Unknown","Unknown","Unknown","Unknown","Unknown","Unknown","Unknown","Unknown","Unknown","Unknown","Unknown","Unknown","Unknown","Unknown","Unknown","Unknown","Unknown","Unknown","Unknown","Unknown","Unknown","Unknown","Unknown","Unknown","Unknown","Unknown","Unknown","Unknown","Unknown","Unknown","Unknown","Unknown","Unknown","Unknown","Unknown","Unknown","Unknown","Unknown","Unknown","Unknown","Unknown","Unknown","Unknown","Unknown","Unknown","Unknown","Unknown","Unknown","Unknown","Unknown","Unknown","Unknown","Unknown","Unknown","Unknown","Unknown","Unknown","Unknown","Unknown","Unknown","Unknown","Unknown","Unknown","Unknown","Unknown","Unknown","Unknown","Unknown","Unknown","Unknown","Unknown","Unknown","Unknown","Unknown","Unknown","Unknown","Unknown","Unknown","Unknown","Unknown","Unknown","Unknown","Unknown","Unknown","Unknown","Unknown","Unknown","Unknown","Unknown","Unknown","Unknown","Unknown","Unknown","Unknown","Unknown","Unknown","Unknown","Unknown","Unknown","Unknown","Unknown","Unknown","Unknown","Unknown","Unknown","Unknown","Unknown","Unknown","Unknown","Unknown","Unknown","Unknown","Unknown","Unknown","Unknown","Unknown","Unknown","Unknown","Unknown","Unknown","Unknown","Unknown","Unknown","Unknown","Unknown","Unknown","Unknown","Unknown","Unknown","Unknown","Unknown","Unknown","Unknown","Unknown","Unknown","FL","Unknown","Unknown","Unknown","Unknown","Unknown","Unknown","Unknown","Unknown","Unknown","Unknown"]
[null,"Jordan","Unknown","Unknown","Unknown","Unknown","Unknown","Unknown","Unknown","Unknown","Unknown","Unknown","Unknown","Unknown","Unknown","Unknown","Unknown","Unknown","Unknown","Unknown","Unknown","Unknown","Unknown","Unknown","Unknown","Unknown","Unknown","Unknown","Unknown","Unknown","Unknown","Unknown","Unknown","Unknown","Unknown","Unknown","Unknown","Unknown","Unknown","Unknown","Unknown","Unknown","Unknown","Unknown","Unknown","Unknown","Unknown","Unknown","Unknown","Unknown","Unknown","Unknown","Unknown","Unknown","Unknown","Unknown","Unknown","Unknown","Unknown","Unknown","Unknown","Unknown","Unknown","Unknown","Unknown","Unknown","CL","Unknown","Unknown","Unknown","Unknown","Unknown","Unknown","Unknown","Unknown","Unknown","Unknown","Unknown","Unknown","Unknown","Unknown","Unknown","Unknown","Unknown","HR","Unknown","Unknown","Unknown","Unknown","Unknown","Unknown","Unknown","Unknown","Unknown","Unknown","Unknown","Unknown","Unknown","CL","CL","Unknown","Unknown","Unknown","Unknown","Unknown","Unknown","Unknown","Unknown","Unknown","Unknown","Unknown","Unknown","Unknown","Unknown","Unknown","Unknown","Unknown","Unknown","Unknown","Unknown","Unknown","Unknown","Unknown","Unknown","HR","Unknown","Unknown","Unknown","Unknown","Unknown","Unknown","Unknown","Unknown","Unknown","Unknown","Unknown","Unknown","Unknown","Unknown","Unknown","Unknown","Unknown","Unknown","Unknown","Unknown","CL","Unknown","Unknown","Unknown","Unknown","Unknown","Unknown","Unknown","Unknown","Unknown","Unknown","Unknown","Unknown","HR","HR","Unknown","Unknown"]
[null,"Kazakhstan","Unknown","Unknown","Unknown","Unknown","Unknown","Unknown","Unknown","Unknown","Unknown","Unknown","Unknown","Unknown","Unknown","Unknown","Unknown","Unknown","Unknown","Unknown","Unknown","Unknown","Unknown","Unknown","Unknown","Unknown","Unknown","Unknown","Unknown","Unknown","Unknown","Unknown","Unknown","Unknown","Unknown","Unknown","Unknown","Unknown","Unknown","Unknown","Unknown","Unknown","Unknown","Unknown","Unknown","Unknown","Unknown","CL/FL","Unknown","Unknown","Unknown","Unknown","Unknown","Unknown","Unknown","Unknown","Unknown","Unknown","Unknown","Unknown","CL/FL","Unknown","Unknown","Unknown","Unknown","Unknown","Unknown","Unknown","Unknown","Unknown","Unknown","Unknown","Unknown","Unknown","Unknown","Unknown","Unknown","Unknown","Unknown","Unknown","Unknown","Unknown","Unknown","Unknown","Unknown","Unknown","Unknown","Unknown","Unknown","Unknown","Unknown","Unknown","Unknown","Unknown","Unknown","Unknown","Unknown","Unknown","Unknown","Unknown","Unknown","Unknown","Unknown","Unknown","Unknown","Unknown","Unknown","Unknown","Unknown","Unknown","Unknown","Unknown","Unknown","Unknown","Unknown","Unknown","Unknown","Unknown","Unknown","Unknown","Unknown","Unknown","Unknown","Unknown","Unknown","Unknown","Unknown","Unknown","Unknown","Unknown","Unknown","Unknown","Unknown","Unknown","Unknown","Unknown","Unknown","Unknown","Unknown","Unknown","Unknown","Unknown","Unknown","Unknown","Unknown","Unknown","Unknown","Unknown","Unknown","Unknown","HR","Unknown","Unknown","Unknown","Unknown","Unknown","Unknown","Unknown","CL","CL","Unknown","Unknown"]
[null,"Kenya","Unknown","Unknown","Unknown","Unknown","Unknown","Unknown","Unknown","Unknown","Unknown","Unknown","Unknown","Unknown","Unknown","MR","FL","Unknown","CL","Unknown","Unknown","Unknown","MR","Unknown","MR","Unknown","Unknown","CL","Unknown","Unknown","Unknown","FL","CL","Unknown","Unknown","Unknown","Unknown","Unknown","Unknown","MR","Unknown","Unknown","Unknown","Unknown","Unknown","CL","CL","CL","Unknown","Unknown","Unknown","Unknown","Unknown","Unknown","Unknown","Unknown","Unknown","Unknown","Unknown","Unknown","CL","Unknown","CL","CL","Unknown","Unknown","HR","Unknown","Unknown","Unknown","Unknown","Unknown","Unknown","Unknown","Unknown","Unknown","Unknown","Unknown","Unknown","Unknown","Unknown","Unknown","Unknown","Unknown","Unknown","Unknown","Unknown","Unknown","Unknown","Unknown","FL","Unknown","Unknown","Unknown","Unknown","Unknown","Unknown","Unknown","Unknown","Unknown","Unknown","Unknown","Unknown","Unknown","Unknown","HR","Unknown","Unknown","Unknown","Unknown","Unknown","Unknown","Unknown","Unknown","Unknown","Unknown","Unknown","Unknown","Unknown","Unknown","CL","Unknown","Unknown","Unknown","Unknown","Unknown","Unknown","Unknown","Unknown","Unknown","Unknown","Unknown","Unknown","Unknown","CL","CL","Unknown","Unknown","Unknown","CL/HR","Unknown","Unknown","Unknown","Unknown","CL","Unknown","Unknown","Unknown","HR","Unknown","Unknown","CL/FL","Unknown","Unknown","Unknown","Unknown","Unknown","Unknown","Unknown","Unknown","Unknown","Unknown"]
[null,"Kiribati","Unknown","Unknown","Unknown","Unknown","Unknown","Unknown","Unknown","Unknown","Unknown","Unknown","Unknown","Unknown","Unknown","Unknown","Unknown","Unknown","Unknown","Unknown","Unknown","Unknown","Unknown","Unknown","Unknown","Unknown","Unknown","Unknown","Unknown","Unknown","Unknown","Unknown","Unknown","Unknown","Unknown","Unknown","Unknown","Unknown","Unknown","Unknown","Unknown","Unknown","Unknown","Unknown","Unknown","Unknown","Unknown","Unknown","Unknown","Unknown","Unknown","Unknown","Unknown","Unknown","Unknown","Unknown","Unknown","Unknown","Unknown","Unknown","Unknown","Unknown","Unknown","Unknown","Unknown","Unknown","Unknown","Unknown","Unknown","Unknown","Unknown","Unknown","Unknown","Unknown","Unknown","Unknown","Unknown","Unknown","Unknown","Unknown","Unknown","Unknown","Unknown","Unknown","Unknown","Unknown","Unknown","Unknown","Unknown","Unknown","Unknown","Unknown","Unknown","Unknown","Unknown","Unknown","Unknown","Unknown","Unknown","Unknown","Unknown","Unknown","Unknown","Unknown","Unknown","Unknown","Unknown","Unknown","Unknown","Unknown","Unknown","Unknown","Unknown","Unknown","Unknown","Unknown","Unknown","Unknown","Unknown","Unknown","Unknown","Unknown","Unknown","Unknown","Unknown","Unknown","Unknown","Unknown","Unknown","Unknown","Unknown","Unknown","Unknown","Unknown","Unknown","Unknown","Unknown","Unknown","Unknown","Unknown","Unknown","Unknown","Unknown","Unknown","Unknown","Unknown","Unknown","Unknown","Unknown","Unknown","Unknown","CL","Unknown","Unknown","Unknown","Unknown","Unknown","Unknown","Unknown","Unknown","Unknown","Unknown"]
[null,"Korea (Democratic People's Republic of)","Unknown","Unknown","Unknown","Unknown","Unknown","Unknown","Unknown","Unknown","Unknown","Unknown","Unknown","Unknown","Unknown","Unknown","Unknown","Unknown","Unknown","Unknown","Unknown","Unknown","Unknown","Unknown","Unknown","Unknown","Unknown","Unknown","Unknown","Unknown","Unknown","Unknown","Unknown","Unknown","Unknown","Unknown","Unknown","Unknown","Unknown","Unknown","Unknown","FL","Unknown","Unknown","Unknown","Unknown","Unknown","Unknown","Unknown","Unknown","Unknown","Unknown","Unknown","Unknown","Unknown","Unknown","Unknown","Unknown","Unknown","Unknown","Unknown","Unknown","Unknown","Unknown","Unknown","Unknown","Unknown","Unknown","FL","Unknown","Unknown","Unknown","Unknown","Unknown","Unknown","Unknown","Unknown","Unknown","Unknown","Unknown","Unknown","Unknown","Unknown","Unknown","Unknown","Unknown","Unknown","Unknown","Unknown","Unknown","Unknown","Unknown","Unknown","Unknown","Unknown","Unknown","Unknown","Unknown","Unknown","Unknown","Unknown","Unknown","Unknown","Unknown","Unknown","Unknown","Unknown","Unknown","Unknown","Unknown","Unknown","Unknown","Unknown","Unknown","Unknown","Unknown","Unknown","Unknown","Unknown","Unknown","Unknown","Unknown","Unknown","Unknown","Unknown","Unknown","Unknown","Unknown","Unknown","Unknown","Unknown","Unknown","Unknown","Unknown","FL","Unknown","Unknown","Unknown","Unknown","Unknown","FL","Unknown","Unknown","FL","Unknown","Unknown","Unknown","Unknown","Unknown","Unknown","Unknown","Unknown","Unknown","Unknown","FL","Unknown","Unknown","Unknown","Unknown","Unknown","Unknown","Unknown"]
[null,"Korea Republic of","Unknown","Unknown","Unknown","Unknown","Unknown","Unknown","Unknown","Unknown","Unknown","Unknown","Unknown","Unknown","Unknown","Unknown","Unknown","Unknown","Unknown","Unknown","Unknown","Unknown","Unknown","Unknown","Unknown","Unknown","Unknown","Unknown","Unknown","Unknown","Unknown","FL","Unknown","Unknown","Unknown","Unknown","Unknown","Unknown","Unknown","Unknown","Unknown","Unknown","Unknown","Unknown","Unknown","Unknown","Unknown","Unknown","Unknown","Unknown","Unknown","Unknown","Unknown","Unknown","Unknown","Unknown","Unknown","Unknown","Unknown","Unknown","Unknown","Unknown","FL","Unknown","Unknown","Unknown","Unknown","Unknown","Unknown","Unknown","Unknown","Unknown","Unknown","Unknown","Unknown","Unknown","Unknown","Unknown","Unknown","Unknown","Unknown","Unknown","Unknown","Unknown","Unknown","Unknown","Unknown","Unknown","Unknown","Unknown","Unknown","Unknown","Unknown","Unknown","Unknown","Unknown","Unknown","Unknown","Unknown","Unknown","Unknown","Unknown","Unknown","Unknown","Unknown","Unknown","Unknown","Unknown","Unknown","Unknown","Unknown","Unknown","Unknown","Unknown","Unknown","Unknown","Unknown","Unknown","Unknown","Unknown","Unknown","Unknown","Unknown","Unknown","Unknown","FL","Unknown","Unknown","Unknown","Unknown","Unknown","Unknown","Unknown","Unknown","Unknown","Unknown","Unknown","Unknown","Unknown","Unknown","Unknown","Unknown","Unknown","Unknown","Unknown","Unknown","Unknown","Unknown","Unknown","Unknown","Unknown","FL","Unknown","Unknown","Unknown","Unknown","Unknown","Unknown","Unknown","Unknown","Unknown","Unknown"]
[null,"Kosovo","Unknown","Unknown","Unknown","Unknown","Unknown","Unknown","Unknown","Unknown","Unknown","Unknown","Unknown","Unknown","Unknown","Unknown","Unknown","Unknown","Unknown","Unknown","Unknown","Unknown","Unknown","Unknown","Unknown","Unknown","Unknown","Unknown","Unknown","Unknown","Unknown","Unknown","Unknown","Unknown","Unknown","Unknown","Unknown","Unknown","Unknown","Unknown","Unknown","Unknown","Unknown","Unknown","Unknown","Unknown","Unknown","Unknown","Unknown","Unknown","Unknown","Unknown","Unknown","Unknown","Unknown","Unknown","Unknown","Unknown","Unknown","Unknown","Unknown","Unknown","Unknown","Unknown","Unknown","Unknown","Unknown","Unknown","Unknown","Unknown","Unknown","Unknown","Unknown","Unknown","Unknown","Unknown","Unknown","Unknown","Unknown","Unknown","Unknown","Unknown","Unknown","Unknown","Unknown","Unknown","Unknown","Unknown","Unknown","Unknown","Unknown","Unknown","Unknown","Unknown","Unknown","Unknown","Unknown","Unknown","Unknown","Unknown","Unknown","Unknown","Unknown","Unknown","Unknown","Unknown","Unknown","Unknown","Unknown","Unknown","Unknown","Unknown","Unknown","Unknown","Unknown","Unknown","Unknown","Unknown","Unknown","Unknown","Unknown","Unknown","Unknown","Unknown","Unknown","Unknown","Unknown","Unknown","Unknown","Unknown","Unknown","Unknown","Unknown","Unknown","Unknown","Unknown","Unknown","Unknown","Unknown","Unknown","Unknown","Unknown","Unknown","Unknown","Unknown","Unknown","Unknown","Unknown","Unknown","Unknown","Unknown","Unknown","Unknown","Unknown","Unknown","Unknown","Unknown","Unknown","Unknown","Unknown","Unknown","Unknown"]
[null,"Kuwait","Unknown","Unknown","Unknown","Unknown","Unknown","Unknown","Unknown","Unknown","Unknown","Unknown","Unknown","Unknown","Unknown","Unknown","Unknown","Unknown","Unknown","Unknown","Unknown","Unknown","Unknown","Unknown","Unknown","Unknown","Unknown","Unknown","Unknown","Unknown","Unknown","Unknown","Unknown","Unknown","Unknown","Unknown","Unknown","Unknown","Unknown","Unknown","Unknown","Unknown","Unknown","Unknown","Unknown","Unknown","Unknown","Unknown","Unknown","Unknown","Unknown","Unknown","Unknown","Unknown","Unknown","Unknown","Unknown","Unknown","Unknown","Unknown","Unknown","Unknown","Unknown","Unknown","Unknown","Unknown","Unknown","Unknown","Unknown","Unknown","Unknown","Unknown","Unknown","Unknown","Unknown","Unknown","Unknown","Unknown","Unknown","Unknown","Unknown","Unknown","Unknown","Unknown","Unknown","Unknown","Unknown","Unknown","Unknown","Unknown","Unknown","Unknown","Unknown","Unknown","Unknown","Unknown","Unknown","Unknown","Unknown","Unknown","Unknown","Unknown","Unknown","Unknown","Unknown","Unknown","Unknown","Unknown","Unknown","Unknown","Unknown","Unknown","Unknown","Unknown","Unknown","Unknown","Unknown","Unknown","Unknown","Unknown","Unknown","Unknown","Unknown","Unknown","Unknown","Unknown","Unknown","Unknown","Unknown","Unknown","Unknown","Unknown","Unknown","Unknown","Unknown","Unknown","Unknown","Unknown","Unknown","Unknown","Unknown","Unknown","Unknown","Unknown","Unknown","Unknown","Unknown","Unknown","Unknown","Unknown","Unknown","Unknown","Unknown","Unknown","Unknown","Unknown","Unknown","Unknown","Unknown","Unknown","Unknown","Unknown"]
[null,"Kyrgyzstan","Unknown","Unknown","Unknown","Unknown","Unknown","Unknown","Unknown","Unknown","Unknown","Unknown","Unknown","Unknown","Unknown","Unknown","Unknown","Unknown","Unknown","Unknown","Unknown","Unknown","Unknown","Unknown","Unknown","Unknown","Unknown","Unknown","Unknown","Unknown","Unknown","Unknown","Unknown","Unknown","Unknown","Unknown","Unknown","Unknown","Unknown","Unknown","Unknown","Unknown","Unknown","Unknown","Unknown","Unknown","Unknown","CL/FL","Unknown","Unknown","Unknown","Unknown","Unknown","Unknown","Unknown","Unknown","Unknown","Unknown","Unknown","Unknown","CL","Unknown","Unknown","Unknown","Unknown","Unknown","Unknown","Unknown","Unknown","Unknown","Unknown","Unknown","Unknown","Unknown","Unknown","Unknown","Unknown","Unknown","Unknown","Unknown","Unknown","Unknown","Unknown","Unknown","Unknown","Unknown","Unknown","Unknown","Unknown","Unknown","Unknown","Unknown","Unknown","Unknown","Unknown","Unknown","Unknown","Unknown","Unknown","Unknown","Unknown","Unknown","Unknown","Unknown","Unknown","Unknown","Unknown","Unknown","Unknown","Unknown","Unknown","Unknown","Unknown","Unknown","Unknown","Unknown","Unknown","Unknown","Unknown","Unknown","Unknown","Unknown","Unknown","Unknown","Unknown","Unknown","Unknown","Unknown","Unknown","Unknown","Unknown","Unknown","Unknown","Unknown","Unknown","Unknown","Unknown","Unknown","Unknown","Unknown","Unknown","Unknown","Unknown","Unknown","CL","Unknown","Unknown","Unknown","Unknown","Unknown","Unknown","Unknown","Unknown","Unknown","Unknown","Unknown","Unknown","Unknown","Unknown","Unknown","Unknown","Unknown"]
[null,"Lao People's Democratic Republic of","Unknown","Unknown","Unknown","Unknown","Unknown","Unknown","Unknown","Unknown","Unknown","Unknown","Unknown","Unknown","Unknown","Unknown","Unknown","Unknown","Unknown","Unknown","Unknown","Unknown","Unknown","Unknown","Unknown","Unknown","Unknown","Unknown","Unknown","Unknown","Unknown","FL","Unknown","Unknown","Unknown","Unknown","Unknown","Unknown","Unknown","Unknown","Unknown","Unknown","Unknown","Unknown","Unknown","Unknown","Unknown","Unknown","Unknown","Unknown","Unknown","Unknown","Unknown","Unknown","Unknown","Unknown","Unknown","Unknown","Unknown","Unknown","Unknown","Unknown","Unknown","Unknown","Unknown","Unknown","Unknown","Unknown","Unknown","Unknown","Unknown","Unknown","Unknown","Unknown","Unknown","Unknown","Unknown","Unknown","Unknown","Unknown","Unknown","Unknown","Unknown","Unknown","Unknown","Unknown","Unknown","Unknown","Unknown","Unknown","FL","Unknown","Unknown","Unknown","Unknown","Unknown","Unknown","Unknown","Unknown","Unknown","Unknown","Unknown","Unknown","Unknown","Unknown","Unknown","Unknown","Unknown","Unknown","Unknown","Unknown","Unknown","Unknown","Unknown","Unknown","Unknown","Unknown","Unknown","Unknown","Unknown","Unknown","Unknown","Unknown","Unknown","Unknown","Unknown","Unknown","Unknown","Unknown","Unknown","Unknown","Unknown","Unknown","Unknown","Unknown","Unknown","Unknown","Unknown","Unknown","Unknown","Unknown","Unknown","Unknown","Unknown","Unknown","Unknown","Unknown","Unknown","Unknown","Unknown","Unknown","Unknown","Unknown","Unknown","Unknown","Unknown","Unknown","Unknown","Unknown","Unknown","Unknown","Unknown"]
[null,"Latvia","Unknown","Unknown","Unknown","Unknown","Unknown","Unknown","Unknown","Unknown","Unknown","Unknown","Unknown","Unknown","Unknown","Unknown","Unknown","Unknown","Unknown","Unknown","Unknown","Unknown","Unknown","Unknown","Unknown","Unknown","Unknown","Unknown","Unknown","Unknown","Unknown","Unknown","Unknown","Unknown","Unknown","Unknown","Unknown","Unknown","Unknown","Unknown","Unknown","Unknown","Unknown","Unknown","Unknown","Unknown","Unknown","Unknown","Unknown","Unknown","Unknown","Unknown","Unknown","Unknown","Unknown","Unknown","Unknown","Unknown","Unknown","Unknown","Unknown","Unknown","Unknown","Unknown","Unknown","Unknown","Unknown","Unknown","Unknown","Unknown","Unknown","Unknown","Unknown","Unknown","Unknown","Unknown","Unknown","Unknown","Unknown","Unknown","Unknown","Unknown","Unknown","Unknown","Unknown","Unknown","Unknown","Unknown","Unknown","Unknown","Unknown","Unknown","Unknown","Unknown","Unknown","Unknown","Unknown","Unknown","Unknown","Unknown","Unknown","Unknown","Unknown","Unknown","Unknown","Unknown","Unknown","Unknown","Unknown","Unknown","Unknown","Unknown","Unknown","Unknown","Unknown","Unknown","Unknown","Unknown","Unknown","Unknown","Unknown","Unknown","Unknown","Unknown","Unknown","Unknown","Unknown","Unknown","Unknown","Unknown","Unknown","Unknown","Unknown","Unknown","Unknown","Unknown","Unknown","Unknown","Unknown","Unknown","Unknown","Unknown","Unknown","Unknown","Unknown","Unknown","Unknown","Unknown","Unknown","Unknown","Unknown","Unknown","Unknown","Unknown","Unknown","Unknown","Unknown","Unknown","Unknown","Unknown","Unknown","Unknown"]
[null,"Lebanon","Unknown","Unknown","Unknown","Unknown","CL","Unknown","CL","Unknown","Unknown","Unknown","Unknown","Unknown","Unknown","CL","Unknown","Unknown","Unknown","Unknown","Unknown","Unknown","Unknown","Unknown","Unknown","Unknown","Unknown","Unknown","Unknown","Unknown","Unknown","Unknown","Unknown","Unknown","Unknown","Unknown","Unknown","Unknown","Unknown","Unknown","Unknown","Unknown","Unknown","Unknown","Unknown","Unknown","Unknown","Unknown","Unknown","Unknown","Unknown","Unknown","Unknown","Unknown","Unknown","Unknown","Unknown","Unknown","Unknown","Unknown","Unknown","CL","CL/FL","Unknown","Unknown","Unknown","CL","Unknown","Unknown","Unknown","Unknown","Unknown","CL","Unknown","Unknown","Unknown","Unknown","Unknown","Unknown","Unknown","Unknown","Unknown","Unknown","Unknown","Unknown","Unknown","Unknown","Unknown","Unknown","Unknown","Unknown","Unknown","Unknown","Unknown","Unknown","CL","Unknown","Unknown","CL","CL","HR","Unknown","Unknown","Unknown","Unknown","Unknown","Unknown","Unknown","Unknown","Unknown","Unknown","Unknown","CL","CL","Unknown","Unknown","Unknown","Unknown","Unknown","Unknown","Unknown","Unknown","Unknown","Unknown","Unknown","Unknown","Unknown","Unknown","Unknown","Unknown","Unknown","Unknown","Unknown","Unknown","Unknown","Unknown","Unknown","Unknown","Unknown","Unknown","Unknown","Unknown","Unknown","Unknown","CL","Unknown","Unknown","CL","CL","Unknown","Unknown","Unknown","Unknown","Unknown","Unknown","Unknown","HR","CL","CL","CL","Unknown","Unknown"]
[null,"Lesotho","Unknown","Unknown","Unknown","Unknown","Unknown","Unknown","Unknown","Unknown","Unknown","Unknown","Unknown","Unknown","Unknown","Unknown","Unknown","Unknown","Unknown","Unknown","Unknown","Unknown","Unknown","Unknown","Unknown","Unknown","Unknown","Unknown","Unknown","Unknown","Unknown","CL","Unknown","Unknown","Unknown","Unknown","Unknown","Unknown","Unknown","Unknown","Unknown","Unknown","Unknown","Unknown","Unknown","Unknown","Unknown","Unknown","Unknown","Unknown","Unknown","Unknown","Unknown","Unknown","Unknown","Unknown","Unknown","Unknown","Unknown","Unknown","Unknown","Unknown","Unknown","Unknown","Unknown","Unknown","Unknown","Unknown","Unknown","Unknown","Unknown","Unknown","Unknown","Unknown","Unknown","Unknown","Unknown","Unknown","Unknown","Unknown","Unknown","Unknown","Unknown","Unknown","Unknown","Unknown","Unknown","Unknown","Unknown","Unknown","CL","Unknown","Unknown","Unknown","Unknown","Unknown","Unknown","Unknown","Unknown","Unknown","Unknown","Unknown","Unknown","Unknown","Unknown","Unknown","Unknown","Unknown","Unknown","Unknown","Unknown","Unknown","Unknown","Unknown","Unknown","Unknown","Unknown","Unknown","Unknown","Unknown","Unknown","Unknown","Unknown","Unknown","Unknown","Unknown","Unknown","Unknown","Unknown","Unknown","Unknown","Unknown","Unknown","Unknown","Unknown","Unknown","Unknown","Unknown","Unknown","Unknown","Unknown","Unknown","Unknown","Unknown","Unknown","Unknown","Unknown","Unknown","Unknown","Unknown","Unknown","Unknown","Unknown","Unknown","Unknown","Unknown","Unknown","Unknown","Unknown","Unknown","Unknown","Unknown"]
[null,"Liberia","Unknown","Unknown","Unknown","Unknown","Unknown","Unknown","Unknown","Unknown","Unknown","Unknown","Unknown","Unknown","Unknown","Unknown","Unknown","Unknown","CL","Unknown","Unknown","Unknown","Unknown","Unknown","Unknown","Unknown","Unknown","CL","Unknown","CL","Unknown","Unknown","Unknown","Unknown","Unknown","Unknown","Unknown","Unknown","Unknown","Unknown","Unknown","Unknown","Unknown","CL","Unknown","CL","Unknown","Unknown","Unknown","Unknown","Unknown","Unknown","CL","Unknown","Unknown","Unknown","Unknown","Unknown","Unknown","Unknown","Unknown","Unknown","Unknown","Unknown","Unknown","Unknown","Unknown","Unknown","Unknown","Unknown","Unknown","Unknown","Unknown","Unknown","Unknown","Unknown","Unknown","Unknown","Unknown","Unknown","Unknown","Unknown","Unknown","Unknown","Unknown","Unknown","Unknown","Unknown","Unknown","Unknown","Unknown","Unknown","Unknown","Unknown","Unknown","Unknown","Unknown","Unknown","Unknown","Unknown","Unknown","Unknown","Unknown","Unknown","Unknown","Unknown","Unknown","Unknown","Unknown","Unknown","Unknown","Unknown","Unknown","Unknown","Unknown","Unknown","Unknown","Unknown","Unknown","Unknown","Unknown","CL/FL","Unknown","Unknown","Unknown","Unknown","Unknown","Unknown","Unknown","Unknown","Unknown","Unknown","Unknown","Unknown","CL","CL","Unknown","Unknown","Unknown","Unknown","Unknown","Unknown","Unknown","Unknown","Unknown","Unknown","Unknown","Unknown","Unknown","Unknown","Unknown","Unknown","Unknown","Unknown","Unknown","Unknown","Unknown","CL","Unknown","CL","Unknown","Unknown"]
[null,"Libya","Unknown","Unknown","Unknown","Unknown","Unknown","Unknown","Unknown","Unknown","Unknown","Unknown","Unknown","Unknown","Unknown","Unknown","Unknown","Unknown","Unknown","Unknown","Unknown","Unknown","Unknown","Unknown","Unknown","Unknown","Unknown","Unknown","Unknown","Unknown","Unknown","Unknown","Unknown","Unknown","Unknown","Unknown","Unknown","Unknown","Unknown","Unknown","Unknown","Unknown","Unknown","Unknown","Unknown","Unknown","Unknown","Unknown","Unknown","Unknown","Unknown","Unknown","Unknown","Unknown","Unknown","Unknown","Unknown","Unknown","Unknown","Unknown","Unknown","Unknown","Unknown","Unknown","Unknown","Unknown","Unknown","Unknown","Unknown","Unknown","Unknown","Unknown","Unknown","Unknown","Unknown","Unknown","Unknown","Unknown","Unknown","Unknown","Unknown","Unknown","Unknown","Unknown","Unknown","Unknown","Unknown","Unknown","Unknown","Unknown","Unknown","Unknown","Unknown","Unknown","Unknown","Unknown","Unknown","Unknown","Unknown","Unknown","Unknown","Unknown","Unknown","Unknown","Unknown","Unknown","Unknown","Unknown","Unknown","Unknown","Unknown","Unknown","Unknown","Unknown","Unknown","Unknown","Unknown","Unknown","Unknown","Unknown","Unknown","Unknown","Unknown","Unknown","Unknown","Unknown","Unknown","Unknown","Unknown","Unknown","Unknown","Unknown","Unknown","Unknown","Unknown","Unknown","Unknown","Unknown","Unknown","Unknown","Unknown","Unknown","Unknown","Unknown","Unknown","Unknown","Unknown","Unknown","Unknown","Unknown","Unknown","Unknown","Unknown","Unknown","Unknown","Unknown","Unknown","Unknown","Unknown","Unknown","Unknown","Unknown"]
[null,"Liechtenstein","Unknown","Unknown","Unknown","Unknown","Unknown","Unknown","Unknown","Unknown","Unknown","Unknown","Unknown","Unknown","Unknown","Unknown","Unknown","Unknown","Unknown","Unknown","Unknown","Unknown","Unknown","Unknown","Unknown","Unknown","Unknown","Unknown","Unknown","Unknown","Unknown","Unknown","Unknown","Unknown","Unknown","Unknown","Unknown","Unknown","Unknown","Unknown","Unknown","Unknown","Unknown","Unknown","Unknown","Unknown","Unknown","Unknown","Unknown","Unknown","Unknown","Unknown","Unknown","Unknown","Unknown","Unknown","Unknown","Unknown","Unknown","Unknown","Unknown","Unknown","Unknown","Unknown","Unknown","Unknown","Unknown","Unknown","Unknown","Unknown","Unknown","Unknown","Unknown","Unknown","Unknown","Unknown","Unknown","Unknown","Unknown","Unknown","Unknown","Unknown","Unknown","Unknown","Unknown","Unknown","Unknown","Unknown","Unknown","Unknown","Unknown","Unknown","Unknown","Unknown","Unknown","Unknown","Unknown","Unknown","Unknown","Unknown","Unknown","Unknown","Unknown","Unknown","Unknown","Unknown","Unknown","Unknown","Unknown","Unknown","Unknown","Unknown","Unknown","Unknown","Unknown","Unknown","Unknown","Unknown","Unknown","Unknown","Unknown","Unknown","Unknown","Unknown","Unknown","Unknown","Unknown","Unknown","Unknown","Unknown","Unknown","Unknown","Unknown","Unknown","Unknown","Unknown","Unknown","Unknown","Unknown","Unknown","Unknown","Unknown","Unknown","Unknown","Unknown","Unknown","Unknown","Unknown","Unknown","Unknown","Unknown","Unknown","Unknown","Unknown","Unknown","Unknown","Unknown","Unknown","Unknown","Unknown","Unknown","Unknown"]
[null,"Lithuania","Unknown","Unknown","Unknown","Unknown","Unknown","Unknown","Unknown","Unknown","Unknown","Unknown","Unknown","Unknown","Unknown","Unknown","Unknown","Unknown","Unknown","Unknown","Unknown","Unknown","Unknown","Unknown","Unknown","Unknown","Unknown","Unknown","Unknown","Unknown","Unknown","Unknown","Unknown","Unknown","Unknown","Unknown","Unknown","Unknown","Unknown","Unknown","Unknown","Unknown","Unknown","Unknown","Unknown","Unknown","Unknown","Unknown","Unknown","Unknown","Unknown","Unknown","Unknown","Unknown","Unknown","Unknown","Unknown","Unknown","Unknown","Unknown","Unknown","Unknown","Unknown","Unknown","Unknown","Unknown","Unknown","Unknown","Unknown","Unknown","Unknown","Unknown","Unknown","Unknown","Unknown","Unknown","Unknown","Unknown","Unknown","Unknown","Unknown","Unknown","Unknown","Unknown","Unknown","Unknown","Unknown","Unknown","Unknown","Unknown","Unknown","Unknown","Unknown","Unknown","Unknown","Unknown","Unknown","Unknown","Unknown","Unknown","Unknown","Unknown","Unknown","Unknown","Unknown","Unknown","Unknown","Unknown","Unknown","Unknown","Unknown","Unknown","Unknown","Unknown","Unknown","Unknown","Unknown","Unknown","Unknown","Unknown","Unknown","Unknown","Unknown","Unknown","Unknown","Unknown","Unknown","Unknown","Unknown","Unknown","Unknown","Unknown","Unknown","Unknown","Unknown","Unknown","Unknown","Unknown","Unknown","Unknown","Unknown","Unknown","Unknown","Unknown","Unknown","Unknown","Unknown","Unknown","Unknown","Unknown","Unknown","Unknown","Unknown","Unknown","Unknown","Unknown","Unknown","Unknown","Unknown","Unknown","Unknown","Unknown"]
[null,"Luxembourg","Unknown","Unknown","Unknown","Unknown","Unknown","Unknown","Unknown","Unknown","Unknown","Unknown","Unknown","Unknown","Unknown","Unknown","Unknown","Unknown","Unknown","Unknown","Unknown","Unknown","Unknown","Unknown","Unknown","Unknown","Unknown","Unknown","Unknown","Unknown","Unknown","Unknown","Unknown","Unknown","Unknown","Unknown","Unknown","Unknown","Unknown","Unknown","Unknown","Unknown","Unknown","Unknown","Unknown","Unknown","Unknown","Unknown","Unknown","Unknown","Unknown","Unknown","Unknown","Unknown","Unknown","Unknown","Unknown","Unknown","Unknown","Unknown","Unknown","Unknown","Unknown","Unknown","Unknown","Unknown","Unknown","Unknown","Unknown","Unknown","Unknown","Unknown","Unknown","Unknown","Unknown","Unknown","Unknown","Unknown","Unknown","Unknown","Unknown","Unknown","Unknown","Unknown","Unknown","Unknown","Unknown","Unknown","Unknown","Unknown","Unknown","Unknown","Unknown","Unknown","Unknown","Unknown","Unknown","Unknown","Unknown","Unknown","Unknown","Unknown","Unknown","Unknown","Unknown","Unknown","Unknown","Unknown","Unknown","Unknown","Unknown","Unknown","Unknown","Unknown","Unknown","Unknown","Unknown","Unknown","Unknown","Unknown","Unknown","Unknown","Unknown","Unknown","Unknown","Unknown","Unknown","Unknown","Unknown","Unknown","Unknown","Unknown","Unknown","Unknown","Unknown","Unknown","Unknown","Unknown","Unknown","Unknown","Unknown","Unknown","Unknown","Unknown","Unknown","Unknown","Unknown","Unknown","Unknown","Unknown","Unknown","Unknown","Unknown","Unknown","Unknown","Unknown","Unknown","Unknown","Unknown","Unknown","Unknown","Unknown"]
[null,"Macau (China)","Unknown","Unknown","Unknown","Unknown","Unknown","Unknown","Unknown","Unknown","Unknown","Unknown","Unknown","Unknown","Unknown","Unknown","Unknown","Unknown","Unknown","Unknown","Unknown","Unknown","Unknown","Unknown","Unknown","Unknown","Unknown","Unknown","Unknown","Unknown","Unknown","Unknown","Unknown","Unknown","Unknown","Unknown","Unknown","Unknown","Unknown","Unknown","Unknown","Unknown","Unknown","Unknown","Unknown","Unknown","Unknown","Unknown","Unknown","Unknown","Unknown","Unknown","Unknown","Unknown","Unknown","Unknown","Unknown","Unknown","Unknown","Unknown","Unknown","Unknown","Unknown","Unknown","Unknown","Unknown","Unknown","Unknown","Unknown","Unknown","Unknown","Unknown","Unknown","Unknown","Unknown","Unknown","Unknown","Unknown","Unknown","Unknown","Unknown","Unknown","Unknown","Unknown","Unknown","Unknown","Unknown","Unknown","Unknown","Unknown","Unknown","Unknown","Unknown","Unknown","Unknown","Unknown","Unknown","Unknown","Unknown","Unknown","Unknown","Unknown","Unknown","Unknown","Unknown","Unknown","Unknown","Unknown","Unknown","Unknown","Unknown","Unknown","Unknown","Unknown","Unknown","Unknown","Unknown","Unknown","Unknown","Unknown","Unknown","Unknown","Unknown","Unknown","Unknown","Unknown","Unknown","Unknown","Unknown","Unknown","Unknown","Unknown","Unknown","Unknown","Unknown","Unknown","Unknown","Unknown","Unknown","Unknown","Unknown","Unknown","Unknown","Unknown","Unknown","Unknown","Unknown","Unknown","Unknown","Unknown","Unknown","Unknown","Unknown","Unknown","Unknown","Unknown","Unknown","Unknown","Unknown","Unknown","Unknown","Unknown"]
[null,"Macedonia the former Yugoslav Republic of","Unknown","Unknown","Unknown","Unknown","Unknown","Unknown","Unknown","Unknown","Unknown","Unknown","Unknown","Unknown","Unknown","Unknown","Unknown","Unknown","Unknown","Unknown","Unknown","Unknown","Unknown","Unknown","Unknown","Unknown","Unknown","Unknown","Unknown","Unknown","Unknown","Unknown","Unknown","Unknown","Unknown","Unknown","Unknown","Unknown","Unknown","Unknown","Unknown","Unknown","Unknown","Unknown","Unknown","Unknown","Unknown","Unknown","Unknown","Unknown","Unknown","Unknown","Unknown","Unknown","Unknown","Unknown","Unknown","Unknown","Unknown","Unknown","Unknown","Unknown","Unknown","Unknown","Unknown","Unknown","Unknown","Unknown","Unknown","Unknown","Unknown","Unknown","Unknown","Unknown","Unknown","Unknown","Unknown","Unknown","Unknown","Unknown","Unknown","Unknown","Unknown","Unknown","Unknown","Unknown","Unknown","Unknown","Unknown","Unknown","Unknown","Unknown","Unknown","Unknown","Unknown","Unknown","Unknown","Unknown","Unknown","Unknown","Unknown","Unknown","Unknown","Unknown","Unknown","Unknown","Unknown","Unknown","Unknown","Unknown","Unknown","Unknown","Unknown","Unknown","Unknown","Unknown","Unknown","Unknown","Unknown","Unknown","Unknown","Unknown","Unknown","Unknown","Unknown","Unknown","Unknown","Unknown","Unknown","Unknown","Unknown","Unknown","Unknown","Unknown","Unknown","Unknown","Unknown","Unknown","Unknown","Unknown","Unknown","Unknown","Unknown","Unknown","Unknown","Unknown","Unknown","Unknown","Unknown","Unknown","Unknown","Unknown","Unknown","Unknown","Unknown","Unknown","Unknown","Unknown","Unknown","Unknown","Unknown","Unknown"]
[null,"Madagascar","Unknown","Unknown","Unknown","Unknown","Unknown","Unknown","Unknown","Unknown","Unknown","Unknown","Unknown","Unknown","Unknown","Unknown","Unknown","Unknown","Unknown","Unknown","Unknown","Unknown","Unknown","Unknown","Unknown","Unknown","Unknown","Unknown","Unknown","Unknown","Unknown","Unknown","Unknown","Unknown","Unknown","Unknown","Unknown","Unknown","Unknown","Unknown","Unknown","Unknown","Unknown","Unknown","Unknown","Unknown","Unknown","Unknown","Unknown","Unknown","Unknown","Unknown","Unknown","Unknown","Unknown","Unknown","Unknown","Unknown","Unknown","CL","Unknown","Unknown","CL/FL","Unknown","Unknown","Unknown","Unknown","Unknown","Unknown","Unknown","Unknown","Unknown","Unknown","Unknown","Unknown","Unknown","Unknown","Unknown","Unknown","Unknown","Unknown","Unknown","Unknown","Unknown","Unknown","Unknown","Unknown","Unknown","Unknown","Unknown","Unknown","Unknown","Unknown","Unknown","Unknown","Unknown","Unknown","Unknown","Unknown","Unknown","Unknown","Unknown","Unknown","Unknown","Unknown","Unknown","Unknown","Unknown","Unknown","Unknown","Unknown","Unknown","Unknown","Unknown","Unknown","Unknown","Unknown","Unknown","Unknown","Unknown","Unknown","Unknown","Unknown","Unknown","Unknown","CL","Unknown","Unknown","Unknown","CL","Unknown","CL","Unknown","Unknown","CL","Unknown","Unknown","Unknown","Unknown","Unknown","Unknown","Unknown","Unknown","Unknown","Unknown","Unknown","Unknown","Unknown","Unknown","Unknown","Unknown","Unknown","CL","Unknown","Unknown","CL","Unknown","Unknown","Unknown","Unknown","Unknown","Unknown"]
[null,"Malawi","Unknown","Unknown","Unknown","Unknown","Unknown","Unknown","Unknown","Unknown","Unknown","Unknown","Unknown","Unknown","Unknown","Unknown","Unknown","Unknown","CL","Unknown","Unknown","Unknown","Unknown","Unknown","Unknown","Unknown","Unknown","Unknown","Unknown","Unknown","Unknown","CL/FL","Unknown","Unknown","Unknown","Unknown","Unknown","Unknown","Unknown","Unknown","Unknown","Unknown","Unknown","Unknown","Unknown","CL/FL","Unknown","Unknown","Unknown","Unknown","Unknown","Unknown","Unknown","Unknown","Unknown","Unknown","Unknown","Unknown","Unknown","Unknown","Unknown","Unknown","FL","Unknown","Unknown","Unknown","Unknown","Unknown","Unknown","Unknown","Unknown","Unknown","Unknown","Unknown","Unknown","Unknown","Unknown","Unknown","Unknown","Unknown","Unknown","Unknown","Unknown","Unknown","Unknown","Unknown","Unknown","Unknown","Unknown","Unknown","CL/FL","Unknown","Unknown","Unknown","Unknown","Unknown","Unknown","Unknown","Unknown","Unknown","Unknown","Unknown","Unknown","Unknown","Unknown","Unknown","Unknown","Unknown","Unknown","Unknown","Unknown","Unknown","Unknown","Unknown","Unknown","Unknown","Unknown","Unknown","Unknown","Unknown","Unknown","Unknown","Unknown","Unknown","Unknown","Unknown","Unknown","Unknown","Unknown","Unknown","Unknown","Unknown","Unknown","Unknown","Unknown","FL","Unknown","Unknown","Unknown","CL/FL/HR","Unknown","Unknown","Unknown","Unknown","CL/FL","Unknown","Unknown","Unknown","Unknown","Unknown","Unknown","Unknown","Unknown","Unknown","Unknown","Unknown","Unknown","Unknown","Unknown","Unknown","Unknown","Unknown"]
[null,"Malaysia","Unknown","Unknown","Unknown","Unknown","Unknown","Unknown","Unknown","Unknown","Unknown","Unknown","Unknown","Unknown","Unknown","Unknown","Unknown","Unknown","Unknown","Unknown","Unknown","Unknown","Unknown","Unknown","Unknown","Unknown","Unknown","Unknown","Unknown","Unknown","Unknown","Unknown","Unknown","Unknown","Unknown","Unknown","Unknown","Unknown","Unknown","Unknown","Unknown","FL","Unknown","Unknown","HR","Unknown","Unknown","Unknown","Unknown","Unknown","Unknown","Unknown","Unknown","Unknown","Unknown","Unknown","Unknown","Unknown","Unknown","Unknown","Unknown","Unknown","Unknown","Unknown","Unknown","Unknown","Unknown","Unknown","FL","Unknown","Unknown","Unknown","Unknown","Unknown","Unknown","Unknown","Unknown","Unknown","Unknown","Unknown","FL","Unknown","Unknown","Unknown","Unknown","Unknown","Unknown","Unknown","Unknown","Unknown","Unknown","Unknown","Unknown","Unknown","Unknown","Unknown","Unknown","Unknown","HR","Unknown","Unknown","Unknown","Unknown","Unknown","CL/FL","Unknown","Unknown","Unknown","FL","Unknown","Unknown","Unknown","Unknown","Unknown","Unknown","Unknown","Unknown","Unknown","Unknown","Unknown","Unknown","FL","FL","Unknown","Unknown","Unknown","Unknown","Unknown","Unknown","Unknown","Unknown","Unknown","Unknown","Unknown","Unknown","Unknown","Unknown","Unknown","Unknown","Unknown","Unknown","Unknown","Unknown","Unknown","Unknown","Unknown","Unknown","Unknown","Unknown","Unknown","Unknown","Unknown","Unknown","Unknown","Unknown","Unknown","CL/FL","Unknown","Unknown","Unknown","Unknown","Unknown"]
[null,"Maldives","Unknown","Unknown","Unknown","Unknown","Unknown","Unknown","Unknown","Unknown","Unknown","Unknown","Unknown","Unknown","Unknown","Unknown","Unknown","Unknown","Unknown","Unknown","Unknown","Unknown","Unknown","Unknown","Unknown","Unknown","Unknown","Unknown","Unknown","Unknown","Unknown","Unknown","Unknown","Unknown","Unknown","Unknown","Unknown","Unknown","Unknown","Unknown","Unknown","Unknown","Unknown","Unknown","Unknown","Unknown","Unknown","Unknown","Unknown","Unknown","Unknown","Unknown","Unknown","Unknown","Unknown","Unknown","Unknown","Unknown","Unknown","Unknown","Unknown","Unknown","Unknown","Unknown","Unknown","Unknown","Unknown","Unknown","Unknown","Unknown","Unknown","Unknown","Unknown","Unknown","Unknown","Unknown","Unknown","Unknown","Unknown","Unknown","Unknown","Unknown","Unknown","Unknown","Unknown","Unknown","Unknown","Unknown","Unknown","Unknown","Unknown","Unknown","Unknown","Unknown","Unknown","Unknown","Unknown","Unknown","Unknown","Unknown","Unknown","Unknown","Unknown","Unknown","Unknown","Unknown","Unknown","Unknown","Unknown","Unknown","Unknown","Unknown","Unknown","Unknown","Unknown","Unknown","Unknown","Unknown","Unknown","Unknown","Unknown","Unknown","Unknown","Unknown","Unknown","Unknown","Unknown","Unknown","Unknown","Unknown","Unknown","Unknown","Unknown","Unknown","Unknown","Unknown","Unknown","Unknown","Unknown","Unknown","Unknown","Unknown","Unknown","Unknown","Unknown","Unknown","Unknown","Unknown","Unknown","Unknown","Unknown","Unknown","Unknown","Unknown","Unknown","Unknown","Unknown","Unknown","Unknown","Unknown","Unknown","Unknown"]
[null,"Mali","Unknown","Unknown","Unknown","Unknown","Unknown","Unknown","Unknown","Unknown","Unknown","Unknown","Unknown","Unknown","Unknown","Unknown","Unknown","Unknown","Unknown","Unknown","Unknown","Unknown","Unknown","Unknown","Unknown","Unknown","Unknown","Unknown","Unknown","Unknown","Unknown","Unknown","CL/FL","Unknown","Unknown","Unknown","Unknown","Unknown","Unknown","Unknown","Unknown","Unknown","Unknown","Unknown","Unknown","Unknown","CL/FL","CL","Unknown","Unknown","Unknown","Unknown","Unknown","Unknown","Unknown","Unknown","Unknown","Unknown","Unknown","Unknown","CL","Unknown","Unknown","Unknown","Unknown","Unknown","Unknown","Unknown","Unknown","Unknown","Unknown","Unknown","Unknown","Unknown","Unknown","Unknown","Unknown","Unknown","Unknown","Unknown","Unknown","Unknown","Unknown","Unknown","Unknown","Unknown","Unknown","Unknown","Unknown","Unknown","Unknown","Unknown","Unknown","Unknown","Unknown","Unknown","Unknown","Unknown","Unknown","Unknown","Unknown","Unknown","Unknown","Unknown","Unknown","Unknown","Unknown","Unknown","Unknown","Unknown","Unknown","Unknown","Unknown","Unknown","Unknown","Unknown","Unknown","Unknown","Unknown","Unknown","CL/FL","Unknown","Unknown","Unknown","Unknown","CL/FL","Unknown","Unknown","Unknown","Unknown","Unknown","Unknown","Unknown","Unknown","CL","Unknown","Unknown","Unknown","Unknown","Unknown","Unknown","Unknown","Unknown","Unknown","Unknown","Unknown","Unknown","Unknown","Unknown","Unknown","Unknown","Unknown","Unknown","Unknown","Unknown","Unknown","Unknown","Unknown","Unknown","Unknown","Unknown","Unknown"]
[null,"Malta","Unknown","Unknown","Unknown","Unknown","Unknown","Unknown","Unknown","Unknown","Unknown","Unknown","Unknown","Unknown","Unknown","Unknown","Unknown","Unknown","Unknown","Unknown","Unknown","Unknown","Unknown","Unknown","Unknown","Unknown","Unknown","Unknown","Unknown","Unknown","Unknown","Unknown","Unknown","Unknown","Unknown","Unknown","Unknown","Unknown","Unknown","Unknown","Unknown","Unknown","Unknown","Unknown","Unknown","Unknown","Unknown","Unknown","Unknown","Unknown","Unknown","Unknown","Unknown","Unknown","Unknown","Unknown","Unknown","Unknown","Unknown","Unknown","Unknown","Unknown","Unknown","Unknown","Unknown","Unknown","Unknown","Unknown","Unknown","Unknown","Unknown","Unknown","Unknown","Unknown","Unknown","Unknown","Unknown","Unknown","Unknown","Unknown","Unknown","Unknown","Unknown","Unknown","Unknown","Unknown","Unknown","Unknown","Unknown","Unknown","Unknown","Unknown","Unknown","Unknown","Unknown","Unknown","Unknown","Unknown","Unknown","Unknown","Unknown","Unknown","Unknown","Unknown","Unknown","Unknown","Unknown","Unknown","Unknown","Unknown","Unknown","Unknown","Unknown","Unknown","Unknown","Unknown","Unknown","Unknown","Unknown","Unknown","Unknown","Unknown","Unknown","Unknown","Unknown","Unknown","Unknown","Unknown","Unknown","Unknown","Unknown","Unknown","Unknown","Unknown","Unknown","Unknown","Unknown","Unknown","Unknown","Unknown","Unknown","Unknown","Unknown","Unknown","Unknown","Unknown","Unknown","Unknown","Unknown","Unknown","Unknown","Unknown","Unknown","Unknown","Unknown","Unknown","Unknown","Unknown","Unknown","Unknown","Unknown","Unknown"]
[null,"Marshall Islands","Unknown","Unknown","Unknown","Unknown","Unknown","Unknown","Unknown","Unknown","Unknown","Unknown","Unknown","Unknown","Unknown","Unknown","Unknown","Unknown","Unknown","Unknown","Unknown","Unknown","Unknown","Unknown","Unknown","Unknown","Unknown","Unknown","Unknown","Unknown","Unknown","Unknown","Unknown","Unknown","Unknown","Unknown","Unknown","Unknown","Unknown","Unknown","Unknown","Unknown","Unknown","Unknown","Unknown","Unknown","Unknown","Unknown","Unknown","Unknown","Unknown","Unknown","Unknown","Unknown","Unknown","Unknown","Unknown","Unknown","Unknown","Unknown","Unknown","Unknown","Unknown","Unknown","Unknown","Unknown","Unknown","Unknown","Unknown","Unknown","Unknown","Unknown","Unknown","Unknown","Unknown","Unknown","Unknown","Unknown","Unknown","Unknown","Unknown","Unknown","Unknown","Unknown","Unknown","Unknown","Unknown","Unknown","Unknown","Unknown","Unknown","Unknown","Unknown","Unknown","Unknown","Unknown","Unknown","Unknown","Unknown","Unknown","Unknown","Unknown","Unknown","Unknown","Unknown","Unknown","Unknown","Unknown","Unknown","Unknown","Unknown","Unknown","Unknown","Unknown","Unknown","Unknown","Unknown","Unknown","Unknown","Unknown","Unknown","Unknown","Unknown","Unknown","Unknown","Unknown","Unknown","Unknown","Unknown","Unknown","Unknown","Unknown","Unknown","Unknown","Unknown","Unknown","Unknown","Unknown","Unknown","Unknown","Unknown","Unknown","Unknown","Unknown","Unknown","Unknown","Unknown","Unknown","Unknown","Unknown","Unknown","Unknown","Unknown","Unknown","Unknown","Unknown","Unknown","Unknown","Unknown","Unknown","Unknown","Unknown"]
[null,"Mauritania","Unknown","Unknown","Unknown","Unknown","Unknown","Unknown","Unknown","Unknown","Unknown","Unknown","Unknown","Unknown","Unknown","Unknown","Unknown","Unknown","Unknown","Unknown","Unknown","Unknown","Unknown","Unknown","Unknown","Unknown","Unknown","Unknown","Unknown","Unknown","Unknown","CL","Unknown","Unknown","Unknown","Unknown","Unknown","Unknown","Unknown","Unknown","Unknown","Unknown","Unknown","Unknown","Unknown","Unknown","Unknown","Unknown","Unknown","Unknown","Unknown","Unknown","Unknown","Unknown","Unknown","Unknown","Unknown","Unknown","Unknown","Unknown","Unknown","Unknown","CL","Unknown","Unknown","Unknown","Unknown","Unknown","Unknown","CL","Unknown","Unknown","Unknown","Unknown","Unknown","Unknown","Unknown","Unknown","Unknown","Unknown","Unknown","Unknown","Unknown","Unknown","Unknown","Unknown","Unknown","Unknown","Unknown","Unknown","CL","Unknown","Unknown","Unknown","Unknown","Unknown","Unknown","Unknown","Unknown","Unknown","Unknown","Unknown","Unknown","Unknown","Unknown","Unknown","Unknown","Unknown","Unknown","Unknown","Unknown","Unknown","Unknown","Unknown","Unknown","Unknown","Unknown","Unknown","Unknown","Unknown","Unknown","Unknown","Unknown","Unknown","Unknown","Unknown","Unknown","Unknown","Unknown","Unknown","Unknown","Unknown","Unknown","Unknown","Unknown","Unknown","Unknown","Unknown","Unknown","Unknown","Unknown","Unknown","Unknown","Unknown","Unknown","Unknown","Unknown","Unknown","Unknown","Unknown","Unknown","Unknown","Unknown","Unknown","Unknown","Unknown","Unknown","Unknown","Unknown","Unknown","Unknown","Unknown"]
[null,"Mauritius","Unknown","Unknown","Unknown","Unknown","Unknown","Unknown","Unknown","Unknown","Unknown","Unknown","Unknown","Unknown","Unknown","Unknown","Unknown","Unknown","Unknown","Unknown","Unknown","Unknown","Unknown","Unknown","Unknown","Unknown","Unknown","Unknown","Unknown","Unknown","Unknown","Unknown","Unknown","Unknown","Unknown","Unknown","Unknown","Unknown","Unknown","Unknown","Unknown","Unknown","Unknown","Unknown","Unknown","Unknown","Unknown","Unknown","Unknown","Unknown","Unknown","Unknown","Unknown","Unknown","Unknown","Unknown","Unknown","Unknown","Unknown","Unknown","Unknown","Unknown","CL/FL","Unknown","Unknown","Unknown","Unknown","Unknown","Unknown","Unknown","Unknown","Unknown","Unknown","Unknown","Unknown","Unknown","Unknown","Unknown","Unknown","Unknown","Unknown","Unknown","Unknown","Unknown","Unknown","Unknown","Unknown","Unknown","Unknown","Unknown","Unknown","Unknown","Unknown","Unknown","Unknown","Unknown","Unknown","Unknown","Unknown","Unknown","Unknown","Unknown","Unknown","Unknown","Unknown","Unknown","Unknown","Unknown","Unknown","Unknown","Unknown","Unknown","Unknown","Unknown","Unknown","Unknown","Unknown","Unknown","Unknown","Unknown","Unknown","Unknown","Unknown","Unknown","Unknown","Unknown","Unknown","Unknown","Unknown","Unknown","Unknown","Unknown","Unknown","Unknown","Unknown","Unknown","Unknown","Unknown","Unknown","Unknown","Unknown","Unknown","Unknown","Unknown","Unknown","Unknown","Unknown","Unknown","Unknown","Unknown","Unknown","Unknown","Unknown","Unknown","Unknown","Unknown","Unknown","Unknown","Unknown","Unknown","Unknown","Unknown"]
[null,"Mexico","Unknown","Unknown","Unknown","Unknown","Unknown","Unknown","CL","Unknown","Unknown","Unknown","Unknown","Unknown","Unknown","CL","Unknown","Unknown","CL/FL/HR","Unknown","HR","Unknown","Unknown","Unknown","Unknown","Unknown","Unknown","CL/HR","Unknown","Unknown","Unknown","CL","Unknown","Unknown","Unknown","Unknown","Unknown","Unknown","Unknown","CL/FL","HR","FL","Unknown","Unknown","HR","CL/HR","Unknown","Unknown","Unknown","Unknown","Unknown","CL","Unknown","Unknown","Unknown","Unknown","Unknown","Unknown","Unknown","Unknown","Unknown","Unknown","Unknown","Unknown","Unknown","Unknown","CL","Unknown","CL","Unknown","Unknown","Unknown","HR","HR","CL","Unknown","Unknown","Unknown","Unknown","Unknown","Unknown","Unknown","Unknown","HR","HR","Unknown","Unknown","Unknown","Unknown","HR","CL","CL","Unknown","Unknown","Unknown","Unknown","Unknown","Unknown","HR","Unknown","Unknown","CL/HR","Unknown","Unknown","Unknown","Unknown","Unknown","Unknown","Unknown","Unknown","Unknown","Unknown","Unknown","HR","CL","Unknown","Unknown","HR","Unknown","Unknown","Unknown","Unknown","Unknown","Unknown","HR","Unknown","Unknown","Unknown","Unknown","Unknown","Unknown","CL/FL","HR","HR","Unknown","CL","Unknown","Unknown","Unknown","Unknown","Unknown","Unknown","Unknown","Unknown","CL","CL/FL","Unknown","Unknown","CL","Unknown","Unknown","Unknown","Unknown","Unknown","Unknown","Unknown","Unknown","CL","CL/FL/HR","CL/FL/HR","Unknown","Unknown"]
[null,"Micronesia (Federated States of)","Unknown","Unknown","Unknown","Unknown","Unknown","Unknown","Unknown","Unknown","Unknown","Unknown","Unknown","Unknown","Unknown","Unknown","Unknown","Unknown","Unknown","Unknown","Unknown","Unknown","Unknown","Unknown","Unknown","Unknown","Unknown","Unknown","Unknown","Unknown","Unknown","Unknown","Unknown","Unknown","Unknown","Unknown","Unknown","Unknown","Unknown","Unknown","Unknown","Unknown","Unknown","Unknown","Unknown","Unknown","Unknown","Unknown","Unknown","Unknown","Unknown","Unknown","Unknown","Unknown","Unknown","Unknown","Unknown","Unknown","Unknown","Unknown","Unknown","Unknown","FL","Unknown","Unknown","Unknown","Unknown","Unknown","Unknown","Unknown","Unknown","Unknown","Unknown","Unknown","Unknown","Unknown","Unknown","Unknown","Unknown","Unknown","Unknown","Unknown","Unknown","Unknown","Unknown","Unknown","Unknown","Unknown","Unknown","Unknown","Unknown","Unknown","Unknown","Unknown","Unknown","Unknown","Unknown","Unknown","Unknown","Unknown","Unknown","Unknown","Unknown","Unknown","Unknown","Unknown","Unknown","Unknown","Unknown","Unknown","Unknown","Unknown","Unknown","Unknown","Unknown","Unknown","Unknown","Unknown","Unknown","Unknown","Unknown","Unknown","Unknown","Unknown","Unknown","Unknown","Unknown","Unknown","Unknown","Unknown","Unknown","Unknown","Unknown","Unknown","Unknown","Unknown","Unknown","Unknown","Unknown","Unknown","Unknown","Unknown","Unknown","Unknown","Unknown","Unknown","Unknown","Unknown","Unknown","Unknown","Unknown","Unknown","Unknown","Unknown","Unknown","Unknown","Unknown","Unknown","Unknown","Unknown","Unknown","Unknown"]
[null,"Moldova Republic of","Unknown","Unknown","Unknown","Unknown","Unknown","Unknown","Unknown","Unknown","Unknown","Unknown","Unknown","Unknown","Unknown","Unknown","Unknown","Unknown","Unknown","Unknown","Unknown","Unknown","Unknown","Unknown","Unknown","Unknown","Unknown","Unknown","Unknown","Unknown","Unknown","Unknown","Unknown","Unknown","Unknown","Unknown","Unknown","Unknown","Unknown","Unknown","Unknown","Unknown","Unknown","Unknown","Unknown","Unknown","Unknown","Unknown","Unknown","Unknown","Unknown","Unknown","Unknown","Unknown","Unknown","Unknown","Unknown","Unknown","Unknown","Unknown","Unknown","Unknown","Unknown","Unknown","Unknown","Unknown","Unknown","Unknown","Unknown","Unknown","Unknown","Unknown","Unknown","Unknown","Unknown","Unknown","Unknown","Unknown","Unknown","Unknown","Unknown","Unknown","Unknown","Unknown","Unknown","Unknown","Unknown","Unknown","Unknown","Unknown","Unknown","Unknown","Unknown","Unknown","Unknown","Unknown","Unknown","Unknown","Unknown","Unknown","Unknown","Unknown","Unknown","Unknown","Unknown","Unknown","Unknown","Unknown","Unknown","Unknown","Unknown","Unknown","Unknown","Unknown","Unknown","Unknown","Unknown","Unknown","Unknown","Unknown","Unknown","Unknown","Unknown","Unknown","Unknown","Unknown","Unknown","Unknown","Unknown","Unknown","Unknown","Unknown","Unknown","Unknown","Unknown","Unknown","Unknown","Unknown","Unknown","Unknown","Unknown","Unknown","Unknown","Unknown","Unknown","Unknown","Unknown","Unknown","Unknown","Unknown","Unknown","Unknown","Unknown","Unknown","Unknown","Unknown","Unknown","Unknown","Unknown","Unknown","Unknown","Unknown"]
[null,"Monaco","Unknown","Unknown","Unknown","Unknown","Unknown","Unknown","Unknown","Unknown","Unknown","Unknown","Unknown","Unknown","Unknown","Unknown","Unknown","Unknown","Unknown","Unknown","Unknown","Unknown","Unknown","Unknown","Unknown","Unknown","Unknown","Unknown","Unknown","Unknown","Unknown","Unknown","Unknown","Unknown","Unknown","Unknown","Unknown","Unknown","Unknown","Unknown","Unknown","Unknown","Unknown","Unknown","Unknown","Unknown","Unknown","Unknown","Unknown","Unknown","Unknown","Unknown","Unknown","Unknown","Unknown","Unknown","Unknown","Unknown","Unknown","Unknown","Unknown","Unknown","Unknown","Unknown","Unknown","Unknown","Unknown","Unknown","Unknown","Unknown","Unknown","Unknown","Unknown","Unknown","Unknown","Unknown","Unknown","Unknown","Unknown","Unknown","Unknown","Unknown","Unknown","Unknown","Unknown","Unknown","Unknown","Unknown","Unknown","Unknown","Unknown","Unknown","Unknown","Unknown","Unknown","Unknown","Unknown","Unknown","Unknown","Unknown","Unknown","Unknown","Unknown","Unknown","Unknown","Unknown","Unknown","Unknown","Unknown","Unknown","Unknown","Unknown","Unknown","Unknown","Unknown","Unknown","Unknown","Unknown","Unknown","Unknown","Unknown","Unknown","Unknown","Unknown","Unknown","Unknown","Unknown","Unknown","Unknown","Unknown","Unknown","Unknown","Unknown","Unknown","Unknown","Unknown","Unknown","Unknown","Unknown","Unknown","Unknown","Unknown","Unknown","Unknown","Unknown","Unknown","Unknown","Unknown","Unknown","Unknown","Unknown","Unknown","Unknown","Unknown","Unknown","Unknown","Unknown","Unknown","Unknown","Unknown","Unknown","Unknown"]
[null,"Mongolia","Unknown","Unknown","Unknown","Unknown","Unknown","Unknown","Unknown","Unknown","Unknown","Unknown","Unknown","Unknown","Unknown","Unknown","Unknown","Unknown","Unknown","Unknown","Unknown","Unknown","Unknown","Unknown","Unknown","Unknown","Unknown","Unknown","Unknown","Unknown","Unknown","Unknown","Unknown","Unknown","Unknown","Unknown","Unknown","Unknown","Unknown","Unknown","Unknown","Unknown","Unknown","Unknown","Unknown","Unknown","Unknown","Unknown","Unknown","Unknown","Unknown","Unknown","Unknown","Unknown","Unknown","Unknown","Unknown","Unknown","Unknown","Unknown","Unknown","Unknown","FL","Unknown","Unknown","Unknown","Unknown","Unknown","Unknown","Unknown","Unknown","Unknown","Unknown","Unknown","Unknown","Unknown","Unknown","Unknown","Unknown","Unknown","Unknown","Unknown","Unknown","Unknown","Unknown","Unknown","Unknown","Unknown","Unknown","Unknown","Unknown","Unknown","Unknown","Unknown","Unknown","Unknown","Unknown","Unknown","Unknown","Unknown","Unknown","Unknown","Unknown","Unknown","Unknown","Unknown","Unknown","Unknown","Unknown","Unknown","Unknown","Unknown","Unknown","Unknown","Unknown","Unknown","Unknown","Unknown","Unknown","Unknown","Unknown","Unknown","Unknown","Unknown","Unknown","Unknown","Unknown","Unknown","Unknown","Unknown","Unknown","Unknown","Unknown","Unknown","CL","Unknown","Unknown","Unknown","Unknown","Unknown","Unknown","Unknown","Unknown","Unknown","Unknown","Unknown","Unknown","Unknown","Unknown","Unknown","Unknown","Unknown","Unknown","Unknown","Unknown","Unknown","Unknown","Unknown","Unknown","Unknown","Unknown","Unknown"]
[null,"Montenegro","Unknown","Unknown","Unknown","Unknown","Unknown","Unknown","Unknown","Unknown","Unknown","Unknown","Unknown","Unknown","Unknown","Unknown","Unknown","Unknown","Unknown","Unknown","Unknown","Unknown","Unknown","Unknown","Unknown","Unknown","Unknown","Unknown","Unknown","Unknown","Unknown","Unknown","Unknown","Unknown","Unknown","Unknown","Unknown","Unknown","Unknown","Unknown","Unknown","Unknown","Unknown","Unknown","Unknown","Unknown","Unknown","Unknown","Unknown","Unknown","Unknown","Unknown","Unknown","Unknown","Unknown","Unknown","Unknown","Unknown","Unknown","Unknown","Unknown","Unknown","Unknown","Unknown","Unknown","Unknown","Unknown","Unknown","Unknown","Unknown","Unknown","Unknown","Unknown","Unknown","Unknown","Unknown","Unknown","Unknown","Unknown","Unknown","Unknown","Unknown","Unknown","Unknown","Unknown","Unknown","Unknown","Unknown","Unknown","Unknown","Unknown","Unknown","Unknown","Unknown","Unknown","Unknown","Unknown","Unknown","Unknown","Unknown","Unknown","Unknown","Unknown","Unknown","Unknown","Unknown","Unknown","Unknown","Unknown","Unknown","Unknown","Unknown","Unknown","Unknown","Unknown","Unknown","Unknown","Unknown","Unknown","Unknown","Unknown","Unknown","Unknown","Unknown","Unknown","Unknown","Unknown","Unknown","Unknown","Unknown","Unknown","Unknown","Unknown","Unknown","Unknown","Unknown","Unknown","Unknown","Unknown","Unknown","Unknown","Unknown","Unknown","Unknown","Unknown","Unknown","Unknown","Unknown","Unknown","Unknown","Unknown","Unknown","Unknown","Unknown","Unknown","Unknown","Unknown","Unknown","Unknown","Unknown","Unknown","Unknown"]
[null,"Morocco","Unknown","Unknown","Unknown","Unknown","Unknown","Unknown","Unknown","Unknown","Unknown","Unknown","Unknown","Unknown","Unknown","Unknown","Unknown","Unknown","Unknown","Unknown","HR","Unknown","Unknown","Unknown","Unknown","Unknown","Unknown","Unknown","Unknown","Unknown","Unknown","CL","CL","Unknown","Unknown","Unknown","Unknown","Unknown","Unknown","Unknown","HR","CL","Unknown","Unknown","Unknown","Unknown","Unknown","Unknown","Unknown","Unknown","Unknown","Unknown","Unknown","Unknown","Unknown","Unknown","Unknown","Unknown","Unknown","Unknown","Unknown","Unknown","CL","Unknown","Unknown","Unknown","CL","Unknown","Unknown","Unknown","Unknown","CL","Unknown","Unknown","Unknown","Unknown","Unknown","Unknown","Unknown","Unknown","Unknown","Unknown","Unknown","Unknown","Unknown","Unknown","Unknown","Unknown","Unknown","Unknown","Unknown","Unknown","Unknown","Unknown","Unknown","Unknown","Unknown","Unknown","CL","CL","Unknown","Unknown","HR","Unknown","Unknown","Unknown","Unknown","Unknown","Unknown","Unknown","Unknown","Unknown","Unknown","Unknown","Unknown","Unknown","Unknown","Unknown","Unknown","Unknown","Unknown","Unknown","Unknown","Unknown","Unknown","Unknown","Unknown","Unknown","Unknown","Unknown","Unknown","Unknown","Unknown","HR","Unknown","Unknown","Unknown","Unknown","Unknown","Unknown","CL","Unknown","Unknown","Unknown","Unknown","HR","Unknown","Unknown","Unknown","Unknown","Unknown","Unknown","Unknown","Unknown","Unknown","Unknown","Unknown","Unknown","Unknown","CL","Unknown","Unknown"]
[null,"Mozambique","Unknown","Unknown","Unknown","Unknown","Unknown","Unknown","Unknown","Unknown","Unknown","Unknown","Unknown","Unknown","Unknown","Unknown","Unknown","Unknown","Unknown","Unknown","Unknown","Unknown","Unknown","Unknown","Unknown","Unknown","Unknown","Unknown","Unknown","Unknown","CL","CL","Unknown","Unknown","Unknown","Unknown","Unknown","Unknown","Unknown","Unknown","Unknown","Unknown","Unknown","Unknown","CL","Unknown","Unknown","CL","Unknown","Unknown","Unknown","Unknown","Unknown","Unknown","Unknown","Unknown","Unknown","Unknown","Unknown","Unknown","CL","Unknown","CL","Unknown","Unknown","Unknown","CL","Unknown","Unknown","Unknown","Unknown","Unknown","Unknown","Unknown","Unknown","Unknown","Unknown","Unknown","Unknown","Unknown","Unknown","Unknown","Unknown","Unknown","Unknown","Unknown","Unknown","Unknown","Unknown","Unknown","Unknown","Unknown","Unknown","Unknown","Unknown","Unknown","Unknown","Unknown","CL","Unknown","Unknown","Unknown","Unknown","Unknown","Unknown","Unknown","Unknown","Unknown","Unknown","Unknown","Unknown","Unknown","Unknown","Unknown","Unknown","Unknown","Unknown","Unknown","Unknown","Unknown","Unknown","Unknown","Unknown","Unknown","Unknown","Unknown","Unknown","CL","CL","Unknown","Unknown","Unknown","Unknown","Unknown","CL","CL","Unknown","Unknown","Unknown","CL","Unknown","Unknown","Unknown","Unknown","CL","CL","Unknown","Unknown","Unknown","Unknown","Unknown","Unknown","Unknown","Unknown","Unknown","Unknown","Unknown","Unknown","Unknown","Unknown","Unknown","Unknown"]
[null,"Myanmar","Unknown","Unknown","Unknown","Unknown","Unknown","Unknown","Unknown","Unknown","Unknown","CL/FL","Unknown","Unknown","Unknown","CL/FL","Unknown","Unknown","Unknown","Unknown","FL","Unknown","Unknown","Unknown","Unknown","Unknown","Unknown","CL/FL","Unknown","Unknown","Unknown","Unknown","Unknown","Unknown","Unknown","Unknown","Unknown","Unknown","Unknown","Unknown","Unknown","CL","Unknown","Unknown","Unknown","Unknown","Unknown","Unknown","Unknown","Unknown","Unknown","Unknown","Unknown","Unknown","Unknown","Unknown","Unknown","Unknown","Unknown","FL","Unknown","Unknown","CL","FL","Unknown","Unknown","FL","Unknown","CL","Unknown","Unknown","Unknown","Unknown","Unknown","CL/FL","Unknown","Unknown","Unknown","Unknown","Unknown","Unknown","Unknown","Unknown","Unknown","Unknown","Unknown","Unknown","Unknown","Unknown","Unknown","Unknown","Unknown","Unknown","Unknown","Unknown","Unknown","Unknown","Unknown","Unknown","Unknown","Unknown","Unknown","Unknown","Unknown","CL/FL","Unknown","Unknown","Unknown","Unknown","Unknown","Unknown","Unknown","Unknown","Unknown","Unknown","Unknown","Unknown","Unknown","Unknown","Unknown","CL/FL/HR","CL/FL","Unknown","Unknown","Unknown","Unknown","Unknown","FL","FL","FL","CL/FL","Unknown","Unknown","FL","CL","CL/FL","FL","Unknown","Unknown","Unknown","Unknown","Unknown","Unknown","Unknown","Unknown","Unknown","Unknown","Unknown","Unknown","Unknown","Unknown","Unknown","FL","Unknown","Unknown","Unknown","CL/FL","Unknown","CL/FL","CL/FL","Unknown","CL/FL"]
[null,"Namibia","Unknown","Unknown","Unknown","Unknown","Unknown","Unknown","Unknown","Unknown","Unknown","Unknown","Unknown","Unknown","Unknown","Unknown","Unknown","Unknown","Unknown","Unknown","Unknown","Unknown","Unknown","Unknown","Unknown","Unknown","Unknown","Unknown","Unknown","Unknown","Unknown","CL/FL","Unknown","Unknown","Unknown","Unknown","Unknown","Unknown","Unknown","Unknown","Unknown","Unknown","Unknown","Unknown","Unknown","Unknown","Unknown","Unknown","Unknown","Unknown","Unknown","Unknown","Unknown","Unknown","Unknown","Unknown","Unknown","Unknown","Unknown","Unknown","Unknown","Unknown","CL/FL","Unknown","Unknown","Unknown","Unknown","Unknown","Unknown","Unknown","Unknown","Unknown","Unknown","Unknown","Unknown","Unknown","Unknown","Unknown","Unknown","Unknown","Unknown","Unknown","Unknown","Unknown","Unknown","Unknown","Unknown","Unknown","Unknown","Unknown","Unknown","Unknown","Unknown","Unknown","Unknown","Unknown","Unknown","Unknown","Unknown","Unknown","Unknown","Unknown","Unknown","Unknown","Unknown","Unknown","Unknown","Unknown","Unknown","Unknown","Unknown","Unknown","Unknown","Unknown","Unknown","Unknown","Unknown","Unknown","Unknown","Unknown","Unknown","Unknown","Unknown","Unknown","Unknown","Unknown","Unknown","Unknown","Unknown","Unknown","Unknown","Unknown","Unknown","Unknown","Unknown","Unknown","Unknown","Unknown","Unknown","Unknown","Unknown","Unknown","Unknown","Unknown","Unknown","Unknown","Unknown","Unknown","Unknown","Unknown","Unknown","Unknown","Unknown","Unknown","Unknown","Unknown","Unknown","Unknown","Unknown","Unknown","Unknown","Unknown"]
[null,"Nauru","Unknown","Unknown","Unknown","Unknown","Unknown","Unknown","Unknown","Unknown","Unknown","Unknown","Unknown","Unknown","Unknown","Unknown","Unknown","Unknown","Unknown","Unknown","Unknown","Unknown","Unknown","Unknown","Unknown","Unknown","Unknown","Unknown","Unknown","Unknown","Unknown","Unknown","Unknown","Unknown","Unknown","Unknown","Unknown","Unknown","Unknown","Unknown","Unknown","Unknown","Unknown","Unknown","Unknown","Unknown","Unknown","Unknown","Unknown","Unknown","Unknown","Unknown","Unknown","Unknown","Unknown","Unknown","Unknown","Unknown","Unknown","Unknown","Unknown","Unknown","Unknown","Unknown","Unknown","Unknown","Unknown","Unknown","Unknown","Unknown","Unknown","Unknown","Unknown","Unknown","Unknown","Unknown","Unknown","Unknown","Unknown","Unknown","Unknown","Unknown","Unknown","Unknown","Unknown","Unknown","Unknown","Unknown","Unknown","Unknown","Unknown","Unknown","Unknown","Unknown","Unknown","Unknown","Unknown","Unknown","Unknown","Unknown","Unknown","Unknown","Unknown","Unknown","Unknown","Unknown","Unknown","Unknown","Unknown","Unknown","Unknown","Unknown","Unknown","Unknown","Unknown","Unknown","Unknown","Unknown","Unknown","Unknown","Unknown","Unknown","Unknown","Unknown","Unknown","Unknown","Unknown","Unknown","Unknown","Unknown","Unknown","Unknown","Unknown","Unknown","Unknown","Unknown","Unknown","Unknown","Unknown","Unknown","Unknown","Unknown","Unknown","Unknown","Unknown","Unknown","Unknown","Unknown","Unknown","Unknown","Unknown","Unknown","Unknown","Unknown","Unknown","Unknown","Unknown","Unknown","Unknown","Unknown","Unknown","Unknown"]
[null,"Nepal","Unknown","Unknown","Unknown","Unknown","Unknown","Unknown","Unknown","Unknown","Unknown","Unknown","Unknown","Unknown","Unknown","Unknown","Unknown","Unknown","Unknown","Unknown","Unknown","Unknown","Unknown","Unknown","Unknown","Unknown","Unknown","Unknown","Unknown","Unknown","Unknown","CL","Unknown","Unknown","Unknown","Unknown","Unknown","Unknown","Unknown","Unknown","Unknown","CL/FL","Unknown","Unknown","Unknown","Unknown","Unknown","Unknown","Unknown","Unknown","Unknown","Unknown","Unknown","Unknown","Unknown","Unknown","Unknown","Unknown","Unknown","Unknown","Unknown","Unknown","Unknown","Unknown","Unknown","Unknown","Unknown","Unknown","Unknown","Unknown","Unknown","Unknown","Unknown","Unknown","Unknown","Unknown","Unknown","Unknown","Unknown","Unknown","Unknown","Unknown","Unknown","Unknown","Unknown","Unknown","Unknown","Unknown","Unknown","Unknown","Unknown","Unknown","Unknown","Unknown","Unknown","Unknown","Unknown","Unknown","Unknown","Unknown","Unknown","Unknown","Unknown","Unknown","Unknown","Unknown","Unknown","Unknown","Unknown","Unknown","Unknown","Unknown","Unknown","Unknown","Unknown","Unknown","Unknown","Unknown","Unknown","CL","Unknown","Unknown","Unknown","Unknown","Unknown","Unknown","Unknown","Unknown","Unknown","Unknown","Unknown","Unknown","Unknown","Unknown","CL/FL","Unknown","Unknown","Unknown","Unknown","Unknown","CL/FL","Unknown","Unknown","Unknown","Unknown","Unknown","Unknown","Unknown","Unknown","Unknown","Unknown","Unknown","Unknown","Unknown","Unknown","Unknown","Unknown","Unknown","Unknown","Unknown","Unknown","Unknown"]
[null,"Netherlands","Unknown","Unknown","Unknown","Unknown","Unknown","Unknown","Unknown","Unknown","Unknown","Unknown","Unknown","Unknown","Unknown","Unknown","Unknown","Unknown","Unknown","Unknown","Unknown","Unknown","Unknown","Unknown","Unknown","Unknown","Unknown","Unknown","Unknown","Unknown","Unknown","Unknown","Unknown","Unknown","Unknown","Unknown","Unknown","Unknown","Unknown","Unknown","Unknown","Unknown","Unknown","Unknown","Unknown","Unknown","Unknown","Unknown","Unknown","Unknown","Unknown","Unknown","Unknown","Unknown","Unknown","Unknown","Unknown","Unknown","Unknown","Unknown","Unknown","Unknown","Unknown","Unknown","Unknown","Unknown","Unknown","Unknown","Unknown","Unknown","Unknown","Unknown","Unknown","Unknown","Unknown","Unknown","Unknown","Unknown","Unknown","Unknown","Unknown","Unknown","Unknown","Unknown","Unknown","Unknown","Unknown","Unknown","Unknown","Unknown","Unknown","Unknown","Unknown","Unknown","Unknown","Unknown","Unknown","Unknown","Unknown","Unknown","Unknown","Unknown","Unknown","Unknown","Unknown","Unknown","Unknown","Unknown","Unknown","Unknown","Unknown","Unknown","Unknown","Unknown","Unknown","Unknown","Unknown","Unknown","Unknown","Unknown","Unknown","Unknown","Unknown","Unknown","Unknown","Unknown","Unknown","Unknown","Unknown","Unknown","Unknown","Unknown","Unknown","Unknown","Unknown","Unknown","Unknown","Unknown","Unknown","Unknown","Unknown","Unknown","Unknown","Unknown","Unknown","Unknown","Unknown","Unknown","Unknown","Unknown","Unknown","Unknown","Unknown","Unknown","Unknown","Unknown","Unknown","Unknown","Unknown","Unknown","Unknown","Unknown"]
[null,"New Zealand","Unknown","Unknown","Unknown","Unknown","Unknown","Unknown","Unknown","Unknown","Unknown","Unknown","Unknown","Unknown","Unknown","Unknown","Unknown","Unknown","Unknown","Unknown","Unknown","Unknown","Unknown","Unknown","Unknown","Unknown","Unknown","Unknown","Unknown","Unknown","Unknown","Unknown","Unknown","Unknown","Unknown","Unknown","Unknown","Unknown","Unknown","Unknown","Unknown","Unknown","Unknown","Unknown","Unknown","Unknown","Unknown","Unknown","Unknown","Unknown","Unknown","Unknown","Unknown","Unknown","Unknown","Unknown","Unknown","Unknown","Unknown","Unknown","Unknown","Unknown","FL","Unknown","Unknown","Unknown","Unknown","Unknown","Unknown","Unknown","Unknown","Unknown","Unknown","Unknown","Unknown","Unknown","Unknown","Unknown","Unknown","Unknown","Unknown","Unknown","Unknown","Unknown","Unknown","Unknown","Unknown","Unknown","Unknown","Unknown","Unknown","Unknown","Unknown","Unknown","Unknown","Unknown","Unknown","Unknown","Unknown","Unknown","Unknown","Unknown","Unknown","Unknown","Unknown","Unknown","Unknown","Unknown","Unknown","Unknown","Unknown","Unknown","Unknown","Unknown","Unknown","Unknown","Unknown","Unknown","Unknown","Unknown","Unknown","Unknown","Unknown","Unknown","Unknown","Unknown","Unknown","Unknown","Unknown","Unknown","Unknown","Unknown","Unknown","Unknown","Unknown","Unknown","Unknown","Unknown","Unknown","Unknown","Unknown","Unknown","Unknown","Unknown","Unknown","Unknown","Unknown","Unknown","Unknown","Unknown","Unknown","Unknown","Unknown","Unknown","Unknown","Unknown","Unknown","Unknown","Unknown","Unknown","Unknown","Unknown"]
[null,"Nicaragua","Unknown","Unknown","Unknown","Unknown","Unknown","Unknown","Unknown","Unknown","Unknown","Unknown","CL","Unknown","Unknown","Unknown","Unknown","Unknown","CL","Unknown","Unknown","Unknown","Unknown","Unknown","Unknown","Unknown","Unknown","CL","Unknown","Unknown","Unknown","CL","Unknown","Unknown","Unknown","Unknown","Unknown","Unknown","Unknown","Unknown","CL","Unknown","Unknown","Unknown","Unknown","CL","Unknown","Unknown","Unknown","Unknown","Unknown","Unknown","Unknown","CL","Unknown","Unknown","Unknown","Unknown","Unknown","CL","Unknown","Unknown","CL","Unknown","Unknown","Unknown","CL","Unknown","Unknown","Unknown","Unknown","Unknown","Unknown","Unknown","Unknown","Unknown","Unknown","Unknown","Unknown","Unknown","Unknown","Unknown","Unknown","Unknown","Unknown","Unknown","Unknown","Unknown","Unknown","Unknown","Unknown","Unknown","CL","Unknown","Unknown","Unknown","Unknown","Unknown","Unknown","Unknown","Unknown","Unknown","CL","Unknown","CL","Unknown","Unknown","Unknown","Unknown","Unknown","Unknown","Unknown","Unknown","Unknown","Unknown","Unknown","Unknown","Unknown","Unknown","Unknown","CL","Unknown","Unknown","Unknown","Unknown","Unknown","Unknown","Unknown","Unknown","Unknown","Unknown","Unknown","Unknown","Unknown","CL","Unknown","Unknown","Unknown","Unknown","Unknown","Unknown","Unknown","Unknown","Unknown","CL","Unknown","Unknown","Unknown","CL","Unknown","Unknown","Unknown","CL","Unknown","Unknown","Unknown","CL","Unknown","Unknown","Unknown","Unknown","Unknown"]
[null,"Niger","Unknown","Unknown","Unknown","Unknown","Unknown","Unknown","Unknown","Unknown","Unknown","Unknown","Unknown","Unknown","Unknown","Unknown","Unknown","Unknown","Unknown","Unknown","Unknown","Unknown","Unknown","Unknown","Unknown","Unknown","Unknown","Unknown","Unknown","Unknown","Unknown","FL","Unknown","Unknown","Unknown","Unknown","Unknown","Unknown","Unknown","Unknown","Unknown","Unknown","Unknown","Unknown","Unknown","Unknown","Unknown","Unknown","Unknown","Unknown","Unknown","Unknown","Unknown","Unknown","Unknown","Unknown","Unknown","Unknown","Unknown","Unknown","Unknown","Unknown","CL","Unknown","Unknown","Unknown","CL","Unknown","Unknown","Unknown","Unknown","Unknown","Unknown","Unknown","Unknown","Unknown","Unknown","Unknown","Unknown","Unknown","Unknown","Unknown","Unknown","Unknown","Unknown","Unknown","Unknown","Unknown","Unknown","Unknown","FL","Unknown","Unknown","Unknown","Unknown","CL","Unknown","Unknown","Unknown","Unknown","Unknown","Unknown","Unknown","Unknown","Unknown","Unknown","Unknown","Unknown","Unknown","Unknown","Unknown","Unknown","Unknown","Unknown","Unknown","Unknown","Unknown","Unknown","Unknown","Unknown","CL","Unknown","Unknown","Unknown","Unknown","CL","Unknown","Unknown","Unknown","Unknown","Unknown","Unknown","Unknown","Unknown","CL","Unknown","Unknown","Unknown","Unknown","Unknown","Unknown","Unknown","Unknown","Unknown","Unknown","Unknown","Unknown","Unknown","Unknown","Unknown","Unknown","Unknown","Unknown","Unknown","Unknown","Unknown","Unknown","Unknown","Unknown","CL","Unknown","Unknown"]
[null,"Nigeria","Unknown","Unknown","Unknown","Unknown","Unknown","Unknown","Unknown","Unknown","Unknown","Unknown","Unknown","Unknown","Unknown","Unknown","Unknown","Unknown","CL/FL/HR","Unknown","Unknown","Unknown","Unknown","Unknown","Unknown","Unknown","Unknown","Unknown","Unknown","CL","Unknown","CL","Unknown","Unknown","Unknown","Unknown","Unknown","Unknown","Unknown","Unknown","Unknown","Unknown","Unknown","CL/FL/HR","Unknown","Unknown","Unknown","Unknown","Unknown","Unknown","Unknown","Unknown","Unknown","Unknown","Unknown","Unknown","Unknown","Unknown","Unknown","Unknown","Unknown","Unknown","CL","Unknown","Unknown","Unknown","Unknown","Unknown","Unknown","Unknown","CL/FL","Unknown","Unknown","Unknown","Unknown","Unknown","Unknown","Unknown","Unknown","Unknown","Unknown","Unknown","Unknown","Unknown","Unknown","Unknown","Unknown","Unknown","Unknown","Unknown","Unknown","Unknown","Unknown","Unknown","Unknown","Unknown","Unknown","Unknown","Unknown","Unknown","Unknown","Unknown","Unknown","Unknown","Unknown","Unknown","Unknown","Unknown","Unknown","Unknown","Unknown","Unknown","Unknown","Unknown","Unknown","Unknown","Unknown","Unknown","Unknown","Unknown","CL","Unknown","Unknown","Unknown","Unknown","Unknown","Unknown","Unknown","Unknown","Unknown","Unknown","Unknown","Unknown","Unknown","CL/FL","Unknown","Unknown","Unknown","Unknown","Unknown","Unknown","Unknown","Unknown","Unknown","CL","Unknown","Unknown","Unknown","Unknown","Unknown","Unknown","Unknown","Unknown","Unknown","Unknown","Unknown","Unknown","CL","Unknown","CL","Unknown","Unknown"]
[null,"Norway","Unknown","Unknown","Unknown","Unknown","Unknown","Unknown","Unknown","Unknown","Unknown","Unknown","Unknown","Unknown","Unknown","Unknown","Unknown","Unknown","Unknown","Unknown","Unknown","Unknown","Unknown","Unknown","Unknown","Unknown","Unknown","Unknown","Unknown","Unknown","Unknown","Unknown","Unknown","Unknown","Unknown","Unknown","Unknown","Unknown","Unknown","Unknown","Unknown","Unknown","Unknown","Unknown","Unknown","Unknown","Unknown","Unknown","Unknown","Unknown","Unknown","Unknown","Unknown","Unknown","Unknown","Unknown","Unknown","Unknown","Unknown","Unknown","Unknown","Unknown","Unknown","Unknown","Unknown","Unknown","Unknown","Unknown","Unknown","Unknown","Unknown","Unknown","Unknown","Unknown","Unknown","Unknown","Unknown","Unknown","Unknown","Unknown","Unknown","Unknown","Unknown","Unknown","Unknown","Unknown","Unknown","Unknown","Unknown","Unknown","Unknown","Unknown","Unknown","Unknown","Unknown","Unknown","Unknown","Unknown","Unknown","Unknown","Unknown","Unknown","Unknown","Unknown","Unknown","Unknown","Unknown","Unknown","Unknown","Unknown","Unknown","Unknown","Unknown","Unknown","Unknown","Unknown","Unknown","Unknown","Unknown","Unknown","Unknown","Unknown","Unknown","Unknown","Unknown","Unknown","Unknown","Unknown","Unknown","Unknown","Unknown","Unknown","Unknown","Unknown","Unknown","Unknown","Unknown","Unknown","Unknown","Unknown","Unknown","Unknown","Unknown","Unknown","Unknown","Unknown","Unknown","Unknown","Unknown","Unknown","Unknown","Unknown","Unknown","Unknown","Unknown","Unknown","Unknown","Unknown","Unknown","Unknown","Unknown","Unknown"]
[null,"Oman","Unknown","Unknown","Unknown","Unknown","Unknown","Unknown","Unknown","Unknown","Unknown","Unknown","Unknown","Unknown","Unknown","Unknown","Unknown","Unknown","Unknown","Unknown","Unknown","Unknown","Unknown","Unknown","Unknown","Unknown","Unknown","Unknown","Unknown","Unknown","Unknown","Unknown","Unknown","Unknown","Unknown","Unknown","Unknown","Unknown","Unknown","Unknown","Unknown","Unknown","Unknown","Unknown","Unknown","Unknown","Unknown","Unknown","Unknown","Unknown","Unknown","Unknown","Unknown","Unknown","Unknown","Unknown","Unknown","Unknown","Unknown","Unknown","Unknown","Unknown","CL","Unknown","Unknown","Unknown","Unknown","Unknown","Unknown","Unknown","Unknown","Unknown","Unknown","Unknown","Unknown","Unknown","Unknown","Unknown","Unknown","Unknown","Unknown","Unknown","Unknown","Unknown","Unknown","Unknown","Unknown","Unknown","Unknown","Unknown","Unknown","Unknown","Unknown","Unknown","Unknown","Unknown","Unknown","Unknown","Unknown","Unknown","Unknown","Unknown","Unknown","Unknown","Unknown","Unknown","Unknown","Unknown","Unknown","Unknown","Unknown","Unknown","Unknown","Unknown","Unknown","Unknown","Unknown","Unknown","Unknown","Unknown","Unknown","Unknown","Unknown","Unknown","Unknown","Unknown","Unknown","Unknown","Unknown","Unknown","Unknown","Unknown","Unknown","Unknown","Unknown","Unknown","Unknown","Unknown","Unknown","Unknown","Unknown","Unknown","Unknown","Unknown","Unknown","Unknown","Unknown","Unknown","Unknown","Unknown","Unknown","Unknown","Unknown","Unknown","Unknown","Unknown","Unknown","Unknown","Unknown","Unknown","Unknown","Unknown"]
[null,"Pakistan","Unknown","Unknown","Unknown","Unknown","Unknown","Unknown","Unknown","Unknown","Unknown","Unknown","Unknown","Unknown","Unknown","Unknown","Unknown","Unknown","Unknown","Unknown","Unknown","Unknown","Unknown","Unknown","Unknown","Unknown","Unknown","FL/HR","Unknown","Unknown","Unknown","Unknown","FL","Unknown","Unknown","Unknown","Unknown","Unknown","Unknown","Unknown","Unknown","Unknown","Unknown","Unknown","Unknown","Unknown","Unknown","FL","Unknown","Unknown","Unknown","Unknown","Unknown","Unknown","Unknown","Unknown","Unknown","Unknown","Unknown","Unknown","FL","Unknown","CL","Unknown","Unknown","Unknown","Unknown","Unknown","Unknown","Unknown","Unknown","Unknown","Unknown","Unknown","Unknown","Unknown","Unknown","Unknown","Unknown","Unknown","Unknown","Unknown","Unknown","Unknown","Unknown","Unknown","Unknown","Unknown","Unknown","Unknown","Unknown","Unknown","Unknown","Unknown","Unknown","Unknown","Unknown","Unknown","Unknown","Unknown","Unknown","Unknown","Unknown","Unknown","Unknown","Unknown","Unknown","Unknown","Unknown","Unknown","Unknown","Unknown","Unknown","Unknown","Unknown","Unknown","Unknown","Unknown","Unknown","Unknown","Unknown","Unknown","Unknown","Unknown","Unknown","Unknown","Unknown","Unknown","Unknown","Unknown","Unknown","Unknown","Unknown","Unknown","CL","FL/HR","Unknown","Unknown","Unknown","Unknown","Unknown","Unknown","Unknown","Unknown","Unknown","Unknown","Unknown","Unknown","Unknown","Unknown","CL/FL","Unknown","Unknown","Unknown","Unknown","Unknown","Unknown","Unknown","Unknown","Unknown","Unknown","Unknown"]
[null,"Palau","Unknown","Unknown","Unknown","Unknown","Unknown","Unknown","Unknown","Unknown","Unknown","Unknown","Unknown","Unknown","Unknown","Unknown","Unknown","Unknown","Unknown","Unknown","Unknown","Unknown","Unknown","Unknown","Unknown","Unknown","Unknown","Unknown","Unknown","Unknown","Unknown","Unknown","Unknown","Unknown","Unknown","Unknown","Unknown","Unknown","Unknown","Unknown","Unknown","Unknown","Unknown","Unknown","Unknown","Unknown","Unknown","Unknown","Unknown","Unknown","Unknown","Unknown","Unknown","Unknown","Unknown","Unknown","Unknown","Unknown","Unknown","Unknown","Unknown","Unknown","CL/FL","Unknown","Unknown","Unknown","Unknown","Unknown","Unknown","Unknown","Unknown","Unknown","Unknown","Unknown","Unknown","Unknown","Unknown","Unknown","Unknown","Unknown","Unknown","Unknown","Unknown","Unknown","Unknown","Unknown","Unknown","Unknown","Unknown","Unknown","Unknown","Unknown","Unknown","Unknown","Unknown","Unknown","Unknown","Unknown","Unknown","Unknown","Unknown","Unknown","Unknown","Unknown","Unknown","Unknown","Unknown","Unknown","Unknown","Unknown","Unknown","Unknown","Unknown","Unknown","Unknown","Unknown","Unknown","Unknown","Unknown","Unknown","Unknown","Unknown","Unknown","Unknown","Unknown","Unknown","Unknown","Unknown","Unknown","Unknown","Unknown","Unknown","Unknown","Unknown","Unknown","Unknown","Unknown","Unknown","Unknown","Unknown","Unknown","Unknown","Unknown","Unknown","Unknown","Unknown","Unknown","Unknown","Unknown","Unknown","Unknown","Unknown","Unknown","Unknown","Unknown","Unknown","Unknown","Unknown","Unknown","Unknown","Unknown","Unknown"]
[null,"Palestine State of","Unknown","Unknown","Unknown","Unknown","Unknown","Unknown","Unknown","Unknown","Unknown","Unknown","Unknown","Unknown","Unknown","Unknown","Unknown","Unknown","Unknown","Unknown","Unknown","Unknown","Unknown","Unknown","Unknown","Unknown","Unknown","Unknown","Unknown","Unknown","Unknown","Unknown","Unknown","Unknown","Unknown","Unknown","Unknown","Unknown","Unknown","Unknown","Unknown","Unknown","Unknown","Unknown","Unknown","Unknown","Unknown","Unknown","Unknown","Unknown","Unknown","Unknown","Unknown","Unknown","Unknown","Unknown","Unknown","Unknown","Unknown","Unknown","Unknown","Unknown","Unknown","Unknown","Unknown","Unknown","Unknown","Unknown","Unknown","Unknown","Unknown","Unknown","Unknown","Unknown","Unknown","Unknown","Unknown","Unknown","Unknown","Unknown","Unknown","Unknown","Unknown","Unknown","Unknown","Unknown","Unknown","Unknown","Unknown","Unknown","Unknown","Unknown","Unknown","Unknown","Unknown","Unknown","Unknown","Unknown","Unknown","Unknown","Unknown","Unknown","Unknown","Unknown","Unknown","Unknown","Unknown","Unknown","Unknown","Unknown","Unknown","Unknown","Unknown","Unknown","Unknown","Unknown","Unknown","Unknown","Unknown","Unknown","Unknown","Unknown","Unknown","Unknown","Unknown","Unknown","Unknown","Unknown","Unknown","Unknown","Unknown","Unknown","Unknown","Unknown","Unknown","Unknown","Unknown","Unknown","Unknown","Unknown","Unknown","Unknown","Unknown","Unknown","Unknown","Unknown","Unknown","Unknown","Unknown","Unknown","Unknown","Unknown","Unknown","Unknown","Unknown","Unknown","Unknown","Unknown","Unknown","Unknown","Unknown","Unknown"]
[null,"Panama","Unknown","Unknown","Unknown","Unknown","Unknown","Unknown","Unknown","Unknown","Unknown","Unknown","Unknown","Unknown","Unknown","Unknown","Unknown","Unknown","CL","Unknown","Unknown","Unknown","Unknown","Unknown","Unknown","Unknown","Unknown","CL","Unknown","Unknown","Unknown","Unknown","Unknown","Unknown","Unknown","Unknown","Unknown","Unknown","Unknown","Unknown","Unknown","Unknown","Unknown","Unknown","Unknown","CL","Unknown","Unknown","Unknown","Unknown","Unknown","Unknown","Unknown","Unknown","Unknown","Unknown","Unknown","Unknown","Unknown","Unknown","Unknown","Unknown","Unknown","Unknown","Unknown","Unknown","CL","Unknown","Unknown","Unknown","Unknown","Unknown","Unknown","Unknown","Unknown","Unknown","Unknown","Unknown","Unknown","Unknown","Unknown","Unknown","Unknown","Unknown","Unknown","Unknown","Unknown","Unknown","Unknown","Unknown","Unknown","CL","Unknown","Unknown","Unknown","Unknown","Unknown","Unknown","Unknown","Unknown","Unknown","Unknown","Unknown","Unknown","Unknown","Unknown","Unknown","Unknown","Unknown","Unknown","Unknown","Unknown","Unknown","Unknown","Unknown","Unknown","Unknown","Unknown","Unknown","Unknown","Unknown","Unknown","Unknown","Unknown","Unknown","Unknown","Unknown","Unknown","Unknown","Unknown","Unknown","Unknown","Unknown","Unknown","Unknown","CL","Unknown","Unknown","Unknown","Unknown","Unknown","Unknown","Unknown","Unknown","Unknown","Unknown","Unknown","Unknown","Unknown","Unknown","Unknown","Unknown","Unknown","Unknown","Unknown","Unknown","Unknown","Unknown","CL","CL","Unknown","Unknown"]
[null,"Papua New Guinea","Unknown","Unknown","Unknown","Unknown","Unknown","Unknown","Unknown","Unknown","Unknown","Unknown","Unknown","Unknown","Unknown","Unknown","Unknown","Unknown","CL","Unknown","Unknown","Unknown","Unknown","Unknown","Unknown","Unknown","Unknown","Unknown","Unknown","Unknown","Unknown","Unknown","Unknown","Unknown","Unknown","Unknown","Unknown","Unknown","Unknown","Unknown","Unknown","Unknown","Unknown","HR","Unknown","CL","Unknown","Unknown","Unknown","Unknown","Unknown","Unknown","Unknown","Unknown","Unknown","Unknown","Unknown","Unknown","Unknown","Unknown","Unknown","Unknown","Unknown","Unknown","Unknown","Unknown","HR","Unknown","Unknown","Unknown","Unknown","Unknown","Unknown","Unknown","Unknown","Unknown","Unknown","Unknown","Unknown","Unknown","Unknown","Unknown","Unknown","Unknown","Unknown","Unknown","Unknown","Unknown","Unknown","Unknown","Unknown","Unknown","Unknown","Unknown","Unknown","Unknown","Unknown","Unknown","Unknown","Unknown","Unknown","Unknown","Unknown","Unknown","CL","HR","Unknown","Unknown","Unknown","Unknown","Unknown","Unknown","Unknown","Unknown","Unknown","Unknown","Unknown","Unknown","Unknown","Unknown","Unknown","Unknown","Unknown","Unknown","Unknown","Unknown","Unknown","Unknown","Unknown","Unknown","Unknown","Unknown","Unknown","Unknown","Unknown","Unknown","Unknown","Unknown","Unknown","CL","Unknown","Unknown","Unknown","Unknown","Unknown","Unknown","Unknown","Unknown","HR","Unknown","Unknown","CL/FL","Unknown","Unknown","Unknown","Unknown","CL","Unknown","Unknown","Unknown","Unknown","Unknown"]
[null,"Paraguay","Unknown","Unknown","Unknown","Unknown","Unknown","Unknown","Unknown","Unknown","Unknown","Unknown","Unknown","Unknown","Unknown","CL","HR","Unknown","Unknown","Unknown","Unknown","Unknown","CL","Unknown","Unknown","Unknown","CL","CL","CL","CL","Unknown","CL/FL","CL","Unknown","Unknown","Unknown","Unknown","CL","Unknown","Unknown","Unknown","Unknown","Unknown","Unknown","Unknown","Unknown","CL","Unknown","Unknown","Unknown","Unknown","Unknown","Unknown","Unknown","Unknown","Unknown","Unknown","Unknown","Unknown","Unknown","Unknown","Unknown","CL","Unknown","Unknown","Unknown","CL","Unknown","Unknown","CL","CL","Unknown","Unknown","Unknown","Unknown","Unknown","Unknown","Unknown","Unknown","CL","Unknown","Unknown","Unknown","Unknown","CL","Unknown","Unknown","Unknown","Unknown","Unknown","CL/FL","CL","Unknown","Unknown","Unknown","CL","Unknown","Unknown","Unknown","Unknown","Unknown","CL","Unknown","Unknown","Unknown","Unknown","CL","CL","Unknown","Unknown","Unknown","Unknown","Unknown","Unknown","Unknown","CL","Unknown","Unknown","HR","Unknown","Unknown","Unknown","Unknown","Unknown","CL","Unknown","Unknown","CL","CL","Unknown","HR","CL","Unknown","Unknown","CL","CL","Unknown","Unknown","CL","Unknown","Unknown","Unknown","Unknown","Unknown","Unknown","CL","Unknown","Unknown","Unknown","Unknown","Unknown","CL","Unknown","Unknown","Unknown","Unknown","HR","CL","CL","CL","Unknown","Unknown"]
[null,"Peru","Unknown","Unknown","Unknown","Unknown","Unknown","Unknown","Unknown","Unknown","CL","Unknown","Unknown","Unknown","Unknown","Unknown","Unknown","Unknown","CL","Unknown","Unknown","Unknown","Unknown","FL","Unknown","Unknown","Unknown","Unknown","Unknown","Unknown","Unknown","Unknown","Unknown","Unknown","Unknown","Unknown","FL","Unknown","Unknown","Unknown","Unknown","Unknown","Unknown","CL","Unknown","CL","Unknown","Unknown","Unknown","Unknown","Unknown","Unknown","Unknown","Unknown","Unknown","Unknown","Unknown","Unknown","Unknown","Unknown","Unknown","Unknown","CL","Unknown","Unknown","Unknown","HR","Unknown","Unknown","Unknown","Unknown","Unknown","HR","Unknown","Unknown","Unknown","Unknown","Unknown","Unknown","Unknown","Unknown","Unknown","Unknown","Unknown","Unknown","Unknown","Unknown","Unknown","Unknown","Unknown","Unknown","Unknown","Unknown","Unknown","Unknown","FL","Unknown","Unknown","Unknown","Unknown","Unknown","Unknown","Unknown","Unknown","Unknown","Unknown","Unknown","Unknown","Unknown","Unknown","Unknown","Unknown","Unknown","Unknown","Unknown","Unknown","Unknown","Unknown","Unknown","Unknown","Unknown","Unknown","Unknown","Unknown","Unknown","Unknown","Unknown","Unknown","Unknown","Unknown","Unknown","Unknown","Unknown","Unknown","CL/FL","Unknown","Unknown","Unknown","Unknown","Unknown","Unknown","Unknown","Unknown","FL","Unknown","Unknown","Unknown","Unknown","HR","Unknown","Unknown","CL","Unknown","Unknown","FL","Unknown","Unknown","Unknown","CL","CL","Unknown","Unknown"]
[null,"Philippines","Unknown","Unknown","Unknown","Unknown","Unknown","Unknown","Unknown","Unknown","Unknown","Unknown","CL/HR","Unknown","Unknown","Unknown","Unknown","Unknown","Unknown","Unknown","Unknown","Unknown","Unknown","Unknown","Unknown","Unknown","Unknown","CL","Unknown","Unknown","Unknown","Unknown","CL","Unknown","Unknown","Unknown","Unknown","Unknown","Unknown","Unknown","Unknown","Unknown","Unknown","Unknown","CL","Unknown","CL","Unknown","Unknown","Unknown","Unknown","Unknown","Unknown","Unknown","Unknown","Unknown","Unknown","Unknown","Unknown","Unknown","Unknown","Unknown","CL","Unknown","Unknown","Unknown","CL","Unknown","Unknown","Unknown","Unknown","Unknown","Unknown","Unknown","Unknown","Unknown","Unknown","Unknown","Unknown","Unknown","Unknown","Unknown","Unknown","Unknown","Unknown","Unknown","Unknown","Unknown","Unknown","Unknown","CL","Unknown","Unknown","Unknown","Unknown","CL","Unknown","Unknown","CL","Unknown","Unknown","Unknown","Unknown","Unknown","Unknown","Unknown","Unknown","Unknown","Unknown","Unknown","HR","Unknown","Unknown","Unknown","Unknown","CL","Unknown","Unknown","Unknown","Unknown","CL","CL","Unknown","Unknown","Unknown","Unknown","Unknown","Unknown","Unknown","Unknown","Unknown","Unknown","Unknown","Unknown","CL ","CL","Unknown","Unknown","Unknown","Unknown","Unknown","Unknown","Unknown","Unknown","CL","Unknown","Unknown","Unknown","CL","Unknown","Unknown","Unknown","Unknown","Unknown","Unknown","Unknown","Unknown","Unknown","Unknown","Unknown","Unknown","Unknown"]
[null,"Poland","Unknown","Unknown","Unknown","Unknown","Unknown","Unknown","Unknown","Unknown","Unknown","Unknown","Unknown","Unknown","Unknown","Unknown","Unknown","Unknown","Unknown","Unknown","Unknown","Unknown","Unknown","Unknown","Unknown","Unknown","Unknown","Unknown","Unknown","Unknown","Unknown","Unknown","Unknown","Unknown","Unknown","Unknown","Unknown","Unknown","Unknown","Unknown","Unknown","Unknown","Unknown","Unknown","Unknown","Unknown","Unknown","Unknown","Unknown","Unknown","Unknown","Unknown","Unknown","Unknown","Unknown","Unknown","Unknown","Unknown","Unknown","Unknown","Unknown","Unknown","Unknown","Unknown","Unknown","Unknown","Unknown","Unknown","Unknown","Unknown","Unknown","Unknown","Unknown","Unknown","Unknown","Unknown","Unknown","Unknown","Unknown","Unknown","Unknown","Unknown","Unknown","Unknown","Unknown","Unknown","Unknown","Unknown","Unknown","Unknown","Unknown","Unknown","Unknown","Unknown","Unknown","Unknown","Unknown","Unknown","Unknown","Unknown","Unknown","Unknown","Unknown","Unknown","Unknown","Unknown","Unknown","Unknown","Unknown","Unknown","Unknown","Unknown","Unknown","Unknown","Unknown","Unknown","Unknown","Unknown","Unknown","Unknown","Unknown","Unknown","Unknown","Unknown","Unknown","Unknown","Unknown","Unknown","Unknown","Unknown","Unknown","Unknown","Unknown","Unknown","Unknown","Unknown","Unknown","Unknown","Unknown","Unknown","Unknown","Unknown","Unknown","Unknown","Unknown","Unknown","Unknown","Unknown","Unknown","Unknown","Unknown","Unknown","Unknown","Unknown","Unknown","Unknown","Unknown","Unknown","Unknown","Unknown","Unknown","Unknown"]
[null,"Portugal","Unknown","Unknown","Unknown","Unknown","Unknown","Unknown","Unknown","Unknown","Unknown","Unknown","Unknown","Unknown","Unknown","Unknown","Unknown","Unknown","Unknown","Unknown","Unknown","Unknown","Unknown","Unknown","Unknown","Unknown","Unknown","Unknown","Unknown","Unknown","Unknown","Unknown","Unknown","Unknown","Unknown","Unknown","Unknown","Unknown","Unknown","Unknown","Unknown","Unknown","Unknown","Unknown","Unknown","Unknown","Unknown","Unknown","Unknown","Unknown","Unknown","Unknown","Unknown","Unknown","Unknown","Unknown","Unknown","Unknown","Unknown","Unknown","Unknown","Unknown","Unknown","Unknown","Unknown","Unknown","Unknown","Unknown","Unknown","Unknown","Unknown","Unknown","Unknown","Unknown","Unknown","Unknown","Unknown","Unknown","Unknown","Unknown","Unknown","Unknown","Unknown","Unknown","Unknown","Unknown","Unknown","Unknown","Unknown","Unknown","Unknown","Unknown","Unknown","Unknown","Unknown","Unknown","Unknown","Unknown","Unknown","Unknown","Unknown","Unknown","Unknown","Unknown","Unknown","Unknown","Unknown","Unknown","Unknown","Unknown","Unknown","Unknown","Unknown","Unknown","Unknown","Unknown","Unknown","Unknown","Unknown","Unknown","Unknown","Unknown","Unknown","Unknown","Unknown","Unknown","Unknown","Unknown","Unknown","Unknown","Unknown","Unknown","Unknown","Unknown","Unknown","Unknown","Unknown","Unknown","Unknown","Unknown","Unknown","Unknown","Unknown","Unknown","Unknown","Unknown","Unknown","Unknown","Unknown","Unknown","Unknown","Unknown","Unknown","Unknown","Unknown","Unknown","Unknown","Unknown","Unknown","Unknown","Unknown","Unknown"]
[null,"Qatar","Unknown","Unknown","Unknown","Unknown","Unknown","Unknown","Unknown","Unknown","Unknown","Unknown","Unknown","Unknown","Unknown","Unknown","Unknown","Unknown","Unknown","Unknown","Unknown","Unknown","Unknown","Unknown","Unknown","Unknown","Unknown","Unknown","Unknown","Unknown","Unknown","Unknown","Unknown","Unknown","Unknown","Unknown","Unknown","Unknown","Unknown","Unknown","Unknown","Unknown","Unknown","Unknown","Unknown","Unknown","Unknown","Unknown","Unknown","Unknown","Unknown","Unknown","Unknown","Unknown","Unknown","Unknown","Unknown","Unknown","Unknown","Unknown","Unknown","Unknown","Unknown","Unknown","Unknown","Unknown","Unknown","Unknown","Unknown","Unknown","Unknown","Unknown","Unknown","Unknown","Unknown","Unknown","Unknown","Unknown","Unknown","Unknown","Unknown","Unknown","Unknown","Unknown","Unknown","Unknown","Unknown","Unknown","Unknown","Unknown","Unknown","Unknown","Unknown","Unknown","Unknown","Unknown","Unknown","Unknown","Unknown","Unknown","Unknown","Unknown","Unknown","Unknown","Unknown","Unknown","Unknown","Unknown","Unknown","Unknown","Unknown","Unknown","Unknown","Unknown","Unknown","Unknown","Unknown","Unknown","Unknown","Unknown","Unknown","Unknown","Unknown","Unknown","Unknown","Unknown","Unknown","Unknown","Unknown","Unknown","Unknown","Unknown","Unknown","Unknown","Unknown","Unknown","Unknown","Unknown","Unknown","Unknown","Unknown","Unknown","Unknown","Unknown","Unknown","Unknown","Unknown","Unknown","Unknown","Unknown","Unknown","Unknown","Unknown","Unknown","Unknown","Unknown","Unknown","Unknown","Unknown","Unknown","Unknown","Unknown"]
[null,"Romania","Unknown","Unknown","Unknown","Unknown","Unknown","Unknown","Unknown","Unknown","Unknown","Unknown","Unknown","Unknown","Unknown","Unknown","Unknown","Unknown","Unknown","Unknown","Unknown","Unknown","Unknown","Unknown","Unknown","Unknown","Unknown","Unknown","Unknown","Unknown","Unknown","Unknown","Unknown","Unknown","Unknown","Unknown","Unknown","Unknown","Unknown","Unknown","Unknown","Unknown","Unknown","Unknown","Unknown","Unknown","Unknown","Unknown","Unknown","Unknown","Unknown","Unknown","Unknown","Unknown","Unknown","Unknown","Unknown","Unknown","Unknown","Unknown","Unknown","Unknown","Unknown","Unknown","Unknown","Unknown","Unknown","Unknown","Unknown","Unknown","Unknown","Unknown","Unknown","Unknown","Unknown","Unknown","Unknown","Unknown","Unknown","Unknown","Unknown","Unknown","Unknown","Unknown","Unknown","Unknown","Unknown","Unknown","Unknown","Unknown","Unknown","Unknown","Unknown","Unknown","Unknown","Unknown","Unknown","Unknown","Unknown","Unknown","Unknown","Unknown","Unknown","Unknown","Unknown","Unknown","Unknown","Unknown","Unknown","Unknown","Unknown","Unknown","Unknown","Unknown","Unknown","Unknown","Unknown","Unknown","Unknown","Unknown","Unknown","Unknown","Unknown","Unknown","Unknown","Unknown","Unknown","Unknown","Unknown","Unknown","Unknown","Unknown","Unknown","Unknown","Unknown","Unknown","Unknown","Unknown","Unknown","Unknown","Unknown","Unknown","Unknown","Unknown","Unknown","Unknown","Unknown","Unknown","Unknown","Unknown","Unknown","Unknown","Unknown","Unknown","Unknown","Unknown","Unknown","Unknown","Unknown","Unknown","Unknown","Unknown"]
[null,"Russian Federation","Unknown","Unknown","Unknown","Unknown","Unknown","Unknown","Unknown","Unknown","Unknown","Unknown","Unknown","Unknown","Unknown","Unknown","Unknown","Unknown","Unknown","Unknown","Unknown","Unknown","HR","Unknown","Unknown","Unknown","Unknown","Unknown","Unknown","Unknown","Unknown","Unknown","Unknown","Unknown","Unknown","Unknown","Unknown","Unknown","Unknown","Unknown","Unknown","Unknown","Unknown","Unknown","Unknown","Unknown","Unknown","Unknown","Unknown","Unknown","Unknown","Unknown","Unknown","Unknown","Unknown","Unknown","Unknown","Unknown","Unknown","Unknown","Unknown","Unknown","Unknown","Unknown","Unknown","Unknown","Unknown","Unknown","Unknown","Unknown","Unknown","Unknown","Unknown","Unknown","Unknown","Unknown","Unknown","Unknown","Unknown","Unknown","Unknown","Unknown","Unknown","Unknown","Unknown","Unknown","Unknown","Unknown","Unknown","Unknown","Unknown","Unknown","Unknown","Unknown","Unknown","Unknown","Unknown","Unknown","Unknown","Unknown","Unknown","Unknown","Unknown","Unknown","Unknown","Unknown","Unknown","Unknown","Unknown","Unknown","Unknown","Unknown","Unknown","Unknown","Unknown","Unknown","Unknown","Unknown","HR","Unknown","Unknown","Unknown","Unknown","Unknown","Unknown","Unknown","Unknown","Unknown","Unknown","Unknown","Unknown","Unknown","Unknown","Unknown","Unknown","Unknown","Unknown","HR","Unknown","Unknown","Unknown","Unknown","Unknown","FL","Unknown","Unknown","Unknown","Unknown","Unknown","Unknown","HR","FL","FL","Unknown","FL","Unknown","HR","Unknown","Unknown","Unknown","Unknown","Unknown"]
[null,"Rwanda","Unknown","Unknown","Unknown","Unknown","Unknown","Unknown","Unknown","Unknown","Unknown","Unknown","Unknown","Unknown","Unknown","Unknown","Unknown","Unknown","CL","Unknown","Unknown","Unknown","Unknown","Unknown","Unknown","Unknown","Unknown","Unknown","Unknown","Unknown","Unknown","Unknown","Unknown","Unknown","Unknown","Unknown","Unknown","Unknown","Unknown","Unknown","Unknown","Unknown","Unknown","Unknown","Unknown","Unknown","Unknown","Unknown","Unknown","Unknown","Unknown","Unknown","Unknown","Unknown","Unknown","Unknown","Unknown","Unknown","Unknown","Unknown","Unknown","Unknown","Unknown","Unknown","Unknown","Unknown","Unknown","Unknown","Unknown","Unknown","Unknown","Unknown","Unknown","Unknown","Unknown","Unknown","Unknown","Unknown","Unknown","Unknown","Unknown","Unknown","Unknown","Unknown","Unknown","Unknown","Unknown","Unknown","Unknown","Unknown","Unknown","Unknown","Unknown","Unknown","Unknown","Unknown","Unknown","Unknown","Unknown","Unknown","Unknown","Unknown","Unknown","Unknown","Unknown","Unknown","Unknown","Unknown","Unknown","Unknown","Unknown","Unknown","Unknown","Unknown","Unknown","Unknown","Unknown","Unknown","Unknown","Unknown","Unknown","Unknown","Unknown","Unknown","Unknown","Unknown","Unknown","Unknown","Unknown","Unknown","Unknown","Unknown","Unknown","Unknown","Unknown","Unknown","Unknown","Unknown","Unknown","CL","Unknown","Unknown","Unknown","Unknown","Unknown","Unknown","Unknown","Unknown","Unknown","Unknown","Unknown","Unknown","Unknown","Unknown","Unknown","Unknown","Unknown","Unknown","Unknown","Unknown","Unknown","Unknown"]
[null,"Saint Kitts and Nevis","Unknown","Unknown","Unknown","Unknown","Unknown","Unknown","Unknown","Unknown","Unknown","Unknown","Unknown","Unknown","Unknown","Unknown","Unknown","Unknown","Unknown","Unknown","Unknown","Unknown","Unknown","Unknown","Unknown","Unknown","Unknown","Unknown","Unknown","Unknown","Unknown","Unknown","Unknown","Unknown","Unknown","Unknown","Unknown","Unknown","Unknown","Unknown","Unknown","Unknown","Unknown","Unknown","Unknown","Unknown","Unknown","Unknown","Unknown","Unknown","Unknown","Unknown","Unknown","Unknown","Unknown","Unknown","Unknown","Unknown","Unknown","Unknown","Unknown","Unknown","Unknown","Unknown","Unknown","Unknown","Unknown","Unknown","Unknown","Unknown","Unknown","Unknown","Unknown","Unknown","Unknown","Unknown","Unknown","Unknown","Unknown","Unknown","Unknown","Unknown","Unknown","Unknown","Unknown","Unknown","Unknown","Unknown","Unknown","Unknown","Unknown","Unknown","Unknown","Unknown","Unknown","Unknown","Unknown","Unknown","Unknown","Unknown","Unknown","Unknown","Unknown","Unknown","Unknown","Unknown","Unknown","Unknown","Unknown","Unknown","Unknown","Unknown","Unknown","Unknown","Unknown","Unknown","Unknown","Unknown","Unknown","Unknown","Unknown","Unknown","Unknown","Unknown","Unknown","Unknown","Unknown","Unknown","Unknown","Unknown","Unknown","Unknown","Unknown","Unknown","Unknown","Unknown","Unknown","Unknown","Unknown","Unknown","Unknown","Unknown","Unknown","Unknown","Unknown","Unknown","Unknown","Unknown","Unknown","Unknown","Unknown","Unknown","Unknown","Unknown","Unknown","Unknown","Unknown","Unknown","Unknown","Unknown","Unknown","Unknown"]
[null,"Saint Lucia","Unknown","Unknown","Unknown","Unknown","Unknown","Unknown","Unknown","Unknown","Unknown","Unknown","Unknown","Unknown","Unknown","Unknown","Unknown","Unknown","Unknown","Unknown","Unknown","Unknown","Unknown","Unknown","Unknown","Unknown","Unknown","Unknown","Unknown","Unknown","Unknown","Unknown","Unknown","Unknown","Unknown","Unknown","Unknown","Unknown","Unknown","Unknown","Unknown","Unknown","Unknown","Unknown","Unknown","Unknown","Unknown","Unknown","Unknown","Unknown","Unknown","Unknown","Unknown","Unknown","Unknown","Unknown","Unknown","Unknown","Unknown","Unknown","Unknown","Unknown","Unknown","Unknown","Unknown","Unknown","Unknown","Unknown","Unknown","Unknown","Unknown","Unknown","Unknown","Unknown","Unknown","Unknown","Unknown","Unknown","Unknown","Unknown","Unknown","Unknown","Unknown","Unknown","Unknown","Unknown","Unknown","Unknown","Unknown","Unknown","Unknown","Unknown","Unknown","Unknown","Unknown","Unknown","Unknown","Unknown","Unknown","Unknown","Unknown","Unknown","Unknown","Unknown","Unknown","Unknown","Unknown","Unknown","Unknown","Unknown","Unknown","Unknown","Unknown","Unknown","Unknown","Unknown","Unknown","Unknown","Unknown","Unknown","Unknown","Unknown","Unknown","Unknown","Unknown","Unknown","Unknown","Unknown","Unknown","Unknown","Unknown","Unknown","Unknown","Unknown","Unknown","Unknown","Unknown","Unknown","Unknown","Unknown","Unknown","Unknown","Unknown","Unknown","Unknown","Unknown","Unknown","Unknown","Unknown","Unknown","Unknown","Unknown","Unknown","Unknown","Unknown","Unknown","Unknown","Unknown","Unknown","Unknown","Unknown","Unknown"]
[null,"Saint Vincent and the Grenadines","Unknown","Unknown","Unknown","Unknown","Unknown","Unknown","Unknown","Unknown","Unknown","Unknown","Unknown","Unknown","Unknown","Unknown","Unknown","Unknown","Unknown","Unknown","Unknown","Unknown","Unknown","Unknown","Unknown","Unknown","Unknown","Unknown","Unknown","Unknown","Unknown","Unknown","Unknown","Unknown","Unknown","Unknown","Unknown","Unknown","Unknown","Unknown","Unknown","Unknown","Unknown","Unknown","Unknown","Unknown","Unknown","Unknown","Unknown","Unknown","Unknown","Unknown","Unknown","Unknown","Unknown","Unknown","Unknown","Unknown","Unknown","Unknown","Unknown","Unknown","Unknown","Unknown","Unknown","Unknown","Unknown","Unknown","Unknown","Unknown","Unknown","Unknown","Unknown","Unknown","Unknown","Unknown","Unknown","Unknown","Unknown","Unknown","Unknown","Unknown","Unknown","Unknown","Unknown","Unknown","Unknown","Unknown","Unknown","Unknown","Unknown","Unknown","Unknown","Unknown","Unknown","Unknown","Unknown","Unknown","Unknown","Unknown","Unknown","Unknown","Unknown","Unknown","Unknown","Unknown","Unknown","Unknown","Unknown","Unknown","Unknown","Unknown","Unknown","Unknown","Unknown","Unknown","Unknown","Unknown","Unknown","Unknown","Unknown","Unknown","Unknown","Unknown","Unknown","Unknown","Unknown","Unknown","Unknown","Unknown","Unknown","Unknown","Unknown","Unknown","Unknown","Unknown","Unknown","Unknown","Unknown","Unknown","Unknown","Unknown","Unknown","Unknown","Unknown","Unknown","Unknown","Unknown","Unknown","Unknown","Unknown","Unknown","Unknown","Unknown","Unknown","Unknown","Unknown","Unknown","Unknown","Unknown","Unknown","Unknown"]
[null,"Samoa","Unknown","Unknown","Unknown","Unknown","Unknown","Unknown","Unknown","Unknown","Unknown","Unknown","Unknown","Unknown","Unknown","Unknown","Unknown","Unknown","Unknown","Unknown","Unknown","Unknown","Unknown","Unknown","Unknown","Unknown","Unknown","Unknown","Unknown","Unknown","Unknown","Unknown","Unknown","Unknown","Unknown","Unknown","Unknown","Unknown","Unknown","Unknown","Unknown","Unknown","Unknown","Unknown","CL","Unknown","Unknown","Unknown","Unknown","Unknown","Unknown","Unknown","Unknown","Unknown","Unknown","Unknown","Unknown","Unknown","Unknown","Unknown","Unknown","Unknown","Unknown","Unknown","Unknown","Unknown","Unknown","Unknown","Unknown","Unknown","Unknown","Unknown","Unknown","Unknown","Unknown","Unknown","Unknown","Unknown","Unknown","Unknown","Unknown","Unknown","Unknown","Unknown","Unknown","Unknown","Unknown","Unknown","Unknown","Unknown","Unknown","Unknown","Unknown","Unknown","Unknown","CL","Unknown","Unknown","CL","Unknown","Unknown","Unknown","Unknown","Unknown","Unknown","Unknown","Unknown","Unknown","Unknown","Unknown","Unknown","Unknown","Unknown","Unknown","Unknown","Unknown","Unknown","Unknown","Unknown","Unknown","Unknown","Unknown","Unknown","Unknown","Unknown","Unknown","Unknown","Unknown","Unknown","Unknown","Unknown","Unknown","Unknown","Unknown","Unknown","Unknown","Unknown","Unknown","Unknown","Unknown","Unknown","Unknown","Unknown","Unknown","Unknown","Unknown","Unknown","Unknown","Unknown","Unknown","Unknown","Unknown","Unknown","Unknown","Unknown","Unknown","Unknown","Unknown","Unknown","Unknown","Unknown","Unknown"]
[null,"San Marino","Unknown","Unknown","Unknown","Unknown","Unknown","Unknown","Unknown","Unknown","Unknown","Unknown","Unknown","Unknown","Unknown","Unknown","Unknown","Unknown","Unknown","Unknown","Unknown","Unknown","Unknown","Unknown","Unknown","Unknown","Unknown","Unknown","Unknown","Unknown","Unknown","Unknown","Unknown","Unknown","Unknown","Unknown","Unknown","Unknown","Unknown","Unknown","Unknown","Unknown","Unknown","Unknown","Unknown","Unknown","Unknown","Unknown","Unknown","Unknown","Unknown","Unknown","Unknown","Unknown","Unknown","Unknown","Unknown","Unknown","Unknown","Unknown","Unknown","Unknown","Unknown","Unknown","Unknown","Unknown","Unknown","Unknown","Unknown","Unknown","Unknown","Unknown","Unknown","Unknown","Unknown","Unknown","Unknown","Unknown","Unknown","Unknown","Unknown","Unknown","Unknown","Unknown","Unknown","Unknown","Unknown","Unknown","Unknown","Unknown","Unknown","Unknown","Unknown","Unknown","Unknown","Unknown","Unknown","Unknown","Unknown","Unknown","Unknown","Unknown","Unknown","Unknown","Unknown","Unknown","Unknown","Unknown","Unknown","Unknown","Unknown","Unknown","Unknown","Unknown","Unknown","Unknown","Unknown","Unknown","Unknown","Unknown","Unknown","Unknown","Unknown","Unknown","Unknown","Unknown","Unknown","Unknown","Unknown","Unknown","Unknown","Unknown","Unknown","Unknown","Unknown","Unknown","Unknown","Unknown","Unknown","Unknown","Unknown","Unknown","Unknown","Unknown","Unknown","Unknown","Unknown","Unknown","Unknown","Unknown","Unknown","Unknown","Unknown","Unknown","Unknown","Unknown","Unknown","Unknown","Unknown","Unknown","Unknown","Unknown"]
[null,"Sao Tome and Principe","Unknown","Unknown","Unknown","Unknown","Unknown","Unknown","Unknown","Unknown","Unknown","Unknown","Unknown","Unknown","Unknown","Unknown","Unknown","Unknown","Unknown","Unknown","Unknown","Unknown","Unknown","Unknown","Unknown","Unknown","Unknown","Unknown","Unknown","Unknown","Unknown","Unknown","Unknown","Unknown","Unknown","Unknown","Unknown","Unknown","Unknown","Unknown","Unknown","Unknown","Unknown","Unknown","Unknown","Unknown","Unknown","Unknown","Unknown","Unknown","Unknown","Unknown","Unknown","Unknown","Unknown","Unknown","Unknown","Unknown","Unknown","Unknown","Unknown","Unknown","Unknown","Unknown","Unknown","Unknown","Unknown","Unknown","Unknown","Unknown","Unknown","Unknown","Unknown","Unknown","Unknown","Unknown","Unknown","Unknown","Unknown","Unknown","Unknown","Unknown","Unknown","Unknown","Unknown","Unknown","Unknown","Unknown","Unknown","Unknown","Unknown","Unknown","Unknown","Unknown","Unknown","Unknown","Unknown","Unknown","Unknown","Unknown","Unknown","Unknown","Unknown","Unknown","Unknown","Unknown","Unknown","Unknown","Unknown","Unknown","Unknown","Unknown","Unknown","Unknown","Unknown","Unknown","Unknown","Unknown","Unknown","Unknown","Unknown","Unknown","Unknown","Unknown","Unknown","Unknown","Unknown","Unknown","Unknown","Unknown","Unknown","Unknown","Unknown","Unknown","Unknown","Unknown","Unknown","Unknown","Unknown","Unknown","Unknown","Unknown","Unknown","Unknown","Unknown","Unknown","Unknown","Unknown","Unknown","Unknown","Unknown","Unknown","Unknown","Unknown","Unknown","Unknown","Unknown","Unknown","Unknown","Unknown","Unknown","Unknown"]
[null,"Saudi Arabia","Unknown","Unknown","Unknown","Unknown","Unknown","Unknown","Unknown","Unknown","Unknown","Unknown","Unknown","Unknown","Unknown","Unknown","Unknown","Unknown","Unknown","Unknown","Unknown","Unknown","Unknown","Unknown","Unknown","Unknown","Unknown","Unknown","Unknown","Unknown","Unknown","Unknown","Unknown","Unknown","Unknown","Unknown","Unknown","Unknown","Unknown","Unknown","Unknown","Unknown","Unknown","Unknown","Unknown","Unknown","Unknown","Unknown","Unknown","Unknown","Unknown","Unknown","Unknown","Unknown","Unknown","Unknown","Unknown","Unknown","Unknown","Unknown","Unknown","Unknown","Unknown","Unknown","Unknown","Unknown","Unknown","Unknown","Unknown","Unknown","Unknown","Unknown","Unknown","Unknown","Unknown","Unknown","Unknown","Unknown","Unknown","Unknown","Unknown","Unknown","Unknown","Unknown","Unknown","Unknown","Unknown","Unknown","Unknown","Unknown","Unknown","Unknown","Unknown","Unknown","Unknown","Unknown","Unknown","Unknown","Unknown","Unknown","Unknown","Unknown","Unknown","Unknown","Unknown","Unknown","Unknown","Unknown","Unknown","Unknown","Unknown","Unknown","Unknown","Unknown","Unknown","Unknown","Unknown","Unknown","Unknown","Unknown","Unknown","Unknown","Unknown","Unknown","Unknown","Unknown","Unknown","Unknown","Unknown","Unknown","Unknown","Unknown","Unknown","Unknown","Unknown","Unknown","Unknown","Unknown","Unknown","Unknown","Unknown","Unknown","Unknown","Unknown","Unknown","Unknown","Unknown","Unknown","Unknown","Unknown","Unknown","Unknown","Unknown","Unknown","Unknown","Unknown","Unknown","Unknown","Unknown","Unknown","Unknown","Unknown"]
[null,"Senegal","Unknown","Unknown","Unknown","Unknown","Unknown","Unknown","Unknown","Unknown","Unknown","Unknown","Unknown","Unknown","Unknown","Unknown","Unknown","Unknown","Unknown","Unknown","Unknown","Unknown","Unknown","Unknown","Unknown","Unknown","Unknown","Unknown","Unknown","Unknown","Unknown","Unknown","CL","Unknown","Unknown","Unknown","Unknown","Unknown","Unknown","Unknown","Unknown","Unknown","Unknown","Unknown","Unknown","Unknown","CL","Unknown","Unknown","Unknown","Unknown","Unknown","Unknown","Unknown","Unknown","Unknown","Unknown","Unknown","Unknown","Unknown","Unknown","Unknown","CL","Unknown","Unknown","Unknown","HR","Unknown","Unknown","Unknown","Unknown","Unknown","Unknown","Unknown","Unknown","Unknown","Unknown","Unknown","Unknown","Unknown","Unknown","Unknown","Unknown","Unknown","Unknown","Unknown","Unknown","Unknown","Unknown","Unknown","Unknown","Unknown","Unknown","Unknown","Unknown","CL","Unknown","Unknown","Unknown","Unknown","Unknown","Unknown","Unknown","Unknown","Unknown","Unknown","CL","Unknown","Unknown","Unknown","Unknown","Unknown","Unknown","Unknown","Unknown","Unknown","Unknown","Unknown","Unknown","Unknown","Unknown","Unknown","Unknown","Unknown","Unknown","Unknown","Unknown","Unknown","Unknown","Unknown","Unknown","Unknown","Unknown","Unknown","CL","Unknown","Unknown","Unknown","Unknown","Unknown","Unknown","Unknown","Unknown","Unknown","Unknown","HR","Unknown","Unknown","Unknown","Unknown","Unknown","Unknown","Unknown","Unknown","Unknown","Unknown","Unknown","Unknown","HR","HR","Unknown","Unknown"]
[null,"Serbia","Unknown","Unknown","Unknown","Unknown","Unknown","Unknown","Unknown","Unknown","Unknown","Unknown","Unknown","Unknown","Unknown","Unknown","Unknown","Unknown","Unknown","Unknown","Unknown","Unknown","Unknown","Unknown","Unknown","Unknown","Unknown","Unknown","Unknown","Unknown","Unknown","Unknown","Unknown","Unknown","Unknown","Unknown","Unknown","Unknown","Unknown","Unknown","Unknown","Unknown","Unknown","Unknown","Unknown","Unknown","Unknown","Unknown","Unknown","Unknown","Unknown","Unknown","Unknown","Unknown","Unknown","Unknown","Unknown","Unknown","Unknown","Unknown","Unknown","Unknown","CL","Unknown","Unknown","Unknown","Unknown","Unknown","Unknown","Unknown","Unknown","Unknown","Unknown","Unknown","Unknown","Unknown","Unknown","Unknown","Unknown","Unknown","Unknown","Unknown","Unknown","Unknown","Unknown","Unknown","Unknown","Unknown","Unknown","Unknown","Unknown","Unknown","Unknown","Unknown","Unknown","Unknown","Unknown","Unknown","Unknown","Unknown","Unknown","Unknown","Unknown","Unknown","Unknown","Unknown","Unknown","Unknown","Unknown","Unknown","Unknown","Unknown","Unknown","Unknown","Unknown","Unknown","Unknown","Unknown","Unknown","Unknown","Unknown","Unknown","Unknown","Unknown","Unknown","Unknown","Unknown","Unknown","Unknown","Unknown","Unknown","Unknown","Unknown","Unknown","Unknown","Unknown","Unknown","Unknown","Unknown","Unknown","Unknown","Unknown","Unknown","Unknown","Unknown","Unknown","Unknown","Unknown","Unknown","Unknown","Unknown","Unknown","Unknown","Unknown","Unknown","Unknown","Unknown","Unknown","Unknown","Unknown","Unknown","Unknown"]
[null,"Seychelles","Unknown","Unknown","Unknown","Unknown","Unknown","Unknown","Unknown","Unknown","Unknown","Unknown","Unknown","Unknown","Unknown","Unknown","Unknown","Unknown","Unknown","Unknown","Unknown","Unknown","Unknown","Unknown","Unknown","Unknown","Unknown","Unknown","Unknown","Unknown","Unknown","Unknown","Unknown","Unknown","Unknown","Unknown","Unknown","Unknown","Unknown","Unknown","Unknown","Unknown","Unknown","Unknown","Unknown","Unknown","Unknown","Unknown","Unknown","Unknown","Unknown","Unknown","Unknown","Unknown","Unknown","Unknown","Unknown","Unknown","Unknown","Unknown","Unknown","Unknown","FL","Unknown","Unknown","Unknown","Unknown","Unknown","Unknown","Unknown","Unknown","Unknown","Unknown","Unknown","Unknown","Unknown","Unknown","Unknown","Unknown","Unknown","Unknown","Unknown","Unknown","Unknown","Unknown","Unknown","Unknown","Unknown","Unknown","Unknown","Unknown","Unknown","Unknown","Unknown","Unknown","Unknown","Unknown","Unknown","Unknown","Unknown","Unknown","Unknown","Unknown","Unknown","Unknown","Unknown","Unknown","Unknown","Unknown","Unknown","Unknown","Unknown","Unknown","Unknown","Unknown","Unknown","Unknown","Unknown","Unknown","Unknown","Unknown","Unknown","Unknown","Unknown","Unknown","Unknown","Unknown","Unknown","Unknown","Unknown","Unknown","Unknown","Unknown","Unknown","Unknown","Unknown","Unknown","Unknown","Unknown","Unknown","Unknown","Unknown","Unknown","Unknown","Unknown","Unknown","Unknown","Unknown","Unknown","Unknown","Unknown","Unknown","Unknown","Unknown","Unknown","Unknown","Unknown","Unknown","Unknown","Unknown","Unknown","Unknown"]
[null,"Sierra Leone","Unknown","Unknown","Unknown","Unknown","Unknown","Unknown","Unknown","Unknown","Unknown","Unknown","Unknown","Unknown","Unknown","Unknown","Unknown","Unknown","CL","Unknown","Unknown","Unknown","Unknown","Unknown","Unknown","Unknown","Unknown","Unknown","Unknown","CL","Unknown","Unknown","Unknown","Unknown","Unknown","Unknown","Unknown","Unknown","Unknown","Unknown","Unknown","Unknown","Unknown","CL","Unknown","CL","Unknown","Unknown","Unknown","Unknown","Unknown","Unknown","CL/FL","Unknown","Unknown","Unknown","Unknown","Unknown","Unknown","Unknown","Unknown","Unknown","FL","Unknown","Unknown","Unknown","Unknown","Unknown","Unknown","Unknown","CL","Unknown","Unknown","Unknown","Unknown","Unknown","Unknown","Unknown","Unknown","Unknown","Unknown","Unknown","Unknown","Unknown","Unknown","Unknown","Unknown","Unknown","Unknown","Unknown","Unknown","Unknown","Unknown","Unknown","Unknown","CL","Unknown","Unknown","Unknown","Unknown","Unknown","Unknown","Unknown","Unknown","CL","Unknown","CL","Unknown","Unknown","Unknown","Unknown","Unknown","Unknown","Unknown","Unknown","Unknown","Unknown","Unknown","Unknown","Unknown","CL","Unknown","Unknown","Unknown","Unknown","Unknown","Unknown","Unknown","Unknown","Unknown","Unknown","Unknown","Unknown","Unknown","CL/FL","Unknown","Unknown","Unknown","Unknown","Unknown","Unknown","Unknown","Unknown","Unknown","Unknown","Unknown","Unknown","Unknown","Unknown","Unknown","Unknown","Unknown","Unknown","Unknown","Unknown","Unknown","CL","CL","Unknown","CL","Unknown","Unknown"]
[null,"Singapore","Unknown","Unknown","Unknown","Unknown","Unknown","Unknown","Unknown","Unknown","Unknown","Unknown","Unknown","Unknown","Unknown","Unknown","Unknown","Unknown","Unknown","Unknown","Unknown","Unknown","Unknown","Unknown","Unknown","Unknown","Unknown","Unknown","Unknown","Unknown","Unknown","Unknown","Unknown","Unknown","Unknown","Unknown","Unknown","Unknown","Unknown","Unknown","Unknown","Unknown","Unknown","Unknown","Unknown","Unknown","Unknown","Unknown","Unknown","Unknown","Unknown","Unknown","Unknown","Unknown","Unknown","Unknown","Unknown","Unknown","Unknown","Unknown","Unknown","Unknown","FL","Unknown","Unknown","Unknown","Unknown","Unknown","Unknown","Unknown","Unknown","Unknown","Unknown","Unknown","Unknown","Unknown","Unknown","Unknown","Unknown","Unknown","Unknown","Unknown","Unknown","Unknown","Unknown","Unknown","Unknown","Unknown","Unknown","Unknown","Unknown","Unknown","Unknown","Unknown","Unknown","Unknown","Unknown","Unknown","Unknown","Unknown","Unknown","Unknown","Unknown","Unknown","Unknown","Unknown","Unknown","Unknown","Unknown","Unknown","Unknown","Unknown","Unknown","Unknown","Unknown","Unknown","Unknown","Unknown","Unknown","Unknown","Unknown","Unknown","Unknown","Unknown","Unknown","Unknown","Unknown","Unknown","Unknown","Unknown","Unknown","Unknown","Unknown","Unknown","Unknown","Unknown","Unknown","Unknown","Unknown","Unknown","Unknown","Unknown","Unknown","Unknown","Unknown","Unknown","Unknown","Unknown","Unknown","Unknown","Unknown","Unknown","Unknown","Unknown","Unknown","Unknown","Unknown","Unknown","Unknown","Unknown","Unknown","Unknown"]
[null,"Slovakia","Unknown","Unknown","Unknown","Unknown","Unknown","Unknown","Unknown","Unknown","Unknown","Unknown","Unknown","Unknown","Unknown","Unknown","Unknown","Unknown","Unknown","Unknown","Unknown","Unknown","Unknown","Unknown","Unknown","Unknown","Unknown","Unknown","Unknown","Unknown","Unknown","Unknown","Unknown","Unknown","Unknown","Unknown","Unknown","Unknown","Unknown","Unknown","Unknown","Unknown","Unknown","Unknown","Unknown","Unknown","Unknown","Unknown","Unknown","Unknown","Unknown","Unknown","Unknown","Unknown","Unknown","Unknown","Unknown","Unknown","Unknown","Unknown","Unknown","Unknown","Unknown","Unknown","Unknown","Unknown","Unknown","Unknown","Unknown","Unknown","Unknown","Unknown","Unknown","Unknown","Unknown","Unknown","Unknown","Unknown","Unknown","Unknown","Unknown","Unknown","Unknown","Unknown","Unknown","Unknown","Unknown","Unknown","Unknown","Unknown","Unknown","Unknown","Unknown","Unknown","Unknown","Unknown","Unknown","Unknown","Unknown","Unknown","Unknown","Unknown","Unknown","Unknown","Unknown","Unknown","Unknown","Unknown","Unknown","Unknown","Unknown","Unknown","Unknown","Unknown","Unknown","Unknown","Unknown","Unknown","Unknown","Unknown","Unknown","Unknown","Unknown","Unknown","Unknown","Unknown","Unknown","Unknown","Unknown","Unknown","Unknown","Unknown","Unknown","Unknown","Unknown","Unknown","Unknown","Unknown","Unknown","Unknown","Unknown","Unknown","Unknown","Unknown","Unknown","Unknown","Unknown","Unknown","Unknown","Unknown","Unknown","Unknown","Unknown","Unknown","Unknown","Unknown","Unknown","Unknown","Unknown","Unknown","Unknown","Unknown"]
[null,"Slovenia","Unknown","Unknown","Unknown","Unknown","Unknown","Unknown","Unknown","Unknown","Unknown","Unknown","Unknown","Unknown","Unknown","Unknown","Unknown","Unknown","Unknown","Unknown","Unknown","Unknown","Unknown","Unknown","Unknown","Unknown","Unknown","Unknown","Unknown","Unknown","Unknown","Unknown","Unknown","Unknown","Unknown","Unknown","Unknown","Unknown","Unknown","Unknown","Unknown","Unknown","Unknown","Unknown","Unknown","Unknown","Unknown","Unknown","Unknown","Unknown","Unknown","Unknown","Unknown","Unknown","Unknown","Unknown","Unknown","Unknown","Unknown","Unknown","Unknown","Unknown","Unknown","Unknown","Unknown","Unknown","Unknown","Unknown","Unknown","Unknown","Unknown","Unknown","Unknown","Unknown","Unknown","Unknown","Unknown","Unknown","Unknown","Unknown","Unknown","Unknown","Unknown","Unknown","Unknown","Unknown","Unknown","Unknown","Unknown","Unknown","Unknown","Unknown","Unknown","Unknown","Unknown","Unknown","Unknown","Unknown","Unknown","Unknown","Unknown","Unknown","Unknown","Unknown","Unknown","Unknown","Unknown","Unknown","Unknown","Unknown","Unknown","Unknown","Unknown","Unknown","Unknown","Unknown","Unknown","Unknown","Unknown","Unknown","Unknown","Unknown","Unknown","Unknown","Unknown","Unknown","Unknown","Unknown","Unknown","Unknown","Unknown","Unknown","Unknown","Unknown","Unknown","Unknown","Unknown","Unknown","Unknown","Unknown","Unknown","Unknown","Unknown","Unknown","Unknown","Unknown","Unknown","Unknown","Unknown","Unknown","Unknown","Unknown","Unknown","Unknown","FL","Unknown","Unknown","Unknown","Unknown","Unknown","Unknown","Unknown"]
[null,"Solomon Islands","Unknown","Unknown","Unknown","Unknown","Unknown","Unknown","Unknown","Unknown","Unknown","Unknown","Unknown","Unknown","Unknown","Unknown","Unknown","Unknown","Unknown","Unknown","Unknown","Unknown","Unknown","Unknown","Unknown","Unknown","Unknown","Unknown","Unknown","Unknown","Unknown","Unknown","Unknown","Unknown","Unknown","Unknown","Unknown","Unknown","Unknown","Unknown","Unknown","Unknown","Unknown","Unknown","Unknown","Unknown","Unknown","Unknown","Unknown","Unknown","Unknown","Unknown","Unknown","Unknown","Unknown","Unknown","Unknown","Unknown","Unknown","Unknown","Unknown","Unknown","FL","Unknown","Unknown","Unknown","Unknown","Unknown","Unknown","Unknown","Unknown","Unknown","Unknown","Unknown","Unknown","Unknown","Unknown","Unknown","Unknown","Unknown","Unknown","Unknown","Unknown","Unknown","Unknown","Unknown","Unknown","Unknown","Unknown","Unknown","Unknown","Unknown","Unknown","Unknown","Unknown","Unknown","Unknown","Unknown","Unknown","Unknown","Unknown","Unknown","Unknown","Unknown","Unknown","Unknown","Unknown","Unknown","Unknown","Unknown","Unknown","Unknown","Unknown","Unknown","Unknown","Unknown","Unknown","Unknown","Unknown","Unknown","Unknown","Unknown","Unknown","Unknown","Unknown","Unknown","Unknown","Unknown","Unknown","Unknown","Unknown","Unknown","Unknown","Unknown","Unknown","Unknown","Unknown","Unknown","Unknown","Unknown","Unknown","Unknown","Unknown","Unknown","Unknown","Unknown","Unknown","Unknown","Unknown","Unknown","Unknown","Unknown","Unknown","Unknown","Unknown","Unknown","Unknown","Unknown","Unknown","Unknown","Unknown","Unknown"]
[null,"Somalia","Unknown","Unknown","Unknown","Unknown","Unknown","Unknown","Unknown","Unknown","Unknown","Unknown","Unknown","Unknown","Unknown","Unknown","Unknown","Unknown","Unknown","Unknown","Unknown","Unknown","Unknown","Unknown","Unknown","Unknown","Unknown","Unknown","Unknown","Unknown","Unknown","Unknown","Unknown","Unknown","Unknown","Unknown","Unknown","Unknown","Unknown","Unknown","Unknown","Unknown","Unknown","Unknown","Unknown","Unknown","Unknown","Unknown","Unknown","Unknown","Unknown","Unknown","Unknown","Unknown","Unknown","Unknown","Unknown","Unknown","Unknown","Unknown","Unknown","Unknown","CL","Unknown","Unknown","Unknown","Unknown","Unknown","Unknown","Unknown","Unknown","Unknown","Unknown","Unknown","Unknown","Unknown","Unknown","Unknown","Unknown","Unknown","Unknown","Unknown","Unknown","Unknown","Unknown","Unknown","Unknown","Unknown","Unknown","Unknown","Unknown","Unknown","Unknown","Unknown","Unknown","Unknown","Unknown","Unknown","Unknown","Unknown","Unknown","Unknown","Unknown","Unknown","Unknown","Unknown","Unknown","Unknown","Unknown","Unknown","Unknown","Unknown","Unknown","Unknown","Unknown","Unknown","Unknown","Unknown","Unknown","Unknown","Unknown","Unknown","Unknown","Unknown","Unknown","Unknown","Unknown","Unknown","Unknown","Unknown","Unknown","Unknown","Unknown","Unknown","Unknown","Unknown","Unknown","Unknown","Unknown","Unknown","Unknown","Unknown","Unknown","Unknown","Unknown","Unknown","Unknown","Unknown","Unknown","Unknown","Unknown","Unknown","Unknown","Unknown","Unknown","Unknown","Unknown","Unknown","Unknown","Unknown","Unknown","Unknown"]
[null,"South Africa","Unknown","Unknown","Unknown","Unknown","Unknown","Unknown","Unknown","Unknown","Unknown","Unknown","Unknown","Unknown","Unknown","Unknown","Unknown","Unknown","Unknown","Unknown","Unknown","Unknown","Unknown","Unknown","Unknown","Unknown","Unknown","Unknown","Unknown","Unknown","Unknown","Unknown","Unknown","Unknown","Unknown","Unknown","Unknown","Unknown","Unknown","Unknown","Unknown","Unknown","Unknown","Unknown","Unknown","Unknown","Unknown","Unknown","Unknown","Unknown","Unknown","Unknown","Unknown","Unknown","Unknown","Unknown","Unknown","Unknown","Unknown","Unknown","Unknown","Unknown","FL","Unknown","Unknown","Unknown","Unknown","Unknown","Unknown","Unknown","Unknown","Unknown","Unknown","Unknown","Unknown","Unknown","Unknown","Unknown","Unknown","Unknown","Unknown","Unknown","Unknown","Unknown","Unknown","Unknown","Unknown","Unknown","Unknown","Unknown","Unknown","Unknown","Unknown","Unknown","Unknown","Unknown","Unknown","Unknown","Unknown","Unknown","Unknown","Unknown","Unknown","Unknown","Unknown","Unknown","Unknown","Unknown","Unknown","Unknown","Unknown","Unknown","Unknown","Unknown","Unknown","Unknown","Unknown","Unknown","Unknown","Unknown","Unknown","Unknown","Unknown","Unknown","Unknown","Unknown","Unknown","Unknown","Unknown","Unknown","Unknown","Unknown","Unknown","Unknown","Unknown","Unknown","Unknown","Unknown","Unknown","Unknown","Unknown","Unknown","Unknown","Unknown","Unknown","Unknown","Unknown","Unknown","Unknown","Unknown","Unknown","Unknown","Unknown","Unknown","Unknown","Unknown","Unknown","Unknown","Unknown","Unknown","Unknown","Unknown"]
[null,"South Sudan","Unknown","Unknown","Unknown","Unknown","Unknown","Unknown","Unknown","Unknown","Unknown","Unknown","Unknown","Unknown","Unknown","Unknown","Unknown","Unknown","Unknown","Unknown","Unknown","Unknown","Unknown","Unknown","Unknown","Unknown","Unknown","Unknown","Unknown","Unknown","Unknown","CL/FL","Unknown","Unknown","Unknown","Unknown","Unknown","Unknown","Unknown","Unknown","Unknown","Unknown","Unknown","Unknown","Unknown","Unknown","Unknown","Unknown","Unknown","Unknown","Unknown","Unknown","Unknown","Unknown","Unknown","Unknown","Unknown","Unknown","Unknown","Unknown","Unknown","Unknown","Unknown","Unknown","Unknown","Unknown","Unknown","Unknown","Unknown","Unknown","Unknown","Unknown","Unknown","Unknown","Unknown","Unknown","Unknown","Unknown","Unknown","Unknown","Unknown","Unknown","Unknown","Unknown","Unknown","Unknown","Unknown","Unknown","Unknown","Unknown","CL/FL","Unknown","Unknown","Unknown","Unknown","Unknown","Unknown","Unknown","Unknown","Unknown","Unknown","Unknown","Unknown","Unknown","Unknown","Unknown","Unknown","Unknown","Unknown","Unknown","Unknown","Unknown","Unknown","Unknown","Unknown","Unknown","Unknown","Unknown","Unknown","Unknown","Unknown","Unknown","Unknown","Unknown","Unknown","Unknown","Unknown","Unknown","Unknown","Unknown","Unknown","Unknown","Unknown","Unknown","Unknown","Unknown","Unknown","Unknown","Unknown","Unknown","Unknown","Unknown","Unknown","Unknown","Unknown","Unknown","Unknown","Unknown","Unknown","Unknown","Unknown","Unknown","Unknown","Unknown","Unknown","Unknown","Unknown","Unknown","Unknown","Unknown","Unknown","Unknown"]
[null,"Spain","Unknown","Unknown","Unknown","Unknown","Unknown","Unknown","MR","Unknown","Unknown","Unknown","Unknown","Unknown","Unknown","Unknown","Unknown","Unknown","Unknown","Unknown","HR","Unknown","Unknown","Unknown","Unknown","Unknown","Unknown","Unknown","Unknown","Unknown","Unknown","Unknown","Unknown","Unknown","Unknown","Unknown","Unknown","Unknown","Unknown","Unknown","Unknown","Unknown","Unknown","Unknown","Unknown","Unknown","Unknown","Unknown","Unknown","Unknown","Unknown","HR","Unknown","Unknown","Unknown","Unknown","Unknown","Unknown","Unknown","Unknown","Unknown","Unknown","Unknown","Unknown","Unknown","Unknown","HR","Unknown","Unknown","Unknown","Unknown","Unknown","HR","Unknown","Unknown","Unknown","Unknown","Unknown","Unknown","Unknown","Unknown","Unknown","Unknown","Unknown","Unknown","Unknown","Unknown","Unknown","Unknown","Unknown","Unknown","Unknown","Unknown","Unknown","Unknown","Unknown","Unknown","Unknown","HR","HR","Unknown","Unknown","Unknown","Unknown","Unknown","Unknown","Unknown","HR","Unknown","Unknown","Unknown","Unknown","Unknown","Unknown","Unknown","Unknown","Unknown","Unknown","Unknown","Unknown","Unknown","Unknown","Unknown","Unknown","Unknown","Unknown","Unknown","Unknown","Unknown","Unknown","Unknown","Unknown","Unknown","HR","Unknown","Unknown","Unknown","Unknown","Unknown","Unknown","Unknown","Unknown","Unknown","Unknown","Unknown","FL","Unknown","Unknown","HR","Unknown","Unknown","Unknown","Unknown","Unknown","Unknown","Unknown","Unknown","Unknown","FL","FL","Unknown","Unknown"]
[null,"Sri Lanka","Unknown","Unknown","Unknown","Unknown","Unknown","Unknown","Unknown","Unknown","Unknown","Unknown","Unknown","Unknown","Unknown","Unknown","Unknown","Unknown","HR","Unknown","Unknown","Unknown","Unknown","Unknown","Unknown","Unknown","Unknown","Unknown","Unknown","Unknown","Unknown","Unknown","Unknown","Unknown","Unknown","Unknown","Unknown","Unknown","Unknown","Unknown","Unknown","Unknown","Unknown","Unknown","HR","Unknown","Unknown","Unknown","Unknown","Unknown","Unknown","Unknown","Unknown","Unknown","Unknown","Unknown","Unknown","Unknown","Unknown","Unknown","Unknown","Unknown","FL","Unknown","Unknown","Unknown","HR","Unknown","Unknown","Unknown","Unknown","Unknown","Unknown","Unknown","Unknown","Unknown","Unknown","Unknown","Unknown","Unknown","Unknown","Unknown","Unknown","Unknown","Unknown","Unknown","Unknown","Unknown","Unknown","Unknown","Unknown","Unknown","Unknown","Unknown","Unknown","Unknown","Unknown","Unknown","HR","Unknown","Unknown","Unknown","Unknown","Unknown","Unknown","HR","Unknown","Unknown","Unknown","Unknown","Unknown","Unknown","Unknown","Unknown","Unknown","Unknown","Unknown","Unknown","Unknown","Unknown","Unknown","Unknown","Unknown","Unknown","Unknown","Unknown","Unknown","Unknown","Unknown","Unknown","Unknown","CL","Unknown","Unknown","Unknown","Unknown","Unknown","Unknown","Unknown","HR","Unknown","Unknown","Unknown","Unknown","Unknown","Unknown","Unknown","Unknown","HR","Unknown","Unknown","Unknown","Unknown","Unknown","Unknown","Unknown","Unknown","Unknown","Unknown","Unknown","Unknown","Unknown"]
[null,"Sudan","Unknown","Unknown","Unknown","Unknown","Unknown","Unknown","Unknown","Unknown","Unknown","Unknown","Unknown","Unknown","Unknown","Unknown","Unknown","Unknown","Unknown","Unknown","Unknown","Unknown","Unknown","Unknown","Unknown","Unknown","Unknown","Unknown","Unknown","Unknown","Unknown","Unknown","Unknown","Unknown","Unknown","Unknown","Unknown","Unknown","Unknown","Unknown","Unknown","Unknown","Unknown","Unknown","Unknown","Unknown","Unknown","Unknown","Unknown","Unknown","Unknown","Unknown","Unknown","Unknown","Unknown","Unknown","Unknown","Unknown","Unknown","Unknown","Unknown","Unknown","Unknown","Unknown","Unknown","Unknown","Unknown","Unknown","Unknown","Unknown","Unknown","Unknown","Unknown","Unknown","Unknown","Unknown","Unknown","Unknown","Unknown","Unknown","Unknown","Unknown","Unknown","Unknown","Unknown","Unknown","Unknown","Unknown","Unknown","Unknown","Unknown","Unknown","Unknown","Unknown","Unknown","Unknown","Unknown","Unknown","Unknown","Unknown","Unknown","Unknown","Unknown","Unknown","Unknown","Unknown","Unknown","Unknown","Unknown","Unknown","Unknown","Unknown","Unknown","Unknown","Unknown","Unknown","Unknown","Unknown","Unknown","Unknown","Unknown","Unknown","Unknown","Unknown","Unknown","Unknown","Unknown","Unknown","Unknown","Unknown","Unknown","Unknown","Unknown","Unknown","CL","Unknown","Unknown","Unknown","Unknown","Unknown","Unknown","Unknown","Unknown","Unknown","Unknown","Unknown","Unknown","Unknown","Unknown","Unknown","Unknown","Unknown","Unknown","Unknown","Unknown","Unknown","Unknown","Unknown","Unknown","Unknown","Unknown","Unknown"]
[null,"Suriname","Unknown","Unknown","Unknown","Unknown","Unknown","Unknown","Unknown","Unknown","Unknown","Unknown","Unknown","Unknown","Unknown","Unknown","Unknown","Unknown","Unknown","Unknown","Unknown","Unknown","Unknown","Unknown","Unknown","Unknown","Unknown","Unknown","Unknown","Unknown","Unknown","Unknown","Unknown","Unknown","Unknown","Unknown","Unknown","Unknown","Unknown","Unknown","Unknown","Unknown","Unknown","Unknown","Unknown","Unknown","Unknown","Unknown","Unknown","Unknown","Unknown","Unknown","Unknown","Unknown","Unknown","Unknown","Unknown","Unknown","Unknown","Unknown","Unknown","Unknown","CL","Unknown","Unknown","Unknown","Unknown","Unknown","Unknown","Unknown","Unknown","Unknown","Unknown","Unknown","Unknown","Unknown","Unknown","Unknown","Unknown","Unknown","Unknown","Unknown","Unknown","Unknown","Unknown","Unknown","Unknown","Unknown","Unknown","Unknown","Unknown","Unknown","Unknown","Unknown","Unknown","Unknown","Unknown","Unknown","Unknown","Unknown","Unknown","Unknown","Unknown","Unknown","Unknown","Unknown","Unknown","Unknown","Unknown","Unknown","Unknown","Unknown","Unknown","Unknown","Unknown","Unknown","Unknown","Unknown","Unknown","Unknown","Unknown","Unknown","Unknown","Unknown","Unknown","Unknown","Unknown","Unknown","Unknown","Unknown","Unknown","Unknown","Unknown","Unknown","CL","Unknown","Unknown","Unknown","Unknown","Unknown","Unknown","Unknown","Unknown","Unknown","Unknown","Unknown","Unknown","Unknown","Unknown","Unknown","Unknown","Unknown","Unknown","Unknown","Unknown","Unknown","Unknown","Unknown","Unknown","Unknown","Unknown","Unknown"]
[null,"Sweden","Unknown","Unknown","Unknown","Unknown","Unknown","Unknown","Unknown","Unknown","Unknown","Unknown","Unknown","Unknown","Unknown","Unknown","Unknown","Unknown","Unknown","Unknown","Unknown","Unknown","Unknown","Unknown","Unknown","Unknown","Unknown","Unknown","Unknown","Unknown","Unknown","Unknown","Unknown","Unknown","Unknown","Unknown","Unknown","Unknown","Unknown","Unknown","Unknown","Unknown","Unknown","Unknown","Unknown","Unknown","Unknown","Unknown","Unknown","Unknown","Unknown","Unknown","Unknown","Unknown","Unknown","Unknown","Unknown","Unknown","Unknown","Unknown","Unknown","Unknown","Unknown","Unknown","Unknown","Unknown","Unknown","Unknown","Unknown","Unknown","Unknown","Unknown","Unknown","Unknown","Unknown","Unknown","Unknown","Unknown","Unknown","Unknown","Unknown","Unknown","Unknown","Unknown","Unknown","Unknown","Unknown","Unknown","Unknown","Unknown","Unknown","Unknown","Unknown","Unknown","Unknown","Unknown","Unknown","Unknown","Unknown","Unknown","Unknown","Unknown","Unknown","Unknown","Unknown","Unknown","Unknown","Unknown","Unknown","Unknown","Unknown","Unknown","Unknown","Unknown","Unknown","Unknown","Unknown","Unknown","Unknown","Unknown","Unknown","Unknown","Unknown","Unknown","Unknown","Unknown","Unknown","Unknown","Unknown","Unknown","Unknown","Unknown","Unknown","Unknown","Unknown","Unknown","Unknown","Unknown","Unknown","Unknown","Unknown","Unknown","Unknown","Unknown","Unknown","Unknown","Unknown","Unknown","Unknown","Unknown","Unknown","Unknown","Unknown","Unknown","Unknown","Unknown","Unknown","Unknown","Unknown","Unknown","Unknown","Unknown"]
[null,"Switzerland","Unknown","Unknown","Unknown","Unknown","Unknown","Unknown","Unknown","Unknown","Unknown","Unknown","Unknown","Unknown","Unknown","Unknown","Unknown","Unknown","Unknown","Unknown","Unknown","Unknown","Unknown","Unknown","Unknown","Unknown","Unknown","Unknown","Unknown","Unknown","Unknown","Unknown","Unknown","Unknown","Unknown","Unknown","Unknown","Unknown","Unknown","Unknown","Unknown","Unknown","Unknown","Unknown","Unknown","Unknown","Unknown","Unknown","Unknown","Unknown","Unknown","Unknown","Unknown","Unknown","Unknown","Unknown","Unknown","Unknown","Unknown","Unknown","Unknown","Unknown","Unknown","Unknown","Unknown","Unknown","Unknown","Unknown","Unknown","Unknown","Unknown","Unknown","Unknown","Unknown","Unknown","Unknown","Unknown","Unknown","Unknown","Unknown","Unknown","Unknown","Unknown","Unknown","Unknown","Unknown","Unknown","Unknown","Unknown","Unknown","Unknown","Unknown","Unknown","Unknown","Unknown","Unknown","Unknown","Unknown","Unknown","Unknown","Unknown","Unknown","Unknown","Unknown","Unknown","Unknown","Unknown","Unknown","Unknown","Unknown","Unknown","Unknown","Unknown","Unknown","Unknown","Unknown","Unknown","Unknown","Unknown","Unknown","Unknown","Unknown","Unknown","Unknown","Unknown","Unknown","Unknown","Unknown","Unknown","Unknown","Unknown","Unknown","Unknown","Unknown","Unknown","Unknown","Unknown","Unknown","Unknown","Unknown","Unknown","Unknown","Unknown","Unknown","Unknown","Unknown","Unknown","Unknown","Unknown","Unknown","Unknown","Unknown","Unknown","Unknown","Unknown","Unknown","Unknown","Unknown","Unknown","Unknown","Unknown","Unknown"]
[null,"Syrian Arab Republic","Unknown","Unknown","Unknown","Unknown","Unknown","Unknown","Unknown","Unknown","Unknown","Unknown","Unknown","Unknown","Unknown","Unknown","Unknown","Unknown","Unknown","Unknown","Unknown","Unknown","Unknown","Unknown","Unknown","Unknown","Unknown","Unknown","Unknown","Unknown","Unknown","Unknown","Unknown","Unknown","Unknown","Unknown","Unknown","Unknown","Unknown","Unknown","Unknown","Unknown","Unknown","Unknown","Unknown","Unknown","Unknown","Unknown","Unknown","Unknown","Unknown","Unknown","Unknown","Unknown","Unknown","Unknown","Unknown","Unknown","Unknown","Unknown","Unknown","Unknown","Unknown","Unknown","Unknown","Unknown","Unknown","Unknown","Unknown","Unknown","Unknown","Unknown","Unknown","Unknown","Unknown","Unknown","Unknown","Unknown","Unknown","Unknown","Unknown","Unknown","Unknown","Unknown","Unknown","Unknown","Unknown","Unknown","Unknown","Unknown","Unknown","Unknown","Unknown","Unknown","Unknown","Unknown","Unknown","Unknown","Unknown","Unknown","Unknown","Unknown","Unknown","Unknown","Unknown","Unknown","Unknown","Unknown","Unknown","Unknown","Unknown","Unknown","Unknown","Unknown","Unknown","Unknown","Unknown","Unknown","Unknown","Unknown","Unknown","Unknown","Unknown","Unknown","Unknown","Unknown","Unknown","Unknown","Unknown","Unknown","Unknown","Unknown","Unknown","Unknown","Unknown","Unknown","Unknown","Unknown","Unknown","Unknown","Unknown","Unknown","Unknown","Unknown","Unknown","Unknown","Unknown","Unknown","Unknown","Unknown","Unknown","Unknown","Unknown","Unknown","Unknown","Unknown","Unknown","Unknown","Unknown","Unknown","Unknown","Unknown"]
[null,"Taiwan Province of China","Unknown","Unknown","Unknown","Unknown","Unknown","Unknown","Unknown","Unknown","Unknown","Unknown","Unknown","Unknown","Unknown","Unknown","Unknown","Unknown","Unknown","Unknown","Unknown","Unknown","Unknown","Unknown","Unknown","Unknown","Unknown","Unknown","Unknown","Unknown","Unknown","Unknown","Unknown","Unknown","Unknown","Unknown","Unknown","Unknown","Unknown","Unknown","Unknown","Unknown","Unknown","Unknown","Unknown","Unknown","Unknown","Unknown","Unknown","Unknown","Unknown","Unknown","Unknown","Unknown","Unknown","Unknown","Unknown","Unknown","Unknown","Unknown","Unknown","Unknown","Unknown","Unknown","Unknown","Unknown","Unknown","Unknown","Unknown","Unknown","Unknown","Unknown","Unknown","Unknown","Unknown","Unknown","Unknown","Unknown","Unknown","Unknown","Unknown","Unknown","Unknown","Unknown","Unknown","Unknown","Unknown","Unknown","Unknown","Unknown","Unknown","Unknown","Unknown","Unknown","Unknown","Unknown","Unknown","Unknown","Unknown","Unknown","Unknown","Unknown","Unknown","Unknown","Unknown","Unknown","Unknown","Unknown","Unknown","Unknown","Unknown","Unknown","Unknown","Unknown","Unknown","Unknown","Unknown","Unknown","Unknown","Unknown","Unknown","Unknown","Unknown","Unknown","Unknown","Unknown","Unknown","Unknown","Unknown","Unknown","Unknown","Unknown","Unknown","Unknown","Unknown","Unknown","Unknown","Unknown","Unknown","Unknown","Unknown","Unknown","Unknown","Unknown","Unknown","Unknown","Unknown","Unknown","Unknown","Unknown","Unknown","FL/HR","Unknown","Unknown","Unknown","Unknown","Unknown","Unknown","Unknown","Unknown","Unknown","Unknown"]
[null,"Tajikistan","Unknown","Unknown","Unknown","Unknown","Unknown","Unknown","Unknown","Unknown","Unknown","Unknown","Unknown","Unknown","Unknown","Unknown","Unknown","Unknown","Unknown","Unknown","Unknown","Unknown","Unknown","Unknown","Unknown","Unknown","Unknown","Unknown","Unknown","Unknown","Unknown","Unknown","Unknown","Unknown","Unknown","Unknown","Unknown","Unknown","Unknown","Unknown","Unknown","Unknown","Unknown","Unknown","Unknown","Unknown","Unknown","CL/FL","Unknown","Unknown","Unknown","Unknown","Unknown","Unknown","Unknown","Unknown","Unknown","Unknown","Unknown","Unknown","CL/FL","Unknown","Unknown","Unknown","Unknown","Unknown","Unknown","Unknown","Unknown","Unknown","Unknown","Unknown","Unknown","Unknown","Unknown","Unknown","Unknown","Unknown","Unknown","Unknown","Unknown","Unknown","Unknown","Unknown","Unknown","Unknown","Unknown","Unknown","Unknown","Unknown","Unknown","Unknown","Unknown","Unknown","Unknown","Unknown","Unknown","Unknown","Unknown","Unknown","Unknown","Unknown","Unknown","Unknown","Unknown","Unknown","Unknown","Unknown","Unknown","Unknown","Unknown","Unknown","Unknown","Unknown","Unknown","Unknown","Unknown","Unknown","Unknown","Unknown","Unknown","Unknown","Unknown","Unknown","Unknown","Unknown","Unknown","Unknown","Unknown","Unknown","Unknown","Unknown","Unknown","Unknown","Unknown","Unknown","Unknown","Unknown","Unknown","Unknown","Unknown","Unknown","Unknown","Unknown","Unknown","Unknown","Unknown","Unknown","Unknown","Unknown","Unknown","Unknown","Unknown","Unknown","Unknown","Unknown","Unknown","Unknown","Unknown","Unknown","Unknown","Unknown"]
[null,"Tanzania","Unknown","Unknown","Unknown","Unknown","Unknown","Unknown","Unknown","Unknown","Unknown","Unknown","Unknown","Unknown","Unknown","Unknown","Unknown","Unknown","CL","Unknown","Unknown","Unknown","Unknown","Unknown","Unknown","Unknown","Unknown","Unknown","Unknown","Unknown","Unknown","CL/FL","Unknown","Unknown","Unknown","Unknown","Unknown","Unknown","Unknown","Unknown","Unknown","Unknown","CL","Unknown","Unknown","CL","Unknown","Unknown","Unknown","Unknown","Unknown","Unknown","Unknown","Unknown","Unknown","Unknown","Unknown","Unknown","CL","Unknown","Unknown","Unknown","CL/FL","Unknown","Unknown","Unknown","Unknown","Unknown","Unknown","Unknown","Unknown","Unknown","Unknown","Unknown","Unknown","Unknown","CL","Unknown","Unknown","Unknown","Unknown","Unknown","Unknown","Unknown","Unknown","Unknown","Unknown","Unknown","Unknown","Unknown","CL/FL","Unknown","Unknown","Unknown","Unknown","Unknown","CL/FL","Unknown","Unknown","Unknown","Unknown","Unknown","Unknown","Unknown","Unknown","Unknown","Unknown","Unknown","Unknown","Unknown","Unknown","Unknown","Unknown","Unknown","Unknown","Unknown","Unknown","Unknown","Unknown","Unknown","Unknown","Unknown","Unknown","Unknown","Unknown","Unknown","Unknown","Unknown","Unknown","Unknown","Unknown","CL","Unknown","Unknown","CL","Unknown","Unknown","Unknown","Unknown","CL/HR","Unknown","Unknown","Unknown","Unknown","CL","Unknown","Unknown","Unknown","Unknown","Unknown","Unknown","CL/FL","Unknown","Unknown","Unknown","Unknown","Unknown","Unknown","Unknown","Unknown","Unknown","Unknown"]
[null,"Thailand","Unknown","Unknown","Unknown","Unknown","Unknown","Unknown","Unknown","Unknown","Unknown","Unknown","Unknown","Unknown","Unknown","Unknown","Unknown","Unknown","Unknown","Unknown","Unknown","Unknown","Unknown","Unknown","Unknown","Unknown","Unknown","CL","Unknown","Unknown","Unknown","Unknown","Unknown","Unknown","Unknown","Unknown","Unknown","FL/CL","Unknown","CL","HR","CL/FL","Unknown","Unknown","HR","Unknown","Unknown","Unknown","Unknown","Unknown","Unknown","Unknown","Unknown","Unknown","Unknown","Unknown","Unknown","Unknown","Unknown","CL/FL","Unknown","Unknown","FL","Unknown","Unknown","Unknown","CL/FL","Unknown","CL/FL","Unknown","Unknown","Unknown","Unknown","HR","Unknown","Unknown","Unknown","Unknown","Unknown","Unknown","Unknown","Unknown","Unknown","Unknown","Unknown","Unknown","Unknown","Unknown","Unknown","HR","CL","Unknown","Unknown","HR","Unknown","Unknown","Unknown","Unknown","HR","Unknown","Unknown","Unknown","Unknown","Unknown","Unknown","Unknown","Unknown","Unknown","Unknown","Unknown","CL/FL","Unknown","Unknown","Unknown","Unknown","CL","Unknown","Unknown","Unknown","Unknown","HR","CL","Unknown","Unknown","Unknown","Unknown","CL/FL","Unknown","Unknown","CL/FL","Unknown","CL","Unknown","Unknown","Unknown","CL","Unknown","Unknown","Unknown","Unknown","Unknown","Unknown","Unknown","Unknown","Unknown","Unknown","Unknown","HR","CL/FL","Unknown","Unknown","FL","CL/FL","Unknown","Unknown","Unknown","Unknown","Unknown","HR","HR","Unknown","Unknown"]
[null,"Timor-Leste","Unknown","Unknown","Unknown","Unknown","Unknown","Unknown","Unknown","Unknown","Unknown","Unknown","Unknown","Unknown","Unknown","Unknown","Unknown","Unknown","CL","Unknown","Unknown","Unknown","Unknown","Unknown","Unknown","Unknown","Unknown","Unknown","Unknown","Unknown","Unknown","Unknown","Unknown","Unknown","Unknown","Unknown","Unknown","Unknown","Unknown","Unknown","Unknown","Unknown","Unknown","Unknown","Unknown","CL","Unknown","Unknown","Unknown","Unknown","Unknown","Unknown","Unknown","Unknown","Unknown","Unknown","Unknown","Unknown","Unknown","Unknown","Unknown","Unknown","FL","Unknown","Unknown","Unknown","Unknown","Unknown","Unknown","Unknown","Unknown","Unknown","Unknown","Unknown","Unknown","Unknown","Unknown","Unknown","Unknown","Unknown","Unknown","Unknown","Unknown","Unknown","Unknown","Unknown","Unknown","Unknown","Unknown","Unknown","Unknown","Unknown","Unknown","Unknown","Unknown","Unknown","Unknown","Unknown","Unknown","Unknown","Unknown","Unknown","Unknown","Unknown","Unknown","Unknown","Unknown","Unknown","Unknown","Unknown","Unknown","Unknown","Unknown","Unknown","Unknown","Unknown","Unknown","Unknown","Unknown","Unknown","Unknown","Unknown","Unknown","Unknown","Unknown","Unknown","Unknown","Unknown","Unknown","Unknown","Unknown","Unknown","Unknown","Unknown","Unknown","Unknown","Unknown","Unknown","Unknown","Unknown","Unknown","Unknown","Unknown","Unknown","Unknown","Unknown","Unknown","Unknown","Unknown","Unknown","Unknown","Unknown","Unknown","Unknown","Unknown","Unknown","Unknown","Unknown","Unknown","Unknown","Unknown","Unknown"]
[null,"Togo","Unknown","Unknown","Unknown","Unknown","Unknown","Unknown","Unknown","Unknown","Unknown","Unknown","Unknown","Unknown","Unknown","CL","Unknown","Unknown","FL","Unknown","Unknown","Unknown","Unknown","Unknown","Unknown","Unknown","Unknown","Unknown","Unknown","Unknown","Unknown","Unknown","Unknown","Unknown","Unknown","Unknown","Unknown","Unknown","Unknown","Unknown","Unknown","Unknown","Unknown","FL","Unknown","FL","Unknown","FL","Unknown","Unknown","Unknown","Unknown","Unknown","Unknown","Unknown","Unknown","Unknown","Unknown","Unknown","Unknown","FL","Unknown","Unknown","Unknown","Unknown","Unknown","Unknown","Unknown","Unknown","Unknown","Unknown","Unknown","Unknown","Unknown","Unknown","Unknown","Unknown","Unknown","Unknown","Unknown","Unknown","Unknown","Unknown","Unknown","Unknown","Unknown","Unknown","Unknown","Unknown","Unknown","Unknown","Unknown","Unknown","Unknown","Unknown","Unknown","Unknown","Unknown","Unknown","Unknown","Unknown","Unknown","Unknown","Unknown","Unknown","Unknown","Unknown","Unknown","Unknown","Unknown","Unknown","Unknown","Unknown","Unknown","Unknown","Unknown","Unknown","Unknown","Unknown","Unknown","Unknown","Unknown","Unknown","Unknown","Unknown","Unknown","Unknown","Unknown","Unknown","Unknown","Unknown","Unknown","Unknown","Unknown","Unknown","Unknown","Unknown","Unknown","Unknown","Unknown","Unknown","Unknown","Unknown","Unknown","Unknown","Unknown","Unknown","Unknown","Unknown","Unknown","Unknown","Unknown","Unknown","Unknown","Unknown","Unknown","Unknown","Unknown","Unknown","Unknown","Unknown","Unknown"]
[null,"Tonga","Unknown","Unknown","Unknown","Unknown","Unknown","Unknown","Unknown","Unknown","Unknown","Unknown","Unknown","Unknown","Unknown","Unknown","Unknown","Unknown","Unknown","Unknown","Unknown","Unknown","Unknown","Unknown","Unknown","Unknown","Unknown","Unknown","Unknown","Unknown","Unknown","Unknown","Unknown","Unknown","Unknown","Unknown","Unknown","Unknown","Unknown","Unknown","Unknown","Unknown","Unknown","Unknown","Unknown","Unknown","Unknown","Unknown","Unknown","Unknown","Unknown","Unknown","Unknown","Unknown","Unknown","Unknown","Unknown","Unknown","Unknown","Unknown","Unknown","Unknown","Unknown","Unknown","Unknown","Unknown","Unknown","Unknown","Unknown","Unknown","Unknown","Unknown","Unknown","Unknown","Unknown","Unknown","Unknown","Unknown","Unknown","Unknown","Unknown","Unknown","Unknown","Unknown","Unknown","Unknown","Unknown","Unknown","Unknown","Unknown","Unknown","Unknown","Unknown","Unknown","Unknown","Unknown","Unknown","Unknown","Unknown","Unknown","Unknown","Unknown","Unknown","Unknown","Unknown","Unknown","Unknown","Unknown","Unknown","Unknown","Unknown","Unknown","Unknown","Unknown","Unknown","Unknown","Unknown","Unknown","Unknown","Unknown","Unknown","Unknown","Unknown","Unknown","Unknown","Unknown","Unknown","Unknown","Unknown","Unknown","Unknown","Unknown","Unknown","Unknown","Unknown","Unknown","Unknown","Unknown","Unknown","Unknown","Unknown","Unknown","Unknown","Unknown","Unknown","Unknown","Unknown","Unknown","Unknown","Unknown","Unknown","Unknown","Unknown","Unknown","Unknown","Unknown","Unknown","Unknown","Unknown","Unknown","Unknown","Unknown"]
[null,"Trinidad and Tobago","Unknown","Unknown","Unknown","Unknown","Unknown","Unknown","Unknown","Unknown","Unknown","Unknown","Unknown","Unknown","Unknown","Unknown","Unknown","Unknown","Unknown","Unknown","Unknown","Unknown","Unknown","Unknown","Unknown","Unknown","Unknown","Unknown","Unknown","Unknown","Unknown","Unknown","Unknown","Unknown","Unknown","Unknown","Unknown","Unknown","Unknown","Unknown","Unknown","Unknown","Unknown","Unknown","Unknown","Unknown","Unknown","Unknown","Unknown","Unknown","Unknown","Unknown","Unknown","Unknown","Unknown","Unknown","Unknown","Unknown","Unknown","Unknown","Unknown","Unknown","Unknown","Unknown","Unknown","Unknown","Unknown","Unknown","Unknown","Unknown","Unknown","Unknown","Unknown","Unknown","Unknown","Unknown","Unknown","Unknown","Unknown","Unknown","Unknown","Unknown","Unknown","Unknown","Unknown","Unknown","Unknown","Unknown","Unknown","Unknown","Unknown","Unknown","Unknown","Unknown","Unknown","Unknown","Unknown","Unknown","Unknown","Unknown","Unknown","Unknown","Unknown","Unknown","Unknown","Unknown","Unknown","Unknown","Unknown","Unknown","Unknown","Unknown","Unknown","Unknown","Unknown","Unknown","Unknown","Unknown","Unknown","Unknown","Unknown","Unknown","Unknown","Unknown","Unknown","Unknown","Unknown","Unknown","Unknown","Unknown","Unknown","Unknown","Unknown","Unknown","Unknown","Unknown","Unknown","Unknown","Unknown","Unknown","Unknown","Unknown","Unknown","Unknown","Unknown","Unknown","Unknown","Unknown","Unknown","Unknown","Unknown","FL","Unknown","Unknown","Unknown","Unknown","Unknown","Unknown","Unknown","Unknown","Unknown","Unknown"]
[null,"Tunisia","Unknown","Unknown","Unknown","Unknown","Unknown","Unknown","Unknown","Unknown","Unknown","Unknown","Unknown","Unknown","Unknown","Unknown","Unknown","Unknown","Unknown","Unknown","HR","Unknown","Unknown","Unknown","Unknown","Unknown","Unknown","Unknown","Unknown","Unknown","Unknown","Unknown","Unknown","Unknown","Unknown","Unknown","Unknown","Unknown","Unknown","Unknown","Unknown","Unknown","Unknown","Unknown","Unknown","Unknown","Unknown","Unknown","Unknown","HR","Unknown","Unknown","Unknown","Unknown","Unknown","Unknown","Unknown","Unknown","Unknown","Unknown","Unknown","Unknown","Unknown","Unknown","Unknown","Unknown","HR","Unknown","Unknown","Unknown","Unknown","Unknown","Unknown","Unknown","Unknown","Unknown","Unknown","Unknown","Unknown","Unknown","Unknown","Unknown","Unknown","Unknown","Unknown","Unknown","Unknown","Unknown","Unknown","Unknown","Unknown","Unknown","Unknown","Unknown","Unknown","Unknown","Unknown","Unknown","Unknown","Unknown","HR","Unknown","Unknown","Unknown","Unknown","Unknown","Unknown","Unknown","Unknown","Unknown","Unknown","Unknown","Unknown","Unknown","Unknown","Unknown","Unknown","Unknown","Unknown","Unknown","Unknown","Unknown","Unknown","Unknown","Unknown","Unknown","Unknown","Unknown","Unknown","Unknown","Unknown","Unknown","Unknown","Unknown","Unknown","Unknown","Unknown","Unknown","Unknown","Unknown","Unknown","Unknown","Unknown","Unknown","Unknown","Unknown","Unknown","Unknown","Unknown","Unknown","Unknown","Unknown","Unknown","Unknown","Unknown","Unknown","HR","Unknown","Unknown","Unknown","Unknown","Unknown"]
[null,"Turkey","Unknown","Unknown","CL","Unknown","Unknown","Unknown","Unknown","Unknown","Unknown","Unknown","Unknown","Unknown","Unknown","CL","Unknown","CL","Unknown","Unknown","CL","Unknown","Unknown","Unknown","Unknown","Unknown","Unknown","Unknown","Unknown","Unknown","Unknown","Unknown","Unknown","Unknown","Unknown","CL","Unknown","Unknown","Unknown","Unknown","CL","CL","Unknown","Unknown","Unknown","Unknown","Unknown","CL","Unknown","Unknown","CL","Unknown","Unknown","Unknown","Unknown","Unknown","Unknown","Unknown","Unknown","Unknown","CL","Unknown","Unknown","Unknown","Unknown","CL","CL","Unknown","CL","Unknown","Unknown","Unknown","Unknown","Unknown","Unknown","CL","CL","Unknown","Unknown","Unknown","Unknown","Unknown","Unknown","Unknown","Unknown","Unknown","Unknown","Unknown","Unknown","Unknown","Unknown","CL","Unknown","Unknown","Unknown","CL/FL","Unknown","Unknown","Unknown","Unknown","Unknown","Unknown","CL","Unknown","Unknown","Unknown","CL","Unknown","Unknown","Unknown","Unknown","Unknown","Unknown","Unknown","Unknown","Unknown","Unknown","Unknown","Unknown","Unknown","Unknown","Unknown","Unknown","Unknown","Unknown","Unknown","Unknown","Unknown","Unknown","Unknown","Unknown","CL","Unknown","Unknown","Unknown","CL","Unknown","Unknown","Unknown","Unknown","Unknown","Unknown","Unknown","Unknown","Unknown","Unknown","Unknown","CL","Unknown","Unknown","Unknown","Unknown","Unknown","Unknown","Unknown","Unknown","Unknown","Unknown","Unknown","Unknown","Unknown","Unknown"]
[null,"Turkmenistan","Unknown","Unknown","Unknown","Unknown","Unknown","Unknown","Unknown","Unknown","Unknown","Unknown","Unknown","Unknown","Unknown","Unknown","Unknown","Unknown","Unknown","Unknown","Unknown","Unknown","Unknown","Unknown","Unknown","Unknown","Unknown","Unknown","Unknown","Unknown","Unknown","Unknown","Unknown","Unknown","Unknown","Unknown","Unknown","Unknown","Unknown","Unknown","Unknown","Unknown","Unknown","Unknown","Unknown","Unknown","Unknown","CL/FL","Unknown","Unknown","Unknown","Unknown","Unknown","Unknown","Unknown","Unknown","Unknown","Unknown","Unknown","Unknown","CL/FL","Unknown","Unknown","Unknown","Unknown","Unknown","Unknown","Unknown","Unknown","Unknown","Unknown","Unknown","Unknown","Unknown","Unknown","Unknown","Unknown","Unknown","Unknown","Unknown","Unknown","Unknown","Unknown","Unknown","Unknown","Unknown","Unknown","Unknown","Unknown","Unknown","Unknown","Unknown","Unknown","Unknown","Unknown","Unknown","Unknown","Unknown","Unknown","Unknown","Unknown","Unknown","Unknown","Unknown","Unknown","Unknown","Unknown","Unknown","Unknown","Unknown","Unknown","Unknown","Unknown","Unknown","Unknown","Unknown","Unknown","Unknown","Unknown","Unknown","Unknown","Unknown","Unknown","Unknown","Unknown","Unknown","Unknown","Unknown","Unknown","Unknown","Unknown","Unknown","Unknown","Unknown","Unknown","Unknown","Unknown","Unknown","Unknown","Unknown","Unknown","Unknown","Unknown","Unknown","Unknown","Unknown","Unknown","Unknown","Unknown","Unknown","Unknown","Unknown","Unknown","Unknown","Unknown","Unknown","Unknown","Unknown","Unknown","Unknown","Unknown","Unknown"]
[null,"Tuvalu","Unknown","Unknown","Unknown","Unknown","Unknown","Unknown","Unknown","Unknown","Unknown","Unknown","Unknown","Unknown","Unknown","Unknown","Unknown","Unknown","Unknown","Unknown","Unknown","Unknown","Unknown","Unknown","Unknown","Unknown","Unknown","Unknown","Unknown","Unknown","Unknown","Unknown","Unknown","Unknown","Unknown","Unknown","Unknown","Unknown","Unknown","Unknown","Unknown","Unknown","Unknown","Unknown","Unknown","Unknown","Unknown","Unknown","Unknown","Unknown","Unknown","Unknown","Unknown","Unknown","Unknown","Unknown","Unknown","Unknown","Unknown","Unknown","Unknown","Unknown","CL","Unknown","Unknown","Unknown","Unknown","Unknown","Unknown","Unknown","Unknown","Unknown","Unknown","Unknown","Unknown","Unknown","Unknown","Unknown","Unknown","Unknown","Unknown","Unknown","Unknown","Unknown","Unknown","Unknown","Unknown","Unknown","Unknown","Unknown","Unknown","Unknown","Unknown","Unknown","Unknown","Unknown","Unknown","Unknown","Unknown","Unknown","Unknown","Unknown","Unknown","Unknown","Unknown","Unknown","Unknown","Unknown","Unknown","Unknown","Unknown","Unknown","Unknown","Unknown","Unknown","Unknown","Unknown","Unknown","Unknown","Unknown","Unknown","Unknown","Unknown","Unknown","Unknown","Unknown","Unknown","Unknown","Unknown","Unknown","Unknown","Unknown","Unknown","Unknown","Unknown","Unknown","Unknown","Unknown","Unknown","Unknown","Unknown","Unknown","Unknown","Unknown","Unknown","Unknown","Unknown","Unknown","Unknown","Unknown","Unknown","Unknown","Unknown","Unknown","Unknown","Unknown","Unknown","Unknown","Unknown","Unknown","Unknown","Unknown"]
[null,"Uganda","Unknown","Unknown","Unknown","Unknown","Unknown","Unknown","Unknown","Unknown","Unknown","Unknown","Unknown","Unknown","Unknown","Unknown","Unknown","Unknown","CL/HR","Unknown","Unknown","Unknown","Unknown","Unknown","Unknown","Unknown","Unknown","CL","Unknown","Unknown","Unknown","CL","CL","CL","Unknown","Unknown","Unknown","Unknown","Unknown","Unknown","Unknown","Unknown","Unknown","CL/HR","Unknown","CL","CL","Unknown","Unknown","Unknown","Unknown","Unknown","Unknown","Unknown","Unknown","Unknown","Unknown","Unknown","Unknown","Unknown","Unknown","Unknown","CL","Unknown","Unknown","Unknown","Unknown","Unknown","Unknown","Unknown","CL","Unknown","Unknown","Unknown","Unknown","Unknown","Unknown","Unknown","Unknown","Unknown","Unknown","Unknown","Unknown","Unknown","Unknown","Unknown","Unknown","Unknown","Unknown","Unknown","CL","Unknown","Unknown","Unknown","Unknown","Unknown","Unknown","Unknown","Unknown","Unknown","Unknown","Unknown","Unknown","Unknown","Unknown","Unknown","Unknown","Unknown","Unknown","Unknown","Unknown","Unknown","Unknown","Unknown","Unknown","Unknown","Unknown","Unknown","Unknown","Unknown","CL","Unknown","Unknown","Unknown","Unknown","Unknown","Unknown","Unknown","Unknown","Unknown","Unknown","CL","Unknown","Unknown","CL","CL","Unknown","Unknown","Unknown","CL","Unknown","Unknown","Unknown","Unknown","CL","Unknown","Unknown","Unknown","Unknown","Unknown","Unknown","CL","Unknown","Unknown","CL","CL","Unknown","Unknown","Unknown","Unknown","Unknown","Unknown"]
[null,"Ukraine","Unknown","Unknown","Unknown","Unknown","Unknown","Unknown","Unknown","Unknown","Unknown","Unknown","Unknown","HR","Unknown","HR","Unknown","Unknown","Unknown","Unknown","HR","Unknown","Unknown","Unknown","Unknown","Unknown","Unknown","Unknown","Unknown","Unknown","Unknown","Unknown","HR","Unknown","Unknown","Unknown","Unknown","Unknown","Unknown","Unknown","Unknown","Unknown","Unknown","Unknown","Unknown","Unknown","HR","Unknown","Unknown","HR","Unknown","Unknown","Unknown","Unknown","Unknown","Unknown","Unknown","Unknown","Unknown","Unknown","Unknown","Unknown","Unknown","Unknown","Unknown","Unknown","HR","Unknown","Unknown","Unknown","Unknown","Unknown","Unknown","Unknown","Unknown","Unknown","Unknown","Unknown","Unknown","Unknown","Unknown","Unknown","Unknown","Unknown","Unknown","Unknown","Unknown","Unknown","Unknown","Unknown","Unknown","Unknown","Unknown","Unknown","Unknown","Unknown","Unknown","Unknown","Unknown","Unknown","Unknown","Unknown","Unknown","Unknown","Unknown","Unknown","Unknown","Unknown","Unknown","Unknown","Unknown","Unknown","Unknown","Unknown","Unknown","Unknown","Unknown","Unknown","Unknown","Unknown","Unknown","Unknown","Unknown","Unknown","Unknown","Unknown","Unknown","Unknown","Unknown","Unknown","HR","Unknown","Unknown","Unknown","Unknown","Unknown","Unknown","HR","Unknown","Unknown","Unknown","Unknown","Unknown","Unknown","Unknown","Unknown","Unknown","Unknown","Unknown","Unknown","HR","Unknown","Unknown","Unknown","Unknown","Unknown","HR","Unknown","Unknown","Unknown","Unknown","Unknown"]
[null,"United Arab Emirates","Unknown","Unknown","Unknown","Unknown","Unknown","Unknown","Unknown","Unknown","Unknown","Unknown","Unknown","Unknown","Unknown","Unknown","Unknown","Unknown","Unknown","Unknown","Unknown","Unknown","Unknown","Unknown","Unknown","Unknown","Unknown","Unknown","Unknown","Unknown","Unknown","Unknown","Unknown","Unknown","Unknown","Unknown","Unknown","Unknown","Unknown","Unknown","Unknown","Unknown","Unknown","Unknown","Unknown","Unknown","Unknown","Unknown","Unknown","Unknown","Unknown","Unknown","Unknown","Unknown","Unknown","Unknown","Unknown","Unknown","Unknown","Unknown","Unknown","Unknown","Unknown","Unknown","Unknown","Unknown","Unknown","Unknown","Unknown","Unknown","Unknown","Unknown","Unknown","Unknown","Unknown","Unknown","Unknown","Unknown","Unknown","Unknown","Unknown","Unknown","Unknown","Unknown","Unknown","Unknown","Unknown","Unknown","Unknown","Unknown","Unknown","Unknown","Unknown","Unknown","Unknown","Unknown","Unknown","Unknown","Unknown","Unknown","Unknown","Unknown","Unknown","Unknown","Unknown","Unknown","Unknown","Unknown","Unknown","Unknown","Unknown","Unknown","Unknown","Unknown","Unknown","Unknown","Unknown","Unknown","Unknown","Unknown","Unknown","Unknown","Unknown","Unknown","Unknown","Unknown","Unknown","Unknown","Unknown","Unknown","Unknown","Unknown","Unknown","Unknown","Unknown","Unknown","Unknown","Unknown","Unknown","Unknown","Unknown","Unknown","Unknown","Unknown","Unknown","Unknown","Unknown","Unknown","Unknown","Unknown","Unknown","Unknown","Unknown","Unknown","Unknown","Unknown","Unknown","Unknown","Unknown","Unknown","Unknown","Unknown"]
[null,"United Kingdom","Unknown","Unknown","Unknown","Unknown","Unknown","Unknown","Unknown","Unknown","Unknown","Unknown","Unknown","Unknown","Unknown","Unknown","Unknown","Unknown","Unknown","Unknown","Unknown","Unknown","Unknown","Unknown","Unknown","Unknown","Unknown","Unknown","Unknown","Unknown","Unknown","Unknown","Unknown","Unknown","Unknown","Unknown","Unknown","Unknown","Unknown","Unknown","Unknown","Unknown","Unknown","Unknown","Unknown","Unknown","Unknown","Unknown","Unknown","Unknown","Unknown","Unknown","Unknown","Unknown","Unknown","Unknown","Unknown","Unknown","Unknown","Unknown","Unknown","Unknown","FL","Unknown","Unknown","Unknown","Unknown","Unknown","Unknown","Unknown","Unknown","Unknown","Unknown","Unknown","Unknown","Unknown","Unknown","Unknown","Unknown","Unknown","Unknown","Unknown","Unknown","Unknown","Unknown","Unknown","Unknown","Unknown","Unknown","Unknown","Unknown","Unknown","Unknown","Unknown","Unknown","Unknown","Unknown","Unknown","Unknown","Unknown","Unknown","Unknown","Unknown","Unknown","Unknown","Unknown","Unknown","Unknown","Unknown","Unknown","Unknown","Unknown","Unknown","Unknown","Unknown","Unknown","Unknown","Unknown","Unknown","Unknown","Unknown","Unknown","Unknown","Unknown","Unknown","Unknown","Unknown","Unknown","Unknown","Unknown","Unknown","Unknown","Unknown","Unknown","Unknown","Unknown","Unknown","Unknown","Unknown","Unknown","Unknown","Unknown","Unknown","Unknown","Unknown","Unknown","Unknown","Unknown","Unknown","Unknown","Unknown","Unknown","Unknown","Unknown","Unknown","Unknown","Unknown","Unknown","Unknown","Unknown","Unknown","Unknown"]
[null,"United States","Unknown","Unknown","Unknown","Unknown","Unknown","Unknown","Unknown","Unknown","Unknown","Unknown","Unknown","Unknown","Unknown","Unknown","Unknown","Unknown","Unknown","Unknown","CL","Unknown","Unknown","Unknown","Unknown","Unknown","Unknown","Unknown","Unknown","Unknown","Unknown","Unknown","CL","Unknown","Unknown","Unknown","Unknown","Unknown","Unknown","Unknown","CL/FL","Unknown","Unknown","Unknown","Unknown","Unknown","CL","Unknown","Unknown","Unknown","Unknown","Unknown","Unknown","Unknown","Unknown","Unknown","Unknown","Unknown","Unknown","Unknown","Unknown","Unknown","FL","FL","Unknown","Unknown","CL/FL","Unknown","Unknown","Unknown","Unknown","Unknown","Unknown","Unknown","Unknown","Unknown","Unknown","Unknown","Unknown","Unknown","Unknown","Unknown","Unknown","Unknown","Unknown","Unknown","Unknown","Unknown","Unknown","Unknown","Unknown","CL","Unknown","Unknown","Unknown","Unknown","Unknown","Unknown","Unknown","Unknown","Unknown","Unknown","Unknown","Unknown","Unknown","Unknown","Unknown","Unknown","Unknown","Unknown","FL","Unknown","Unknown","Unknown","Unknown","Unknown","Unknown","Unknown","Unknown","Unknown","Unknown","Unknown","Unknown","Unknown","Unknown","Unknown","Unknown","Unknown","Unknown","Unknown","Unknown","Unknown","Unknown","CL","Unknown","Unknown","Unknown","Unknown","Unknown","Unknown","Unknown","Unknown","Unknown","Unknown","CL","FL","Unknown","Unknown","FL","Unknown","Unknown","Unknown","Unknown","Unknown","Unknown","Unknown","Unknown","Unknown","FL","FL","Unknown","Unknown"]
[null,"Uruguay","Unknown","Unknown","Unknown","Unknown","Unknown","Unknown","Unknown","Unknown","Unknown","Unknown","Unknown","Unknown","Unknown","Unknown","Unknown","Unknown","Unknown","Unknown","Unknown","Unknown","Unknown","Unknown","Unknown","Unknown","Unknown","Unknown","Unknown","Unknown","Unknown","Unknown","Unknown","Unknown","Unknown","Unknown","Unknown","Unknown","Unknown","Unknown","Unknown","Unknown","Unknown","Unknown","Unknown","Unknown","Unknown","Unknown","Unknown","Unknown","Unknown","Unknown","Unknown","Unknown","Unknown","Unknown","Unknown","Unknown","Unknown","Unknown","Unknown","Unknown","CL","Unknown","Unknown","Unknown","Unknown","Unknown","Unknown","Unknown","Unknown","Unknown","Unknown","Unknown","Unknown","Unknown","Unknown","Unknown","Unknown","Unknown","Unknown","Unknown","Unknown","Unknown","Unknown","Unknown","Unknown","Unknown","Unknown","Unknown","Unknown","Unknown","Unknown","Unknown","Unknown","Unknown","Unknown","Unknown","Unknown","Unknown","Unknown","Unknown","Unknown","Unknown","Unknown","Unknown","Unknown","Unknown","Unknown","Unknown","Unknown","Unknown","Unknown","Unknown","Unknown","Unknown","Unknown","Unknown","Unknown","Unknown","Unknown","Unknown","Unknown","Unknown","Unknown","Unknown","Unknown","Unknown","Unknown","Unknown","Unknown","Unknown","Unknown","Unknown","Unknown","Unknown","Unknown","Unknown","Unknown","Unknown","Unknown","Unknown","Unknown","Unknown","Unknown","Unknown","Unknown","Unknown","Unknown","Unknown","Unknown","Unknown","Unknown","Unknown","Unknown","Unknown","Unknown","Unknown","Unknown","Unknown","Unknown","Unknown"]
[null,"Uzbekistan","Unknown","Unknown","Unknown","Unknown","Unknown","Unknown","Unknown","Unknown","Unknown","Unknown","Unknown","Unknown","Unknown","Unknown","Unknown","Unknown","Unknown","Unknown","Unknown","Unknown","Unknown","Unknown","Unknown","Unknown","Unknown","Unknown","Unknown","Unknown","Unknown","Unknown","Unknown","Unknown","Unknown","Unknown","Unknown","Unknown","Unknown","Unknown","Unknown","Unknown","Unknown","Unknown","Unknown","Unknown","Unknown","FL","Unknown","Unknown","Unknown","Unknown","Unknown","Unknown","Unknown","Unknown","Unknown","Unknown","Unknown","Unknown","FL","Unknown","Unknown","Unknown","Unknown","Unknown","Unknown","Unknown","Unknown","Unknown","Unknown","Unknown","Unknown","Unknown","Unknown","Unknown","Unknown","Unknown","Unknown","Unknown","Unknown","Unknown","Unknown","Unknown","Unknown","Unknown","Unknown","Unknown","Unknown","Unknown","Unknown","Unknown","Unknown","Unknown","Unknown","Unknown","Unknown","Unknown","Unknown","Unknown","Unknown","Unknown","Unknown","Unknown","Unknown","Unknown","Unknown","Unknown","Unknown","Unknown","Unknown","Unknown","Unknown","Unknown","Unknown","Unknown","Unknown","Unknown","Unknown","Unknown","Unknown","Unknown","Unknown","Unknown","Unknown","Unknown","Unknown","Unknown","Unknown","Unknown","Unknown","Unknown","Unknown","Unknown","Unknown","Unknown","Unknown","Unknown","Unknown","Unknown","Unknown","Unknown","Unknown","Unknown","Unknown","Unknown","Unknown","Unknown","Unknown","Unknown","Unknown","Unknown","Unknown","Unknown","Unknown","Unknown","Unknown","Unknown","Unknown","Unknown","Unknown","Unknown"]
[null,"Vanuatu","Unknown","Unknown","Unknown","Unknown","Unknown","Unknown","Unknown","Unknown","Unknown","Unknown","Unknown","Unknown","Unknown","Unknown","Unknown","Unknown","Unknown","Unknown","Unknown","Unknown","Unknown","Unknown","Unknown","Unknown","Unknown","Unknown","Unknown","Unknown","Unknown","Unknown","Unknown","Unknown","Unknown","Unknown","Unknown","Unknown","Unknown","Unknown","Unknown","Unknown","Unknown","Unknown","Unknown","Unknown","Unknown","Unknown","Unknown","Unknown","Unknown","Unknown","Unknown","Unknown","Unknown","Unknown","Unknown","Unknown","Unknown","Unknown","Unknown","Unknown","Unknown","Unknown","Unknown","Unknown","Unknown","Unknown","Unknown","Unknown","Unknown","Unknown","Unknown","Unknown","Unknown","Unknown","Unknown","Unknown","Unknown","Unknown","Unknown","Unknown","Unknown","Unknown","Unknown","Unknown","Unknown","Unknown","Unknown","Unknown","Unknown","Unknown","Unknown","Unknown","Unknown","Unknown","Unknown","Unknown","Unknown","Unknown","Unknown","Unknown","Unknown","Unknown","Unknown","Unknown","Unknown","Unknown","Unknown","Unknown","Unknown","Unknown","Unknown","Unknown","Unknown","Unknown","Unknown","Unknown","Unknown","Unknown","Unknown","Unknown","Unknown","Unknown","Unknown","Unknown","Unknown","Unknown","Unknown","Unknown","Unknown","Unknown","Unknown","Unknown","Unknown","Unknown","Unknown","Unknown","Unknown","Unknown","Unknown","Unknown","Unknown","Unknown","Unknown","Unknown","Unknown","Unknown","Unknown","Unknown","Unknown","Unknown","Unknown","Unknown","Unknown","Unknown","Unknown","Unknown","Unknown","Unknown","Unknown","Unknown"]
[null,"Venezuela","Unknown","Unknown","Unknown","Unknown","Unknown","Unknown","Unknown","Unknown","Unknown","Unknown","Unknown","Unknown","Unknown","Unknown","Unknown","Unknown","Unknown","Unknown","Unknown","Unknown","Unknown","Unknown","Unknown","Unknown","Unknown","Unknown","Unknown","Unknown","Unknown","Unknown","Unknown","Unknown","Unknown","Unknown","Unknown","Unknown","Unknown","Unknown","Unknown","Unknown","Unknown","Unknown","Unknown","Unknown","Unknown","Unknown","Unknown","Unknown","Unknown","Unknown","Unknown","Unknown","Unknown","Unknown","Unknown","Unknown","Unknown","Unknown","Unknown","Unknown","CL","Unknown","Unknown","Unknown","Unknown","Unknown","Unknown","Unknown","Unknown","Unknown","Unknown","Unknown","Unknown","Unknown","Unknown","Unknown","Unknown","Unknown","Unknown","Unknown","Unknown","Unknown","Unknown","Unknown","Unknown","Unknown","Unknown","Unknown","Unknown","Unknown","Unknown","Unknown","Unknown","Unknown","Unknown","Unknown","Unknown","Unknown","Unknown","Unknown","Unknown","Unknown","Unknown","Unknown","Unknown","Unknown","Unknown","Unknown","Unknown","Unknown","Unknown","Unknown","Unknown","Unknown","Unknown","Unknown","Unknown","Unknown","Unknown","Unknown","Unknown","Unknown","Unknown","Unknown","Unknown","Unknown","Unknown","Unknown","Unknown","Unknown","Unknown","Unknown","FL","Unknown","Unknown","Unknown","Unknown","Unknown","Unknown","Unknown","Unknown","Unknown","Unknown","Unknown","Unknown","Unknown","Unknown","Unknown","Unknown","Unknown","Unknown","Unknown","Unknown","Unknown","Unknown","Unknown","Unknown","Unknown","Unknown","Unknown"]
[null,"Vietnam","Unknown","Unknown","Unknown","Unknown","Unknown","Unknown","Unknown","Unknown","Unknown","FL","Unknown","Unknown","Unknown","Unknown","Unknown","Unknown","CL","Unknown","Unknown","CL","Unknown","Unknown","Unknown","Unknown","Unknown","CL","Unknown","Unknown","CL","Unknown","Unknown","Unknown","Unknown","Unknown","Unknown","Unknown","Unknown","Unknown","Unknown","CL/FL","Unknown","Unknown","HR","CL","Unknown","Unknown","Unknown","Unknown","Unknown","Unknown","Unknown","Unknown","Unknown","Unknown","Unknown","Unknown","Unknown","Unknown","Unknown","Unknown","CL/FL","Unknown","Unknown","CL","Unknown","Unknown","CL/FL","Unknown","Unknown","Unknown","Unknown","Unknown","Unknown","Unknown","Unknown","Unknown","Unknown","Unknown","Unknown","Unknown","Unknown","Unknown","Unknown","Unknown","Unknown","Unknown","Unknown","Unknown","Unknown","Unknown","Unknown","Unknown","Unknown","CL","Unknown","Unknown","HR","Unknown","Unknown","Unknown","Unknown","Unknown","Unknown","Unknown","Unknown","Unknown","Unknown","Unknown","Unknown","Unknown","Unknown","Unknown","Unknown","Unknown","Unknown","Unknown","Unknown","Unknown","CL","CL","Unknown","Unknown","Unknown","Unknown","Unknown","Unknown","Unknown","Unknown","Unknown","CL","Unknown","Unknown","Unknown","CL","Unknown","Unknown","Unknown","CL","CL","Unknown","Unknown","CL","Unknown","Unknown","Unknown","Unknown","Unknown","Unknown","Unknown","CL","Unknown","Unknown","CL","Unknown","Unknown","Unknown","Unknown","Unknown","Unknown","Unknown"]
[null,"Yemen","Unknown","Unknown","Unknown","Unknown","Unknown","Unknown","Unknown","Unknown","Unknown","Unknown","Unknown","Unknown","Unknown","Unknown","Unknown","Unknown","Unknown","Unknown","Unknown","Unknown","Unknown","Unknown","Unknown","Unknown","Unknown","Unknown","Unknown","Unknown","Unknown","Unknown","Unknown","Unknown","Unknown","Unknown","Unknown","Unknown","Unknown","Unknown","Unknown","Unknown","Unknown","Unknown","Unknown","Unknown","Unknown","Unknown","Unknown","Unknown","Unknown","Unknown","Unknown","Unknown","Unknown","Unknown","Unknown","Unknown","Unknown","Unknown","Unknown","Unknown","CL","Unknown","Unknown","Unknown","HR","Unknown","Unknown","Unknown","Unknown","Unknown","Unknown","Unknown","Unknown","Unknown","Unknown","Unknown","Unknown","Unknown","Unknown","Unknown","Unknown","Unknown","Unknown","Unknown","Unknown","Unknown","Unknown","HR","Unknown","Unknown","Unknown","Unknown","Unknown","Unknown","Unknown","Unknown","Unknown","Unknown","Unknown","Unknown","Unknown","Unknown","Unknown","Unknown","Unknown","Unknown","Unknown","Unknown","Unknown","Unknown","Unknown","Unknown","Unknown","Unknown","Unknown","Unknown","Unknown","Unknown","Unknown","Unknown","Unknown","Unknown","Unknown","Unknown","Unknown","Unknown","Unknown","Unknown","Unknown","Unknown","Unknown","Unknown","Unknown","Unknown","Unknown","Unknown","Unknown","Unknown","Unknown","Unknown","Unknown","Unknown","Unknown","Unknown","Unknown","Unknown","HR","Unknown","Unknown","CL","Unknown","Unknown","Unknown","Unknown","Unknown","Unknown","Unknown","Unknown","Unknown","Unknown"]
[null,"Zambia","Unknown","Unknown","Unknown","Unknown","Unknown","Unknown","Unknown","Unknown","Unknown","Unknown","Unknown","Unknown","Unknown","Unknown","Unknown","Unknown","Unknown","Unknown","Unknown","Unknown","Unknown","Unknown","Unknown","Unknown","Unknown","Unknown","Unknown","Unknown","Unknown","CL","Unknown","Unknown","Unknown","Unknown","Unknown","Unknown","Unknown","Unknown","Unknown","Unknown","Unknown","Unknown","Unknown","Unknown","Unknown","CL","Unknown","Unknown","Unknown","Unknown","Unknown","Unknown","Unknown","Unknown","Unknown","Unknown","Unknown","Unknown","CL","Unknown","Unknown","Unknown","Unknown","Unknown","Unknown","Unknown","Unknown","Unknown","CL","Unknown","Unknown","Unknown","Unknown","Unknown","Unknown","Unknown","Unknown","Unknown","Unknown","Unknown","Unknown","Unknown","Unknown","Unknown","Unknown","Unknown","Unknown","Unknown","CL","Unknown","Unknown","Unknown","Unknown","Unknown","Unknown","Unknown","Unknown","Unknown","Unknown","Unknown","Unknown","Unknown","Unknown","Unknown","Unknown","Unknown","Unknown","Unknown","Unknown","Unknown","Unknown","Unknown","Unknown","Unknown","Unknown","Unknown","Unknown","Unknown","Unknown","Unknown","Unknown","Unknown","Unknown","Unknown","Unknown","Unknown","Unknown","Unknown","Unknown","Unknown","Unknown","Unknown","CL","Unknown","Unknown","Unknown","Unknown","Unknown","Unknown","Unknown","Unknown","Unknown","CL","Unknown","Unknown","Unknown","Unknown","Unknown","Unknown","Unknown","Unknown","Unknown","Unknown","Unknown","Unknown","Unknown","Unknown","Unknown","Unknown","Unknown"]
[null,"Zimbabwe","Unknown","Unknown","Unknown","Unknown","Unknown","Unknown","Unknown","Unknown","Unknown","Unknown","Unknown","Unknown","Unknown","Unknown","Unknown","Unknown","CL","Unknown","Unknown","Unknown","Unknown","Unknown","Unknown","Unknown","Unknown","CL","Unknown","Unknown","Unknown","CL","CL","Unknown","Unknown","Unknown","Unknown","Unknown","Unknown","Unknown","Unknown","Unknown","Unknown","Unknown","Unknown","Unknown","CL","CL","Unknown","Unknown","Unknown","Unknown","Unknown","Unknown","Unknown","Unknown","Unknown","Unknown","Unknown","Unknown","CL","Unknown","CL","Unknown","Unknown","Unknown","Unknown","Unknown","Unknown","Unknown","Unknown","Unknown","Unknown","Unknown","Unknown","Unknown","Unknown","Unknown","Unknown","Unknown","Unknown","Unknown","Unknown","Unknown","Unknown","Unknown","Unknown","Unknown","Unknown","Unknown","Unknown","Unknown","Unknown","Unknown","Unknown","Unknown","Unknown","Unknown","Unknown","Unknown","Unknown","Unknown","Unknown","Unknown","Unknown","Unknown","Unknown","Unknown","Unknown","Unknown","Unknown","Unknown","Unknown","Unknown","Unknown","Unknown","Unknown","Unknown","Unknown","Unknown","Unknown","Unknown","Unknown","Unknown","Unknown","Unknown","Unknown","Unknown","Unknown","Unknown","Unknown","Unknown","Unknown","Unknown","Unknown","CL","Unknown","Unknown","Unknown","CL","Unknown","Unknown","Unknown","Unknown","CL","Unknown","Unknown","Unknown","Unknown","Unknown","Unknown","Unknown","Unknown","Unknown","Unknown","Unknown","Unknown","Unknown","Unknown","Unknown","Unknown","Unknown"]
[]
[]
[]
[null,null,"The information contained in this assessment is given by way of general guidance and does not constitute legal advice. Circumstances may differ and detailed legal advice should be obtained before acting upon it. The Food Network for Ethical Trade and HCL cannot accept responsibility for any errors or omissions or for any loss occasioned to any person or body acting or refraining from acting on the basis of any material contained in this publication. "]
[]
[null,"States with no country risk score are provided below for information purposes only. These are not included in the risk assessment."]
[null,"Sint Maarten",null,null,"Unknown","Unknown","Unknown",null,"Unknown","Unknown","Unknown","Unknown","Unknown","Unknown","Unknown","Unknown","Unknown","Unknown","Unknown","Unknown","Unknown","Unknown","Unknown","Unknown","Unknown","Unknown","Unknown","Unknown","Unknown","Unknown","Unknown","Unknown","Unknown","Unknown","Unknown","Unknown","Unknown","Unknown","Unknown","Unknown","Unknown","Unknown","Unknown","Unknown","Unknown","Unknown","Unknown","Unknown","Unknown","Unknown","Unknown","Unknown","Unknown","Unknown","Unknown","Unknown","Unknown","Unknown","Unknown","Unknown",null,"Unknown","Unknown","Unknown",null,"Unknown","Unknown","Unknown","Unknown","Unknown","Unknown","Unknown","Unknown","Unknown","Unknown","Unknown","Unknown",null,"Unknown","Unknown","Unknown",null,"Unknown","Unknown","Unknown","Unknown","Unknown","Unknown","Unknown","Unknown","Unknown","Unknown","Unknown","Unknown","Unknown","Unknown","Unknown","Unknown","Unknown","Unknown","Unknown","Unknown","Unknown",null,"Unknown","Unknown","Unknown","Unknown","Unknown","Unknown","Unknown","Unknown","Unknown","Unknown","Unknown","Unknown",null,"Unknown","Unknown","Unknown","Unknown","Unknown","Unknown",null,"Unknown","Unknown"]
[null,"Puerto Rico",null,null,"Unknown","Unknown","Unknown",null,"Unknown","Unknown","Unknown","Unknown","Unknown","Unknown","Unknown","Unknown","Unknown","Unknown","Unknown","Unknown","Unknown","Unknown","Unknown","Unknown","Unknown","Unknown","Unknown","Unknown","Unknown","Unknown","Unknown","Unknown","Unknown","Unknown","Unknown","Unknown","Unknown","Unknown","Unknown","Unknown","Unknown","Unknown","Unknown","Unknown","Unknown","Unknown","Unknown","Unknown","Unknown","Unknown","Unknown","Unknown","Unknown","Unknown","Unknown","Unknown","Unknown","Unknown","Unknown","Unknown",null,"Unknown","Unknown","Unknown",null,"Unknown","Unknown","Unknown","Unknown","Unknown","Unknown","Unknown","Unknown","Unknown","Unknown","Unknown","Unknown",null,"Unknown","Unknown","Unknown",null,"Unknown","Unknown","Unknown","Unknown","Unknown","Unknown","Unknown","Unknown","Unknown","Unknown","Unknown","Unknown","Unknown","Unknown","Unknown","Unknown","Unknown","Unknown","Unknown","Unknown","Unknown",null,"Unknown","Unknown","Unknown","Unknown","Unknown","Unknown","Unknown","Unknown","Unknown","Unknown","Unknown","Unknown",null,"Unknown","Unknown","Unknown","Unknown","Unknown","Unknown",null,"Unknown","Unknown"]
[null,"Holy See",null,null,"Unknown","Unknown","Unknown",null,"Unknown","Unknown","Unknown","Unknown","Unknown","Unknown","Unknown","Unknown","Unknown","Unknown","Unknown","Unknown","Unknown","Unknown","Unknown","Unknown","Unknown","Unknown","Unknown","Unknown","Unknown","Unknown","Unknown","Unknown","Unknown","Unknown","Unknown","Unknown","Unknown","Unknown","Unknown","Unknown","Unknown","Unknown","Unknown","Unknown","Unknown","Unknown","Unknown","Unknown","Unknown","Unknown","Unknown","Unknown","Unknown","Unknown","Unknown","Unknown","Unknown","Unknown","Unknown","Unknown",null,"Unknown","Unknown","Unknown",null,"Unknown","Unknown","Unknown","Unknown","Unknown","Unknown","Unknown","Unknown","Unknown","Unknown","Unknown","Unknown",null,"Unknown","Unknown","Unknown",null,"Unknown","Unknown","Unknown","Unknown","Unknown","Unknown","Unknown","Unknown","Unknown","Unknown","Unknown","Unknown","Unknown","Unknown","Unknown","Unknown","Unknown","Unknown","Unknown","Unknown","Unknown",null,"Unknown","Unknown","Unknown","Unknown","Unknown","Unknown","Unknown","Unknown","Unknown","Unknown","Unknown","Unknown",null,"Unknown","Unknown","Unknown","Unknown","Unknown","Unknown",null,"Unknown","Unknown"]
[null,"Curacao",null,null,"Unknown","Unknown","Unknown",null,"Unknown","Unknown","Unknown","Unknown","Unknown","Unknown","Unknown","Unknown","Unknown","Unknown","Unknown","Unknown","Unknown","Unknown","Unknown","Unknown","Unknown","Unknown","Unknown","Unknown","Unknown","Unknown","Unknown","Unknown","Unknown","Unknown","Unknown","Unknown","Unknown","Unknown","Unknown","Unknown","Unknown","Unknown","Unknown","Unknown","Unknown","Unknown","Unknown","Unknown","Unknown","Unknown","Unknown","Unknown","Unknown","Unknown","Unknown","Unknown","Unknown","Unknown","Unknown","Unknown",null,"Unknown","Unknown","Unknown",null,"Unknown","Unknown","Unknown","Unknown","Unknown","Unknown","Unknown","Unknown","Unknown","Unknown","Unknown","Unknown",null,"Unknown","Unknown","Unknown",null,"Unknown","Unknown","Unknown","Unknown","Unknown","Unknown","Unknown","Unknown","Unknown","Unknown","Unknown","Unknown","Unknown","Unknown","Unknown","Unknown","Unknown","Unknown","Unknown","Unknown","Unknown",null,"Unknown","Unknown","Unknown","Unknown","Unknown","Unknown","Unknown","Unknown","Unknown","Unknown","Unknown","Unknown",null,"Unknown","Unknown","Unknown","Unknown","Unknown","Unknown",null,"Unknown","Unknown"]
[null,"Aruba",null,null,"Unknown","Unknown","Unknown",null,"Unknown","Unknown","Unknown","Unknown","Unknown","Unknown","Unknown","Unknown","Unknown","Unknown","Unknown","Unknown","Unknown","Unknown","Unknown","Unknown","Unknown","Unknown","Unknown","Unknown","Unknown","Unknown","Unknown","Unknown","Unknown","Unknown","Unknown","Unknown","Unknown","Unknown","Unknown","Unknown","Unknown","Unknown","Unknown","Unknown","Unknown","Unknown","Unknown","Unknown","Unknown","Unknown","Unknown","Unknown","Unknown","Unknown","Unknown","Unknown","Unknown","Unknown","Unknown","Unknown",null,"Unknown","Unknown","Unknown",null,"Unknown","Unknown","Unknown","Unknown","Unknown","Unknown","Unknown","Unknown","Unknown","Unknown","Unknown","Unknown",null,"Unknown","Unknown","Unknown",null,"Unknown","Unknown","Unknown","Unknown","Unknown","Unknown","Unknown","Unknown","Unknown","Unknown","Unknown","Unknown","Unknown","Unknown","Unknown","Unknown","Unknown","Unknown","Unknown","Unknown","Unknown",null,"Unknown","Unknown","Unknown","Unknown","Unknown","Unknown","Unknown","Unknown","Unknown","Unknown","Unknown","Unknown",null,"Unknown","Unknown","Unknown","Unknown","Unknown","Unknown",null,"Unknown","Unknown"]

{"sheet":"FOR INFO Risk Metrics","index":7,"n_rows":218,"n_cols":24,"rows_kept":218,"cut":false,"hidden":false,"merged":[[25,9,27,20],[29,9,30,20],[6,18,7,20],[6,1,7,2],[6,6,7,7],[6,9,7,10],[6,12,7,13],[6,15,7,16]]}
[]
[]
[]
[]
[]
[]
[null,"COUNTRY RISK ",null,null,null,null,"BUYING CHANNEL",null,null,"KNOWN RISK OF SEVERE HUMAN RIGHTS ABUSES",null,null,"INDUSTRY RISKS",null,null,"TYPE OF LABOUR",null,null,"Risk Score"]
[]
[]
[null,"Country","FNET Tool Risk Rating","FNET Tool Risk Category (Advisory rating in brackets)","Advisory Risk Required","Proxy","Direct Source",10,null,"Yes",50,null,"None",0,null,"Permanent",10,null,"Highest Potential Score",{"$f":"C11+H11+K10+N19+Q20","v":320},{"$f":"(T10-T11)/3","v":100}]
[null,"Unknown",95,"High","FNET assigns a score of 95 for Unknown countries.",null,"Agent",25,null,"No",0,null,"Low Pay",10,null,"Seasonal",50,null,"Lowest Potential Score",{"$f":"H10+K11+N10+Q10","v":20}]
[null,"Afghanistan",78.952126871697985,"High",null,null,null,null,null,null,null,null,"Unskilled Labour",20,null,"Temporary",50]
[null,"Albania",48.942262738038963,"High",null,null,null,null,null,null,null,null,"Accommodation",25,null,"Migrant",50,null,"Risk Profiles"]
[null,"Algeria",59.579496809963722,"High",null,null,null,null,null,null,null,null,"Low Pay & Unskilled Labour",30,null,"Agency/ third party labour",75,null,"Low",{"$f":"T11","v":20},{"$f":"T14+U10","v":120}]
[null,"Andorra",13.42680073199268,"Low",null,"ITUC",null,null,null,null,null,null,"Low Pay & Accommodation",35,null,"Smallholder",75,null,"Medium",{"$f":"U14+0.01","v":120.01},{"$f":"U14+U10","v":220}]
[null,"Angola",67.075185404979322,"High",null,null,null,null,null,null,null,null,"Unskilled Labour & Accommodation",45,null,"Homeworkers",75,null,"High",{"$f":"U15+0.01","v":220.01},{"$f":"T16+U10","v":320.01}]
[null,"Antigua and Barbuda",33.064466498192168,"Medium",null,"ITUC",null,null,null,null,null,null,"Payment of recruitment fees",50,null,"Agency/ third party labour & Temporary",100]
[null,"Argentina",39.756638983934089,"Medium",null,null,null,null,null,null,null,null,"Low Pay, Unskilled Labour & Accommodation",50,null,"Migrant & Seasonal/ Temporary",100,null,"Country Risk Profiles",null,null,null,"Commercial Risk","Business Risk"]
[null,"Armenia",42.758606746359931,"Medium",null,"ITUC",null,null,null,null,null,null,"Unknown",50,null,"Migrant & Agency/ third party labour",100,null,"Low",0,20.99,null,1,1]
[null,"Australia",24.46333818552004,"Medium",null,null,null,null,null,null,null,null,null,null,null,"Migrant, Agency/ third party labour & Seasonal/ Temporary",100,null,"Medium",21,46.99,null,2,2]
[null,"Austria",18.540206471921763,"Low",null,null,null,null,null,null,null,null,null,null,null,"Migrant/Seasonal/ Agency or third party & Smallholders",100,null,"High",47,100,null,3,3]
[null,"Azerbaijan",63.314256206035402,"High",null,"ITUC",null,null,null,null,null,null,null,null,null,"Migrant/Seasonal/ Agency or third party & Homeworkers",100]
[null,"Bahamas",30.576347807950494,"Medium",null,null,null,null,null,null,null,null,null,null,null,"Unknown",100]
[null,"Bahrain",61.151760444011757,"High"]
[null,"Bangladesh",66.471729620317674,"High"]
[null,"Barbados",32.514135156545905,"Medium",null,null,null,null,null,"COUNTRY RISK SCORE The country-level social and labour rights risk score derives from a composite index, comprising the below indicators. This is non-sector specific. It should be used in conjunction with the selection of the relevant industry, products/ingredient/raw material, sourcing approach etc. as detailed under the 'instructions' tab to generate a overall combined risk rating for the ingredient/raw material. See method for further details."]
[null,"Belarus",61.785142450513298,"High"]
[null,"Belgium",26.943404241269882,"Medium"]
[null,"Belize",25.55093591921224,"Medium"]
[null,"Benin",56.055511469354748,"High",null,null,null,null,null,"The information contained in this assessment is given by way of general guidance and does not constitute legal advice. Circumstances may differ and detailed legal advice should be obtained before acting upon it. The Food Network for Ethical Trade and HCL cannot accept responsibility for any errors or omissions or for any loss occasioned to any person or body acting or refraining from acting on the basis of any material contained in this publication. "]
[null,"Bhutan",44.482866599905442,"Medium",null,"ITUC"]
[null,"Bolivia (Plurinational State of)",49.83201669854521,"High"]
[null,"Bosnia and Herzegovina",48.619680517292629,"High",null,null,null,null,null,"ITUC Proxy - a proxy has been generated for the ITUC score where it is not listed for a country under the ITUC Global Rights Index. The modal score for the UNDP Human Development Index group, to which the country corresponds, is utilised. The countries to which this applies is flagged under Column E."]
[null,"Botswana",45.524752832890549,"Medium"]
[null,"Brazil",51.00326028126743,"High"]
[null,"Brunei Darussalam",47.304155133836943,"High",null,"ITUC",null,null,null,"Country Risk Score Sources"]
[null,"Bulgaria",43.459973515394466,"Medium",null,null,null,null,null,"1. ITUC Global Rights Index 2021",null,null,"International Trade Union Confederation (ITUC) Global Rights Index 2021 report, Geneva, Switzerland https://www.ituc-csi.org/2021-global-rights-index Where data not available generated proxy from UNDP"]
[null,"Burkina Faso",54.277837952475529,"High",null,null,null,null,null,"2. Freedom in the World Index (FiW) 2021",null,null,"Freedom in the World Index (FiW) 2021, Freedom House https://freedomhouse.org/sites/default/files/Feb2019_FH_FITW_2019_Report_ForWeb-compressed.pdf"]
[null,"Burundi",82.367170159230042,"High",null,null,null,null,null,"3. Global Slavery Index 2018 – Modern Slavery Vulnerability",null,null,"Modern Slavery Vulnerability Index 2018, The Walk Free Foundation’s  The Global Slavery Index (GSI). https://www.globalslaveryindex.org/2018/data/maps/#vulnerability "]
[null,"Cabo Verde",48.3859763852778,"High",null,"ITUC",null,null,null,"4. Global Slavery Index 2018 – Modern Slavery Prevalence",null,null,"Modern Slavery Prevalence Index 2018, The Walk Free Foundation’s  The Global Slavery Index (GSI). https://www.globalslaveryindex.org/2018/data/maps/#prevalence"]
[null,"Cambodia",76.249030418479222,"High",null,null,null,null,null,"5. 2021 US State Dept. Trafficking in Persons Report",null,null,"Trafficking in Persons Report 2021, U.S. Department of State https://www.state.gov/reports/2021-trafficking-in-persons-report/"]
[null,"Cameroon",69.393883916047727,"High",null,null,null,null,null,"6. Transparency International Corruption Prevalence index",null,null,"Transparency International Corruption Prevalence Index (CPI) 2020, Transparency International. https://www.transparency.org/country "]
[null,"Canada",27.019314455569393,"Medium",null,null,null,null,null,"7. Children's Rights and Business Atlas 2018, Childrens Rights in the Workplace Index",null,null,"Children's Rights and Business Atlas 2018; Unicef & Global Child Forum.  https://www.childrensrightsatlas.org/country-data/workplace/"]
[null,"Central African Republic",84.668415458702597,"High",null,null,null,null,null,"8. NEW for 2021 - Global Organised Crime Index, Human Trafficking score",null,null,"Global Organised Crime Index, Human Trafficking score https://globalinitiative.net/analysis/ocindex-2021/"]
[null,"Chad",74.011744479580742,"High",null,null,null,null,null,"UNDP Human Development Index (HDI)",null,null,"Human Development Index 2019, United Nations Development Programme (UNDP). http://hdr.undp.org/en/content/human-development-index-hdi  -The HDI is not used as an indicator in the FNET Risk Index in 2021. However, HDI groups (e.g. High Human Development) have been used to generate ITUC proxies where these were absent."]
[null,"Chile",33.051590295897348,"Medium"]
[null,"China",65.346892516258791,"High",null,null,null,null,null,"Known HR Issues Sources"]
[null,"Colombia",54.433159931916492,"High",null,null,null,null,null,"1. Verité Forced Labour Commodity Atlas 2017",null,null,"Verite Forced Labour Commodity Atlas 2017 - https://www.verite.org/commodity-atlas/ "]
[null,"Comoros",60.595069763588093,"High",null,"ITUC",null,null,null,"2. US Dept of Labour List of Goods Produced by Child Labour & Forced Labour, June 2021",null,null,"United States Department of Labour, List of Goods Produced by Child Labour and Forced Labour 2021 https://www.dol.gov/agencies/ilab/reports/child-labor/list-of-goods"]
[null,"Congo Republic",63.161550685589198,"High",null,null,null,null,null,"4. WRAP Sustainability risk index (information held by Anthesis 2017)"]
[null,"Congo Democratic Republic of the",74.621278899999425,"High",null,null,null,null,null,"5. US Department of State Country Reports 2020",null,null,"United States Department of State, Country Reports on Human Rights Practices 2020 - https://www.state.gov/reports/2020-country-reports-on-human-rights-practices/"]
[null,"Costa Rica",31.406064423981906,"Medium","Retailer audits for the food sector have identified critical issues. However, at a country level Costa Rica scores very well in terms of Freedom, according to Freedom House. The country has a long history of democratic stability, and freedoms of expression and association are robust. According to Walk Free Foundation Costa Rica also has moderate slavery scores and government is reported as making efforts to reduce modern slavery.","ITUC",null,null,null,"6. Seafood Slavery Risk Tool",null,null,"Seafood Slavery Risk Tool - http://seafoodslaveryrisk.org/profiles/ (historical references from 2018 tool - currently being updated)"]
[null,"Côte d’Ivoire",61.689935533928058,"High",null,null,null,null,null,"7. Responsible Sourcing Tool - updated 2021",null,null,"Responsible Sourcing Tool (the State Department’s Office to Monitor and Combat Trafficking in Persons, Verite, Made in a Free World and the Aspen Institute) - updated annually https://www.responsiblesourcingtool.org/"]
[null,"Croatia",35.965889787179798,"Medium"]
[null,"Cuba",59.162507111793467,"High",null,"ITUC"]
[null,"Cyprus",33.306778609667113,"Medium",null,"ITUC"]
[null,"Czechia",31.6485720732543,"Medium"]
[null,"Denmark",14.136020612651016,"Low"]
[null,"Djibouti",65.328719860345274,"High"]
[null,"Dominica",36.773527264727363,"Medium",null,"ITUC"]
[null,"Dominican Republic",47.518892625017195,"High"]
[null,"Ecuador",52.52786464272662,"High"]
[null,"Egypt",65.099519957664143,"High"]
[null,"El Salvador",52.16941291414134,"High"]
[null,"Equatorial Guinea",77.349407271844214,"High",null,"ITUC"]
[null,"Eritrea",81.992052103417237,"High"]
[null,"Estonia",25.486489999350539,"Medium"]
[null,"Eswatini",68.875240762440555,"High"]
[null,"Ethiopia",63.31381329544962,"High"]
[null,"Fiji",34.057786564991495,"Medium"]
[null,"Finland",14.648734297114622,"Low"]
[null,"France",23.267144610916969,"Medium"]
[null,"Gabon",56.631854652672487,"High",null,"ITUC"]
[null,"Gambia",62.412707371681613,"High",null,"ITUC"]
[null,"Georgia",41.526587087463831,"Medium"]
[null,"Germany",19.799464847194688,"Low"]
[null,"Ghana",43.814712624343187,"Medium"]
[null,"Greece",46.972024161492833,"Medium"]
[null,"Greenland",0,"Low"]
[null,"Grenada",35.69702302976971,"Medium",null,"ITUC"]
[null,"Guatemala",61.939715378285143,"High"]
[null,"Guinea",63.496362800076014,"High",null,"ITUC"]
[null,"Guinea-Bissau",71.210552864032707,"High",null,"ITUC"]
[null,"Guyana",52.280905544840522,"High","High (Medium). Lack of data led to use of a proxy indicator score for the ITUC Global Rights Index. The proxy may be artificially inflating the Guyana score from Medium to High.","ITUC"]
[null,"Haiti",70.823633327576587,"High"]
[null,"Honduras",64.636803989490147,"High"]
[null,"Hong Kong",33.731354662650155,"Medium"]
[null,"Hungary",44.859428144819759,"Medium"]
[null,"Iceland",18.714060160770099,"Low"]
[null,"India",59.413478602957085,"High"]
[null,"Indonesia",59.682884880508219,"High"]
[null,"Iran (Islamic Republic of)",73.51435607208758,"High"]
[null,"Iraq",70.656177595108559,"High"]
[null,"Ireland",21.468526850664457,"Medium"]
[null,"Israel",34.109719063556156,"Medium"]
[null,"Italy",28.79783677914196,"Medium"]
[null,"Jamaica",40.801594316974224,"Medium"]
[null,"Japan",24.193446731418895,"Medium"]
[null,"Jordan",54.300451508090049,"High"]
[null,"Kazakhstan",59.392822825635278,"High"]
[null,"Kenya",63.02289709377964,"High"]
[null,"Kiribati",30.079724202757976,"Medium",null,"ITUC"]
[null,"Korea (Democratic People's Republic of)",84.633949230012306,"High",null,"HDI & ITUC"]
[null,"Korea Republic of",42.031686499191338,"Medium"]
[null,"Kosovo",45.09136462491545,"Medium",null,"ITUC"]
[null,"Kuwait",56.713658731198443,"High"]
[null,"Kyrgyzstan",58.032813218934081,"High",null,"ITUC"]
[null,"Lao People's Democratic Republic of",70.12442367667326,"High"]
[null,"Latvia",32.12332936951799,"Medium"]
[null,"Lebanon",56.38703327503319,"High"]
[null,"Lesotho",50.708671086034968,"High"]
[null,"Liberia",57.763810457984462,"High"]
[null,"Libya",86.616493779013283,"High"]
[null,"Liechtenstein",15.380876191238089,"Low",null,"ITUC"]
[null,"Lithuania",30.092822206338322,"Medium"]
[null,"Luxembourg",19.980543738773591,"Low",null,"ITUC"]
[null,"Macau (China)",2.5510459181122478,"Low","Low (Medium). The data available for Macao is limited and no ITUC proxy is available. We advise that you consider Macao’s score as artificially deflated at Low."]
[null,"Macedonia the former Yugoslav Republic of",48.05965667027025,"High"]
[null,"Madagascar",59.057045112022323,"High"]
[null,"Malawi",51.736114101841373,"High"]
[null,"Malaysia",58.115784348639494,"High"]
[null,"Maldives",55.891028232574833,"High",null,"ITUC"]
[null,"Mali",63.673118690832268,"High"]
[null,"Malta",29.044076702090123,"Medium",null,"ITUC"]
[null,"Marshall Islands",34.651159916972276,"Medium",null,"ITUC"]
[null,"Mauritania",66.450755342881592,"High"]
[null,"Mauritius",34.90638948068765,"Medium"]
[null,"Mexico",51.968999632867629,"High"]
[null,"Micronesia (Federated States of)",35.778699355863594,"Medium",null,"ITUC"]
[null,"Moldova Republic of",45.948054428438738,"Medium","Medium (High). Moldova's previous country risk rating in 2018 was High. In 2019, it's risk rating reduced significantly due to a reduction in the ITUC score as a result of reduced regularity of violations of human rights violations. Members should be aware that endemic corruption remains a challenge in Molodova.","ITUC"]
[null,"Monaco",29.83145668543315,"Medium","Medium (High). Lack of data led to use of a proxy indicator score for the ITUC Global Rights Index. The proxy may be artificially inflating the Monaco score from Low to Medium.","HDI & ITUC"]
[null,"Mongolia",55.668108689113083,"High",null,"ITUC"]
[null,"Montenegro",41.302689691962748,"Medium"]
[null,"Morocco",48.738510873825355,"High"]
[null,"Mozambique",57.114496427176221,"High"]
[null,"Myanmar",76.983407862317961,"High"]
[null,"Namibia",41.16901257992577,"Medium"]
[null,"Nauru",37.464070359296407,"Medium",null,"HDI & ITUC"]
[null,"Nepal",55.223288019220128,"High"]
[null,"Netherlands",17.543845645999145,"Low"]
[null,"New Zealand",19.328154765098756,"Low"]
[null,"Nicaragua",65.790310283032468,"High",null,"ITUC"]
[null,"Niger",65.763499296971432,"High",null,"ITUC"]
[null,"Nigeria",66.185524130012951,"High"]
[null,"Norway",17.148762127867005,"Low"]
[null,"Oman",54.695971704819833,"High"]
[null,"Pakistan",73.481162750163591,"High"]
[null,"Palau",27.176739661174814,"Medium",null,"ITUC"]
[null,"Palestine State of",32.550724492755073,"Medium","Medium (High). We would advise that you consider Palestine's score as artificially deflated at Medium. The data available for Palestine is limited, the country only being listed in the ITUC and Child Labour indices. Therefore the calculated score is considered lower than we would expect with our wider understanding of Palestine."]
[null,"Panama",47.023681414270918,"High"]
[null,"Papua New Guinea",70.845333693204651,"High",null,"ITUC"]
[null,"Paraguay",50.234084674134138,"High"]
[null,"Peru",50.911241035192155,"High"]
[null,"Philippines",61.117513481442096,"High"]
[null,"Poland",36.611542339474852,"Medium"]
[null,"Portugal",28.315897570844751,"Medium"]
[null,"Qatar",48.57310756685537,"High"]
[null,"Romania",46.482552518531172,"Medium"]
[null,"Russian Federation",55.669289334254323,"High"]
[null,"Rwanda",55.202477333816553,"High"]
[null,"Saint Kitts and Nevis",30.66646333536665,"Medium",null,"ITUC"]
[null,"Saint Lucia",42.043946703390112,"Medium",null,"ITUC"]
[null,"Saint Vincent and the Grenadines",38.140910733749806,"Medium",null,"ITUC"]
[null,"Samoa",31.967515324846765,"Medium",null,"ITUC"]
[null,"San Marino",32.03036969630304,"Medium","Medium (High). Lack of data led to use of a proxy indicator score for the ITUC Global Rights Index. The proxy may be artificially inflating the San Marino score from Low to Medium.","HDI & ITUC"]
[null,"Sao Tome and Principe",42.140863591364095,"Medium",null,"ITUC"]
[null,"Saudi Arabia",47.591551850225301,"High",null,"ITUC"]
[null,"Senegal",51.80386489112594,"High"]
[null,"Serbia",49.079141727573734,"High"]
[null,"Seychelles",40.023626906588085,"Medium",null,"ITUC"]
[null,"Sierra Leone",59.291841507882843,"High"]
[null,"Singapore",31.51468462226547,"Medium"]
[null,"Slovakia",32.86393254686152,"Medium"]
[null,"Slovenia",26.614795683456936,"Medium",null,"ITUC"]
[null,"Solomon Islands",50.79902915256563,"High",null,"ITUC"]
[null,"Somalia",92.806360107798085,"High"]
[null,"South Africa",44.065359553493664,"Medium","Medium (High). The score calculated using Anthesis' methodology denotes South Africa's country risk as Moderate. In 2017, South Africa was just into the High Risk rating category however in 2018 South Africa was Moderate Risk.  FNET members should note that a number of retail customers regard agriculture in South Africa as high risk and would require suppliers located in South Africa to have an ethical audit."]
[null,"South Sudan",89.143435395531625,"High"]
[null,"Spain",28.060229941017909,"Medium"]
[null,"Sri Lanka",50.554473651148058,"High"]
[null,"Sudan",78.019599059854713,"High"]
[null,"Suriname",55.802818308511092,"High",null,"ITUC"]
[null,"Sweden",14.313636500161651,"Low"]
[null,"Switzerland",21.889420871976693,"Medium"]
[null,"Syrian Arab Republic",81.801550844403877,"High"]
[null,"Taiwan Province of China",18.48059440707938,"Low"]
[null,"Tajikistan",65.888059109235883,"High",null,"ITUC"]
[null,"Tanzania",62.359313893653521,"High"]
[null,"Thailand",63.158076736964112,"High"]
[null,"Timor-Leste",60.144129412476566,"High",null,"ITUC"]
[null,"Togo",54.183561089294599,"High"]
[null,"Tonga",37.661399814573294,"Medium",null,"ITUC"]
[null,"Trinidad and Tobago",48.935689828979442,"High"]
[null,"Tunisia",46.582521684810708,"Medium"]
[null,"Turkey",60.558698971475167,"High"]
[null,"Turkmenistan",73.228917970280108,"High",null,"ITUC"]
[null,"Tuvalu",36.341551584484151,"Medium",null,"HDI & ITUC"]
[null,"Uganda",64.515880753416297,"High"]
[null,"Ukraine",58.467668760039409,"High"]
[null,"United Arab Emirates",54.915367524356384,"High"]
[null,"United Kingdom",27.169969262870897,"Medium"]
[null,"United States",38.278368765396671,"Medium"]
[null,"Uruguay",22.849619303489813,"Medium"]
[null,"Uzbekistan",67.306890103485685,"High",null,"ITUC"]
[null,"Vanuatu",49.028611856738578,"High",null,"ITUC"]
[null,"Venezuela",67.003994363136314,"High"]
[null,"Vietnam",61.972298081772614,"High"]
[null,"Yemen",82.339928189498224,"High"]
[null,"Zambia",62.319247696074328,"High"]
[null,"Zimbabwe",70.662315337069259,"High"]
[]
[]
[null,"States with no country risk score are provided below for information purposes only. These are not included in the risk assessment."]
[null,"Aruba","No Data","No Data"]
[null,"Curacao","No Data","No Data"]
[null,"Holy See","No Data","No Data"]
[null,"Puerto Rico","No Data","No Data"]
[null,"Sint Maarten","No Data","No Data"]

{"sheet":"2021 Review countries","index":8,"n_rows":18,"n_cols":34,"rows_kept":18,"cut":false,"hidden":false,"merged":[[0,3,0,11],[0,12,0,13],[0,14,0,23],[0,24,0,25],[1,3,1,11],[1,15,1,16],[1,17,1,18],[1,19,1,20],[1,21,1,22]]}
[null,null,null,"2020 Score",null,null,null,null,null,null,null,null,"Click to expand 2020 Indicator Scores",null,"2021 score",null,null,null,null,null,null,null,null,null,"Click to expand 2021 Indicator Scores",null,null,null,null,null,"Key"]
[null,null,null,"2020 Scores in FNET Tool",null,null,null,null,null,null,null,null,null,null,"UNDP","Modern Slavery",null,"ITUC",null,"Trafficking",null,"Governance",null,null,null,null,null,null,null,null,null,2018,2019,2021]
[null,null,"Country","2018 HDI Report"," GSI 2018 Modern Slavery Vulnerability Index"," GSI 2018 Modern Slavery Prevalence Index - log 10 transformed (RH)","Global Rights Index, ITUC, 2020","PROXIES INCLUDED Global Rights Index, ITUC, 2020","US StateDept 2019 Trafficking","FreedomHouse 2019 FIW","Transparency International 2019 Corruption Perception Index","UNICEF Children's Rights & Business Atlas (Outcome Workplace)","2020 SCORE","2020 RATING","2019 HDI Report","Modern Slavery Vulnerability Index,  GSI 2018 "," Modern Slavery Prevalence Index, GSI, 2018  - log 10 transformed (RH)","Global Rights Index, ITUC, 2021","PROXIES INCLUDED Global Rights Index, ITUC, 2021","Trafficking in Persons Report, US StateDept, 2021","GOC Human Trafficking Score 2021","Freedom in the World, Freedom House, 2021","Transparency International 2020 Corruption Perception Index","UNICEF Children's Rights & Business Atlas (Outcome Workplace)","2021 SCORE","2021 RATING",null,"Variance 2021 - 2020","2021 Comments",null,"High",47,47,47]
[null,null,"Armenia",42.857142857142854,43.626346347056526,50.589000000000006,"NR",66.666666666666657,57.142857142857139,49,58,39,53.052765947625062,"High",42.857142857142854,43.626346347056526,50.589000000000006,33.333333333333329,33.333333333333329,57.142857142857139,35,45,51,39,42.758606746359931,"Moderate",null,{"$f":"Y4-M4","v":-10.294159201265131},"Armenia has been included in the ITUC Global Rights Index 2021 for the first time. We have previously used a proxy for this country, so the new availability of data has caused greater accuracy in the country score. Armenia have been given a rating of 2 (repeated violations of rights), which is an improvement on the proxy score that was previously given. This has caused a positive reduction in their country score and enabled the rating to move from high to moderate. ",null,"Moderate","21-47","21-47","21-47"]
[null,null,"Kosovo","NR",43.813015759548563,39.275999999999996,"NR",66.666666666666657,57.142857142857139,46,64,45,54.615126530153539,"High","NR",43.813015759548563,39.275999999999996,"NR",33.333333333333329,57.142857142857139,"NR",46,64,45,45.09136462491545,"Moderate",null,-9.5237619052380893,"Kosovo does not have data for the ITUC score and as such a proxy is generated based on their categorisation in the UNDP Human Development Index, as per the methodology used. However, Kosovo also does not have a rating within the UNDP Human Development Index because they are not classified as a UN member. We have therefore used Serbia as a proxy for Kosovo due to the similar nature of their countries and development, which is consistent in the methodology used for the previous calculations within the tool. For this reporting period Serbia has been upgraded to 'Very High Human Development' within the HDI ratings, which has caused a positive decrease in the score for Kosovo. ",null,"Low","<21","<21","<21"]
[null,null,"Sudan",88.888888888888886,87.053999341847444,85.457999999999998,100,100,71.428571428571431,93,84,62,83.087634093790101,"High",90.476190476190467,87.053999341847444,85.457999999999998,83.333333333333343,83.333333333333343,57.142857142857139,80,83,84,62,78.019599059854713,"High",null,-5.0680350339353879,"ITUC Global Rights Index rating has decreased from 6 to 5, meaning there are now 'No guarantee of rights' as opposed to 'no guarantee of rights due to a breakdown of the rule of law'. This has resulted in a positive decrease in the score. The ITUC report has also highlighted how a trade-union-led alliance forced President Omar al-Bashir from power, however basic workers' rights continue to be violated. \n\nThe Trafficking in Persons rating for 2021 has also improved slightly from 'Tier 2 watch list' to 'Tier 2' due to the government demonstrating overall increased efforts compared to the previous reporting period. Examples of this improved activity include security forces stopping the forcible recruitment and use of child soldiers; the government having drafted and passed amendments to the 2014 anti-trafficking law that criminalized sex trafficking as well as labour trafficking; and officials investigating more potential cases and convicting more traffickers."]
[null,null,"Greece",16.93121693121693,37.133675470772964,67.31,83.333333333333343,83.333333333333343,57.142857142857139,13,52,35,51.238993634655259,"High",16.93121693121693,37.133675470772964,67.31,66.666666666666657,66.666666666666657,57.142857142857139,55.000000000000007,13,50,35,46.972024161492833,"Moderate",null,-4.2669694731624261,"The ITUC Global Rights Index rating for Greece in 2021 decreased from 5 to 4. Greece now has a rating of 'Systematic violations of rights', meaning that the situation for workers has improved from 'No guarantee of rights'. Greece has been highlighted in the report as one of eight countries that has seen their rating improve over this time period. \n\nThe score for Greece within the Transparency International Corruption Perception Index has also improved for 2021. Since 2012, the score for Greece has improved by 14 points. This is the highest improvement recorded within the report and means that significant progress has been made to reduce corruption in the country. The improved rating for the ITUC index and score for the Corruption Perception Index has resulted in a positive decrease of the overall score from Greece and meant the country has moved into the moderate risk rating. \n"]
[null,null,"Tunisia",48.148148148148145,39.197821043964908,17.007000000000001,66.666666666666657,66.666666666666657,57.142857142857139,31,57,37,47.643758215302547,"High",50.793650793650791,39.197821043964908,17.007000000000001,66.666666666666657,66.666666666666657,57.142857142857139,40,29,56,37,46.582521684810708,"Moderate",null,-1.0612365304918399,"Tunisia have experienced a small positive decrease in their score, and as they were close to the boundary this has caused their rating to be reduced from High to Moderate. The small improvement in their scores can be seen within the Freedom in the World report and the Transparency International Corruption Perception Index, however these are so small that they have not been specifically outlined in either report.\n \nThe Global Organised Crime Index has given Tunisia a moderate score for Human Trafficking, explaining that the human trafficking market is not as sizeable in Tunisia as in other countries in North Africa but the prevalence of several forms of trafficking is an issue. The inclusion of this index within the ratings has also caused the positive decrease in Tunisia's overall country score and rating. "]
[null,null,"China",44.973544973544968,50.646927634022511,25.661000000000001,83.333333333333343,83.333333333333343,85.714285714285708,89,59,55.999999999999993,66.086685832611352,"High",44.973544973544968,50.646927634022511,25.661000000000001,83.333333333333343,83.333333333333343,85.714285714285708,65,91,58,55.999999999999993,65.346892516258791,"High",null,-0.73979331635256074,"There has been a small positive change in China's score between 2021 and 2020. China remains in the high risk country rating due to consistent scores across most sources. China has been listed in 'No guarantee of rights' tier in ITUC Global Rights Index for a number of years and China's score on the Freedom in the World index has remained 'Not Free' in 2021. \n\nThe region of Xinjiang (western China) is of particular concern due to the government's alleged mass detention and political indoctrination campaign against Uyghurs and members of other ethnic and religious minority groups. There are thought to be as many as 1,200 state-run internment camps throughout Xinjiang where forced labour is alleged to be a central tactic for repression. Detainees of the camps are forced to work in adjacent or off-site factories or worksites producing garments, footwear, carpets, yarn, food products, holiday decorations, building materials, extractives, materials for solar power equipment and other renewable energy components, consumer electronics, bedding, hair products, cleaning supplies, personal protective equipment, face masks, chemicals, pharmaceuticals, and other goods. The United States has released a Xinjiang Supply Chain Business Advisory to alert businesses and other entities to the reputational, economic, and legal risks of involvement with entities in or linked to Xinjiang.  Likewise, many companies have taken a stand against the use of forced labour in China by cutting ties with suppliers in Xinjiang or those connected to the PRC’s campaign of repression. \n\nCaution should be taken when sourcing from China. "]
[null,null,"Ireland",1.5873015873015872,10.351477913503212,8.3279999999999994,16.666666666666664,16.666666666666664,57.142857142857139,3,26,25,20.943019962876193,"Low",1.0582010582010581,10.351477913503212,8.3279999999999994,16.666666666666664,16.666666666666664,71.428571428571431,45,3,28,25,21.468526850664457,"Moderate",null,0.52550688778826427,"The Trafficking in persons score increased due to be placed on the 'Tier 2 watch list', a negative change from 2020 when they were in Tier 2. They have been downgraded because the government does not fully meet the minimum standards for the elimination of trafficking. More specifically, the government investigated and prosecuted fewer suspected traffickers, did not prosecute any labour traffickers, and victim identification decreased for the fourth year in a row. The government continued to have systemic deficiencies in victim identification, referral, and assistance, and lacked specialized accommodation and adequate services for victims. The prevalence of human trafficking in Ireland is likely much higher than official statistics report and an independent and comprehensive 2021 study found that from 2014-2019, the true number of trafficking victims was approximately 38 percent higher than the official national statistics. Traffickers exploit victims of forced labour in domestic work, the restaurant industry, cannabis cultivation, nail salons, food processing, waste management, fishing, seasonal agriculture, and car washing services.  "]
[null,null,"Panama",35.449735449735449,36.415226910652706,15.395000000000001,66.666666666666657,66.666666666666657,57.142857142857139,16,64,31,45.870610087841328,"Moderate",30.158730158730158,36.415226910652706,15.395000000000001,66.666666666666657,66.666666666666657,57.142857142857139,80,17,65,31,47.023681414270918,"High",null,1.1530713264295898,"Panama has had a slight increase in score since 2020, which has pushed them over the boundary into the 'High' risk rating. The UNDP has reported Panama as having a High Human Development Index, which is an improvement on 2020. However, the cause for the negative increase in their score is due to the Global Organised Crime Index regarding Human Trafficking. This report has given them a high score for Human Trafficking, explaining that Panama is a destination country for human trafficking, with victims including women, migrants and indigenous people from Latin America, and particularly Venezuela, because of the economic and political crisis there, as well as from Asia. Panama is also a transit country for human smuggling, with crime organizations taking advantage of the country’s strategic location. Smuggling rings transport migrants from countries such as Cuba, Haiti, Venezuela, Ecuador, Pakistan, Ghana, Ethiopia, India and Bangladesh to the United States, with the help of corrupt police officers and other officials."]
[null,null,"Switzerland",1.0582010582010581,1.5061400437948982,8.3279999999999994,33.333333333333329,33.333333333333329,28.571428571428569,4,15,27,20.103688729298121,"Low",1.5873015873015872,1.5061400437948982,8.3279999999999994,33.333333333333329,33.333333333333329,57.142857142857139,50,4,15,27,21.889420871976693,"Moderate",null,1.7857321426785724,"The Trafficking in Persons report 2021 report has downgraded Switzerland's status from 'Tier 1' to 'Tier 2' because the government's efforts to meet the minimum standards for the elimination of trafficking were assessed as not serious and sustained compared to the previous reporting period. This has caused a small negative increase in their overall Country Score, but as they were close to a rating boundary this change in score has caused Switzerland to move from a low rating to moderate. The TiP report has evidenced multiple reasons for downgrading their status, including that the government did not report the number of trafficking investigations for the third year in a row and reported fewer convictions, which could not be attributed to pandemic-related court closures. Law enforcement efforts on labour trafficking remained low compared with sex trafficking, and the government lacked comprehensive and sufficiently disaggregated data on trafficking.  "]
[null,null,"Vanuatu",74.603174603174594,"NR","NR","NR",83.333333333333343,"NR",18,54,55.999999999999993,45.421445785542147,"Moderate",74.074074074074076,"NR","NR","NR",83.333333333333343,57.142857142857139,25,18,57,55.999999999999993,49.028611856738578,"High",null,3.6071660711964313,"The Trafficking in Persons report did not previously have any data for Vanuatu. They are a new addition for 2021, which has resulted in the overall Country Score and Rating being more accurate. Vanuatu has been placed into Tier 2 in the TiP report because the Government of Vanuatu does not fully meet the minimum standards for the elimination of trafficking but is making significant efforts to do so. This increase in the overall country score has cause Vanuatu to move boundary into the high rating.  \n\nAn example of the efforts to remove trafficking included the continued prosecution of the country’s first trafficking case and, in partnership with an international organization, continued protection services for victims identified in that case. However, the government also forced some victims to stay in the country for the duration of court proceedings without allowing them to formally work, possibly increasing their indebtedness and vulnerability to re-trafficking. "]
[null,null,"Comoros",82.539682539682531,"NR","NR","NR",66.666666666666657,85.714285714285708,50,75,57.000000000000007,56.333188096690471,"High",82.539682539682531,"NR","NR","NR",83.333333333333343,85.714285714285708,50,58,79,57.000000000000007,60.595069763588093,"High",null,4.2618816668976223,"Comoros does not have data for the ITUC score and as such a proxy is generated based on their categorisation in the UNDP Human Development Index. In 2021, the categorisation for this country changed from low human development to medium human development and as a result this has caused their ITUC score to change, leading to an increase of the overall FNET score."]
[null,null,"Malaysia",32.275132275132272,39.22525132573513,61.563000000000002,66.666666666666657,66.666666666666657,71.428571428571431,48,47,46,53.53248232451687,"High",33.333333333333329,39.22525132573513,61.563000000000002,83.333333333333343,83.333333333333343,85.714285714285708,65,49,49,46,58.115784348639494,"High",null,4.5833020241226237,"The ITUC Global Rights Index 2021 rating for Malaysia has increased from 4 to 5 (no guarantee of rights), meaning the situation for workers has worsened. Malaysia Airlines were highlighted specifically as a company violating workers' rights in Malaysia. \n \nTrafficking in Persons 2021 report downgraded Malaysia's rating from the 'Tier 2 watch list' to 'Tier 3', meaning that the government does not fully meet the minimum standards for the elimination of trafficking and is not making significant efforts to do so. The TiP report also states that \"the government continued to conflate human trafficking and migrant smuggling crimes and did not adequately address or criminally pursue credible allegations from multiple sources alleging labour trafficking, including in the rubber manufacturing industry and palm oil sector, with the government owning 33 percent of the third largest palm oil company in the world\". "]
[null,null,"Haiti",89.417989417989418,69.560783639065136,52.851999999999997,66.666666666666657,66.666666666666657,57.142857142857139,59,82,57.999999999999993,65.842350997542738,"High",89.947089947089935,69.560783639065136,52.851999999999997,83.333333333333343,83.333333333333343,71.428571428571431,65,63,82,57.999999999999993,70.823633327576587,"High",null,4.9812823300338493,"The ITUC Global Rights Index for 2021 increased Haiti's score from 4 to 5 (no guarantee of rights), meaning the situation has worsened in the country and caused a negative increase in the overall Country Score. The ITUC report explains that nearly a third of Haiti's 57,000 garment workers, who were struggling to survive in the pandemic, were suspended or terminated but haven't yet received any compensation from the government in spite of earlier promises. The report highlights Premium Apparel in particular as one of the companies violating workers' rights in Haiti. "]
[null,null,"Myanmar",76.719576719576722,65.916926671018629,81.637,66.666666666666657,66.666666666666657,85.714285714285708,70,71,64,69.791300497677312,"High",77.777777777777771,65.916926671018629,81.637,100,100,85.714285714285708,65,72,72,64,76.983407862317961,"High",null,7.1921073646406484,"Myanmar received the highest rating (6), within the ITUC Global Rights Index for 2021 and was highlighted as one of the ten worst countries for working people. In 2021 Myanmar descended into systemic violence against workers and harsh suppression of civil liberties as the military junta, which seized power on 1 February, relentlessly cracked down on the crowds of protesters calling for the return of democracy. Daily demonstrations were met with increasing brutality, and at least 550 persons were killed while hundreds more have been wounded and over 2,700 have been arrested, charged or already sentenced. \n"]
[null,null,"Seychelles",32.804232804232804,"NR","NR","NR",33.333333333333329,57.142857142857139,29,34,34,30.084983435879934,"Moderate",35.449735449735449,"NR","NR","NR",83.333333333333343,57.142857142857139,40,23,34,34,40.023626906588085,"Moderate",null,9.9386434707081506,"Seychelles does not have data for the ITUC score and as such a proxy is generated based on their categorisation in the UNDP Human Development Index. In 2021, the categorisation for this country changed from very high human development to high human development and as a result this has caused their ITUC score to change, leading to an increase of the overall FNET score. "]

{"sheet":"2018-2019 Review countries","index":9,"n_rows":51,"n_cols":32,"rows_kept":51,"cut":false,"hidden":false,"merged":[[0,3,0,11],[0,12,0,13],[0,14,0,22],[0,23,0,24],[1,3,1,11],[1,15,1,16],[1,17,1,18],[1,20,1,21]]}
[null,null,null,"2018 Score",null,null,null,null,null,null,null,null,"Click to expand 2018 Indicator Scores",null,"NEW 2019 Score + 2020 ITUC Index",null,null,null,null,null,null,null,null,"Click to expand 2019 Indicator Scores",null,null,null,null,null,"Key"]
[null,null,null,"2018 Scores in FNET Tool",null,null,null,null,null,null,null,null,null,null,"UNDP","Modern Slavery",null,"ITUC",null,"Trafficking","Governance",null,null,null,null,null,null,null,null,null,2018,2019]
[null,null,"Country","2017 HDI Report"," GSI 2018 Modern Slavery Vulnerability IndeX"," GSI 2018 Modern Slavery Prevlance Index - log 10 transformed (RH)","[Global Rights Index - source 1-5+ scale (sub. 5+ with 6)]","PROXIES INCLUDED[Global Rights Index - source 1-5+ scale (sub. 5+ with 6)]","US StateDept 2018 Trafficking","FreedomHouse 2018 FIW","Transparency International 2018 Corruption Perception Index","Unicef Childrens Rights & Business Atlas (Outcome Workplace)","2018 SCORE","2018 RATING","2018 HDI Report","Modern Slavery Vulnerability Index,  GSI 2018 "," Modern Slavery Prevlance Index, GSI, 2018  - log 10 transformed (RH)","Global Rights Index, ITUC, 2019","PROXIES INCLUDED Global Rights Index, ITUC, 2019","Trafficking in Persons Report, US StateDept, 2019","Freedom in the World, Freedom House, 2019","Transparency International 2019 Corruption Perception Index","Unicef Childrens Rights & Business Atlas (Outcome Workplace)","NEW 2019 Score","NEW 2019 RATING",null,"2019 Advisory Statements","Comment",null,"High",47,47]
[null,null,"Korea (North)",100,73.302951914026167,100,"NR",100,85.714285714285708,97,83,65,85.062455748961057,"High",100,73.302951914026167,100,"NR",100,85.714285714285708,97,83,65,85.062520658583736,"High",null,null,"No significant change",null,"Moderate","21-47","21-47"]
[null,null,"Afghanistan",88.421052631578945,93.924621009113324,100,"NR",66.666666666666657,57.142857142857139,74,85,61.900000000000006,74.183051160514893,"High",89.947089947089935,93.924621009113324,100,83.333333333333343,83.333333333333343,71.428571428571431,73,84,62,78.63068222900155,"High",null,null,"Newly added to ITUC, and significant increase to Trafficking index score. \n\nITUC 2019:  the authorities intensified their repression against the National Union of Afghanistan Workers and Employees (NUAWE) by raiding the union’s offices several times in April and May 2018 and by instructing the Justice Ministry to cancel NUAWE’s registration unless it handed over its legally acquired property to the government. ",null,"Low","<21","<21"]
[null,null,"Iran",31.578947368421051,63.301785403368036,98.778999999999996,83.333333333333343,83.333333333333343,85.714285714285708,82,70,50.300000000000004,72.617335011805196,"High",34.391534391534393,63.301785403368036,98.778999999999996,83.333333333333343,83.333333333333343,85.714285714285708,82,74,50,73.44802744965952,"High",null,null,"No significant change"]
[null,null,"Iraq",63.157894736842103,85.726912558131872,46.555,66.666666666666657,66.666666666666657,71.428571428571431,69,82,53,67.56775565891418,"High",63.492063492063487,85.726912558131872,46.555,83.333333333333343,83.333333333333343,71.428571428571431,68,80,53,70.748002391146315,"High",null,null,"ITUC increase to Tier 5. ITUC 2019: Rise in attacks on workers' rights in law and practice, resulted in worsened ITUC rating. "]
[null,null,"Myanmar",77.89473684210526,65.916926671018629,81.637,66.666666666666657,66.666666666666657,"NR",69,70,64.3,63.399430136365275,"High",76.719576719576722,65.916926671018629,81.637,66.666666666666657,66.666666666666657,85.714285714285708,70,71,64,69.791300497677312,"High",null,null,"Data now available for Trafficking, has increased score 6 points."]
[null,null,"Swaziland",75.78947368421052,64.836737673120851,71.94,66.666666666666657,66.666666666666657,"NR",84,61,57.400000000000006,60.743916636515436,"High",73.015873015873012,64.836737673120851,71.94,83.333333333333343,83.333333333333343,57.142857142857139,84,66,57.000000000000007,69.599750660198708,"High",null,null,"ITUC band increased to Tier 5, New trafficking score for 2019. CPI rank has increased as well. \n\nITUC 2019: In Eswatini, a peaceful demonstration, organised by the Trade Union Congress of Swaziland (TUCOSWA) to deliver a petition to the deputy prime minister’s office, was brutally repressed by armed forces on 29 June 2018. "]
[null,null,"Venezuela",41.052631578947363,57.893256737984224,52.851999999999997,50,50,85.714285714285708,74,82,43,61.624661195570297,"High",50.793650793650791,57.893256737984224,52.851999999999997,66.666666666666657,66.666666666666657,85.714285714285708,81,84,43,66.600919108174566,"High",null,null,"ITUC score increased to Tier 4; Freedom House. \nFreedom House 2019: Government repression in country has driven migraiton crisis in latin america during 2018. President extended his authoritarian rule. Labour conditions worsened. "]
[null,null,"China",45.263157894736842,50.646927634022511,25.661000000000001,83.333333333333343,83.333333333333343,85.714285714285708,86,59,56,65.7,"High",44.973544973544968,50.646927634022511,25.661000000000001,83.333333333333343,83.333333333333343,85.714285714285708,89,59,55.999999999999993,66.09,"High",null,null,"No real change to China's score for 2019, despite more awareness of the use of forced labour in prisons in Xinjiang province.\nThe news stories on forced labour through Chinese prisons does not appear to have altered indicator scores significantly for China in 2019. China has been listed in 'No guarantee of rights' tier in ITUC Global Rights Index for a number of years. China's score on the Freedom in the World index has worsened in 2019 vs 2018, reflecting worsening conditions for political and civil liberties.  Freedom House (2019) call out China's mass internment of Uighurs and other muslims \"a superpower's attempt to annihilate the distinct identities of minority groups\".  According to Walk Free Foundation, Chinese modern slavery legislation still does not recognise that men and boys can also be victims (MAF, 2019). As the weighting on the Freedom in the World index is 0.11 these changes have a smaller impact on the final score – hence the minimal FNET risk score change. "]
[null,null,"Vietnam",61.052631578947363,41.488790370740624,43.956000000000003,66.666666666666657,66.666666666666657,57.142857142857139,80,65,56.4,61.383471421039296,"High",62.43386243386243,41.488790370740624,43.956000000000003,66.666666666666657,66.666666666666657,71.428571428571431,80,63,55.999999999999993,61.87,"High",null,null,"ITUC score increased to Tier 5; Freedom House increased.\nITUC 2019: In Vietnam, peaceful protests against a bill on EPZs on 10 June 2018 were violently repressed by the police, militia and thugs, using tear gas and water cannons. One demonstrator was knocked unconscious and 500 protesters were detained."]
[null,null,"Egypt",60.526315789473678,60.449272154648817,52.11,83.333333333333343,83.333333333333343,57.142857142857139,74,68,44.699999999999996,64.400000000000006,"High",61.375661375661373,60.449272154648817,52.11,83.333333333333343,83.333333333333343,57.142857142857139,78,65,45,64.28,"High",null,null,"Query from members as to why Morocco and Egypt differ in score quite so much. \n\nIn terms of data, Egypt scores higher across all indicators that Morocco. Notably Egypt has the status 'No guarantee of rights' in the ITUC ranking, vs Morocco's 'regular violations of human rights'. "]
[null,null,"Kyrgyzstan",64.210526315789465,42.756599526937144,40.25,"NR",83.333333333333343,71.428571428571431,63,71,41.4,62.042648265529522,"High",64.550264550264544,42.756599526937144,40.25,"NR",83.333333333333343,71.428571428571431,62,70,41,61.616078100570988,"High",null,null,"No significant change"]
[null,null,"Liberia",95.263157894736835,59.312136602514464,64.524999999999991,50,50,71.428571428571431,38,69,54.699999999999996,57.206734247118376,"High",93.121693121693113,59.312136602514464,64.524999999999991,50,50,71.428571428571431,38,72,55.000000000000007,57.947480049859969,"High",null,null,"No significant change"]
[null,null,"The FYR of Macedonia",42.105263157894733,45.602910737502491,71.447000000000003,50,50,57.142857142857139,42,65,27.200000000000003,49.07907525676039,"High",43.386243386243386,45.602910737502491,71.447000000000003,66.666666666666657,66.666666666666657,57.142857142857139,41,65,27,52.66339277576634,"High",null,null,"Macedonia - boundary country. ITUC score worsened to Tier 4. "]
[null,null,"Guyana",65.78947368421052,45.436719200159388,22.951000000000001,"NR",83.333333333333343,28.571428571428569,26,62,42.400000000000006,51.988238446269897,"High",65.079365079365076,45.436719200159388,22.951000000000001,"NR",83.333333333333343,28.571428571428569,25,60,42.000000000000007,51.337008555238988,"High",null,"High (Medium). Lack of data led to use of a proxy indicator score for the ITUC Global Rights Index. The proxy may be artificially inflating the Guyana score from Medium to High."]
[null,null,"Brazil",41.578947368421048,36.375212949924325,10.197000000000001,66.666666666666657,66.666666666666657,57.142857142857139,22,63,36.5,47.180328135878945,"High",41.798941798941797,36.375212949924325,10.197000000000001,83.333333333333343,83.333333333333343,57.142857142857139,25,65,37,51.819579260934781,"High",null,null,"Brazil - increased ITUC to Tier 5, increased Freedom House and CPI scores. Move to High Risk is aligned with the concern from Tesoc in 2019, due to high corruption and bad implementation of laws. \nITUC - newly added to ten worst countries for workers. The situation of workers in Brazil dramatically worsened in the last year with the adoption of regressive laws that severely undermined collective bargaining rights in the country and the rise to power of far-right president Jair Bolsonaro. Many strikes and protests were repressed with violence by state security forces, and union leaders faced threats and intimidation. On 8 November 2018, the president of the civil servants union of the municipality of Bahia, Aroldo Pereira de Souza, was ambushed on a road and shot three times by unknown gunmen. He died on the way to the hospital. Entire collective bargaining system has collapsed."]
[null,null,"Mongolia",48.421052631578945,43.548123300333529,86.546000000000006,"NR",66.666666666666657,71.428571428571431,15,64,33.6,52.954342140500017,"High",48.677248677248677,43.548123300333529,86.546000000000006,"NR",66.666666666666657,57.142857142857139,15,65,34,52.248075032306794,"High",null,null,"No significant change"]
[null,null,"Sri Lanka",40,42.48772108796215,15.395000000000001,50,50,57.142857142857139,45,62,35.5,46.379378036895261,"Medium",37.566137566137563,42.48772108796215,15.395000000000001,66.666666666666657,66.666666666666657,71.428571428571431,44,62,36,51.141214212313876,"High",null,null,"Sri Lanka - ITUC score worsened to Tier 4 not Tier 3. Increase in trafficking score. Timing of publication - Easter events in 2019. "]
[null,null,"Solomon Islands",80,0,0,"NR",66.666666666666657,57.142857142857139,28,61,59,49.129251700680264,"High",80.952380952380949,"NR","NR","NR",83.333333333333343,57.142857142857139,21,58,59.000000000000007,51.411280172912569,"High",null,null,"Soloman Islands - Boundary country. Proxy for ITUC different for 2019. Opposes, decreasing CPI and Freedom House scores."]
[null,null,"Peru",46.84210526315789,44.284517356087804,22.951000000000001,66.666666666666657,66.666666666666657,57.142857142857139,27,63,42.300000000000004,50.519543756727359,"High",43.386243386243386,44.284517356087804,22.951000000000001,66.666666666666657,66.666666666666657,57.142857142857139,27,64,42.000000000000007,50.676530525154391,"High",null,null,"Retailer members showed high concern for the position of Peru on High/Moderate boundary. Critical issues at most audits. \nITUC 2019: Casualisation of workforce to circumvent collective bargaining - example of AB InBev who dismissed 1,500 workers and replaced them with causal workers. "]
[null,"*","Morocco",64.73684210526315,48.336997425128772,20.073,50,50,57.142857142857139,61,60,35.9,48.56806104057042,"High",64.021164021164012,48.336997425128772,20.073,50,50,57.142857142857139,61,59,36,48.366056741223822,"High",null,null,"Although both countries are high risk, Morroco is at the very bottom end of this rating. Egypt on the other hand scores 64/100. In terms of data, Egypt scores higher across all indicators that Morocco. Notably Egypt has the status 'No guarantee of rights' in the ITUC ranking, vs Moroccos 'regular violations of human rights'. "]
[null,null,"El Salvador",63.684210526315788,50.743998955807655,21.533999999999999,50,50,57.142857142857139,30,67,39.799999999999997,47.811693802965848,"High",65.608465608465607,50.743998955807655,21.533999999999999,50,50,57.142857142857139,33,66,40,47.968742063706998,"High",null,null,"Retailer members flagged concern over this being Moderate Risk, conditions as bad as Honduras and Guatemala. "]
[null,null,"Ghana",73.68421052631578,52.161766465242785,46.555,50,50,57.142857142857139,17,60,44.800000000000004,47.792013931190816,"High",75.132275132275126,52.161766465242785,46.555,33.333333333333329,33.333333333333329,57.142857142857139,17,59,45,43.87,"Medium",null,null,"ITUC 2020 Report reduces Ghana's FNET Risk Score to Medium Risk. "]
[null,null,"Brunei",20.526315789473681,47.184256010315572,81.238,"NR",33.333333333333329,57.142857142857139,72,38,41.5,46.666215565362677,"Medium",22.75132275132275,47.184256010315572,81.238,"NR",33.333333333333329,71.428571428571431,71,40,42.000000000000007,48.135793246027255,"High",null,null,"Number of indicators crept up including Trafficking. "]
[null,null,"Dominican Republic",49.473684210526315,43.084782179564634,39.275999999999996,33.333333333333329,33.333333333333329,57.142857142857139,33,71,44.800000000000004,47.147538863166183,"High",47.089947089947088,43.084782179564634,39.275999999999996,33.333333333333329,33.333333333333329,57.142857142857139,33,72,45,47.416850788292706,"High",null,null,"No significant change, remains high risk with 2019 CPI score.\n\nAccording to Walk Free foundation, Dom Rep has reduced in its Government response to modern slavery (MAF, 2019). "]
[null,null,"Romania",27.368421052631579,33.879612424540369,42.14,66.666666666666657,66.666666666666657,57.142857142857139,16,52,29.700000000000003,44.6,"Medium",27.513227513227513,33.879612424540369,42.14,66.666666666666657,66.666666666666657,71.428571428571431,19,56,30,46.94,"Medium",null,null,"Query from members as it sits on boundary in 2019, and following anti-migant news story in 2019. \n\nRomania's scores for Trafficking, Freedom and Corruption Perception indices have all increased in 2019. The Trafficking in Persons Report (2019), now classes Poland at Tier 2 Watch List. The govt continues to demonstrate reduce effort in convictions of traffickers and idenification of victims. "]
[null,null,"Bhutan",70.526315789473685,"NR","NR","NR",83.333333333333343,71.428571428571431,45,33,43.5,46.034013605442183,"Medium",70.899470899470899,"NR","NR","NR",83.333333333333343,85.714285714285708,41,32,44.000000000000007,46.493096497606466,"Medium",null,null,"Increased traffikcing and Freedom House scores, but no significant change. \nTrafficking in Persons 2019: Government is not making significant efforts to fully meet minimum standards for the elimination of trafficking, so has been downgraded to Tier 3. "]
[null,null,"Moldova",58.94736842105263,41.615210221557888,52.11,50,50,57.142857142857139,39,69,35,49.72527011786638,"High",56.613756613756614,41.615210221557888,52.11,33.333333333333329,33.333333333333329,57.142857142857139,42,68,35,46.096015091689253,"Medium",null,"Medium (High). Moldova's previous country risk rating in 2018 was High. In 2019, it's risk rating reduced significantly due to a reduction in the ITUC score as a result of reduced regularity of violations of human rights violations. Members should be aware that endemic corruption remains a challenge in Molodova. ","ITUC Score improved, making efforts to reduced regularity of violations of rights. \n\nCPI score has increased slightly for 2019 (+3) , but due to the more significant reduction to the ITUC score as a result of reduced regularity of violations of rights the overall score has dropped into Moderate. \n\nConcerns from membership as to endemic corruption witnessed in Moldova, driving the reduction in ITUC score and therefore reduction in overall score. "]
[null,null,"South Africa",59.473684210526315,53.755544568357301,25.661000000000001,33.333333333333329,33.333333333333329,71.428571428571431,22,57,35.799999999999997,41.559685156243212,"Medium",59.788359788359784,53.755544568357301,25.661000000000001,50,50,71.428571428571431,21,56,36,45.01,"Medium",null,"Medium (High). The score calculated using Anthesis' methodology denotes South Africa's country risk as Moderate. In 2017, South Africa was just into the High Risk rating category however in 2018 South Africa was Moderate Risk. \nFNET members should note that a number of retail customers regard agriculture in South Africa as high risk and would require suppliers located in South Africa to have an ethical audit.","No significant change, hold change to High risk"]
[null,null,"Poland",17.368421052631579,24.386541397747507,32.961999999999996,50,50,28.571428571428569,15,40,24.5,33.5,"Medium",16.93121693121693,24.386541397747507,32.961999999999996,50,50,57.142857142857139,16,42,24,36.01,"Medium",null,null,"Query from members as concerns over coverage for last year of Poland acting as an entry point for Eastern European workers into Europe. Visa System. \n\nAll indicator scores for Poland remain very similar to 2019 (CPI and Freedom creep up by 2 and 1 points respectively), except for a significant increase in Trafficking in Persons Report index, where Poland is now considered in Tier 2 (Govt does not meet minimum standards for elimination of trafficking, but is making efforts to do so). Poland has been considered in Tier 1 since 2012. Efforts in 2019 have not been as robust in previous years, and response to child labour and forced labour remains inadequate. \nAlso removal of judicial independence and press freedoms by Poland's president indicates shift to less freedom for workers in the country. "]
[null,null,"Fiji",48.421052631578945,0,0,66.666666666666657,66.666666666666657,71.428571428571431,41,"NR",48,35.445578231292515,"Medium",51.851851851851848,"NR","NR",66.666666666666657,66.666666666666657,71.428571428571431,39,"NR",48,35.221060646536394,"Medium",null,null,"No significant change"]
[null,null,"Hong Kong",3.6842105263157894,24.680369559363672,2.2250000000000001,83.333333333333343,83.333333333333343,71.428571428571431,41,23,"NR",35.496642043355912,"Medium",2.1164021164021163,24.680369559363672,2.2250000000000001,83.333333333333343,83.333333333333343,57.142857142857139,41,24,"NR",34.700727826061375,"Medium",null,null,"Trafficking score reduced , but no significant change.\n\nTrafficking in Persons 2019: Government does not fully meet minimum standards for elimination of trafficking but is making efforts to do so  - increased efforts in this reporting period compared to previous has meant that Hong Kong has improved to Tier 2. "]
[null,null,"Palestine",62.631578947368418,"NR","NR",100,100,"NR","NR","NR",44.5,32.438775510204081,"Medium",62.962962962962962,"NR","NR",100,100,"NR","NR","NR",45,32.550724492755073,"Medium",null,"Medium (High). We would advise that you consider Palestine's score as artificially deflated at Medium. The data available for Palestine is limited, the country only being listed in the ITUC and Child Labour indices. Therefore the calculated score is considered lower than we would expect with our wider understanding of Palestine. ","No significant change\nQuery as to why Palestine and Israels score are so similar. \n\nPalestine score compared to Israel - Palestine has a lower HDI index score and higher risk to children's rights than Israel. The scores for eahc of these are comparative with countries with a High FNET risk score. However, due to the lack of data for Palestine the score is considered artificially deflated to Moderate (and therefore comparable with Israel). "]
[null,null,"Israel",11.578947368421051,36.421898192491199,38.280999999999999,33.333333333333329,33.333333333333329,28.571428571428569,21,38,25.2,31.4,"Medium",11.640211640211639,36.421898192491199,38.280999999999999,33.333333333333329,33.333333333333329,28.571428571428569,22,40,25,31.92,"Medium",null,null,"Query as to why Israel and Palestines scores are so similar. \n\nIsrael correctly listed in moderate, based on moderate scores for each underlying indicator. Minor increases to scores for Freedom in the World report and Corruption Perception Index. "]
[null,null,"Costa Rica",33.157894736842103,28.353371717331694,0,33.333333333333329,33.333333333333329,57.142857142857139,9,41,33.299999999999997,31.279662605659748,"Medium",35.978835978835974,28.353371717331694,0,"NR",66.666666666666657,57.142857142857139,9,44,32.999999999999993,39.369999999999997,"Medium",null,"Retailer audits for the food sector have identified critical issues. However, at a country level Costa Rica scores very well in terms of Freedom, according to Freedom House. The country has a long history of democratic stability, and freedoms of expression and association are robust. According to Walk Free Foundation Costa Rica also has moderate slavery scores and government is reported as making efforts to reduce modern slavery. ","Retailer members flagged in 2019, that concerns around sourcing from Costa Rica as audits typically return critical issues. Should be high risk. However Costa Rica scores very well in terms of Freedom, according to Freedom House (2019). The country has a long history of democratic stability, and freedoms of expression and association are robust. According to Walk Free foundation also has moderate slavery scores and the government is reported as making efforts to reduce modern slavery. The UN State Dept (Trafficking in Persons, 2019) note that the Costa Rican government identified and provided support to 20 trafficking victims in 2018 (latest available data) of which 6 were Nicaraguan, 3 Honduran, 2 Colombian, 2 Dominican, 1 Venezuelan, 1 Chinese and 1 Panamanian. There is no further mention of Nicaraguan migrant workers in any of the indices contributing to the FNET risk score or their support reports. \n"]
[null,null,"San Marino",100,"NR","NR","NR",100,"NR",3,"NR",36.1,30.889795918367344,"Medium",100,"NR","NR","NR",100,"NR",5,"NR",36,31.091579084209162,"Medium",null,"Medium (High). Lack of data led to use of a proxy indicator score for the ITUC Global Rights Index. The proxy may be artificially inflating the San Marino score from Low to Medium.","No significant change. Hold manual adjust down to Low. "]
[null,null,"Seychelles",32.631578947368418,0,0,"NR",66.666666666666657,71.428571428571431,29,40,33.5,39.823129251700678,"Medium",32.804232804232804,"NR","NR","NR",33.333333333333329,57.142857142857139,29,34,34,30.084983435879934,"Medium",null,null,"HDI Band changes so now Tier 2 ITUC. Also Trafficking score reduced significantly as has CPI score. \n\nTrafficking in Persons 2019: Seychelles have made significant efforts to meet minimum standards and so has been upgraded to Tier 2 - government investigated and prosecuted more cases, as well as convicting first trafficker. Investigated senior government official, offered assistance to victims. "]
[null,null,"Monaco",100,"NR","NR","NR",100,"NR",18,"NR",21.5,29.295918367346939,"Medium",100,"NR","NR","NR",100,"NR",18,"NR",22.000000000000004,29.407985920140803,"Medium",null,"Medium (High). Lack of data led to use of a proxy indicator score for the ITUC Global Rights Index. The proxy may be artificially inflating the Monaco score from Low to Medium.","Uphold manual adjustment to Low for 2019"]
[null,null,"Italy",14.736842105263158,28.288019384748761,20.073,16.666666666666664,16.666666666666664,28.571428571428569,11,50,23.900000000000002,27.1,"Medium",15.343915343915343,28.288019384748761,20.073,16.666666666666664,16.666666666666664,57.142857142857139,11,47,24,28.45,"Medium",null,null,"Query from members as the agricultural sector risks in Italy are considered high by the membership. \n\nAll indicator scores for Italy remain very similar to 2019, except for a significant increase in Trafficking in Persons Report index, where Italy is now consider in Tier 2 (Govt does not meet minimum standards for elimination of trafficking, but is making efforts to do so). Italy has been considered in Tier 1 since 2012. Efforts in 2019 have not been as robust in previous years. "]
[null,null,"Palau",31.578947368421051,0,0,"NR",66.666666666666657,57.142857142857139,8,"NR",65.8,34.717006802721087,"Medium",29.100529100529098,"NR","NR","NR",33.333333333333329,57.142857142857139,8,"NR",65.999999999999986,27.278781497899306,"Medium",null,null,"ITUC Proxy banding has changes, so now only Tier 2. Moved to Very High Human Development group under HDI. "]
[null,null,"Belize",55.78947368421052,0,0,33.333333333333329,33.333333333333329,85.714285714285708,14,"NR",38,23.707482993197278,"Medium",54.497354497354493,"NR","NR",50,50,71.428571428571431,14,"NR",38,26.428498572157139,"Medium",null,null,"Increase to Tier 3 ITUC. Decreased Trafficking indicator.  Retailer members concerned in 2019, that Belize should remain High Risk due to migration from Guatemala and Hondura and labour conditions only mildyl better than these countries. "]
[null,null,"Australia",1.5789473684210527,4.2746639713470707,0,50,50,28.571428571428569,2,23,23.1,24.144108651014591,"Medium",3.1746031746031744,4.2746639713470707,0,50,50,28.571428571428569,2,23,23,24.121495175378715,"Medium",null,null,"No significant change"]
[null,null,"Belgium",8.9473684210526319,13.05497583485535,13.726000000000001,16.666666666666664,16.666666666666664,28.571428571428569,5,25,22.7,18.964627525618919,"Low",8.9947089947089935,13.05497583485535,13.726000000000001,33.333333333333329,33.333333333333329,28.571428571428569,4,25,23,22.661115635584505,"Medium",null,null,"Beligum - ITUC Tier has increased in 2019 to Tier 2 - repeated violations of rights. \n\nITUC 2019: Protesting workers prosecuted and sentenced. 18 FGTB members were charged for blocking a road during a protest. The president of the FGTB Antwerp branch was sentenced but no penalty was imposed. "]
[null,null,"France",12.631578947368421,15.252982373435563,13.726000000000001,33.333333333333329,33.333333333333329,28.571428571428569,10,30,11.299999999999999,21.987614387218187,"Medium",13.756613756613756,15.252982373435563,13.726000000000001,33.333333333333329,33.333333333333329,28.571428571428569,10,31,11.000000000000002,22.144684406947579,"Medium",null,null,"No significant change"]
[null,null,"Ireland",2.1052631578947367,10.351477913503212,8.3279999999999994,16.666666666666664,16.666666666666664,57.142857142857139,4,26,25.299999999999997,21.122683796542741,"Medium",1.5873015873015872,10.351477913503212,8.3279999999999994,16.666666666666664,16.666666666666664,57.142857142857139,3,26,25,20.943019962876193,"Low",null,null,"Very slight reductions to Irelands Freedom House score has dropped Ireland into the Low rating band. \n\nITUC reports Ireland in Sporadic violations of rights (lowest tier) and Freedom House lists Ireland as 10th most free countries (an improved score for 2019). The Walk Free foundation also recognise improvements in Irelands response to modern slavery - improving score to 7/10 in 2019. Trafficking in Persons (2019) report also states Irelands investment in addressing root causes of trafficking. "]
[null,null,"Switzerland",1.0526315789473684,1.5061400437948982,8.3279999999999994,33.333333333333329,33.333333333333329,28.571428571428569,4,15,27.200000000000003,20.14869707795814,"Low",1.0582010582010581,1.5061400437948982,8.3279999999999994,33.333333333333329,33.333333333333329,28.571428571428569,4,15,27,20.103688729298121,"Low",null,null,"No significant change"]
[null,null,"Sweden",3.6842105263157894,4.2727318367363605,6.3810000000000002,16.666666666666664,16.666666666666664,28.571428571428569,0,16,17.100000000000001,13.973906015549195,"Low",4.2328042328042326,4.2727318367363605,6.3810000000000002,16.666666666666664,16.666666666666664,28.571428571428569,0,15,17,13.726895938995831,"Low",null,null,"No significant change"]
[null,null,"Andorra",18.421052631578945,"NR","NR","NR",33.333333333333329,"NR",4,"NR",19.399999999999999,12.287074829931973,"Low",19.047619047619047,"NR","NR","NR",33.333333333333329,"NR",6,"NR",19,12.42168578314217,"Low",null,null,"No significant change. "]
[null,null,"Macau (China)","ND","NR","NR","NR","NR",71.428571428571431,"NR","NR","NR",5.1020408163265314,"Low","NR","NR","NR","NR","NR",57.142857142857139,"NR","NR","NR",4.0816734689795959,"Low",null,"Low (Medium). The data available for Macao is limited and no ITUC proxy is available. We advise that you consider Macao’s score as artificially deflated at Low."]

{"sheet":"FOR INFO Low Risk Exemptions","index":10,"n_rows":33,"n_cols":2,"rows_kept":33,"cut":false,"hidden":false,"merged":[[32,1,32,14],[6,1,6,18],[7,1,7,18],[8,1,8,18],[9,1,9,18],[27,1,27,18],[28,1,28,18]]}
[]
[]
[]
[]
[]
[]
[null,"Low Risk Exemptions"]
[null,"The Low Risk Exemptions tab is to be used by suppliers with large numbers of products, ingredients, sub-components etc to remove any ingredients or raw materials that are located in low risk countries or low risk industries"]
[null,"Low risk countries"]
[null,"Remove any ingredients, products, sub-components, suppliers sourced from/ located in the following countries: "]
[null,"Andorra"]
[null,"Austria"]
[null,"Denmark"]
[null,"Finland"]
[null,"Germany"]
[null,"Greenland"]
[null,"Iceland"]
[null,"Liechtenstein"]
[null,"Luxembourg"]
[null,"Macau (China)"]
[null,"Netherlands"]
[null,"New Zealand"]
[null,"Norway"]
[null,"Sweden"]
[null,"Taiwan Province of China"]
[]
[]
[null,"Low risk industries"]
[null,"Examples include:"]
[null,"1) Type of industry e.g. highly mechanised with minimal labour being used"]
[null,"2) Type of labour e.g. highly skilled"]
[]
[null,"The information contained in this assessment is given by way of general guidance and does not constitute legal advice. Circumstances may differ and detailed legal advice should be obtained before acting upon it. The Food Network for Ethical Trade and HCL cannot accept responsibility for any errors or omissions or for any loss occasioned to any person or body acting or refraining from acting on the basis of any material contained in this publication. "]

{"sheet":"US Dept List of Countries","index":11,"n_rows":209,"n_cols":9,"rows_kept":209,"cut":false,"hidden":true,"merged":[]}
[]
[null,null,"US Dept of State","Vlookup to Known Human rights risks","Vlookup to Country list","Status",null,null,"Countries/ Dependencies with no Country Level Risk Indec Score"]
[null,null,"Afghanistan",{"$f":"VLOOKUP(C3,CountryList,1,0)","v":"Afghanistan"},{"$f":"VLOOKUP(C3,'FOR INFO Risk Metrics'!$B$11:$B$211,1,0)","v":"Afghanistan"},"Independent State",null,null,"Country names/ spelling differ between FNET tool and US Dept of State"]
[null,null,"Albania","Albania",{"$f":"VLOOKUP(C4,'FOR INFO Risk Metrics'!$B$11:$B$211,1,0)","v":"Albania"},"Independent State",null,null,"Country names updated"]
[null,null,"Algeria","Algeria",{"$f":"VLOOKUP(C5,'FOR INFO Risk Metrics'!$B$11:$B$211,1,0)","v":"Algeria"},"Independent State"]
[null,null,"Andorra","Andorra",{"$f":"VLOOKUP(C6,'FOR INFO Risk Metrics'!$B$11:$B$211,1,0)","v":"Andorra"},"Independent State"]
[null,null,"Angola","Angola",{"$f":"VLOOKUP(C7,'FOR INFO Risk Metrics'!$B$11:$B$211,1,0)","v":"Angola"},"Independent State"]
[null,null,"Antigua and Barbuda","Antigua and Barbuda",{"$f":"VLOOKUP(C8,'FOR INFO Risk Metrics'!$B$11:$B$211,1,0)","v":"Antigua and Barbuda"},"Independent State"]
[null,null,"Argentina","Argentina",{"$f":"VLOOKUP(C9,'FOR INFO Risk Metrics'!$B$11:$B$211,1,0)","v":"Argentina"},"Independent State"]
[null,null,"Armenia","Armenia",{"$f":"VLOOKUP(C10,'FOR INFO Risk Metrics'!$B$11:$B$211,1,0)","v":"Armenia"},"Independent State"]
[null,null,"Aruba",{"$error":"#N/A"},{"$f":"VLOOKUP(C11,'FOR INFO Risk Metrics'!$B$11:$B$211,1,0)","v":{"$error":"#N/A"}},"Independent State"]
[null,null,"Australia","Australia",{"$f":"VLOOKUP(C12,'FOR INFO Risk Metrics'!$B$11:$B$211,1,0)","v":"Australia"},"Independent State"]
[null,null,"Austria","Austria",{"$f":"VLOOKUP(C13,'FOR INFO Risk Metrics'!$B$11:$B$211,1,0)","v":"Austria"},"Independent State"]
[null,null,"Azerbaijan","Azerbaijan",{"$f":"VLOOKUP(C14,'FOR INFO Risk Metrics'!$B$11:$B$211,1,0)","v":"Azerbaijan"},"Independent State"]
[null,null,"The Bahamas",{"$error":"#N/A"},{"$f":"VLOOKUP(C15,'FOR INFO Risk Metrics'!$B$11:$B$211,1,0)","v":{"$error":"#N/A"}},"Independent State"]
[null,null,"Bahrain","Bahrain",{"$f":"VLOOKUP(C16,'FOR INFO Risk Metrics'!$B$11:$B$211,1,0)","v":"Bahrain"},"Independent State"]
[null,null,"Bangladesh","Bangladesh",{"$f":"VLOOKUP(C17,'FOR INFO Risk Metrics'!$B$11:$B$211,1,0)","v":"Bangladesh"},"Independent State"]
[null,null,"Barbados","Barbados",{"$f":"VLOOKUP(C18,'FOR INFO Risk Metrics'!$B$11:$B$211,1,0)","v":"Barbados"},"Independent State"]
[null,null,"Belarus","Belarus",{"$f":"VLOOKUP(C19,'FOR INFO Risk Metrics'!$B$11:$B$211,1,0)","v":"Belarus"},"Independent State"]
[null,null,"Belgium","Belgium",{"$f":"VLOOKUP(C20,'FOR INFO Risk Metrics'!$B$11:$B$211,1,0)","v":"Belgium"},"Independent State"]
[null,null,"Belize","Belize",{"$f":"VLOOKUP(C21,'FOR INFO Risk Metrics'!$B$11:$B$211,1,0)","v":"Belize"},"Independent State"]
[null,null,"Benin","Benin",{"$f":"VLOOKUP(C22,'FOR INFO Risk Metrics'!$B$11:$B$211,1,0)","v":"Benin"},"Independent State"]
[null,null,"Bhutan","Bhutan",{"$f":"VLOOKUP(C23,'FOR INFO Risk Metrics'!$B$11:$B$211,1,0)","v":"Bhutan"},"Independent State"]
[null,null,"Bolivia (Plurinational State of)","Bolivia (Plurinational State of)",{"$f":"VLOOKUP(C24,'FOR INFO Risk Metrics'!$B$11:$B$211,1,0)","v":"Bolivia (Plurinational State of)"},"Independent State"]
[null,null,"Bosnia and Herzegovina","Bosnia and Herzegovina",{"$f":"VLOOKUP(C25,'FOR INFO Risk Metrics'!$B$11:$B$211,1,0)","v":"Bosnia and Herzegovina"},"Independent State"]
[null,null,"Botswana","Botswana",{"$f":"VLOOKUP(C26,'FOR INFO Risk Metrics'!$B$11:$B$211,1,0)","v":"Botswana"},"Independent State"]
[null,null,"Brazil","Brazil",{"$f":"VLOOKUP(C27,'FOR INFO Risk Metrics'!$B$11:$B$211,1,0)","v":"Brazil"},"Independent State"]
[null,null,"Brunei",{"$error":"#N/A"},{"$f":"VLOOKUP(C28,'FOR INFO Risk Metrics'!$B$11:$B$211,1,0)","v":{"$error":"#N/A"}},"Independent State"]
[null,null,"Bulgaria","Bulgaria",{"$f":"VLOOKUP(C29,'FOR INFO Risk Metrics'!$B$11:$B$211,1,0)","v":"Bulgaria"},"Independent State"]
[null,null,"Burkina Faso","Burkina Faso",{"$f":"VLOOKUP(C30,'FOR INFO Risk Metrics'!$B$11:$B$211,1,0)","v":"Burkina Faso"},"Independent State"]
[null,null,"Myanmar","Myanmar",{"$f":"VLOOKUP(C31,'FOR INFO Risk Metrics'!$B$11:$B$211,1,0)","v":"Myanmar"},"Independent State"]
[null,null,"Burundi","Burundi",{"$f":"VLOOKUP(C32,'FOR INFO Risk Metrics'!$B$11:$B$211,1,0)","v":"Burundi"},"Independent State"]
[null,null,"Cambodia","Cambodia",{"$f":"VLOOKUP(C33,'FOR INFO Risk Metrics'!$B$11:$B$211,1,0)","v":"Cambodia"},"Independent State"]
[null,null,"Cameroon","Cameroon",{"$f":"VLOOKUP(C34,'FOR INFO Risk Metrics'!$B$11:$B$211,1,0)","v":"Cameroon"},"Independent State"]
[null,null,"Canada","Canada",{"$f":"VLOOKUP(C35,'FOR INFO Risk Metrics'!$B$11:$B$211,1,0)","v":"Canada"},"Independent State"]
[null,null,"Cabo Verde","Cabo Verde",{"$f":"VLOOKUP(C36,'FOR INFO Risk Metrics'!$B$11:$B$211,1,0)","v":"Cabo Verde"},"Independent State"]
[null,null,"Central African Republic","Central African Republic",{"$f":"VLOOKUP(C37,'FOR INFO Risk Metrics'!$B$11:$B$211,1,0)","v":"Central African Republic"},"Independent State"]
[null,null,"Chad","Chad",{"$f":"VLOOKUP(C38,'FOR INFO Risk Metrics'!$B$11:$B$211,1,0)","v":"Chad"},"Independent State"]
[null,null,"Chile","Chile",{"$f":"VLOOKUP(C39,'FOR INFO Risk Metrics'!$B$11:$B$211,1,0)","v":"Chile"},"Independent State"]
[null,null,"China","China",{"$f":"VLOOKUP(C40,'FOR INFO Risk Metrics'!$B$11:$B$211,1,0)","v":"China"},"Independent State"]
[null,null,"Colombia","Colombia",{"$f":"VLOOKUP(C41,'FOR INFO Risk Metrics'!$B$11:$B$211,1,0)","v":"Colombia"},"Independent State"]
[null,null,"Comoros","Comoros",{"$f":"VLOOKUP(C42,'FOR INFO Risk Metrics'!$B$11:$B$211,1,0)","v":"Comoros"},"Independent State"]
[null,null,"Congo (Democratic Republic of the)",{"$error":"#N/A"},{"$f":"VLOOKUP(C43,'FOR INFO Risk Metrics'!$B$11:$B$211,1,0)","v":{"$error":"#N/A"}},"Independent State"]
[null,null,"Congo (Republic of the)",{"$error":"#N/A"},{"$f":"VLOOKUP(C44,'FOR INFO Risk Metrics'!$B$11:$B$211,1,0)","v":{"$error":"#N/A"}},"Independent State"]
[null,null,"Costa Rica","Costa Rica",{"$f":"VLOOKUP(C45,'FOR INFO Risk Metrics'!$B$11:$B$211,1,0)","v":"Costa Rica"},"Independent State"]
[null,null,"Côte d’Ivoire","Côte d’Ivoire",{"$f":"VLOOKUP(C46,'FOR INFO Risk Metrics'!$B$11:$B$211,1,0)","v":"Côte d’Ivoire"},"Independent State"]
[null,null,"Croatia","Croatia",{"$f":"VLOOKUP(C47,'FOR INFO Risk Metrics'!$B$11:$B$211,1,0)","v":"Croatia"},"Independent State"]
[null,null,"Cuba","Cuba",{"$f":"VLOOKUP(C48,'FOR INFO Risk Metrics'!$B$11:$B$211,1,0)","v":"Cuba"},"Independent State"]
[null,null,"Curacao",{"$error":"#N/A"},{"$f":"VLOOKUP(C49,'FOR INFO Risk Metrics'!$B$11:$B$211,1,0)","v":{"$error":"#N/A"}},"Independent State"]
[null,null,"Cyprus","Cyprus",{"$f":"VLOOKUP(C50,'FOR INFO Risk Metrics'!$B$11:$B$211,1,0)","v":"Cyprus"},"Independent State"]
[null,null,"Czech Republic",{"$error":"#N/A"},{"$f":"VLOOKUP(C51,'FOR INFO Risk Metrics'!$B$11:$B$211,1,0)","v":{"$error":"#N/A"}},"Independent State"]
[null,null,"Denmark","Denmark",{"$f":"VLOOKUP(C52,'FOR INFO Risk Metrics'!$B$11:$B$211,1,0)","v":"Denmark"},"Independent State"]
[null,null,"Djibouti","Djibouti",{"$f":"VLOOKUP(C53,'FOR INFO Risk Metrics'!$B$11:$B$211,1,0)","v":"Djibouti"},"Independent State"]
[null,null,"Dominica","Dominica",{"$f":"VLOOKUP(C54,'FOR INFO Risk Metrics'!$B$11:$B$211,1,0)","v":"Dominica"},"Independent State"]
[null,null,"Dominican Republic","Dominican Republic",{"$f":"VLOOKUP(C55,'FOR INFO Risk Metrics'!$B$11:$B$211,1,0)","v":"Dominican Republic"},"Independent State"]
[null,null,"Timor-Leste","Timor-Leste",{"$f":"VLOOKUP(C56,'FOR INFO Risk Metrics'!$B$11:$B$211,1,0)","v":"Timor-Leste"},"Independent State"]
[null,null,"Ecuador","Ecuador",{"$f":"VLOOKUP(C57,'FOR INFO Risk Metrics'!$B$11:$B$211,1,0)","v":"Ecuador"},"Independent State"]
[null,null,"Egypt","Egypt",{"$f":"VLOOKUP(C58,'FOR INFO Risk Metrics'!$B$11:$B$211,1,0)","v":"Egypt"},"Independent State"]
[null,null,"El Salvador","El Salvador",{"$f":"VLOOKUP(C59,'FOR INFO Risk Metrics'!$B$11:$B$211,1,0)","v":"El Salvador"},"Independent State"]
[null,null,"Equatorial Guinea","Equatorial Guinea",{"$f":"VLOOKUP(C60,'FOR INFO Risk Metrics'!$B$11:$B$211,1,0)","v":"Equatorial Guinea"},"Independent State"]
[null,null,"Eritrea","Eritrea",{"$f":"VLOOKUP(C61,'FOR INFO Risk Metrics'!$B$11:$B$211,1,0)","v":"Eritrea"},"Independent State"]
[null,null,"Estonia","Estonia",{"$f":"VLOOKUP(C62,'FOR INFO Risk Metrics'!$B$11:$B$211,1,0)","v":"Estonia"},"Independent State"]
[null,null,"Ethiopia","Ethiopia",{"$f":"VLOOKUP(C63,'FOR INFO Risk Metrics'!$B$11:$B$211,1,0)","v":"Ethiopia"},"Independent State"]
[null,null,"Fiji","Fiji",{"$f":"VLOOKUP(C64,'FOR INFO Risk Metrics'!$B$11:$B$211,1,0)","v":"Fiji"},"Independent State"]
[null,null,"Finland","Finland",{"$f":"VLOOKUP(C65,'FOR INFO Risk Metrics'!$B$11:$B$211,1,0)","v":"Finland"},"Independent State"]
[null,null,"France","France",{"$f":"VLOOKUP(C66,'FOR INFO Risk Metrics'!$B$11:$B$211,1,0)","v":"France"},"Independent State"]
[null,null,"Gabon",{"$f":"VLOOKUP(C67,CountryList,1,0)","v":"Gabon"},{"$f":"VLOOKUP(C67,'FOR INFO Risk Metrics'!$B$11:$B$211,1,0)","v":"Gabon"},"Independent State"]
[null,null,"Gambia","Gambia",{"$f":"VLOOKUP(C68,'FOR INFO Risk Metrics'!$B$11:$B$211,1,0)","v":"Gambia"},"Independent State"]
[null,null,"Georgia","Georgia",{"$f":"VLOOKUP(C69,'FOR INFO Risk Metrics'!$B$11:$B$211,1,0)","v":"Georgia"},"Independent State"]
[null,null,"Germany","Germany",{"$f":"VLOOKUP(C70,'FOR INFO Risk Metrics'!$B$11:$B$211,1,0)","v":"Germany"},"Independent State"]
[null,null,"Ghana","Ghana",{"$f":"VLOOKUP(C71,'FOR INFO Risk Metrics'!$B$11:$B$211,1,0)","v":"Ghana"},"Independent State"]
[null,null,"Greece","Greece",{"$f":"VLOOKUP(C72,'FOR INFO Risk Metrics'!$B$11:$B$211,1,0)","v":"Greece"},"Independent State"]
[null,null,"Greenland","Greenland",{"$f":"VLOOKUP(C73,'FOR INFO Risk Metrics'!$B$11:$B$211,1,0)","v":"Greenland"},"Dependencies and Areas of Special Sovereignty"]
[null,null,"Grenada","Grenada",{"$f":"VLOOKUP(C74,'FOR INFO Risk Metrics'!$B$11:$B$211,1,0)","v":"Grenada"},"Independent State"]
[null,null,"Guatemala","Guatemala",{"$f":"VLOOKUP(C75,'FOR INFO Risk Metrics'!$B$11:$B$211,1,0)","v":"Guatemala"},"Independent State"]
[null,null,"Guinea","Guinea",{"$f":"VLOOKUP(C76,'FOR INFO Risk Metrics'!$B$11:$B$211,1,0)","v":"Guinea"},"Independent State"]
[null,null,"Guinea-Bissau","Guinea-Bissau",{"$f":"VLOOKUP(C77,'FOR INFO Risk Metrics'!$B$11:$B$211,1,0)","v":"Guinea-Bissau"},"Independent State"]
[null,null,"Guyana","Guyana",{"$f":"VLOOKUP(C78,'FOR INFO Risk Metrics'!$B$11:$B$211,1,0)","v":"Guyana"},"Independent State"]
[null,null,"Haiti","Haiti",{"$f":"VLOOKUP(C79,'FOR INFO Risk Metrics'!$B$11:$B$211,1,0)","v":"Haiti"},"Independent State"]
[null,null,"Holy See",{"$error":"#N/A"},{"$f":"VLOOKUP(C80,'FOR INFO Risk Metrics'!$B$11:$B$211,1,0)","v":{"$error":"#N/A"}},"Independent State"]
[null,null,"Honduras","Honduras",{"$f":"VLOOKUP(C81,'FOR INFO Risk Metrics'!$B$11:$B$211,1,0)","v":"Honduras"},"Independent State"]
[null,null,"Hong Kong","Hong Kong",{"$f":"VLOOKUP(C82,'FOR INFO Risk Metrics'!$B$11:$B$211,1,0)","v":"Hong Kong"},"Independent State"]
[null,null,"Hungary","Hungary",{"$f":"VLOOKUP(C83,'FOR INFO Risk Metrics'!$B$11:$B$211,1,0)","v":"Hungary"},"Independent State"]
[null,null,"Iceland","Iceland",{"$f":"VLOOKUP(C84,'FOR INFO Risk Metrics'!$B$11:$B$211,1,0)","v":"Iceland"},"Independent State"]
[null,null,"India","India",{"$f":"VLOOKUP(C85,'FOR INFO Risk Metrics'!$B$11:$B$211,1,0)","v":"India"},"Independent State"]
[null,null,"Indonesia","Indonesia",{"$f":"VLOOKUP(C86,'FOR INFO Risk Metrics'!$B$11:$B$211,1,0)","v":"Indonesia"},"Independent State"]
[null,null,"Iran (Islamic Republic of)","Iran (Islamic Republic of)",{"$f":"VLOOKUP(C87,'FOR INFO Risk Metrics'!$B$11:$B$211,1,0)","v":"Iran (Islamic Republic of)"},"Independent State"]
[null,null,"Iraq","Iraq",{"$f":"VLOOKUP(C88,'FOR INFO Risk Metrics'!$B$11:$B$211,1,0)","v":"Iraq"},"Independent State"]
[null,null,"Ireland","Ireland",{"$f":"VLOOKUP(C89,'FOR INFO Risk Metrics'!$B$11:$B$211,1,0)","v":"Ireland"},"Independent State"]
[null,null,"Israel","Israel",{"$f":"VLOOKUP(C90,'FOR INFO Risk Metrics'!$B$11:$B$211,1,0)","v":"Israel"},"Independent State"]
[null,null,"Italy","Italy",{"$f":"VLOOKUP(C91,'FOR INFO Risk Metrics'!$B$11:$B$211,1,0)","v":"Italy"},"Independent State"]
[null,null,"Jamaica","Jamaica",{"$f":"VLOOKUP(C92,'FOR INFO Risk Metrics'!$B$11:$B$211,1,0)","v":"Jamaica"},"Independent State"]
[null,null,"Japan","Japan",{"$f":"VLOOKUP(C93,'FOR INFO Risk Metrics'!$B$11:$B$211,1,0)","v":"Japan"},"Independent State"]
[null,null,"Jordan","Jordan",{"$f":"VLOOKUP(C94,'FOR INFO Risk Metrics'!$B$11:$B$211,1,0)","v":"Jordan"},"Independent State"]
[null,null,"Kazakhstan","Kazakhstan",{"$f":"VLOOKUP(C95,'FOR INFO Risk Metrics'!$B$11:$B$211,1,0)","v":"Kazakhstan"},"Independent State"]
[null,null,"Kenya","Kenya",{"$f":"VLOOKUP(C96,'FOR INFO Risk Metrics'!$B$11:$B$211,1,0)","v":"Kenya"},"Independent State"]
[null,null,"Kiribati","Kiribati",{"$f":"VLOOKUP(C97,'FOR INFO Risk Metrics'!$B$11:$B$211,1,0)","v":"Kiribati"},"Independent State"]
[null,null,"Korea (Democratic People's Republic of)","Korea (Democratic People's Republic of)",{"$f":"VLOOKUP(C98,'FOR INFO Risk Metrics'!$B$11:$B$211,1,0)","v":"Korea (Democratic People's Republic of)"},"Independent State"]
[null,null,"Korea (Republic of)",{"$error":"#N/A"},{"$f":"VLOOKUP(C99,'FOR INFO Risk Metrics'!$B$11:$B$211,1,0)","v":{"$error":"#N/A"}},"Independent State"]
[null,null,"Kosovo","Kosovo",{"$f":"VLOOKUP(C100,'FOR INFO Risk Metrics'!$B$11:$B$211,1,0)","v":"Kosovo"},"Independent State"]
[null,null,"Kuwait","Kuwait",{"$f":"VLOOKUP(C101,'FOR INFO Risk Metrics'!$B$11:$B$211,1,0)","v":"Kuwait"},"Independent State"]
[null,null,"Kyrgyzstan","Kyrgyzstan",{"$f":"VLOOKUP(C102,'FOR INFO Risk Metrics'!$B$11:$B$211,1,0)","v":"Kyrgyzstan"},"Independent State"]
[null,null,"Lao People's Democratic Republic of","Lao People's Democratic Republic of",{"$f":"VLOOKUP(C103,'FOR INFO Risk Metrics'!$B$11:$B$211,1,0)","v":"Lao People's Democratic Republic of"},"Independent State"]
[null,null,"Latvia","Latvia",{"$f":"VLOOKUP(C104,'FOR INFO Risk Metrics'!$B$11:$B$211,1,0)","v":"Latvia"},"Independent State"]
[null,null,"Lebanon","Lebanon",{"$f":"VLOOKUP(C105,'FOR INFO Risk Metrics'!$B$11:$B$211,1,0)","v":"Lebanon"},"Independent State"]
[null,null,"Lesotho","Lesotho",{"$f":"VLOOKUP(C106,'FOR INFO Risk Metrics'!$B$11:$B$211,1,0)","v":"Lesotho"},"Independent State"]
[null,null,"Liberia","Liberia",{"$f":"VLOOKUP(C107,'FOR INFO Risk Metrics'!$B$11:$B$211,1,0)","v":"Liberia"},"Independent State"]
[null,null,"Libya","Libya",{"$f":"VLOOKUP(C108,'FOR INFO Risk Metrics'!$B$11:$B$211,1,0)","v":"Libya"},"Independent State"]
[null,null,"Liechtenstein","Liechtenstein",{"$f":"VLOOKUP(C109,'FOR INFO Risk Metrics'!$B$11:$B$211,1,0)","v":"Liechtenstein"},"Independent State"]
[null,null,"Lithuania","Lithuania",{"$f":"VLOOKUP(C110,'FOR INFO Risk Metrics'!$B$11:$B$211,1,0)","v":"Lithuania"},"Independent State"]
[null,null,"Luxembourg","Luxembourg",{"$f":"VLOOKUP(C111,'FOR INFO Risk Metrics'!$B$11:$B$211,1,0)","v":"Luxembourg"},"Independent State"]
[null,null,"Macau (China)","Macau (China)",{"$f":"VLOOKUP(C112,'FOR INFO Risk Metrics'!$B$11:$B$211,1,0)","v":"Macau (China)"},"Independent State"]
[null,null,"Macedonia (Republic of)",{"$error":"#N/A"},{"$f":"VLOOKUP(C113,'FOR INFO Risk Metrics'!$B$11:$B$211,1,0)","v":{"$error":"#N/A"}},"Independent State"]
[null,null,"Madagascar","Madagascar",{"$f":"VLOOKUP(C114,'FOR INFO Risk Metrics'!$B$11:$B$211,1,0)","v":"Madagascar"},"Independent State"]
[null,null,"Malawi","Malawi",{"$f":"VLOOKUP(C115,'FOR INFO Risk Metrics'!$B$11:$B$211,1,0)","v":"Malawi"},"Independent State"]
[null,null,"Malaysia","Malaysia",{"$f":"VLOOKUP(C116,'FOR INFO Risk Metrics'!$B$11:$B$211,1,0)","v":"Malaysia"},"Independent State"]
[null,null,"Maldives","Maldives",{"$f":"VLOOKUP(C117,'FOR INFO Risk Metrics'!$B$11:$B$211,1,0)","v":"Maldives"},"Independent State"]
[null,null,"Mali","Mali",{"$f":"VLOOKUP(C118,'FOR INFO Risk Metrics'!$B$11:$B$211,1,0)","v":"Mali"},"Independent State"]
[null,null,"Malta","Malta",{"$f":"VLOOKUP(C119,'FOR INFO Risk Metrics'!$B$11:$B$211,1,0)","v":"Malta"},"Independent State"]
[null,null,"Marshall Islands","Marshall Islands",{"$f":"VLOOKUP(C120,'FOR INFO Risk Metrics'!$B$11:$B$211,1,0)","v":"Marshall Islands"},"Independent State"]
[null,null,"Mauritania","Mauritania",{"$f":"VLOOKUP(C121,'FOR INFO Risk Metrics'!$B$11:$B$211,1,0)","v":"Mauritania"},"Independent State"]
[null,null,"Mauritius","Mauritius",{"$f":"VLOOKUP(C122,'FOR INFO Risk Metrics'!$B$11:$B$211,1,0)","v":"Mauritius"},"Independent State"]
[null,null,"Mexico","Mexico",{"$f":"VLOOKUP(C123,'FOR INFO Risk Metrics'!$B$11:$B$211,1,0)","v":"Mexico"},"Independent State"]
[null,null,"Micronesia (Federated States of)","Micronesia (Federated States of)",{"$f":"VLOOKUP(C124,'FOR INFO Risk Metrics'!$B$11:$B$211,1,0)","v":"Micronesia (Federated States of)"},"Independent State"]
[null,null,"Moldova (Republic of)",{"$error":"#N/A"},{"$f":"VLOOKUP(C125,'FOR INFO Risk Metrics'!$B$11:$B$211,1,0)","v":{"$error":"#N/A"}},"Independent State"]
[null,null,"Monaco","Monaco",{"$f":"VLOOKUP(C126,'FOR INFO Risk Metrics'!$B$11:$B$211,1,0)","v":"Monaco"},"Independent State"]
[null,null,"Mongolia","Mongolia",{"$f":"VLOOKUP(C127,'FOR INFO Risk Metrics'!$B$11:$B$211,1,0)","v":"Mongolia"},"Independent State"]
[null,null,"Montenegro","Montenegro",{"$f":"VLOOKUP(C128,'FOR INFO Risk Metrics'!$B$11:$B$211,1,0)","v":"Montenegro"},"Independent State"]
[null,null,"Morocco","Morocco",{"$f":"VLOOKUP(C129,'FOR INFO Risk Metrics'!$B$11:$B$211,1,0)","v":"Morocco"},"Independent State"]
[null,null,"Mozambique","Mozambique",{"$f":"VLOOKUP(C130,'FOR INFO Risk Metrics'!$B$11:$B$211,1,0)","v":"Mozambique"},"Independent State"]
[null,null,"Namibia",{"$f":"VLOOKUP(C131,CountryList,1,0)","v":"Namibia"},{"$f":"VLOOKUP(C131,'FOR INFO Risk Metrics'!$B$11:$B$211,1,0)","v":"Namibia"},"Independent State"]
[null,null,"Nauru","Nauru",{"$f":"VLOOKUP(C132,'FOR INFO Risk Metrics'!$B$11:$B$211,1,0)","v":"Nauru"},"Independent State"]
[null,null,"Nepal","Nepal",{"$f":"VLOOKUP(C133,'FOR INFO Risk Metrics'!$B$11:$B$211,1,0)","v":"Nepal"},"Independent State"]
[null,null,"Netherlands","Netherlands",{"$f":"VLOOKUP(C134,'FOR INFO Risk Metrics'!$B$11:$B$211,1,0)","v":"Netherlands"},"Independent State"]
[null,null,"New Zealand","New Zealand",{"$f":"VLOOKUP(C135,'FOR INFO Risk Metrics'!$B$11:$B$211,1,0)","v":"New Zealand"},"Independent State"]
[null,null,"Nicaragua","Nicaragua",{"$f":"VLOOKUP(C136,'FOR INFO Risk Metrics'!$B$11:$B$211,1,0)","v":"Nicaragua"},"Independent State"]
[null,null,"Niger","Niger",{"$f":"VLOOKUP(C137,'FOR INFO Risk Metrics'!$B$11:$B$211,1,0)","v":"Niger"},"Independent State"]
[null,null,"Nigeria","Nigeria",{"$f":"VLOOKUP(C138,'FOR INFO Risk Metrics'!$B$11:$B$211,1,0)","v":"Nigeria"},"Independent State"]
[null,null,"Korea (Democratic People's Republic of)","Korea (Democratic People's Republic of)",{"$f":"VLOOKUP(C139,'FOR INFO Risk Metrics'!$B$11:$B$211,1,0)","v":"Korea (Democratic People's Republic of)"},"Independent State"]
[null,null,"Norway","Norway",{"$f":"VLOOKUP(C140,'FOR INFO Risk Metrics'!$B$11:$B$211,1,0)","v":"Norway"},"Independent State"]
[null,null,"Oman","Oman",{"$f":"VLOOKUP(C141,'FOR INFO Risk Metrics'!$B$11:$B$211,1,0)","v":"Oman"},"Independent State"]
[null,null,"Pakistan","Pakistan",{"$f":"VLOOKUP(C142,'FOR INFO Risk Metrics'!$B$11:$B$211,1,0)","v":"Pakistan"},"Independent State"]
[null,null,"Palau","Palau",{"$f":"VLOOKUP(C143,'FOR INFO Risk Metrics'!$B$11:$B$211,1,0)","v":"Palau"},"Independent State"]
[null,null,"Palestine, State of",{"$error":"#N/A"},{"$f":"VLOOKUP(C144,'FOR INFO Risk Metrics'!$B$11:$B$211,1,0)","v":{"$error":"#N/A"}},"Independent State"]
[null,null,"Panama","Panama",{"$f":"VLOOKUP(C145,'FOR INFO Risk Metrics'!$B$11:$B$211,1,0)","v":"Panama"},"Independent State"]
[null,null,"Papua New Guinea","Papua New Guinea",{"$f":"VLOOKUP(C146,'FOR INFO Risk Metrics'!$B$11:$B$211,1,0)","v":"Papua New Guinea"},"Independent State"]
[null,null,"Paraguay","Paraguay",{"$f":"VLOOKUP(C147,'FOR INFO Risk Metrics'!$B$11:$B$211,1,0)","v":"Paraguay"},"Independent State"]
[null,null,"Peru","Peru",{"$f":"VLOOKUP(C148,'FOR INFO Risk Metrics'!$B$11:$B$211,1,0)","v":"Peru"},"Independent State"]
[null,null,"Philippines","Philippines",{"$f":"VLOOKUP(C149,'FOR INFO Risk Metrics'!$B$11:$B$211,1,0)","v":"Philippines"},"Independent State"]
[null,null,"Poland","Poland",{"$f":"VLOOKUP(C150,'FOR INFO Risk Metrics'!$B$11:$B$211,1,0)","v":"Poland"},"Independent State"]
[null,null,"Portugal","Portugal",{"$f":"VLOOKUP(C151,'FOR INFO Risk Metrics'!$B$11:$B$211,1,0)","v":"Portugal"},"Independent State"]
[null,null,"Puerto Rico",{"$error":"#N/A"},{"$f":"VLOOKUP(C152,'FOR INFO Risk Metrics'!$B$11:$B$211,1,0)","v":{"$error":"#N/A"}},"Dependencies and Areas of Special Sovereignty"]
[null,null,"Qatar","Qatar",{"$f":"VLOOKUP(C153,'FOR INFO Risk Metrics'!$B$11:$B$211,1,0)","v":"Qatar"},"Independent State"]
[null,null,"Romania","Romania",{"$f":"VLOOKUP(C154,'FOR INFO Risk Metrics'!$B$11:$B$211,1,0)","v":"Romania"},"Independent State"]
[null,null,"Russian Federation","Russian Federation",{"$f":"VLOOKUP(C155,'FOR INFO Risk Metrics'!$B$11:$B$211,1,0)","v":"Russian Federation"},"Independent State"]
[null,null,"Rwanda","Rwanda",{"$f":"VLOOKUP(C156,'FOR INFO Risk Metrics'!$B$11:$B$211,1,0)","v":"Rwanda"},"Independent State"]
[null,null,"Saint Kitts and Nevis","Saint Kitts and Nevis",{"$f":"VLOOKUP(C157,'FOR INFO Risk Metrics'!$B$11:$B$211,1,0)","v":"Saint Kitts and Nevis"},"Independent State"]
[null,null,"Saint Lucia","Saint Lucia",{"$f":"VLOOKUP(C158,'FOR INFO Risk Metrics'!$B$11:$B$211,1,0)","v":"Saint Lucia"},"Independent State"]
[null,null,"Saint Vincent and the Grenadines","Saint Vincent and the Grenadines",{"$f":"VLOOKUP(C159,'FOR INFO Risk Metrics'!$B$11:$B$211,1,0)","v":"Saint Vincent and the Grenadines"},"Independent State"]
[null,null,"Samoa","Samoa",{"$f":"VLOOKUP(C160,'FOR INFO Risk Metrics'!$B$11:$B$211,1,0)","v":"Samoa"},"Independent State"]
[null,null,"San Marino","San Marino",{"$f":"VLOOKUP(C161,'FOR INFO Risk Metrics'!$B$11:$B$211,1,0)","v":"San Marino"},"Independent State"]
[null,null,"Sao Tome and Principe","Sao Tome and Principe",{"$f":"VLOOKUP(C162,'FOR INFO Risk Metrics'!$B$11:$B$211,1,0)","v":"Sao Tome and Principe"},"Independent State"]
[null,null,"Saudi Arabia","Saudi Arabia",{"$f":"VLOOKUP(C163,'FOR INFO Risk Metrics'!$B$11:$B$211,1,0)","v":"Saudi Arabia"},"Independent State"]
[null,null,"Senegal","Senegal",{"$f":"VLOOKUP(C164,'FOR INFO Risk Metrics'!$B$11:$B$211,1,0)","v":"Senegal"},"Independent State"]
[null,null,"Serbia","Serbia",{"$f":"VLOOKUP(C165,'FOR INFO Risk Metrics'!$B$11:$B$211,1,0)","v":"Serbia"},"Independent State"]
[null,null,"Seychelles","Seychelles",{"$f":"VLOOKUP(C166,'FOR INFO Risk Metrics'!$B$11:$B$211,1,0)","v":"Seychelles"},"Independent State"]
[null,null,"Sierra Leone","Sierra Leone",{"$f":"VLOOKUP(C167,'FOR INFO Risk Metrics'!$B$11:$B$211,1,0)","v":"Sierra Leone"},"Independent State"]
[null,null,"Singapore","Singapore",{"$f":"VLOOKUP(C168,'FOR INFO Risk Metrics'!$B$11:$B$211,1,0)","v":"Singapore"},"Independent State"]
[null,null,"Sint Maarten",{"$error":"#N/A"},{"$f":"VLOOKUP(C169,'FOR INFO Risk Metrics'!$B$11:$B$211,1,0)","v":{"$error":"#N/A"}},"Dependencies and Areas of Special Sovereignty"]
[null,null,"Slovakia","Slovakia",{"$f":"VLOOKUP(C170,'FOR INFO Risk Metrics'!$B$11:$B$211,1,0)","v":"Slovakia"},"Independent State"]
[null,null,"Slovenia","Slovenia",{"$f":"VLOOKUP(C171,'FOR INFO Risk Metrics'!$B$11:$B$211,1,0)","v":"Slovenia"},"Independent State"]
[null,null,"Solomon Islands","Solomon Islands",{"$f":"VLOOKUP(C172,'FOR INFO Risk Metrics'!$B$11:$B$211,1,0)","v":"Solomon Islands"},"Independent State"]
[null,null,"Somalia","Somalia",{"$f":"VLOOKUP(C173,'FOR INFO Risk Metrics'!$B$11:$B$211,1,0)","v":"Somalia"},"Independent State"]
[null,null,"South Africa","South Africa",{"$f":"VLOOKUP(C174,'FOR INFO Risk Metrics'!$B$11:$B$211,1,0)","v":"South Africa"},"Independent State"]
[null,null,"Korea (Republic of)",{"$error":"#N/A"},{"$f":"VLOOKUP(C175,'FOR INFO Risk Metrics'!$B$11:$B$211,1,0)","v":{"$error":"#N/A"}},"Independent State"]
[null,null,"South Sudan","South Sudan",{"$f":"VLOOKUP(C176,'FOR INFO Risk Metrics'!$B$11:$B$211,1,0)","v":"South Sudan"},"Independent State"]
[null,null,"Spain","Spain",{"$f":"VLOOKUP(C177,'FOR INFO Risk Metrics'!$B$11:$B$211,1,0)","v":"Spain"},"Independent State"]
[null,null,"Sri Lanka","Sri Lanka",{"$f":"VLOOKUP(C178,'FOR INFO Risk Metrics'!$B$11:$B$211,1,0)","v":"Sri Lanka"},"Independent State"]
[null,null,"Sudan","Sudan",{"$f":"VLOOKUP(C179,'FOR INFO Risk Metrics'!$B$11:$B$211,1,0)","v":"Sudan"},"Independent State"]
[null,null,"Suriname","Suriname",{"$f":"VLOOKUP(C180,'FOR INFO Risk Metrics'!$B$11:$B$211,1,0)","v":"Suriname"},"Independent State"]
[null,null,"Swaziland",{"$error":"#N/A"},{"$f":"VLOOKUP(C181,'FOR INFO Risk Metrics'!$B$11:$B$211,1,0)","v":{"$error":"#N/A"}},"Independent State"]
[null,null,"Sweden","Sweden",{"$f":"VLOOKUP(C182,'FOR INFO Risk Metrics'!$B$11:$B$211,1,0)","v":"Sweden"},"Independent State"]
[null,null,"Switzerland","Switzerland",{"$f":"VLOOKUP(C183,'FOR INFO Risk Metrics'!$B$11:$B$211,1,0)","v":"Switzerland"},"Independent State"]
[null,null,"Syrian Arab Republic","Syrian Arab Republic",{"$f":"VLOOKUP(C184,'FOR INFO Risk Metrics'!$B$11:$B$211,1,0)","v":"Syrian Arab Republic"},"Independent State"]
[null,null,"Taiwan",{"$error":"#N/A"},{"$f":"VLOOKUP(C185,'FOR INFO Risk Metrics'!$B$11:$B$211,1,0)","v":{"$error":"#N/A"}},"Independent State"]
[null,null,"Tajikistan","Tajikistan",{"$f":"VLOOKUP(C186,'FOR INFO Risk Metrics'!$B$11:$B$211,1,0)","v":"Tajikistan"},"Independent State"]
[null,null,"Tanzania (United Republic of)",{"$error":"#N/A"},{"$f":"VLOOKUP(C187,'FOR INFO Risk Metrics'!$B$11:$B$211,1,0)","v":{"$error":"#N/A"}},"Independent State"]
[null,null,"Thailand","Thailand",{"$f":"VLOOKUP(C188,'FOR INFO Risk Metrics'!$B$11:$B$211,1,0)","v":"Thailand"},"Independent State"]
[null,null,"Timor-Leste","Timor-Leste",{"$f":"VLOOKUP(C189,'FOR INFO Risk Metrics'!$B$11:$B$211,1,0)","v":"Timor-Leste"},"Independent State"]
[null,null,"Togo","Togo",{"$f":"VLOOKUP(C190,'FOR INFO Risk Metrics'!$B$11:$B$211,1,0)","v":"Togo"},"Independent State"]
[null,null,"Tonga","Tonga",{"$f":"VLOOKUP(C191,'FOR INFO Risk Metrics'!$B$11:$B$211,1,0)","v":"Tonga"},"Independent State"]
[null,null,"Trinidad and Tobago","Trinidad and Tobago",{"$f":"VLOOKUP(C192,'FOR INFO Risk Metrics'!$B$11:$B$211,1,0)","v":"Trinidad and Tobago"},"Independent State"]
[null,null,"Tunisia","Tunisia",{"$f":"VLOOKUP(C193,'FOR INFO Risk Metrics'!$B$11:$B$211,1,0)","v":"Tunisia"},"Independent State"]
[null,null,"Turkey","Turkey",{"$f":"VLOOKUP(C194,'FOR INFO Risk Metrics'!$B$11:$B$211,1,0)","v":"Turkey"},"Independent State"]
[null,null,"Turkmenistan",{"$f":"VLOOKUP(C195,CountryList,1,0)","v":"Turkmenistan"},{"$f":"VLOOKUP(C195,'FOR INFO Risk Metrics'!$B$11:$B$211,1,0)","v":"Turkmenistan"},"Independent State"]
[null,null,"Tuvalu","Tuvalu",{"$f":"VLOOKUP(C196,'FOR INFO Risk Metrics'!$B$11:$B$211,1,0)","v":"Tuvalu"},"Independent State"]
[null,null,"Uganda","Uganda",{"$f":"VLOOKUP(C197,'FOR INFO Risk Metrics'!$B$11:$B$211,1,0)","v":"Uganda"},"Independent State"]
[null,null,"Ukraine","Ukraine",{"$f":"VLOOKUP(C198,'FOR INFO Risk Metrics'!$B$11:$B$211,1,0)","v":"Ukraine"},"Independent State"]
[null,null,"United Arab Emirates","United Arab Emirates",{"$f":"VLOOKUP(C199,'FOR INFO Risk Metrics'!$B$11:$B$211,1,0)","v":"United Arab Emirates"},"Independent State"]
[null,null,"United Kingdom","United Kingdom",{"$f":"VLOOKUP(C200,'FOR INFO Risk Metrics'!$B$11:$B$211,1,0)","v":"United Kingdom"},"Independent State"]
[null,null,"United States","United States",{"$f":"VLOOKUP(C201,'FOR INFO Risk Metrics'!$B$11:$B$211,1,0)","v":"United States"},"Independent State"]
[null,null,"Uruguay","Uruguay",{"$f":"VLOOKUP(C202,'FOR INFO Risk Metrics'!$B$11:$B$211,1,0)","v":"Uruguay"},"Independent State"]
[null,null,"Uzbekistan","Uzbekistan",{"$f":"VLOOKUP(C203,'FOR INFO Risk Metrics'!$B$11:$B$211,1,0)","v":"Uzbekistan"},"Independent State"]
[null,null,"Vanuatu","Vanuatu",{"$f":"VLOOKUP(C204,'FOR INFO Risk Metrics'!$B$11:$B$211,1,0)","v":"Vanuatu"},"Independent State"]
[null,null,"Venezuela","Venezuela",{"$f":"VLOOKUP(C205,'FOR INFO Risk Metrics'!$B$11:$B$211,1,0)","v":"Venezuela"},"Independent State"]
[null,null,"Vietnam","Vietnam",{"$f":"VLOOKUP(C206,'FOR INFO Risk Metrics'!$B$11:$B$211,1,0)","v":"Vietnam"},"Independent State"]
[null,null,"Yemen","Yemen",{"$f":"VLOOKUP(C207,'FOR INFO Risk Metrics'!$B$11:$B$211,1,0)","v":"Yemen"},"Independent State"]
[null,null,"Zambia","Zambia",{"$f":"VLOOKUP(C208,'FOR INFO Risk Metrics'!$B$11:$B$211,1,0)","v":"Zambia"},"Independent State"]
[null,null,"Zimbabwe","Zimbabwe",{"$f":"VLOOKUP(C209,'FOR INFO Risk Metrics'!$B$11:$B$211,1,0)","v":"Zimbabwe"},"Independent State"]